Workbook

Sheet Menu
B3: =VLOOKUP("MNU_8",ResString,Langue+1+(res_Interface *2),FALSE) -> Budget et planification financière | N3: 30 | O3: 30 | P3: 30 | Q3: 30 | R3: MenuMesure
B4: =IF(res_Interface = 0,VLOOKUP("MNU_9",ResString,Langue+1+(res_Interface *2),FALSE),"") ->  | J4: =HYPERLINK("VS_CI_Aide_F.pdf","Mode d'emploi") -> Mode d'emploi | L4: =VLOOKUP("MNU_28",ResString,Langue+1,FALSE) -> Imprimer pied de page | N4: 26 | O4: 26 | P4: 26 | Q4: 26
B7: =VLOOKUP("MNU_10",ResString,Langue+1,FALSE) -> Bourgeoisie | N7: 20 | O7: 20 | P7: 20 | Q7: 20
C8: =IF(res_Interface =0,AN_2,IF(res_Interface=1,AN_3,"")) -> 2026
N9: 15 | O9: 15 | P9: -1 | Q9: 15
B10: =VLOOKUP("MNU_11",ResString,Langue+1,FALSE) -> Données | N10: -1 | O10: -1 | P10: -1 | Q10: 15
B11: =VLOOKUP("MNU_14",ResString,Langue+1+(res_Interface *2),FALSE) -> 0 | N11: 15 | O11: -1 | P11: -1 | Q11: 15
B14: =VLOOKUP("MNU_12",ResString,Langue+1,FALSE) -> Comptes
B16: =VLOOKUP("MNU_30",ResString,Langue+1,FALSE) -> Plan financier | N16: -1 | O16: 15 | P16: 15 | Q16: 15
B17: =VLOOKUP("MNU_1034",ResString,Langue+1,FALSE) -> Aperçu résultats échelonnés | N17: 15 | O17: 15 | P17: -1 | Q17: 15
B18: =VLOOKUP("MNU_1",ResString,Langue+1,FALSE) -> Aperçu rés. et inv. | N18: 15 | O18: 15 | P18: -1 | Q18: 15
B19: =VLOOKUP("MNU_2",ResString,Langue+1,FALSE) -> Aperçu du compte annuel | N19: 15 | O19: 15 | P19: -1 | Q19: 15
B20: =VLOOKUP("MNU_1035",ResString,Langue+1,FALSE) -> Tableau de flux de trésorerie | N20: 15 | O20: -1 | P20: -1 | Q20: 15
B21: =VLOOKUP("MNU_3",ResString,Langue+1,FALSE) -> Aperçu du bilan | N21: 15 | O21: -1 | P21: -1 | Q21: 15
B22: =VLOOKUP("MNU_4",ResString,Langue+1,FALSE) -> Aperçu du compte de résultats selon les tâches | N22: 15 | O22: 15 | P22: -1 | Q22: 15
B23: =VLOOKUP("MNU_5",ResString,Langue+1,FALSE) -> Aperçu du compte de résultats selon les natures | N23: 15 | O23: 15 | P23: -1 | Q23: 15
B24: =VLOOKUP("MNU_6",ResString,Langue+1,FALSE) -> Aperçu du compte des investissements selon les tâches | N24: 15 | O24: 15 | P24: -1 | Q24: 15
B25: =VLOOKUP("MNU_7",ResString,Langue+1,FALSE) -> Aperçu du compte des investissements selon les natures | N25: 15 | O25: 15 | P25: -1 | Q25: 15
N26: 15 | O26: 15 | P26: -1 | Q26: 15
B27: =VLOOKUP("MNU_15",ResString,Langue+1,FALSE) -> Graphiques | N27: 15 | O27: 15 | P27: -1 | Q27: 15
N28: 7.5 | O28: 7.5 | P28: -1 | Q28: 15
B29: =VLOOKUP("MNU_16",ResString,Langue+1,FALSE) -> Compte de résultats selon les natures, charges | N29: 15 | O29: 15 | P29: -1 | Q29: 15
B30: =VLOOKUP("MNU_17",ResString,Langue+1,FALSE) -> Compte de résultats selon les natures, revenus | N30: 15 | O30: 15 | P30: -1 | Q30: 15
B31: =VLOOKUP("MNU_18",ResString,Langue+1,FALSE) -> Compte de résultats selon les tâches, charges | N31: 15 | O31: 15 | P31: -1 | Q31: 15
B32: =VLOOKUP("MNU_19",ResString,Langue+1,FALSE) -> Compte de résultats selon les tâches, revenus | N32: 15 | O32: 15 | P32: -1 | Q32: 15
B33: =VLOOKUP("MNU_20",ResString,Langue+1,FALSE) -> Compte des investissements selon les tâches, dépenses | N33: 15 | O33: 15 | P33: -1 | Q33: 15
B34: =VLOOKUP("MNU_21",ResString,Langue+1,FALSE) -> Compte des investissements selon les tâches, recettes | N34: 15 | O34: 15 | P34: -1 | Q34: 15
B36: =VLOOKUP("MNU_13",ResString,Langue+1,FALSE) -> Indicateurs
B38: =VLOOKUP("TAN_1",ResString,Langue+1,FALSE) -> 1. Taux d’endettement net (I1) | N38: -1 | O38: -1 | P38: -1 | Q38: 15
B39: =VLOOKUP("DAT_1",ResString,Langue+1,FALSE) -> 2. Degré d’autofinancement (I2) | N39: 15 | O39: 15 | P39: 15 | Q39: 15
B40: =VLOOKUP("PCI_1",ResString,Langue+1,FALSE) -> 3. Part des charges d’intérêts (I3) | N40: 15 | O40: 15 | P40: 15 | Q40: 15
B41: =VLOOKUP("DBR_1",ResString,Langue+1,FALSE) -> 4. Dette brute par rapport aux revenus (I4) | N41: 15 | O41: 15 | P41: 15 | Q41: 15
B42: =VLOOKUP("PDI_1",ResString,Langue+1,FALSE) -> 5. Proportion des investissements (I5) | N42: 15 | O42: 15 | P42: 15 | Q42: 15
B43: =VLOOKUP("PSD_1",ResString,Langue+1,FALSE) -> 6. Part du service de la dette (I6) | N43: 15 | O43: 15 | P43: 15 | Q43: 15
B44: =VLOOKUP("DNH_1",ResString,Langue+1,FALSE) -> 7. Dette nette 1 par habitant (I7) | N44: 15 | O44: 15 | P44: 15 | Q44: 15
B45: =VLOOKUP("TAU_1",ResString,Langue+1,FALSE) -> 8. Taux d’autofinancement (I8) | N45: 15 | O45: 15 | P45: 15 | Q45: 15
B46: =VLOOKUP("RC_1",ResString,Langue+1,FALSE) -> Aperçu des indicateurs financiers | N46: 15 | O46: 15 | P46: -1 | Q46: 15
B47: =VLOOKUP("MNU_1030",ResString,Langue+1,FALSE) -> Evolution indicateurs | N47: 15 | O47: 15 | P47: 15 | Q47: 15
B48: =VLOOKUP("MNU_1100",ResString,Langue+1,FALSE) -> Lexique | N48: 15 | O48: 15 | P48: 15 | Q48: 15
N49: 15 | O49: -1 | P49: -1 | Q49: 15
B50: =VLOOKUP("MNU_1043",ResString,Langue+1,FALSE) -> Documents | N50: 15 | O50: -1 | P50: -1 | Q50: 15
N51: 15 | O51: -1 | P51: -1 | Q51: 15
B52: =VLOOKUP("MNU_1037",ResString,Langue+1,FALSE) -> Crédits conseil général | N52: -1 | O52: -1 | P52: -1 | Q52: 15
B53: =VLOOKUP("MNU_1038",ResString,Langue+1,FALSE) -> Crédits assemblée bourgeoisiale | N53: 15 | O53: -1 | P53: -1 | Q53: 15
B54: =VLOOKUP("MNU_1039",ResString,Langue+1,FALSE) -> Capitaux propres | N54: 15 | O54: -1 | P54: -1 | Q54: 15
B55: =VLOOKUP("MNU_1040",ResString,Langue+1,FALSE) -> Tableau des provisions | N55: 15 | O55: -1 | P55: -1 | Q55: 15
B56: =VLOOKUP("MNU_1041",ResString,Langue+1,FALSE) -> Tableau des participations | N56: 15 | O56: -1 | P56: -1 | Q56: 15
B57: =VLOOKUP("MNU_1042",ResString,Langue+1,FALSE) -> Garanties de cautionnement | N57: 15 | O57: -1 | P57: -1 | Q57: 15
B58: =VLOOKUP("MNU_1036",ResString,Langue+1,FALSE) -> Immobilisations | N58: 15 | O58: -1 | P58: -1 | Q58: 15
C59: 225.8.29.B_1
B62: =VLOOKUP("MNU_22",ResString,Langue+1,FALSE) -> Personne de contact
B64: =VLOOKUP("MNU_23",ResString,Langue+1,FALSE) -> Fonction
B65: =VLOOKUP("MNU_24",ResString,Langue+1,FALSE) -> Nom et prénom
B66: =VLOOKUP("MNU_25",ResString,Langue+1,FALSE) -> Adresse
B68: =VLOOKUP("MNU_26",ResString,Langue+1,FALSE) -> N° de téléphone
B69: =VLOOKUP("MNU_27",ResString,Langue+1,FALSE) -> E-mail

Sheet Données
E3: =VLOOKUP("AC_30",ResString,Langue+1,FALSE) -> Compte | G3: =VLOOKUP("AP_3",ResString,Langue+1,FALSE) -> Budget | H3: =VLOOKUP("AP_3",ResString,Langue+1,FALSE) -> Budget | I3: =VLOOKUP("PF_15",ResString,Langue+1,FALSE) -> Plan financier | J3: Plan financier | K3: Plan financier | L3: Plan financier | M3: Plan financier | N3: Plan financier | O3: Plan financier | P3: Plan financier | Q3: Plan financier
B5: Commune | C5: =Commune_Nom -> Arbaz | E5: =An_1 -> 2024 | F5: =AN_2 -> 2025 | G5: =AN_2 -> 2025 | H5: =AN_3 -> 2026 | I5: =AN_3+1 -> 2027 | J5: =AN_3+2 -> 2028 | K5: =AN_3+3 -> 2029 | L5: =AN_3+4 -> 2030 | M5: =AN_3+5 -> 2031 | N5: =AN_3+6 -> 2032 | O5: =AN_3+7 -> 2033 | P5: =AN_3+8 -> 2034 | Q5: =AN_3+9 -> 2035 | Z5: CI-BP-An-Dev
C7: =VLOOKUP("EN_19",ResString,Langue+1,FALSE) -> Nombre d'habitants (population STATPOP année N-1) | E7: =VLOOKUP("DN_1",ResString,Langue+1,FALSE) -> Remplir | G7: =VLOOKUP("DN_1",ResString,Langue+1,FALSE) -> Remplir | H7: =VLOOKUP("DN_1",ResString,Langue+1,FALSE) -> Remplir | I7: =VLOOKUP("DN_1",ResString,Langue+1,FALSE) -> Remplir | J7: =VLOOKUP("DN_1",ResString,Langue+1,FALSE) -> Remplir | K7: =VLOOKUP("DN_1",ResString,Langue+1,FALSE) -> Remplir | V7: -1 | W7: 13 | Y7: 13
V8: 13 | W8: 13 | Y8: 13
C9: =VLOOKUP(92,ResString,Langue+1,FALSE) -> Bilan | V9: 13 | W9: 13 | Y9: 13
B10: 1 | C10: =VLOOKUP(B10,ResString,Langue+1,FALSE) -> Actif | E10: =M_PatFin+M_PatAdm -> 0 | F10: =M_PatFin_2+M_PatAdm_2 -> 0 | V10: 13 | W10: 13 | Y10: 13
B11: 1.5 | C11: =VLOOKUP("GR_1",ResString,Langue+1,FALSE) -> Patrimoine financier | E11: =M_100+M_101+M_102+M_104+M_106+M_107+M_108+M_109 -> 0 | F11: =M_100_2+M_101_2+M_102_2+M_104_2+M_106_2+M_107_2+M_108_2+M_109_2 -> 0 | V11: 13 | W11: 13 | Y11: 13
B12: 100 | C12: =VLOOKUP(B12,ResString,Langue+1,FALSE) -> Disponibilités et placements à court terme | V12: 13 | W12: 13 | Y12: 13
B13: 101 | C13: Créances | V13: 13 | W13: 13 | Y13: 13
B14: 102 | C14: Placements financiers à court terme | V14: 13 | W14: 13 | Y14: 13
B15: 104 | C15: Actifs de régularisation | V15: 13 | W15: 13 | Y15: 13
B16: 106 | C16: Marchandises, fournitures et travaux en cours | V16: 13 | W16: 13 | Y16: 13
B17: 107 | C17: Placements financiers | V17: 13 | W17: 13 | Y17: 13
B18: 108 | C18: Immobilisations corporelles du patrimoine financier
B19: 109 | C19: Créances envers les financements spéciaux et fonds des capitaux de tiers
B20: 13.5 | C20: =VLOOKUP("GR_2",ResString,Langue+1,FALSE) -> Patrimoine administratif | E20: =M_140+M_142+M_144+M_145+M_146 -> 0 | F20: =M_140_2+M_142_2+M_144X_2+M_145X_2+M_146X_2 -> 0 | V20: 13 | W20: 13 | Y20: 13
B21: 140 | C21: =VLOOKUP(B21,ResString,Langue+1,FALSE) -> Immobilisations corporelles du patrimoine administratif | V21: 13 | W21: 13 | Y21: 13
B22: 142 | C22: Immobilisations incorporelles
B23: 144 | C23: Prêts | V23: 13 | W23: 13 | Y23: 13
B24: 145 | C24: Participation capital social | V24: 13 | W24: 13 | Y24: 13
B25: 146 | C25: Subventions d'investissement | V25: 13 | W25: 13 | Y25: 13
B26: 2 | C26: =VLOOKUP(B26,ResString,Langue+1,FALSE) -> Passif | E26: =M_Eng+M_CapitalP -> 0 | F26: =M_Eng_2+M_CapitalP_2 -> 0 | V26: 13 | W26: 13 | Y26: 13
B27: 2.5 | C27: =VLOOKUP("GR_5",ResString,Langue+1,FALSE) -> Capitaux de tiers | E27: =M_200+M_201+M_204+M_206+M_208+M_209+M_205 -> 0 | F27: =M_200_2+M_201_2+M_204_2+M_205_2+M_206_2+M_208_2+M_209_2 -> 0 | V27: 13 | W27: 13 | Y27: 13
B28: 200 | C28: =VLOOKUP(B28,ResString,Langue+1,FALSE) -> Engagements courants | V28: 13 | W28: 13 | Y28: 13
B29: 201 | C29: =VLOOKUP(B29,ResString,Langue+1,FALSE) -> Engagements financiers à court terme | V29: 13 | W29: 13 | Y29: 13
B30: 204 | C30: Passifs de régularisation | V30: 13 | W30: 13 | Y30: 13
B31: 205 | C31: Provisions à court terme
B32: 206 | C32: Engagements financiers à long terme | V32: 13 | W32: 13 | Y32: 13
B33: 208 | C33: Provisions à long terme | V33: 13 | W33: 13 | Y33: 13
B34: 209 | C34: Engagements envers les financements spéciaux et fonds classés dans les capitaux de tiers | V34: 13 | W34: 13 | Y34: 13
B35: 28.5 | C35: =VLOOKUP("GR_6",ResString,Langue+1,FALSE) -> Capital propre | E35: =M_29 -> 0 | F35: =M_29_2 -> 0 | V35: 13 | W35: 13 | Y35: 13
B36: 29 | C36: Capital propre | E36: =M_290+M_291+M_294+M_296+M_299 -> 0 | F36: =M_290_2+M_291_2+M_294_2+M_296_2+M_299_2 -> 0 | V36: 13 | W36: 13 | Y36: 13
B37: 290 | C37: =VLOOKUP(B37,ResString,Langue+1,FALSE) -> Engagements et avances sur financements spéciaux classés dans le capital propre | V37: 13 | W37: 13 | Y37: 13
B38: 291 | C38: =VLOOKUP(B38,ResString,Langue+1,FALSE) -> Fonds classés dans le capital propre
B39: 294 | C39: =VLOOKUP(B39,ResString,Langue+1,FALSE) -> Réserves de politique budgétaire
B40: 296 | C40: =VLOOKUP(B40,ResString,Langue+1,FALSE) -> Réserve liée au retraitement du patrimoine financier
B41: 299 | C41: =VLOOKUP(B41,ResString,Langue+1,FALSE) -> Excédent /Découvert du bilan | G41: =M_299+M_4_B-M_3_B+M_3899_B -> 0 | H41: =M_299_B+M_4_B_1-M_3_B_1+M_3899_B_1 -> 0 | I41: =M_299_B_1+M_4_P_1-M_3_P_1+M_3899_P_1 ->  | J41: =M_299_P_1+M_4_P_2-M_3_P_2+M_3899_P_2 ->  | K41: =M_299_P_2+M_4_P_3-M_3_P_3+M_3899_P_3 ->  | L41: =M_299_P_3+M_4_P_4-M_3_P_4+M_3899_P_4 ->  | M41: =M_299_P_4+M_4_P_5-M_3_P_5+M_3899_P_5 ->  | N41: =M_299_P_5+M_4_P_6-M_3_P_6+M_3899_P_6 ->  | O41: =M_299_P_6+M_4_P_7-M_3_P_7+M_3899_P_7 ->  | P41: =M_299_P_7+M_4_P_8-M_3_P_8+M_3899_P_8 ->  | Q41: =M_299_P_8+M_4_P_9-M_3_P_9+M_3899_P_9 -> 
C42: =VLOOKUP(90,ResString,Langue+1,FALSE) -> Compte de résultats selon les natures | V42: 13 | W42: 13 | Y42: 13
B43: 3 | C43: Charges | E43: =M_30+M_31+M_33+M_34+M_35+M_36+M_37+M_38+M_389+M_39 -> 0 | F43: =M_30_2+M_31_2+M_33_2+M_34_2+M_35_2+M_36_2+M_37_2+M_38_2+M_389_2+M_39_2 -> 0 | G43: =M_30_B+M_31_B+M_33_B+M_34_B+M_35_B+M_36_B+M_37_B+M_38_B+M_389_B+M_39_B -> 0 | H43: =M_30_B_1+M_31_B_1+M_33_B_1+M_34_B_1+M_35_B_1+M_36_B_1+M_37_B_1+M_38_B_1+M_389_B_1+M_39_B_1 -> 0 | I43: =M_30_P_1+M_31_P_1+M_33_P_1+M_34_P_1+M_35_P_1+M_36_P_1+M_37_P_1+M_389_P_1+M_39_P_1 ->  | J43: =M_30_P_2+M_31_P_2+M_33_P_2+M_34_P_2+M_35_P_2+M_36_P_2+M_37_P_2+M_389_P_2+M_39_P_2 ->  | K43: =M_30_P_3+M_31_P_3+M_33_P_3+M_34_P_3+M_35_P_3+M_36_P_3+M_37_P_3+M_389_P_3+M_39_P_3 ->  | L43: =M_30_P_4+M_31_P_4+M_33_P_4+M_34_P_4+M_35_P_4+M_36_P_4+M_37_P_4+M_389_P_4+M_39_P_4 -> 0 | M43: =M_30_P_5+M_31_P_5+M_33_P_5+M_34_P_5+M_35_P_5+M_36_P_5+M_37_P_5+M_389_P_5+M_39_P_5 -> 0 | N43: =M_30_P_6+M_31_P_6+M_33_P_6+M_34_P_6+M_35_P_6+M_36_P_6+M_37_P_6+M_389_P_6+M_39_P_6 -> 0 | O43: =M_30_P_7+M_31_P_7+M_33_P_7+M_34_P_7+M_35_P_7+M_36_P_7+M_37_P_7+M_389_P_7+M_39_P_7 -> 0 | P43: =M_30_P_8+M_31_P_8+M_33_P_8+M_34_P_8+M_35_P_8+M_36_P_8+M_37_P_8+M_389_P_8+M_39_P_8 -> 0 | Q43: =M_30_P_9+M_31_P_9+M_33_P_9+M_34_P_9+M_35_P_9+M_36_P_9+M_37_P_9+M_389_P_9+M_39_P_9 -> 0 | V43: 13 | W43: 13 | Y43: 13
B44: 30 | C44: =VLOOKUP(B44,ResString,Langue+1,FALSE) -> Charges de personnel | I44: =VLOOKUP("DN_1",ResString,Langue+1,FALSE) -> Remplir | J44: Remplir | K44: Remplir | V44: 13 | W44: 13 | Y44: 13
B45: 31 | C45: Charges de biens et services et autres charges d'exploitation | I45: Remplir | J45: Remplir | K45: Remplir | V45: 13 | W45: 13 | Y45: 13
B46: 33 | C46: Amortissements du patrimoine administratif | I46: Remplir | J46: Remplir | K46: Remplir
B47: 34 | C47: =VLOOKUP(B47,ResString,Langue+1,FALSE) -> Charges financières | I47: Remplir | J47: Remplir | K47: Remplir
B48: 35 | C48: Attributions aux fonds et financements spéciaux | E48: =M_350+M_351 -> 0 | F48: =M_350_2+M_351_2 -> 0 | G48: =M_350_B+M_351_B -> 0 | H48: =M_350_B_1+M_351_B_1 -> 0 | I48: =M_350_P_1+M_351_P_1 ->  | J48: =M_350_P_2+M_351_P_2 ->  | K48: =M_350_P_3+M_351_P_3 ->  | L48: =M_350_P_4+M_351_P_4 -> 0 | M48: =M_350_P_5+M_351_P_5 -> 0 | N48: =M_350_P_6+M_351_P_6 -> 0 | O48: =M_350_P_7+M_351_P_7 -> 0 | P48: =M_350_P_8+M_351_P_8 -> 0 | Q48: =M_350_P_9+M_351_P_9 -> 0
B49: 350 | C49: Attributions aux fonds et financements spéciaux enregistrés sous capitaux de tiers | I49: =VLOOKUP("DN_1",ResString,Langue+1,FALSE) -> Remplir | J49: Remplir | K49: Remplir
B50: 351 | C50: Attributions aux fonds et financements spéciaux enregistrés sous capital propre | I50: Remplir | J50: Remplir | K50: Remplir
B51: 36 | C51: Charges de transferts | E51: =M_360+M_361+M_362+M_363+M_364+M_365+M_366+M_369 -> 0 | F51: =M_360_2+M_361_2+M_362_2+M_363_2+M_364_2+M_365_2+M_366_2+M_369_2 -> 0 | G51: =M_360_B+M_361_B+M_362_B+M_363_B+M_364_B+M_365_B+M_366_B+M_369_B -> 0 | H51: =M_360_B_1+M_361_B_1+M_362_B_1+M_363_B_1+M_364_B_1+M_365_B_1+M_366_B_1+M_369_B_1 -> 0 | I51: =M_360_P_1+M_361_P_1+M_362_P_1+M_363_P_1+M_364_P_1+M_365_P_1+M_366_P_1+M_369_P_1 ->  | J51: =M_360_P_2+M_361_P_2+M_362_P_2+M_363_P_2+M_364_P_2+M_365_P_2+M_366_P_2+M_369_P_2 ->  | K51: =M_360_P_3+M_361_P_3+M_362_P_3+M_363_P_3+M_364_P_3+M_365_P_3+M_366_P_3+M_369_P_3 ->  | L51: =M_360_P_4+M_361_P_4+M_362_P_4+M_363_P_4+M_364_P_4+M_365_P_4+M_366_P_4+M_369_P_4 -> 0 | M51: =M_360_P_5+M_361_P_5+M_362_P_5+M_363_P_5+M_364_P_5+M_365_P_5+M_366_P_5+M_369_P_5 -> 0 | N51: =M_360_P_6+M_361_P_6+M_362_P_6+M_363_P_6+M_364_P_6+M_365_P_6+M_366_P_6+M_369_P_6 -> 0 | O51: =M_360_P_7+M_361_P_7+M_362_P_7+M_363_P_7+M_364_P_7+M_365_P_7+M_366_P_7+M_369_P_7 -> 0 | P51: =M_360_P_8+M_361_P_8+M_362_P_8+M_363_P_8+M_364_P_8+M_365_P_8+M_366_P_8+M_369_P_8 -> 0 | Q51: =M_360_P_9+M_361_P_9+M_362_P_9+M_363_P_9+M_364_P_9+M_365_P_9+M_366_P_9+M_369_P_9 -> 0
B52: 360 | C52: Parts de revenus destinées à des tiers | I52: =VLOOKUP("DN_1",ResString,Langue+1,FALSE) -> Remplir | J52: =VLOOKUP("DN_1",ResString,Langue+1,FALSE) -> Remplir | K52: =VLOOKUP("DN_1",ResString,Langue+1,FALSE) -> Remplir
B53: 361 | C53: Dédommagements à des collectivités publiques
B54: 362 | C54: Péréquation financière et compensation des charges
B55: 363 | C55: Subventions à des collectivités publiques et à des tiers
B56: 364 | C56: Réévaluation prêts du PA
B57: 365 | C57: Réévaluation des participations du PA | I57: =VLOOKUP("DN_1",ResString,Langue+1,FALSE) -> Remplir | J57: Remplir | K57: Remplir
B58: 366 | C58: Amortissements, subventions d'investissement | I58: Remplir | J58: Remplir | K58: Remplir
B59: 369 | C59: Différentes charges de transferts
B60: 37 | C60: Subventions redistribuées | I60: =VLOOKUP("DN_1",ResString,Langue+1,FALSE) -> Remplir | J60: =VLOOKUP("DN_1",ResString,Langue+1,FALSE) -> Remplir | K60: =VLOOKUP("DN_1",ResString,Langue+1,FALSE) -> Remplir
B61: 38.1 | C61: Charges extraordinaires sans 389
B62: 389 | C62: Attributions au capital propre | E62: =M_3894+M_3896+M_3899 -> 0 | F62: =M_3894_2+M_3896_2+M_3899_2 -> 0 | G62: =M_3894_B+M_3896_B+M_3899_B -> 0 | H62: =M_3894_B_1+M_3896_B_1+M_3899_B_1 -> 0 | I62: =M_3894_P_1+M_3896_P_1+M_3899_P_1 -> 0 | J62: =M_3894_P_2+M_3896_P_2+M_3899_P_2 -> 0 | K62: =M_3894_P_3+M_3896_P_3+M_3899_P_3 -> 0 | L62: =M_3894_P_4+M_3896_P_4+M_3899_P_4 -> 0 | M62: =M_3894_P_5+M_3896_P_5+M_3899_P_5 -> 0 | N62: =M_3894_P_6+M_3896_P_6+M_3899_P_6 -> 0 | O62: =M_3894_P_7+M_3896_P_7+M_3899_P_7 -> 0 | P62: =M_3894_P_8+M_3896_P_8+M_3899_P_8 -> 0 | Q62: =M_3894_P_9+M_3896_P_9+M_3899_P_9 -> 0
B63: 3894 | C63: Attributions à la réserve de politique budgétaire
B64: 3896 | C64: Attributions aux réserves de réévaluations du PF
B65: 3899 | C65: =VLOOKUP(B65,ResString,Langue+1,FALSE) -> Amortissement du découvert au bilan
B66: 39 | C66: Imputations internes | I66: =VLOOKUP("DN_1",ResString,Langue+1,FALSE) -> Remplir | J66: =VLOOKUP("DN_1",ResString,Langue+1,FALSE) -> Remplir | K66: =VLOOKUP("DN_1",ResString,Langue+1,FALSE) -> Remplir
B67: 4 | C67: =VLOOKUP(B67,ResString,Langue+1,FALSE) -> Revenus | E67: =M_40+M_41+M_42+M_43+M_44+M_45+M_46+M_47+M_48+M_489+M_49 -> 0 | F67: =M_40_2+M_41_2+M_42_2+M_43_2+M_44_2+M_45_2+M_46_2+M_47_2+M_48_2+M_489_2+M_49_2 -> 0 | G67: =M_40_B+M_41_B+M_42_B+M_43_B+M_44_B+M_45_B+M_46_B+M_47_B+M_48_B+M_489_B+M_49_B -> 0 | H67: =M_40_B_1+M_41_B_1+M_42_B_1+M_43_B_1+M_44_B_1+M_45_B_1+M_46_B_1+M_47_B_1+M_48_B_1+M_489_B_1+M_49_B_1 -> 0 | I67: =M_40_P_1+M_41_P_1+M_42_P_1+M_43_P_1+M_44_P_1+M_45_P_1+M_46_P_1+M_47_P_1+M_489_P_1+M_49_P_1 ->  | J67: =M_40_P_2+M_41_P_2+M_42_P_2+M_43_P_2+M_44_P_2+M_45_P_2+M_46_P_2+M_47_P_2+M_489_P_2+M_49_P_2 ->  | K67: =M_40_P_3+M_41_P_3+M_42_P_3+M_43_P_3+M_44_P_3+M_45_P_3+M_46_P_3+M_47_P_3+M_489_P_3+M_49_P_3 ->  | L67: =M_40_P_4+M_41_P_4+M_42_P_4+M_43_P_4+M_44_P_4+M_45_P_4+M_46_P_4+M_47_P_4+M_489_P_4+M_49_P_4 -> 0 | M67: =M_40_P_5+M_41_P_5+M_42_P_5+M_43_P_5+M_44_P_5+M_45_P_5+M_46_P_5+M_47_P_5+M_489_P_5+M_49_P_5 -> 0 | N67: =M_40_P_6+M_41_P_6+M_42_P_6+M_43_P_6+M_44_P_6+M_45_P_6+M_46_P_6+M_47_P_6+M_489_P_6+M_49_P_6 -> 0 | O67: =M_40_P_7+M_41_P_7+M_42_P_7+M_43_P_7+M_44_P_7+M_45_P_7+M_46_P_7+M_47_P_7+M_489_P_7+M_49_P_7 -> 0 | P67: =M_40_P_8+M_41_P_8+M_42_P_8+M_43_P_8+M_44_P_8+M_45_P_8+M_46_P_8+M_47_P_8+M_489_P_8+M_49_P_8 -> 0 | Q67: =M_40_P_9+M_41_P_9+M_42_P_9+M_43_P_9+M_44_P_9+M_45_P_9+M_46_P_9+M_47_P_9+M_489_P_9+M_49_P_9 -> 0 | V67: 13 | W67: 13 | Y67: 13
B68: 40 | C68: Revenus fiscaux | E68: =M_400+M_401+M_402+M_403 -> 0 | F68: =M_400_2+M_401_2+M_402_2+M_403_2 -> 0 | G68: =M_400_B+M_401_B+M_402_B+M_403_B -> 0 | H68: =M_400_B_1+M_401_B_1+M_402_B_1+M_403_B_1 -> 0 | V68: -1 | W68: -1 | Y68: 13
B69: 400 | C69: Impôts directs personnes physiques | E69: =M_4000+M_4001+M_4002+M_4008+M_4009 -> 0 | F69: =M_4000_2+M_4001_2+M_4002_2+M_4008_2+M_4009_2 -> 0 | G69: =M_4000_B+M_4001_B+M_4002_B+M_4008_B+M_4009_B -> 0 | H69: =M_4000_B_1+M_4001_B_1+M_4002_B_1+M_4008_B_1+M_4009_B_1 -> 0 | V69: -1 | W69: -1 | Y69: 13
B70: 4000 | C70: Impôts sur le revenu net après déduction pour couple | V70: -1 | W70: -1
B71: 4001 | C71: Impôts sur la fortune | V71: -1 | W71: -1
B72: 4002 | C72: Impôt à la source | V72: -1 | W72: -1
B73: 4008 | C73: Impôt personnel | V73: -1 | W73: -1
B74: 4009 | C74: Impôt global | V74: -1 | W74: -1
B75: 401 | C75: Impôts directs personnes morales | E75: =M_4010+M_4011+M_4012+M_4019 -> 0 | F75: =M_4010_2+M_4011_2+M_4012_2+M_4019_2 -> 0 | G75: =M_4010_B+M_4011_B+M_4012_B+M_4019_B -> 0 | H75: =M_4010_B_1+M_4011_B_1+M_4012_B_1+M_4019_B_1 -> 0 | V75: -1 | W75: -1
B76: 4010 | C76: Impôts sur le bénéfice | V76: -1 | W76: -1
B77: 4011 | C77: Impôts sur le capital | V77: -1 | W77: -1
B78: 4012 | C78: Impôt à la source | V78: -1 | W78: -1
B79: 4019 | C79: Autres impôts directs PM | V79: -1 | W79: -1
B80: 402 | C80: Autres impôts directs | E80: =M_4021+M_4022+M_4023+M_4024+M_4025+M_4026 -> 0 | F80: =M_4021_2+M_4022_2+M_4023_2+M_4024_2+M_4025_2+M_4026_2 -> 0 | G80: =M_4021_B+M_4022_B+M_4023_B+M_4024_B+M_4025_B+M_4026_B -> 0 | H80: =M_4021_B_1+M_4022_B_1+M_4023_B_1+M_4024_B_1+M_4025_B_1+M_4026_B_1 -> 0 | V80: -1 | W80: -1
B81: 4021 | C81: Impôt foncier | E81: =M_4021.01+M_4021.02 -> 0 | F81: =M_4021.01_2+M_4021.02_2 -> 0 | G81: =M_4021.01_B+M_4021.02_B -> 0 | H81: =M_4021.01_B_1+M_4021.02_B_1 -> 0 | V81: -1 | W81: -1
B82: 4021.01 | C82: Impôt foncier personnes physiques | V82: -1 | W82: -1
B83: 4021.02 | C83: Impôt foncier personnes morales | V83: -1 | W83: -1
B84: 4022 | C84: Impôts sur les gains en capital | V84: -1 | W84: -1
B85: 4023 | C85: Droits de mutations | V85: -1 | W85: -1
B86: 4024 | C86: Impôts sur les successions et donations | V86: -1 | W86: -1
B87: 4025 | C87: Impôts sur les maisons de jeu et les machines à sous | V87: -1 | W87: -1
B88: 4026 | C88: =VLOOKUP(B88,ResString,Langue+1,FALSE) -> Impôts de culte | V88: -1 | W88: -1
B89: 403 | C89: =VLOOKUP(B89,ResString,Langue+1,FALSE) -> Impôts sur la propriété et sur les charges | V89: -1 | W89: -1
B90: 41 | C90: Patentes et concessions | I90: =VLOOKUP("DN_1",ResString,Langue+1,FALSE) -> Remplir | J90: Remplir | K90: Remplir
B91: 42 | C91: Taxes | I91: Remplir | J91: Remplir | K91: Remplir
B92: 43 | C92: Revenus divers | I92: Remplir | J92: Remplir | K92: Remplir
B93: 44 | C93: Revenus financiers | E93: =M_440+M_441+M_442+M_443+M_444+M_445+M_446+M_447+M_448+M_449 -> 0 | F93: =M_440_2+M_441_2+M_442_2+M_443_2+M_444_2+M_445_2+M_446_2+M_447_2+M_448_2+M_449_2 -> 0 | G93: =M_440_B+M_441_B+M_442_B+M_443_B+M_444_B+M_445_B+M_446_B+M_447_B+M_448_B+M_449_B -> 0 | H93: =M_440_B_1+M_441_B_1+M_442_B_1+M_443_B_1+M_444_B_1+M_445_B_1+M_446_B_1+M_447_B_1+M_448_B_1+M_449_B_1 -> 0 | I93: =M_440_P_1+M_441_P_1+M_442_P_1+M_443_P_1+M_444_P_1+M_445_P_1+M_446_P_1+M_447_P_1+M_448_P_1+M_449_P_1 ->  | J93: =M_440_P_2+M_441_P_2+M_442_P_2+M_443_P_2+M_444_P_2+M_445_P_2+M_446_P_2+M_447_P_2+M_448_P_2+M_449_P_2 ->  | K93: =M_440_P_3+M_441_P_3+M_442_P_3+M_443_P_3+M_444_P_3+M_445_P_3+M_446_P_3+M_447_P_3+M_448_P_3+M_449_P_3 ->  | L93: =M_440_P_4+M_441_P_4+M_442_P_4+M_443_P_4+M_444_P_4+M_445_P_4+M_446_P_4+M_447_P_4+M_448_P_4+M_449_P_4 -> 0 | M93: =M_440_P_5+M_441_P_5+M_442_P_5+M_443_P_5+M_444_P_5+M_445_P_5+M_446_P_5+M_447_P_5+M_448_P_5+M_449_P_5 -> 0 | N93: =M_440_P_6+M_441_P_6+M_442_P_6+M_443_P_6+M_444_P_6+M_445_P_6+M_446_P_6+M_447_P_6+M_448_P_6+M_449_P_6 -> 0 | O93: =M_440_P_7+M_441_P_7+M_442_P_7+M_443_P_7+M_444_P_7+M_445_P_7+M_446_P_7+M_447_P_7+M_448_P_7+M_449_P_7 -> 0 | P93: =M_440_P_8+M_441_P_8+M_442_P_8+M_443_P_8+M_444_P_8+M_445_P_8+M_446_P_8+M_447_P_8+M_448_P_8+M_449_P_8 -> 0 | Q93: =M_440_P_9+M_441_P_9+M_442_P_9+M_443_P_9+M_444_P_9+M_445_P_9+M_446_P_9+M_447_P_9+M_448_P_9+M_449_P_9 -> 0
B94: 440 | C94: Revenus des intérêts | I94: =VLOOKUP("DN_1",ResString,Langue+1,FALSE) -> Remplir | J94: =VLOOKUP("DN_1",ResString,Langue+1,FALSE) -> Remplir | K94: =VLOOKUP("DN_1",ResString,Langue+1,FALSE) -> Remplir
B95: 441 | C95: Gains réalisés PF
B96: 442 | C96: Revenus des participations
B97: 443 | C97: Produits des immeubles
B98: 444 | C98: Réévaluations, immobilisations PF | I98: =VLOOKUP("DN_1",ResString,Langue+1,FALSE) -> Remplir | J98: =VLOOKUP("DN_1",ResString,Langue+1,FALSE) -> Remplir | K98: =VLOOKUP("DN_1",ResString,Langue+1,FALSE) -> Remplir
B99: 445 | C99: Revenus financiers des prêts et participations PF
B100: 446 | C100: Revenus financiers d'entreprises publiques
B101: 447 | C101: Produits des immeubles PA
B102: 448 | C102: Revenus des immeubles loués
B103: 449 | C103: Autres revenus financiers
B104: 45 | C104: Prélèvements sur les fonds et financements spéciaux | E104: =M_450+M_451 -> 0 | F104: =M_450_2+M_451_2 -> 0 | G104: =M_450_B+M_451_B -> 0 | H104: =M_450_B_1+M_451_B_1 -> 0 | I104: =M_450_P_1+M_451_P_1 ->  | J104: =M_450_P_2+M_451_P_2 ->  | K104: =M_450_P_3+M_451_P_3 ->  | L104: =M_450_P_4+M_451_P_4 -> 0 | M104: =M_450_P_5+M_451_P_5 -> 0 | N104: =M_450_P_6+M_451_P_6 -> 0 | O104: =M_450_P_7+M_451_P_7 -> 0 | P104: =M_450_P_8+M_451_P_8 -> 0 | Q104: =M_450_P_9+M_451_P_9 -> 0
B105: 450 | C105: Prélèvements sur les fonds et financements spéciaux enregistrés sous capital de tiers | I105: =VLOOKUP("DN_1",ResString,Langue+1,FALSE) -> Remplir | J105: Remplir | K105: Remplir
B106: 451 | C106: Prélèvements sur les fonds et financements spéciaux enregistrés sous capital propre | I106: Remplir | J106: Remplir | K106: Remplir
B107: 46 | C107: Revenus de transferts | I107: Remplir | J107: Remplir | K107: Remplir
B108: 47 | C108: Subventions à redistribuer | I108: Remplir | J108: Remplir | K108: Remplir
B109: 48.1 | C109: Revenus extraordinaires sans 489
B110: 489 | C110: Prélèvements sur le capital propre | E110: =M_4894+M_4896 -> 0 | F110: =M_4894_2+M_4896_2 -> 0 | G110: =M_4894_B+M_4896_B -> 0 | H110: =M_4894_B_1+M_4896_B_1 -> 0 | I110: =M_4894_P_1+M_4896_P_1 -> 0 | J110: =M_4894_P_2+M_4896_P_2 -> 0 | K110: =M_4894_P_3+M_4896_P_3 -> 0 | L110: =M_4894_P_4+M_4896_P_4 -> 0 | M110: =M_4894_P_5+M_4896_P_5 -> 0 | N110: =M_4894_P_6+M_4896_P_6 -> 0 | O110: =M_4894_P_7+M_4896_P_7 -> 0 | P110: =M_4894_P_8+M_4896_P_8 -> 0 | Q110: =M_4894_P_9+M_4896_P_9 -> 0
B111: 4894 | C111: Prélèvements sur la réserve de politique budgétaire
B112: 4896 | C112: Prélèvements sur les réserves liées au retraitement du PF
B113: 49 | C113: Imputations internes | I113: =VLOOKUP("DN_1",ResString,Langue+1,FALSE) -> Remplir | J113: =VLOOKUP("DN_1",ResString,Langue+1,FALSE) -> Remplir | K113: =VLOOKUP("DN_1",ResString,Langue+1,FALSE) -> Remplir
C114: =VLOOKUP(91,ResString,Langue+1,FALSE) -> Compte des investissements selon les natures | V114: 13 | W114: 13 | Y114: 13
B115: 5 | C115: =VLOOKUP(B115,ResString,Langue+1,FALSE) -> Dépenses | E115: =M_50+M_51+M_52+M_54+M_55+M_56+M_57 -> 0 | F115: =M_50_2+M_51_2+M_52_2+M_54_2+M_55_2+M_56_2+M_57_2 -> 0 | G115: =M_50_B+M_51_B+M_52_B+M_54_B+M_55_B+M_56_B+M_57_B -> 0 | H115: =M_50_B_1+M_51_B_1+M_52_B_1+M_54_B_1+M_55_B_1+M_56_B_1+M_57_B_1 -> 0 | I115: 0 | J115: 0 | K115: 0 | L115: 0 | M115: 0 | N115: 0 | O115: 0 | P115: 0 | V115: 13 | W115: 13 | Y115: 13
C116: =VLOOKUP("5a",ResString,Langue+1,FALSE) -> Total des dépenses | V116: -1 | W116: -1 | Y116: 13 | AA116: -1 | AB116: 13
B117: 50 | C117: =VLOOKUP(B117,ResString,Langue+1,FALSE) -> Immobilisations corporelles | V117: 13 | W117: 13 | Y117: 13
B118: 51 | C118: Investissements pour le compte de tiers | V118: 13 | W118: 13 | Y118: 13
B119: 52 | C119: Immobilisations incorporelles | V119: 13 | W119: 13 | Y119: 13
B120: 54 | C120: Prêts | V120: 13 | W120: 13 | Y120: 13
B121: 55 | C121: Participations et capital social | V121: 13 | W121: 13 | Y121: 13
B122: 56 | C122: Propres subventions d'investissement
B123: 57 | C123: Subventions d'investissement redistribuées
B124: 59 | C124: Report au bilan | V124: -1 | W124: -1 | Y124: 13
B125: 6 | C125: Recettes | E125: =M_60+M_61+M_62+M_63+M_64+M_65+M_66+M_67 -> 0 | F125: =M_60_2+M_61_2+M_62_2+M_63_2+M_64_2+M_65_2+M_66_2+M_67_2 -> 0 | G125: =M_60_B+M_61_B+M_62_B+M_63_B+M_64_B+M_65_B+M_66_B+M_67_B -> 0 | H125: =M_60_B_1+M_61_B_1+M_62_B_1+M_63_B_1+M_64_B_1++M_65_B_1+M_66_B_1+M_67_B_1 -> 0 | I125: 0 | J125: 0 | K125: 0 | L125: 0 | M125: 0 | N125: 0 | O125: 0 | P125: 0 | V125: 13 | W125: 13 | Y125: 13
C126: =VLOOKUP("6a",ResString,Langue+1,FALSE) -> Total des recettes | V126: -1 | W126: -1 | Y126: 13 | AA126: -1 | AB126: 13
B127: 60 | C127: Transferts au patrimoine financier | E127: 0 | G127: 0 | H127: 0 | V127: 13 | W127: 13 | Y127: 13
B128: 61 | C128: =VLOOKUP(B128,ResString,Langue+1,FALSE) -> Remboursements | V128: 13 | W128: 13 | Y128: 13
B129: 62 | C129: Transferts d'immobilisations incorporelles | V129: 13 | W129: 13 | Y129: 13
B130: 63 | C130: Subventions d'investissement acquises | V130: 13 | W130: 13 | Y130: 13
B131: 64 | C131: Remboursement de prêts | V131: 13 | W131: 13 | Y131: 13
B132: 65 | C132: Transferts de participations | V132: 13 | W132: 13 | Y132: 13
B133: 66 | C133: Remboursement de subventions d'investissement propres | V133: 13 | W133: 13 | Y133: 13
B134: 67 | C134: Subventions d'investissement à redistribuer
B135: 69 | C135: Report au bilan | V135: -1 | W135: -1 | Y135: 13
B136: 9 | C136: Clôture | V136: -1 | W136: -1 | Y136: 13
B137: 90 | C137: Compte de résultats selon les natures | E137: =M_4-M_3 -> 0 | F137: =M_4_2-M_3_2 -> 0 | G137: =M_4_B-M_3_B -> 0 | H137: =M_4_B_1-M_3_B_1 -> 0 | I137: =M_4_P_1-M_3_P_1 ->  | J137: =M_4_P_2-M_3_P_2 ->  | K137: =M_4_P_3-M_3_P_3 ->  | L137: =M_4_P_4-M_3_P_4 -> 0 | M137: =M_4_P_5-M_3_P_5 -> 0 | N137: =M_4_P_6-M_3_P_6 -> 0 | O137: =M_4_P_7-M_3_P_7 -> 0 | P137: =M_4_P_8-M_3_P_8 -> 0 | Q137: =M_4_P_9-M_3_P_9 -> 0 | V137: -1 | W137: -1 | Y137: 13
B138: 91 | C138: Compte des investissements selon les natures | V138: -1 | W138: -1 | Y138: 13
B139: 910 | C139: Investissement net | V139: -1 | W139: -1 | Y139: 13
B140: 911 | C140: Financement | V140: -1 | W140: -1 | Y140: 13
B141: 912 | C141: Variation de fortune nette | V141: -1 | W141: -1 | Y141: 13
B142: 92 | C142: Bilan | V142: -1 | W142: -1 | Y142: 13
B143: 920 | C143: Bilan d'ouverture | V143: -1 | W143: -1 | Y143: 13
B144: 921 | C144: Bilan de clôture | V144: -1 | W144: -1 | Y144: 13
C145: =VLOOKUP("CF_T",ResString,Langue+1,FALSE) -> Compte de résultat selon les tâches | V145: 13 | W145: 13 | Y145: 13
B146: TacheFoncDepenses | C146: =VLOOKUP("CF_C",ResString,Langue+1,FALSE) -> Charges | E146: =CF0_C+CF1_C+CF2_C+CF3_C+CF4_C+CF5_C+CF6_C+CF7_C+CF8_C+CF9_C -> 0 | F146: =CF0_C_2+CF1_C_2+CF2_C_2+CF3_C_2+CF4_C_2+CF5_C_2+CF6_C_2+CF7_C_2+CF8_C_2+CF9_C_2 -> 0 | G146: =CF0_C_B+CF1_C_B+CF2_C_B+CF3_C_B+CF4_C_B+CF5_C_B+CF6_C_B+CF7_C_B+CF8_C_B+CF9_C_B -> 0 | H146: =CF0_C_B_1+CF1_C_B_1+CF2_C_B_1+CF3_C_B_1+CF4_C_B_1+CF5_C_B_1+CF6_C_B_1+CF7_C_B_1+CF8_C_B_1+CF9_C_B_1 -> 0 | V146: 13 | W146: 13 | Y146: 13
B147: CF0 | C147: =VLOOKUP("CF_0",ResString,Langue+1,FALSE) -> Administration générale | V147: 13 | W147: 13 | Y147: 13
B148: CF1 | C148: =VLOOKUP("CF_1",ResString,Langue+1,FALSE) -> Ordre et sécurité publics, défense | V148: -1 | W148: -1 | Y148: 13
B149: CF2 | C149: =VLOOKUP("CF_2",ResString,Langue+1,FALSE) -> Formation | V149: -1 | W149: -1 | Y149: 13
B150: CF3 | C150: =VLOOKUP("CF_3",ResString,Langue+1,FALSE) -> Culture, sports et loisirs, église | V150: -1 | W150: -1 | Y150: 13
B151: CF4 | C151: =VLOOKUP("CF_4",ResString,Langue+1,FALSE) -> Santé | V151: -1 | W151: -1 | Y151: 13
B152: CF5 | C152: =VLOOKUP("CF_5",ResString,Langue+1,FALSE) -> Prévoyance sociale | V152: -1 | W152: -1 | Y152: 13
B153: CF6 | C153: =VLOOKUP("CF_6",ResString,Langue+1,FALSE) -> Trafic et télécommunications | V153: -1 | W153: -1 | Y153: 13
B154: CF7 | C154: =VLOOKUP("CF_7",ResString,Langue+1,FALSE) -> Protection de l'environnement et aménagement du territoire | V154: -1 | W154: -1 | Y154: 13
B155: CF8 | C155: =VLOOKUP("CF_8",ResString,Langue+1,FALSE) -> Economie publique | V155: 13 | W155: 13 | Y155: 13
B156: CF9 | C156: =VLOOKUP("CF_9",ResString,Langue+1,FALSE) -> Finances et impôts | V156: 13 | W156: 13 | Y156: 13
B157: TacheFoncRecettes | C157: =VLOOKUP("CF_R",ResString,Langue+1,FALSE) -> Revenus | E157: =CF0_R+CF1_R+CF2_R+CF3_R+CF4_R+CF5_R+CF6_R+CF7_R+CF8_R+CF9_R -> 0 | F157: =CF0_R_2+CF1_R_2+CF2_R_2+CF3_R_2+CF4_R_2+CF5_R_2+CF6_R_2+CF7_R_2+CF8_R_2+CF9_R_2 -> 0 | G157: =CF0_R_B+CF1_R_B+CF2_R_B+CF3_R_B+CF4_R_B+CF5_R_B+CF6_R_B+CF7_R_B+CF8_R_B+CF9_R_B -> 0 | H157: =CF0_R_B_1+CF1_R_B_1+CF2_R_B_1+CF3_R_B_1+CF4_R_B_1+CF5_R_B_1+CF6_R_B_1+CF7_R_B_1+CF8_R_B_1+CF9_R_B_1 -> 0 | V157: 13 | W157: 13 | Y157: 13
B158: CF0 | C158: =VLOOKUP("CF_0",ResString,Langue+1,FALSE) -> Administration générale | V158: 13 | W158: 13 | Y158: 13
B159: CF1 | C159: =VLOOKUP("CF_1",ResString,Langue+1,FALSE) -> Ordre et sécurité publics, défense | V159: -1 | W159: -1 | Y159: 13
B160: CF2 | C160: =VLOOKUP("CF_2",ResString,Langue+1,FALSE) -> Formation | V160: -1 | W160: -1 | Y160: 13
B161: CF3 | C161: =VLOOKUP("CF_3",ResString,Langue+1,FALSE) -> Culture, sports et loisirs, église | V161: -1 | W161: -1 | Y161: 13
B162: CF4 | C162: =VLOOKUP("CF_4",ResString,Langue+1,FALSE) -> Santé | V162: -1 | W162: -1 | Y162: 13
B163: CF5 | C163: =VLOOKUP("CF_5",ResString,Langue+1,FALSE) -> Prévoyance sociale | V163: -1 | W163: -1 | Y163: 13
B164: CF6 | C164: =VLOOKUP("CF_6",ResString,Langue+1,FALSE) -> Trafic et télécommunications | V164: -1 | W164: -1 | Y164: 13
B165: CF7 | C165: =VLOOKUP("CF_7",ResString,Langue+1,FALSE) -> Protection de l'environnement et aménagement du territoire | V165: -1 | W165: -1 | Y165: 13
B166: CF8 | C166: =VLOOKUP("CF_8",ResString,Langue+1,FALSE) -> Economie publique | V166: 13 | W166: 13 | Y166: 13
B167: CF9 | C167: =VLOOKUP("CF_9",ResString,Langue+1,FALSE) -> Finances et impôts | V167: 13 | W167: 13 | Y167: 13
C168: =VLOOKUP("CI_T",ResString,Langue+1,FALSE) -> Compte des investissements selon les tâches | V168: 13 | W168: 13 | Y168: 13
B169: TacheInvDepenses | C169: =VLOOKUP("CI_D",ResString,Langue+1,FALSE) -> Dépenses | E169: =CI0_D+CI1_D+CI2_D+CI3_D+CI4_D+CI5_D+CI6_D+CI7_D+CI8_D+CI9_D -> 0 | F169: =CI0_D_2+CI1_D_2+CI2_D_2+CI3_D_2+CI4_D_2+CI5_D_2+CI6_D_2+CI7_D_2+CI8_D_2+CI9_D_2 -> 0 | G169: =CI0_D_B+CI1_D_B+CI2_D_B+CI3_D_B+CI4_D_B+CI5_D_B+CI6_D_B+CI7_D_B+CI8_D_B+CI9_D_B -> 0 | H169: =CI0_D_B_1+CI1_D_B_1+CI2_D_B_1+CI3_D_B_1+CI4_D_B_1+CI5_D_B_1+CI6_D_B_1+CI7_D_B_1+CI8_D_B_1+CI9_D_B_1 -> 0 | V169: 13 | W169: 13 | Y169: 13
B170: CI0 | C170: =VLOOKUP("CF_0",ResString,Langue+1,FALSE) -> Administration générale | V170: 13 | W170: 13 | Y170: 13
B171: CI1 | C171: =VLOOKUP("CF_1",ResString,Langue+1,FALSE) -> Ordre et sécurité publics, défense | V171: -1 | W171: -1 | Y171: 13
B172: CI2 | C172: =VLOOKUP("CF_2",ResString,Langue+1,FALSE) -> Formation | V172: -1 | W172: -1 | Y172: 13
B173: CI3 | C173: =VLOOKUP("CF_3",ResString,Langue+1,FALSE) -> Culture, sports et loisirs, église | V173: -1 | W173: -1 | Y173: 13
B174: CI4 | C174: =VLOOKUP("CF_4",ResString,Langue+1,FALSE) -> Santé | V174: -1 | W174: -1 | Y174: 13
B175: CI5 | C175: =VLOOKUP("CF_5",ResString,Langue+1,FALSE) -> Prévoyance sociale | V175: -1 | W175: -1 | Y175: 13
B176: CI6 | C176: =VLOOKUP("CF_6",ResString,Langue+1,FALSE) -> Trafic et télécommunications | V176: -1 | W176: -1 | Y176: 13
B177: CI7 | C177: =VLOOKUP("CF_7",ResString,Langue+1,FALSE) -> Protection de l'environnement et aménagement du territoire | V177: -1 | W177: -1 | Y177: 13
B178: CI8 | C178: =VLOOKUP("CF_8",ResString,Langue+1,FALSE) -> Economie publique | V178: 13 | W178: 13 | Y178: 13
B179: CI9 | C179: =VLOOKUP("CF_9",ResString,Langue+1,FALSE) -> Finances et impôts | V179: 13 | W179: 13 | Y179: 13
B180: TacheInvRecettes | C180: =VLOOKUP("CI_R",ResString,Langue+1,FALSE) -> Recettes | E180: =CI0_R+CI1_R+CI2_R+CI3_R+CI4_R+CI5_R+CI6_R+CI7_R+CI8_R+CI9_R -> 0 | F180: =CI0_R_2+CI1_R_2+CI2_R_2+CI3_R_2+CI4_R_2+CI5_R_2+CI6_R_2+CI7_R_2+CI8_R_2+CI9_R_2 -> 0 | G180: =CI0_R_B+CI1_R_B+CI2_R_B+CI3_R_B+CI4_R_B+CI5_R_B+CI6_R_B+CI7_R_B+CI8_R_B+CI9_R_B -> 0 | H180: =CI0_R_B_1+CI1_R_B_1+CI2_R_B_1+CI3_R_B_1+CI4_R_B_1+CI5_R_B_1+CI6_R_B_1+CI7_R_B_1+CI8_R_B_1+CI9_R_B_1 -> 0 | V180: 13 | W180: 13 | Y180: 13
B181: CI0 | C181: =VLOOKUP("CF_0",ResString,Langue+1,FALSE) -> Administration générale | V181: 13 | W181: 13 | Y181: 13
B182: CI1 | C182: =VLOOKUP("CF_1",ResString,Langue+1,FALSE) -> Ordre et sécurité publics, défense | V182: -1 | W182: -1 | Y182: 13
B183: CI2 | C183: =VLOOKUP("CF_2",ResString,Langue+1,FALSE) -> Formation | V183: -1 | W183: -1 | Y183: 13
B184: CI3 | C184: =VLOOKUP("CF_3",ResString,Langue+1,FALSE) -> Culture, sports et loisirs, église | V184: -1 | W184: -1 | Y184: 13
B185: CI4 | C185: =VLOOKUP("CF_4",ResString,Langue+1,FALSE) -> Santé | V185: -1 | W185: -1 | Y185: 13
B186: CI5 | C186: =VLOOKUP("CF_5",ResString,Langue+1,FALSE) -> Prévoyance sociale | V186: -1 | W186: -1 | Y186: 13
B187: CI6 | C187: =VLOOKUP("CF_6",ResString,Langue+1,FALSE) -> Trafic et télécommunications | V187: -1 | W187: -1 | Y187: 13
B188: CI7 | C188: =VLOOKUP("CF_7",ResString,Langue+1,FALSE) -> Protection de l'environnement et aménagement du territoire | V188: -1 | W188: -1 | Y188: 13
B189: CI8 | C189: =VLOOKUP("CF_8",ResString,Langue+1,FALSE) -> Economie publique | V189: 13 | W189: 13 | Y189: 13
B190: CI9 | C190: =VLOOKUP("CF_9",ResString,Langue+1,FALSE) -> Finances et impôts | V190: 13 | W190: 13 | Y190: 13
B191: ElFinDivers | C191: =VLOOKUP("EF_1",ResString,Langue+1,FALSE) -> Renseignements divers | V191: -1 | W191: -1 | Y191: 13
B192: 150.4200 | C192: =VLOOKUP("EF_2",ResString,Langue+1,FALSE) -> Taxe d'exemption du service du feu | V192: -1 | W192: -1 | Y192: 13
B193: 710.4240 | C193: =VLOOKUP("EF_9",ResString,Langue+1,FALSE) -> Taxes annuelles pour l'eau potable | V193: -1 | W193: -1 | Y193: 13
B194: 710.6370 | C194: =VLOOKUP("EF_11",ResString,Langue+1,FALSE) -> Taxes de raccordement pour l'eau potable (investissement) | V194: -1 | W194: -1 | Y194: 13
B195: 720.4240 | C195: =VLOOKUP("EF_10",ResString,Langue+1,FALSE) -> Taxes annuelles pour les égouts | V195: -1 | W195: -1 | Y195: 13
B196: 720.6370 | C196: =VLOOKUP("EF_12",ResString,Langue+1,FALSE) -> Taxes de raccordement pour les égouts (investissement) | V196: -1 | W196: -1 | Y196: 13
B197: 730.4240 | C197: =VLOOKUP("EF_8",ResString,Langue+1,FALSE) -> Taxes annuelles pour l'enlèvement des ordures | V197: -1 | W197: -1 | Y197: 13
B198: 890.4120 | C198: =VLOOKUP("EF_7",ResString,Langue+1,FALSE) -> Concessions de gravière | V198: -1 | W198: -1 | Y198: 13
B199: 950.4100 | C199: =VLOOKUP("EF_6",ResString,Langue+1,FALSE) -> Energie gratuite | V199: -1 | W199: -1 | Y199: 13
B200: 950.4120 | C200: =VLOOKUP("EF_4",ResString,Langue+1,FALSE) -> Redevances hydrauliques | V200: -1 | W200: -1 | Y200: 13
B201: 950.4120 | C201: =VLOOKUP("EF_5",ResString,Langue+1,FALSE) -> Redevances électriques | V201: -1 | W201: -1 | Y201: 13
B202: 950.4120 | C202: =VLOOKUP("EF_17",ResString,Langue+1,FALSE) -> Droit de retour des installations de forces hydrauliques | V202: -1 | W202: -1 | Y202: 13
B203: 6370 | C203: =VLOOKUP("EF_13",ResString,Langue+1,FALSE) -> Contributions pour plus-values | V203: -1 | W203: -1 | Y203: 13
B204: 14 | C204: =VLOOKUP("EF_15",ResString,Langue+1,FALSE) -> Coefficient d'impôt | V204: -1 | W204: -1 | Y204: 13
... 77 more rows

Sheet Ae-Données (hidden)
F1: 1 | G1: 2 | H1: 3 | I1: 4 | J1: 5 | K1: 6 | L1: 7 | M1: 8 | N1: 9 | O1: 10
F3: =VLOOKUP("AC_30",ResString,Langue+1,FALSE) -> Compte | G3: =VLOOKUP("PF_15",ResString,Langue+1,FALSE) -> Plan financier | H3: Plan financier | I3: Plan financier | J3: Plan financier | K3: Plan financier | L3: Plan financier | M3: Plan financier | N3: Plan financier | O3: Plan financier
G5: =AN_1_A +1 -> 1 | H5: =AN_1_A +2 -> 2 | I5: =AN_1_A +3 -> 3 | J5: =AN_1_A +4 -> 4 | K5: =AN_1_A +5 -> 5 | L5: =AN_1_A +6 -> 6 | M5: =AN_1_A +7 -> 7 | N5: =AN_1_A +8 -> 8 | O5: =AN_1_A +9 -> 9
C7: =VLOOKUP("EN_19",ResString,Langue+1,FALSE) -> Nombre d'habitants (population STATPOP année N-1)
C9: =VLOOKUP(92,ResString,Langue+1,FALSE) -> Bilan
B11: 1 | C11: =VLOOKUP(B11,ResString,Langue+1,FALSE) -> Actif | F11: =M_Actif_A_1_C -> 0
C12: =VLOOKUP("GR_1",ResString,Langue+1,FALSE) -> Patrimoine financier | G12: =M_PatFin_A_1 -> 0 | H12: =M_PatFin_A_2 -> 0 | I12: =M_PatFin_A_3 -> 0 | J12: =M_PatFin_A_4 -> 0 | K12: =M_PatFin_A_5 -> 0 | L12: =M_PatFin_A_6 -> 0 | M12: =M_PatFin_A_7 -> 0 | N12: =M_PatFin_A_8 -> 0 | O12: =M_PatFin_A_9 -> 0
C13: =VLOOKUP("GR_2",ResString,Langue+1,FALSE) -> Patrimoine administratif
B14: 2 | C14: =VLOOKUP(B14,ResString,Langue+1,FALSE) -> Passif | F14: =M_Captie_A_1+M_29_A_1 -> 0 | G14: =M_Captie_A_2+M_29_A_2 -> 0 | H14: =M_Captie_A_3+M_29_A_3 -> 0 | I14: =M_Captie_A_4+M_29_A_4 -> 0 | J14: =M_Captie_A_5+M_29_A_5 -> 0 | K14: =M_Captie_A_6+M_29_A_6 -> 0 | L14: =M_Captie_A_7+M_29_A_7 -> 0 | M14: =M_Captie_A_8+M_29_A_8 -> 0 | N14: =M_Captie_A_9+M_29_A_9 -> 0 | O14: =M_Captie_A_10+M_29_A_10 -> 0
C15: =VLOOKUP("GR_5",ResString,Langue+1,FALSE) -> Capitaux de tiers | G15: =M_Captie_A_2_C -> 0 | H15: =M_Captie_A_3_C -> 0 | I15: =M_Captie_A_4_C -> 0 | J15: =M_Captie_A_5_C -> 0 | K15: =M_Captie_A_6_C -> 0 | L15: =M_Captie_A_7_C -> 0 | M15: =M_Captie_A_8_C -> 0 | N15: =M_Captie_A_9_C -> 0 | O15: =M_Captie_A_10_C -> 0
B16: 200 | C16: =VLOOKUP(B16,ResString,Langue+1,FALSE) -> Engagements courants | G16: =M_200_A_2_C_B -> 0 | H16: =M_200_A_3_C_B -> 0 | I16: =M_200_A_4_C_B -> 0 | J16: =M_200_A_5_C_P -> 0 | K16: =M_200_A_6_C_P -> 0 | L16: =M_200_A_7_C_P -> 0 | M16: =M_200_A_8_C_P -> 0 | N16: =M_200_A_9_C_P -> 0 | O16: =M_200_A_10_C_P -> 0
B17: 201 | C17: =VLOOKUP(B17,ResString,Langue+1,FALSE) -> Engagements financiers à court terme | G17: =M_201_A_1 -> 0 | H17: =M_201_A_2 -> 0 | I17: =M_201_A_3 -> 0 | J17: =M_201_A_4 -> 0 | K17: =M_201_A_5 -> 0 | L17: =M_201_A_6 -> 0 | M17: =M_201_A_7 -> 0 | N17: =M_201_A_8 -> 0 | O17: =M_201_A_9 -> 0
B18: 206 | C18: =VLOOKUP(B18,ResString,Langue+1,FALSE) -> Engagements financiers à long terme | G18: =M_206_A_1 -> 0 | H18: =M_206_A_2 -> 0 | I18: =M_206_A_3 -> 0 | J18: =M_206_A_4 -> 0 | K18: =M_206_A_5 -> 0 | L18: =M_206_A_6 -> 0 | M18: =M_206_A_7 -> 0 | N18: =M_206_A_8 -> 0 | O18: =M_206_A_9 -> 0
B19: 29 | C19: =VLOOKUP("GR_6",ResString,Langue+1,FALSE) -> Capital propre | E19: 0 | G19: =M_29_A_2_C -> 0 | H19: =M_29_A_3_C -> 0 | I19: =M_29_A_4_C -> 0 | J19: =M_29_A_5_C -> 0 | K19: =M_29_A_6_C -> 0 | L19: =M_29_A_7_C -> 0 | M19: =M_29_A_8_C -> 0 | N19: =M_29_A_9_C -> 0 | O19: =M_29_A_10_C -> 0
B20: 299 | C20: =VLOOKUP(B20,ResString,Langue+1,FALSE) -> Excédent /Découvert du bilan | G20: =M_299_A_2_C -> 0 | H20: =M_299_A_3_C -> 0 | I20: =M_299_A_4_C -> 0 | J20: =M_299_A_5_C -> 0 | K20: =M_299_A_6_C -> 0 | L20: =M_299_A_7_C -> 0 | M20: =M_299_A_8_C -> 0 | N20: =M_299_A_9_C -> 0 | O20: =M_299_A_10_C -> 0
C21: =VLOOKUP(90,ResString,Langue+1,FALSE) -> Compte de résultats selon les natures
B22: 3 | C22: =VLOOKUP(B22,ResString,Langue+1,FALSE) -> Charges
B23: 30 | C23: =VLOOKUP(B23,ResString,Langue+1,FALSE) -> Charges de personnel
B24: 31 | C24: =VLOOKUP(B24,ResString,Langue+1,FALSE) -> Charges de biens et services et autres charges d'exploitation
B25: 33 | C25: Amortissements du patrimoine administratif
B26: 34 | C26: Charges financières
B27: 35 | C27: Attributions aux fonds et financements spéciaux
B28: 351 | C28: Attributions aux fonds et financements spéciaux enregistrés sous capital propre
B29: 36 | C29: Charges de transferts
B30: 364 | C30: Réévaluation prêts du PA
B31: 365 | C31: Réévaluation des participations du PA
B32: 366 | C32: Amortissements, subventions d'investissement
B33: 389 | C33: Attributions au capital propre
B34: 3899 | C34: =VLOOKUP(B34,ResString,Langue+1,FALSE) -> Amortissement du découvert au bilan
B35: 4 | C35: =VLOOKUP(B35,ResString,Langue+1,FALSE) -> Revenus
B36: 40 | C36: Revenus fiscaux
B37: 41 | C37: Patentes et concessions
B38: 42 | C38: Taxes
B39: 43 | C39: Revenus divers
B40: 44 | C40: Revenus financiers
B41: 440 | C41: Revenus des intérêts
B42: 444 | C42: Réévaluations, immobilisations PF
B43: 45 | C43: Prélèvements sur les fonds et financements spéciaux
B44: 451 | C44: Prélèvements sur les fonds et financements spéciaux enregistrés sous capital propre
B45: 46 | C45: Revenus de transferts
B46: 48 | C46: Revenus extraordinaires
B47: 489 | C47: Prélèvements sur le capital propre
C48: =VLOOKUP("RA_5_2",ResString,Langue+1,FALSE) -> Marge d'autofinancement | F48: =IF(AND(M_4_A_1 = 0, M_3_A_1 = 0), 0, M_4_A_1 - M_3_A_1 +M_33_A_1+M_35_A_1+M_364_A_1+M_365_A_1+M_366_A_1+M_389_A_1-M_45_A_1-M_489_A_1) -> 0 | G48: =IF(AND(M_4_A_2 = 0, M_3_A_2 = 0), 0, M_4_A_2 - M_3_A_2 +M_33_A_2+M_35_A_2+M_364_A_2+M_365_A_2+M_366_A_2+M_389_A_2-M_45_A_2-M_489_A_2) -> 0 | H48: =IF(AND(M_4_A_3= 0, M_3_A_3 = 0), 0, M_4_A_3 - M_3_A_3 +M_33_A_3+M_35_A_3+M_364_A_3+M_365_A_3+M_366_A_3+M_389_A_3-M_45_A_3-M_489_A_3) -> 0 | I48: =IF(AND(M_4_A_4 = 0, M_3_A_4 = 0), 0, M_4_A_4 - M_3_A_4++M_33_A_4+M_35_A_4+M_364_A_4+M_365_A_4+M_366_A_4+M_389_A_4-M_45_A_4-M_489_A_4) -> 0 | J48: =IF(AND(M_4_A_5 = 0, M_3_A_5 = 0), 0, M_4_A_5 - M_3_A_5 +M_33_A_5+M_35_A_5+M_364_A_5+M_365_A_5+M_366_A_5+M_389_A_5-M_45_A_5-M_489_A_5) -> 0 | K48: =IF(AND(M_4_A_6 = 0, M_3_A_6 = 0), 0, M_4_A_6 - M_3_A_6 +M_33_A_6+M_35_A_6+M_364_A_6+M_365_A_6+M_366_A_6+M_389_A_6-M_45_A_6-M_489_A_6) -> 0 | L48: =IF(AND(M_4_A_7 = 0, M_3_A_7 = 0), 0, M_4_A_7 - M_3_A_7 + M_33_A_7+M_35_A_7+M_364_A_7+M_365_A_7+M_366_A_7+M_389_A_7-M_45_A_7-M_489_A_7) -> 0 | M48: =IF(AND(M_4_A_8= 0, M_3_A_8 = 0), 0, M_4_A_8 - M_3_A_8 +M_33_A_8+M_35_A_8+M_364_A_8+M_365_A_8+M_366_A_8+M_389_A_8-M_45_A_8-M_489_A_8) -> 0 | N48: =IF(AND(M_4_A_9 = 0, M_3_A_9 = 0), 0, M_4_A_9 - M_3_A_9 + M_33_A_9+M_35_A_9+M_364_A_9+M_365_A_9+M_366_A_9+M_389_A_9-M_45_A_9-M_489_A_9) -> 0 | O48: =IF(AND(M_4_A_10 = 0, M_3_A_10 = 0), 0, M_4_A_10 - M_3_A_10 +M_33_A_10+M_35_A_10+M_364_A_10+M_365_A_10+M_366_A_10+M_389_A_10-M_45_A_10-M_489_A_10) -> 0
C49: =VLOOKUP(91,ResString,Langue+1,FALSE) -> Compte des investissements selon les natures
B50: 5 | C50: =VLOOKUP(B50,ResString,Langue+1,FALSE) -> Dépenses
B51: 57 | C51: =VLOOKUP(B51,ResString,Langue+1,FALSE) -> Subventions d'investissement redistribuées
B52: 6 | C52: =VLOOKUP(B52,ResString,Langue+1,FALSE) -> Recettes
B53: 67 | C53: =VLOOKUP(B53,ResString,Langue+1,FALSE) -> Subventions d'investissement à redistribuer
C54: =VLOOKUP("INF_0",ResString,Langue+1,FALSE) -> Autres renseignements
B55: 2016 | C55: =VLOOKUP("Inf_42",ResString,Langue+1,FALSE) -> Instruments financiers dérivés à court terme
B56: 2066 | C56: =VLOOKUP("Inf_43",ResString,Langue+1,FALSE) -> Instruments financiers dérivés à long terme
B57: 3180 | C57: =VLOOKUP("Inf_49",ResString,Langue+1,FALSE) -> Réévaluations sur créances
B58: 340 | C58: =VLOOKUP("Inf_44",ResString,Langue+1,FALSE) -> Charges d'intérêts
B59: 344 | C59: =VLOOKUP("Inf_45",ResString,Langue+1,FALSE) -> Réévaluations immobilisations du PF
B60: 380 | C60: =VLOOKUP("Inf_50",ResString,Langue+1,FALSE) -> Charges de personnel extraordinaires
B61: 381 | C61: =VLOOKUP("Inf_51",ResString,Langue+1,FALSE) -> Charges de biens et services et autres charges d'exploitation extraordinaire
B62: 384 | C62: =VLOOKUP("Inf_56",ResString,Langue+1,FALSE) -> Charges financières extraordinaires
B63: 3840 | C63: =VLOOKUP("Inf_52",ResString,Langue+1,FALSE) -> Charges financières extraordinaires (avec incidence sur les liquidités)
B64: 386 | C64: =VLOOKUP("Inf_53",ResString,Langue+1,FALSE) -> Charges de transferts extraordinaires
B65: 430 | C65: =VLOOKUP("Inf_54",ResString,Langue+1,FALSE) -> Revenus d'exploitation divers
B66: 439 | C66: =VLOOKUP("Inf_55",ResString,Langue+1,FALSE) -> Autres revenus (avec incidence sur les liquidités)
B67: 4490 | C67: =VLOOKUP("Inf_57",ResString,Langue+1,FALSE) -> Réévaluations PA
B68: 481 | C68: =VLOOKUP("Inf_58",ResString,Langue+1,FALSE) -> Revenus extraordinaires de patentes, concessions
B69: 482 | C69: =VLOOKUP("Inf_59",ResString,Langue+1,FALSE) -> Contributions extraordinaires
B70: 483 | C70: =VLOOKUP("Inf_60",ResString,Langue+1,FALSE) -> Revenus divers extraordinaires
B71: 484 | C71: =VLOOKUP("Inf_61",ResString,Langue+1,FALSE) -> Revenus financiers extraordinaires
B72: 486 | C72: =VLOOKUP("Inf_62",ResString,Langue+1,FALSE) -> Parts aux revenus extraordinaires
B73: 4869 | C73: =VLOOKUP("Inf_66",ResString,Langue+1,FALSE) -> Dissolution extraordinaire des subventions d'investissements
C75: 2019 - MCH2 | F75: 1 | G75: 2 | H75: 3 | I75: 4 | J75: 5 | K75: 6 | L75: 7 | M75: 8 | N75: 9 | O75: 10
C77: 1 Actif | E77: M_Actif_A_X_C | F77: =M_PatFin_A_1 + M_PatAdmin_A_1 -> 0
C78: 2.5 Capitaux de tiers calculé | E78: M_Captie_A_X_C | G78: =M_Captie_A_1-M_MargeAuto_A_2+M_5_A_2-M_6_A_2+M_35_A_2-M_45_A_2-M_351_A_2+M_451_A_2+M_4490_A_2 -> 0 | H78: =M_Captie_A_2-M_MargeAuto_A_3+M_5_A_3-M_6_A_3+M_35_A_3-M_45_A_3-M_351_A_3+M_451_A_3+M_4490_A_3 -> 0 | I78: =M_Captie_A_3-M_MargeAuto_A_4+M_5_A_4-M_6_A_4+M_35_A_4-M_45_A_4-M_351_A_4+M_451_A_4+M_4490_A_4 -> 0 | J78: =M_Captie_A_4-M_MargeAuto_A_5+M_5_A_5-M_6_A_5+M_35_A_5-M_45_A_5-M_351_A_5+M_451_A_5+M_4490_A_5 -> 0 | K78: =M_Captie_A_5-M_MargeAuto_A_6+M_5_A_6-M_6_A_6+M_35_A_6-M_45_A_6-M_351_A_6+M_451_A_6+M_4490_A_6 -> 0 | L78: =M_Captie_A_6-M_MargeAuto_A_7+M_5_A_7-M_6_A_7+M_35_A_7-M_45_A_7-M_351_A_7+M_451_A_7+M_4490_A_7 -> 0 | M78: =M_Captie_A_7-M_MargeAuto_A_8+M_5_A_8-M_6_A_8+M_35_A_8-M_45_A_8-M_351_A_8+M_451_A_8+M_4490_A_8 -> 0 | N78: =M_Captie_A_8-M_MargeAuto_A_9+M_5_A_9-M_6_A_9+M_35_A_9-M_45_A_9-M_351_A_9+M_451_A_9+M_4490_A_9 -> 0 | O78: =M_Captie_A_9-M_MargeAuto_A_10+M_5_A_10-M_6_A_10+M_35_A_10-M_45_A_10-M_351_A_10+M_451_A_10+M_4490_A_10 -> 0
C79: 29 Capital propre calculé | E79: M_29_A_X_C | G79: =M_29_A_1+M_4_A_2-M_3_A_2+M_351_A_2+M_389_A_2-M_451_A_2-M_489_A_2 -> 0 | H79: =M_29_A_2+M_4_A_3-M_3_A_3+M_351_A_3+M_389_A_3-M_451_A_3-M_489_A_3 -> 0 | I79: =M_29_A_3+M_4_A_4-M_3_A_4+M_351_A_4+M_389_A_4-M_451_A_4-M_489_A_4 -> 0 | J79: =M_29_A_4+M_4_A_5-M_3_A_5+M_351_A_5+M_389_A_5-M_451_A_5-M_489_A_5 -> 0 | K79: =M_29_A_5+M_4_A_6-M_3_A_6+M_351_A_6+M_389_A_6-M_451_A_6-M_489_A_6 -> 0 | L79: =M_29_A_6+M_4_A_7-M_3_A_7+M_351_A_7+M_389_A_7-M_451_A_7-M_489_A_7 -> 0 | M79: =M_29_A_7+M_4_A_8-M_3_A_8+M_351_A_8+M_389_A_8-M_451_A_8-M_489_A_8 -> 0 | N79: =M_29_A_8+M_4_A_9-M_3_A_9+M_351_A_9+M_389_A_9-M_451_A_9-M_489_A_9 -> 0 | O79: =M_29_A_9+M_4_A_10-M_3_A_10+M_351_A_10+M_389_A_10-M_451_A_10-M_489_A_10 -> 0
C80: 299 Excédent - découvert au bilan | E80: M_299_A_X_C | G80: =M_299_A_1+M_4_A_2-M_3_A_2 -> 0 | H80: =M_299_A_2+M_4_A_3-M_3_A_3 -> 0 | I80: =M_299_A_3+M_4_A_4-M_3_A_4 -> 0 | J80: =M_299_A_4+M_4_A_5-M_3_A_5 -> 0 | K80: =M_299_A_5+M_4_A_6-M_3_A_6 -> 0 | L80: =M_299_A_6+M_4_A_7-M_3_A_7 -> 0 | M80: =M_299_A_7+M_4_A_8-M_3_A_8 -> 0 | N80: =M_299_A_8+M_4_A_9-M_3_A_9 -> 0 | O80: =M_299_A_9+M_4_A_10-M_3_A_10 -> 0
C81: 200 Engagements courants | E81: M_200_A_X_C_B | G81: =VCT_A_2+M_200_A_1 -> 0 | H81: =VCT_A_3+M_200_A_2 -> 0 | I81: =VCT_A_4+M_200_A_3 -> 0 | J81: =VCT_A_5+M_200_A_4 -> 0 | K81: =VCT_A_6+M_200_A_5 -> 0 | L81: =VCT_A_7+M_200_A_6 -> 0 | M81: =VCT_A_8+M_200_A_7 -> 0 | N81: =VCT_A_9+M_200_A_8 -> 0 | O81: =VCT_A_10+M_200_A_9 -> 0
C82: 200 Engagements courants | E82: M_200_A_X_C_P | G82: =IF(VCT_A_2=0,0,VCT_A_2+M_200_A_1) -> 0 | H82: =IF(VCT_A_3=0,0,VCT_A_3+M_200_A_2) -> 0 | I82: =IF(VCT_A_2=0,0,VCT_A_4+M_200_A_3) -> 0 | J82: =IF(VCT_A_2=0,0,VCT_A_5+M_200_A_4) -> 0 | K82: =IF(VCT_A_2=0,0,VCT_A_6+M_200_A_5) -> 0 | L82: =IF(VCT_A_2=0,0,VCT_A_7+M_200_A_6) -> 0 | M82: =IF(VCT_A_2=0,0,VCT_A_8+M_200_A_7) -> 0 | N82: =IF(VCT_A_2=0,0,VCT_A_9+M_200_A_8) -> 0 | O82: =IF(VCT_A_2=0,0,VCT_A_10+M_200_A_9) -> 0

Sheet Validation (hidden)
B2: =VLOOKUP("VA_1004",ResString,Langue+1,FALSE) -> Information
B4: =VLOOKUP("VA_1005",ResString,Langue+1,FALSE) -> Revenus bruts déterminants | E4: =M_4_2-M_49_2 -> 0
B7: =VLOOKUP("VA_1",ResString,Langue+1,FALSE) -> Tests de validation des résultats | C7: =An_1 -> 2024 | E7: =AN_2 -> 2025
B9: =VLOOKUP("VA_2",ResString,Langue+1,FALSE) -> Total du bilan
B11: =VLOOKUP("VA_3",ResString,Langue+1,FALSE) -> Total de l'actif au 31.12 | C11: =M_1 -> 0 | E11: =M_1_2 -> 0 | F11: =VLOOKUP("VA_5",ResString,Langue+1,FALSE) -> Total du groupe 1
B12: =VLOOKUP("VA_4",ResString,Langue+1,FALSE) -> Total du passif au 31.12 | C12: =M_2 -> 0 | E12: =M_2_2 -> 0 | F12: =VLOOKUP("VA_6",ResString,Langue+1,FALSE) -> Total du groupe 2
B13: =VLOOKUP("VA_1001",ResString,Langue+1,FALSE) -> Différence | C13: =ROUND(C11-C12,2) -> 0 | E13: =ROUND(E11-E12,2) -> 0 | F13: =VLOOKUP("VA_1000",ResString,Langue+1,FALSE) -> Le total doit être zéro
B15: =VLOOKUP("VA_80",ResString,Langue+1,FALSE) -> Total ventilation par natures et par tâches
B17: =VLOOKUP("VA_81",ResString,Langue+1,FALSE) -> Total charges par natures | C17: =M_3 -> 0 | E17: =M_3_2 -> 0 | F17: =VLOOKUP("VA_83",ResString,Langue+1,FALSE) -> Total du groupe 3
B18: =VLOOKUP("VA_82",ResString,Langue+1,FALSE) -> Total charges par tâches | C18: =CFT_C -> 0 | E18: =CFT_C_2 -> 0
B19: =VLOOKUP("VA_1001",ResString,Langue+1,FALSE) -> Différence | C19: =ROUND(C17-C18,2) -> 0 | E19: =ROUND(E17-E18,2) -> 0 | F19: =VLOOKUP("VA_1000",ResString,Langue+1,FALSE) -> Le total doit être zéro
B21: =VLOOKUP("VA_90",ResString,Langue+1,FALSE) -> Total revenus par natures | C21: =M_4 -> 0 | E21: =M_4_2 -> 0 | F21: =VLOOKUP("VA_86",ResString,Langue+1,FALSE) -> Total du groupe 4
B22: =VLOOKUP("VA_91",ResString,Langue+1,FALSE) -> Total revenus par tâches | C22: =CFT_R -> 0 | E22: =CFT_R_2 -> 0
B23: =VLOOKUP("VA_1001",ResString,Langue+1,FALSE) -> Différence | C23: =ROUND(C21-C22,2) -> 0 | E23: =ROUND(E21-E22,2) -> 0 | F23: =VLOOKUP("VA_1000",ResString,Langue+1,FALSE) -> Le total doit être zéro
B25: =VLOOKUP("VA_87",ResString,Langue+1,FALSE) -> Total dépenses par natures | C25: =M_5 -> 0 | E25: =M_5_2 -> 0 | F25: =VLOOKUP("VA_89",ResString,Langue+1,FALSE) -> Total du groupe 5
B26: =VLOOKUP("VA_88",ResString,Langue+1,FALSE) -> Total dépenses par tâches | C26: =CIT_D -> 0 | E26: =CIT_D_2 -> 0
B27: =VLOOKUP("VA_1001",ResString,Langue+1,FALSE) -> Différence | C27: =ROUND(C25-C26,2) -> 0 | E27: =ROUND(E25-E26,2) -> 0 | F27: =VLOOKUP("VA_1000",ResString,Langue+1,FALSE) -> Le total doit être zéro
B29: =VLOOKUP("VA_84",ResString,Langue+1,FALSE) -> Total recettes par natures | C29: =M_6 -> 0 | E29: =M_6_2 -> 0 | F29: =VLOOKUP("VA_92",ResString,Langue+1,FALSE) -> Total du groupe 6
B30: =VLOOKUP("VA_85",ResString,Langue+1,FALSE) -> Total recettes par tâches | C30: =CIT_R -> 0 | E30: =CIT_R_2 -> 0
B31: =VLOOKUP("VA_1001",ResString,Langue+1,FALSE) -> Différence | C31: =ROUND(C29-C30,2) -> 0 | E31: =ROUND(E29-E30,2) -> 0 | F31: =VLOOKUP("VA_1000",ResString,Langue+1,FALSE) -> Le total doit être zéro
B33: =VLOOKUP("VA_7",ResString,Langue+1,FALSE) -> Modes de financement
B35: =VLOOKUP("VA_8",ResString,Langue+1,FALSE) -> Total des sources de fond | E35: ='Aperçu bilan'!I38 -> 0 | F35: =VLOOKUP("VA_10",ResString,Langue+1,FALSE) -> Excédent de financement + dim. des actifs + augment. des passifs
B36: =VLOOKUP("VA_9",ResString,Langue+1,FALSE) -> Total des emplois de fond | E36: ='Aperçu bilan'!J38 -> 0 | F36: =VLOOKUP("VA_11",ResString,Langue+1,FALSE) -> Insuffisance de financement + augm. actifs + dim. passifs
B37: =VLOOKUP("VA_1001",ResString,Langue+1,FALSE) -> Différence | E37: =ROUND(E35-E36,2) -> 0 | F37: =VLOOKUP("VA_1000",ResString,Langue+1,FALSE) -> Le total doit être zéro
B40: =VLOOKUP("VA_12",ResString,Langue+1,FALSE) -> Excédent / insuffisance de financement
B42: =VLOOKUP("VA_13",ResString,Langue+1,FALSE) -> Variation de l'endettement net | E42: =ABS(H44-H43) -> 0 | F42: =VLOOKUP("VA_15",ResString,Langue+1,FALSE) -> Bilan : variation de l'endettement net | G42: =VLOOKUP("VA_17",ResString,Langue+1,FALSE) -> Endettement net
B43: =VLOOKUP("VA_14",ResString,Langue+1,FALSE) -> Excédent / insuffisance de financement | E43: =ABS('Aperçu rés. et inv.'!H44+'Aperçu rés. et inv.'!H45) ->  | F43: =VLOOKUP("VA_16",ResString,Langue+1,FALSE) -> Investissements net - marge d'autofinancement | G43: =VLOOKUP("VA_1002",ResString,Langue+1,FALSE) ->  | H43: =M_2-M_29-M_209-M_PatFin+M_109 -> 0
B44: =VLOOKUP("VA_1001",ResString,Langue+1,FALSE) -> Différence | E44: =ROUND(E42-E43,2) ->  | F44: =VLOOKUP("VA_1000",ResString,Langue+1,FALSE) -> Le total doit être zéro | G44: =VLOOKUP("VA_1003",ResString,Langue+1,FALSE) ->  | H44: =M_2_2-M_29_2-M_209_2-M_PatFin_2+M_109_2 -> 0
B47: =VLOOKUP("VA_19",ResString,Langue+1,FALSE) -> Modification du patrimoine administratif
B49: =VLOOKUP("VA_20",ResString,Langue+1,FALSE) -> Investissements bruts | E49: =M_5_2 -> 0 | F49: =VLOOKUP("VA_27",ResString,Langue+1,FALSE) -> Total du groupe 5
B50: =VLOOKUP("VA_21",ResString,Langue+1,FALSE) -> Recettes liées aux investissements | E50: =M_6_2 -> 0 | F50: =VLOOKUP("VA_28",ResString,Langue+1,FALSE) -> Total du groupe 6
B51: =VLOOKUP("VA_22",ResString,Langue+1,FALSE) -> Investissements nets | E51: =E49-E50 -> 0
B52: =VLOOKUP("VA_23",ResString,Langue+1,FALSE) -> Amortissements planifiés du patrimoine administratif | E52: =M_33_2+M_366_2+M_364_2+M_365_2 -> 0 | F52: =VLOOKUP("VA_29",ResString,Langue+1,FALSE) -> Compte de résultats : total nature 33, 364, 365 et 366
B53: =VLOOKUP("VA_25",ResString,Langue+1,FALSE) -> Variation du patrimoine administratif | E53: =E51-E52 -> 0 | G53: =VLOOKUP("VA_40",ResString,Langue+1,FALSE) -> Patrimoine administratif
B54: =VLOOKUP("VA_26",ResString,Langue+1,FALSE) -> Augmentation / diminution du patrimoine administratif | E54: =H55-H54 -> 0 | F54: =VLOOKUP("VA_31",ResString,Langue+1,FALSE) -> Bilan : variation du patrimoine administratif | G54: =VLOOKUP("VA_1002",ResString,Langue+1,FALSE) ->  | H54: =M_PatAdm -> 0
B55: =VLOOKUP("VA_1001",ResString,Langue+1,FALSE) -> Différence | E55: =ROUND(E53-E54,2) -> 0 | F55: =VLOOKUP("VA_1000",ResString,Langue+1,FALSE) -> Le total doit être zéro | G55: =VLOOKUP("VA_1003",ResString,Langue+1,FALSE) ->  | H55: =M_PatAdm_2 -> 0
B58: =VLOOKUP("VA_32",ResString,Langue+1,FALSE) -> Modification des fonds et financements spéciaux de tiers
G59: =VLOOKUP("VA_41",ResString,Langue+1,FALSE) -> Groupe 18
B60: =VLOOKUP("VA_33",ResString,Langue+1,FALSE) -> Attributions aux fonds et financements spéciaux de tiers | E60: =M_350_2 -> 0 | F60: =VLOOKUP("VA_37",ResString,Langue+1,FALSE) -> Compte de résultats : total nature 350 | G60: =VLOOKUP("VA_1002",ResString,Langue+1,FALSE) ->  | H60: =M_FinSpec -> 
B61: =VLOOKUP("VA_34",ResString,Langue+1,FALSE) -> Prélèvements sur les fonds et financements spéciaux de tiers | E61: =M_450_2 -> 0 | F61: =VLOOKUP("VA_38",ResString,Langue+1,FALSE) -> Compte de résultats: total nature 450 | G61: =VLOOKUP("VA_1003",ResString,Langue+1,FALSE) ->  | H61: =M_FinSpec_2 -> 
B62: =VLOOKUP("VA_35",ResString,Langue+1,FALSE) -> Modification selon compte de résultats | E62: =E60-E61 -> 0 | G62: =VLOOKUP("VA_42",ResString,Langue+1,FALSE) -> Groupe 28
B63: =VLOOKUP("VA_36",ResString,Langue+1,FALSE) -> Variations selon bilan | E63: =M_109-M_109_2+M_209_2-M_209 -> 0 | F63: =VLOOKUP("VA_39",ResString,Langue+1,FALSE) -> Bilan : variations des groupes 109/209 | G63: =VLOOKUP("VA_1002",ResString,Langue+1,FALSE) ->  | H63: =M_FinSpecP -> 
B64: =VLOOKUP("VA_1001",ResString,Langue+1,FALSE) -> Différence | E64: =ROUND(E62-E63,2) -> 0 | F64: =VLOOKUP("VA_1000",ResString,Langue+1,FALSE) -> Le total doit être zéro | G64: =VLOOKUP("VA_1003",ResString,Langue+1,FALSE) ->  | H64: =M_FinSpecP_2 -> 
B67: =VLOOKUP("VA_1006",ResString,Langue+1,FALSE) -> Modification des fonds et financements spéciaux capital propre
B69: =VLOOKUP("VA_1007",ResString,Langue+1,FALSE) -> Attributions aux fonds et financements spéciaux capital propre | E69: =M_351_2 -> 0 | F69: =VLOOKUP("VA_1011",ResString,Langue+1,FALSE) -> Compte de résultats : total nature 351
B70: =VLOOKUP("VA_1008",ResString,Langue+1,FALSE) -> Prélèvements sur les fonds et financements spéciaux capital propre | E70: =M_451_2 -> 0 | F70: =VLOOKUP("VA_1012",ResString,Langue+1,FALSE) -> Compte de résultats : total nature 451
B71: =VLOOKUP("VA_1009",ResString,Langue+1,FALSE) -> Modification selon compte de résultats | E71: =E69-E70 -> 0
B72: =VLOOKUP("VA_1010",ResString,Langue+1,FALSE) -> Variations selon bilan | E72: =M_290_2-M_290+M_291_2-M_291 -> 0 | F72: =VLOOKUP("VA_1013",ResString,Langue+1,FALSE) -> Bilan : variations des groupes 290
B73: =VLOOKUP("VA_1001",ResString,Langue+1,FALSE) -> Différence | E73: =ROUND(E71-E72,2) -> 0 | F73: =VLOOKUP("VA_1000",ResString,Langue+1,FALSE) -> Le total doit être zéro
B76: =VLOOKUP("VA_43",ResString,Langue+1,FALSE) -> Subventions redistribuées
B78: =VLOOKUP("VA_44",ResString,Langue+1,FALSE) -> Subventions redistribuées, charges | E78: =M_37_2 -> 0 | F78: =VLOOKUP("VA_46",ResString,Langue+1,FALSE) -> Compte de résultats : total nature 37
B79: =VLOOKUP("VA_45",ResString,Langue+1,FALSE) -> Subventions à redistribuer, revenus | E79: =M_47_2 -> 0 | F79: =VLOOKUP("VA_47",ResString,Langue+1,FALSE) -> Compte de résultats : total nature 47
B80: =VLOOKUP("VA_1001",ResString,Langue+1,FALSE) -> Différence | E80: =ROUND(E78-E79,2) -> 0 | F80: =VLOOKUP("VA_1000",ResString,Langue+1,FALSE) -> Le total doit être zéro
B82: =VLOOKUP("VA_48",ResString,Langue+1,FALSE) -> Imputations internes
B84: =VLOOKUP("VA_49",ResString,Langue+1,FALSE) -> Imputations internes, charges | E84: =M_39_2 -> 0 | F84: =VLOOKUP("VA_51",ResString,Langue+1,FALSE) -> Compte de résultats : total nature 39
B85: =VLOOKUP("VA_50",ResString,Langue+1,FALSE) -> Imputations internes, revenus | E85: =M_49_2 -> 0 | F85: =VLOOKUP("VA_52",ResString,Langue+1,FALSE) -> Compte de résultats : total nature 49
B86: =VLOOKUP("VA_1001",ResString,Langue+1,FALSE) -> Différence | E86: =ROUND(E84-E85,2) -> 0 | F86: =VLOOKUP("VA_1000",ResString,Langue+1,FALSE) -> Le total doit être zéro
B89: =VLOOKUP("VA_1014",ResString,Langue+1,FALSE) -> Investissements pour le compte des tiers et remboursement
B91: =VLOOKUP("VA_1015",ResString,Langue+1,FALSE) -> Investissements pour le compte de tiers | E91: =M_51_2 -> 0 | F91: =VLOOKUP("VA_1017",ResString,Langue+1,FALSE) -> Compte des investissements : total nature 51
B92: =VLOOKUP("VA_1016",ResString,Langue+1,FALSE) -> Remboursement | E92: =M_61_2 -> 0 | F92: =VLOOKUP("VA_1018",ResString,Langue+1,FALSE) -> Compte des investissements : total nature 61
B93: =VLOOKUP("VA_1001",ResString,Langue+1,FALSE) -> Différence | E93: =ROUND(E91-E92,2) -> 0 | F93: =VLOOKUP("VA_1000",ResString,Langue+1,FALSE) -> Le total doit être zéro
B95: =VLOOKUP("VA_53",ResString,Langue+1,FALSE) -> Modification du capital propre
B97: =VLOOKUP("VA_54",ResString,Langue+1,FALSE) -> Modification du capital propre | E97: =M_29_2-M_29 -> 0 | F97: =VLOOKUP("VA_59",ResString,Langue+1,FALSE) -> Bilan : variation du groupe 29 | G97: =VLOOKUP("VA_62",ResString,Langue+1,FALSE) -> Groupe 29
B98: =VLOOKUP("VA_56",ResString,Langue+1,FALSE) -> - part attributions et prélèvements fonds et financement spéciaux | E98: =M_351_2-M_451_2 -> 0 | F98: =VLOOKUP("VA_61",ResString,Langue+1,FALSE) -> Compte de résultats : nature 351 - 451 | G98: =VLOOKUP("VA_1003",ResString,Langue+1,FALSE) ->  | H98: =M_29_2 -> 0
B99: =VLOOKUP("VA_57",ResString,Langue+1,FALSE) -> - part charges et revenus extraordinaires | E99: =M_389_2-M_489_2 -> 0 | F99: =VLOOKUP("VA_63",ResString,Langue+1,FALSE) -> Compte de résutats : nature 389 - 489 | G99: =VLOOKUP("VA_63",ResString,Langue+1,FALSE) -> Compte de résutats : nature 389 - 489
B100: =VLOOKUP("VA_58",ResString,Langue+1,FALSE) -> - part de l'excédent de revenus | E100: =M_4_2-M_3_2 -> 0 | F100: =VLOOKUP("VA_64",ResString,Langue+1,FALSE) -> Compte de résutlats : nature 3 - 4 | G100: =VLOOKUP("VA_1002",ResString,Langue+1,FALSE) ->  | H100: =M_19 -> 
B101: =VLOOKUP("VA_1001",ResString,Langue+1,FALSE) -> Différence | E101: =ROUND(IF(ROUND((E97-E98-E99-E100),2)<0,E97-E98-E99-E100,E97-E98-E99-E100),2) -> 0 | F101: =VLOOKUP("VA_1000",ResString,Langue+1,FALSE) -> Le total doit être zéro | G101: =VLOOKUP("VA_1003",ResString,Langue+1,FALSE) ->  | H101: =M_19_2 -> 

Sheet Plan financier
C2: =VLOOKUP("PF_15",ResString,Langue+1,FALSE) -> Plan financier
C4: =VLOOKUP("PF_1",ResString,Langue+1,FALSE) -> Résultat | D4: =VLOOKUP("AC_30",ResString,Langue+1,FALSE) -> Compte | E4: =VLOOKUP("AP_3",ResString,Langue+1,FALSE) -> Budget | G4: =VLOOKUP("PF_15",ResString,Langue+1,FALSE) -> Plan financier | H4: Plan financier | I4: Plan financier | J4: Plan financier | K4: Plan financier | L4: Plan financier | M4: Plan financier | N4: Plan financier | O4: Plan financier
D5: =An_1 -> 2024 | E5: =AN_2 -> 2025 | F5: =AN_3 -> 2026 | G5: =AN_3+1 -> 2027 | H5: =AN_3+2 -> 2028 | I5: =AN_3+3 -> 2029 | J5: =AN_3+4 -> 2030 | K5: =AN_3+5 -> 2031 | L5: =AN_3+6 -> 2032 | M5: =AN_3+7 -> 2033 | N5: =AN_3+8 -> 2034 | O5: =AN_3+9 -> 2035
C7: =VLOOKUP("PF_2",ResString,Langue+1,FALSE) -> Prévisions compte de résultats
C9: =VLOOKUP("PF_3",ResString,Langue+1,FALSE) -> Total des charges financières | D9: =M_3-M_33-M_35-M_364-M_365-M_366-M_389 -> 0 | E9: =M_3_B-M_33_B-M_35_B-M_364_B-M_365_B-M_366_B-M_389_B -> 0 | F9: =M_3_B_1-M_33_B_1-M_35_B_1-M_364_B_1-M_365_B_1-M_366_B_1-M_389_B_1 -> 0 | G9: =M_3_P_1-M_33_P_1-M_35_P_1-M_364_P_1-M_365_P_1-M_366_P_1-M_389_P_1 ->  | H9: =M_3_P_2-M_33_P_2-M_35_P_2-M_364_P_2-M_365_P_2-M_366_P_2-M_389_P_2 ->  | I9: =M_3_P_3-M_33_P_3-M_35_P_3-M_364_P_3-M_365_P_3-M_366_P_3-M_389_P_3 ->  | J9: =M_3_P_4-M_33_P_4-M_35_P_4-M_364_P_4-M_365_P_4-M_366_P_4-M_389_P_4 -> 0 | K9: =M_3_P_5-M_33_P_5-M_35_P_5-M_364_P_5-M_365_P_5-M_366_P_5-M_389_P_5 -> 0 | L9: =M_3_P_6-M_33_P_6-M_35_P_6-M_364_P_6-M_365_P_6-M_366_P_6-M_389_P_6 -> 0 | M9: =M_3_P_7-M_33_P_7-M_35_P_7-M_364_P_7-M_365_P_7-M_366_P_7-M_389_P_7 -> 0 | N9: =M_3_P_8-M_33_P_8-M_35_P_8-M_364_P_8-M_365_P_8-M_366_P_8-M_389_P_8 -> 0 | O9: =M_3_P_9-M_33_P_9-M_35_P_9-M_364_P_9-M_365_P_9-M_366_P_9-M_389_P_9 -> 0
C10: =VLOOKUP("PF_4",ResString,Langue+1,FALSE) -> Total des revenus financiers | D10: =M_4-M_45-M_489-M_4490 ->  | E10: =M_4_B-M_45_B-M_489_B-M_4490_B ->  | F10: =M_4_B_1-M_45_B_1-M_489_B_1-M_4490_B_1 ->  | G10: =M_4_P_1-M_45_P_1-M_489_P_1-M_4490_P_1 ->  | H10: =M_4_P_2-M_45_P_2-M_489_P_2-M_4490_P_2 ->  | I10: =M_4_P_3-M_45_P_3-M_489_P_3-M_4490_P_3 ->  | J10: =M_4_P_4-M_45_P_4-M_489_P_4-M_4490_P_4 -> 0 | K10: =M_4_P_5-M_45_P_5-M_489_P_5-M_4490_P_5 -> 0 | L10: =M_4_P_6-M_45_P_6-M_489_P_6-M_4490_P_6 -> 0 | M10: =M_4_P_7-M_45_P_7-M_489_P_7-M_4490_P_7 -> 0 | N10: =M_4_P_8-M_45_P_8-M_489_P_8-M_4490_P_8 -> 0 | O10: =M_4_P_9-M_45_P_9-M_489_P_9-M_4490_P_9 -> 0
C11: =VLOOKUP("RA_5_2",ResString,Langue+1,FALSE) -> Marge d'autofinancement | D11: =+D10-D9 ->  | E11: =+E10-E9 ->  | F11: =+F10-F9 ->  | G11: =+G10-G9 ->  | J11: 0 | K11: 0 | L11: 0 | M11: 0 | N11: 0 | O11: 0
C12: =VLOOKUP("RA_7",ResString,Langue+1,FALSE) -> Amortissements planifiés | D12: =M_33+M_366 -> 0 | E12: =M_33_B+M_366_B -> 0 | F12: =M_33_B_1+M_366_B_1 -> 0 | G12: =M_33_P_1+M_366_P_1 ->  | H12: =M_33_P_2+M_366_P_2 ->  | I12: =M_33_P_3+M_366_P_3 ->  | J12: =M_33_P_4+M_366_P_4 -> 0 | K12: =M_33_P_5+M_366_P_5 -> 0 | L12: =M_33_P_6+M_366_P_6 -> 0 | M12: =M_33_P_7+M_366_P_7 -> 0 | N12: =M_33_P_8+M_366_P_8 -> 0 | O12: =M_33_P_9+M_366_P_9 -> 0
C13: =VLOOKUP("RA_22",ResString,Langue+1,FALSE) -> Attributions aux fonds et financements spéciaux | D13: =M_35 -> 0 | E13: =M_35_B -> 0 | F13: =M_35_B_1 -> 0 | G13: =M_35_P_1 ->  | H13: =M_35_P_2 ->  | I13: =M_35_P_3 ->  | J13: =M_35_P_4 -> 0 | K13: =M_35_P_5 -> 0 | L13: =M_35_P_6 -> 0 | M13: =M_35_P_7 -> 0 | N13: =M_35_P_8 -> 0 | O13: =M_35_P_9 -> 0
C14: =VLOOKUP("RA_28",ResString,Langue+1,FALSE) -> Dont fonds et financements spéciaux capital propre | D14: =M_351 -> 0 | E14: =M_351_B -> 0 | F14: =M_351_B_1 -> 0 | G14: =M_351_P_1 -> Remplir | H14: =M_351_P_2 -> Remplir | I14: =M_351_P_3 -> Remplir | J14: =M_351_P_4 -> 0 | K14: =M_351_P_5 -> 0 | L14: =M_351_P_6 -> 0 | M14: =M_351_P_7 -> 0 | N14: =M_351_P_8 -> 0 | O14: =M_351_P_9 -> 0
C15: =VLOOKUP("RA_23",ResString,Langue+1,FALSE) -> Prélèvements sur les fonds et financements spéciaux | D15: =M_45 -> 0 | E15: =M_45_B -> 0 | F15: =M_45_B_1 -> 0 | G15: =M_45_P_1 ->  | H15: =M_45_P_2 ->  | I15: =M_45_P_3 ->  | J15: =M_45_P_4 -> 0 | K15: =M_45_P_5 -> 0 | L15: =M_45_P_6 -> 0 | M15: =M_45_P_7 -> 0 | N15: =M_45_P_8 -> 0 | O15: =M_45_P_9 -> 0
C16: =VLOOKUP("RA_28",ResString,Langue+1,FALSE) -> Dont fonds et financements spéciaux capital propre | D16: =M_451 -> 0 | E16: =M_451_B -> 0 | F16: =M_451_B_1 -> 0 | G16: =M_451_P_1 -> Remplir | H16: =M_451_P_2 -> Remplir | I16: =M_451_P_3 -> Remplir | J16: =M_451_P_4 -> 0 | K16: =M_451_P_5 -> 0 | L16: =M_451_P_6 -> 0 | M16: =M_451_P_7 -> 0 | N16: =M_451_P_8 -> 0 | O16: =M_451_P_9 -> 0
C17: =VLOOKUP("RA_26",ResString,Langue+1,FALSE) -> Réévaluations des prêts du PA | D17: =M_364 -> 0 | E17: =M_364_B -> 0 | F17: =M_364_B_1 -> 0 | G17: =M_364_P_1 -> 0 | H17: =M_364_P_2 -> 0 | I17: =M_364_P_3 -> 0 | J17: =M_364_P_4 -> 0 | K17: =M_364_P_5 -> 0 | L17: =M_364_P_6 -> 0 | M17: =M_364_P_7 -> 0 | N17: =M_364_P_8 -> 0 | O17: =M_364_P_9 -> 0
C18: =VLOOKUP("RA_27",ResString,Langue+1,FALSE) -> Réévaluations des participations du PA | D18: =M_365 -> 0 | E18: =M_365_B -> 0 | F18: =M_365_B_1 -> 0 | G18: =M_365_P_1 -> Remplir | H18: =M_365_P_2 -> Remplir | I18: =M_365_P_3 -> Remplir | J18: =M_365_P_4 -> 0 | K18: =M_365_P_5 -> 0 | L18: =M_365_P_6 -> 0 | M18: =M_365_P_7 -> 0 | N18: =M_365_P_8 -> 0 | O18: =M_365_P_9 -> 0
C19: =VLOOKUP("RA_24",ResString,Langue+1,FALSE) -> Attributions au capital propre | D19: =M_389 -> 0 | E19: =M_389_B -> 0 | F19: =M_389_B_1 -> 0 | G19: =M_389_P_1 -> 0 | H19: =M_389_P_2 -> 0 | I19: =M_389_P_3 -> 0 | J19: =M_389_P_4 -> 0 | K19: =M_389_P_5 -> 0 | L19: =M_389_P_6 -> 0 | M19: =M_389_P_7 -> 0 | N19: =M_389_P_8 -> 0 | O19: =M_389_P_9 -> 0
C20: =VLOOKUP("Inf_57",ResString,Langue+1,FALSE) -> Réévaluations PA | D20: =M_4490 -> Remplir | E20: =M_4490_B -> Remplir | F20: =M_4490_B_1 -> Remplir | G20: =M_4490_P_1 -> Remplir | H20: =M_4490_P_2 -> Remplir | I20: =M_4490_P_3 -> Remplir | J20: =M_4490_P_4 -> 0 | K20: =M_4490_P_5 -> 0 | L20: =M_4490_P_6 -> 0 | M20: =M_4490_P_7 -> 0 | N20: =M_4490_P_8 -> 0 | O20: =M_4490_P_9 -> 0
C21: =VLOOKUP("RA_25",ResString,Langue+1,FALSE) -> Prélèvements sur le capital propre | D21: =M_489 -> 0 | E21: =M_489_B -> 0 | F21: =M_489_B_1 -> 0 | G21: =M_489_P_1 -> 0 | H21: =M_489_P_2 -> 0 | I21: =M_489_P_3 -> 0 | J21: =M_489_P_4 -> 0 | K21: =M_489_P_5 -> 0 | L21: =M_489_P_6 -> 0 | M21: =M_489_P_7 -> 0 | N21: =M_489_P_8 -> 0 | O21: =M_489_P_9 -> 0
C22: =VLOOKUP("PF_5",ResString,Langue+1,FALSE) -> Excédent revenus (+) charges (-) | D22: =+D11-D12-D13+D15-D19+D21-D17-D18+D20 ->  | E22: =+E11-E12-E13+E15-E19+E21-E17-E18+E20 ->  | F22: =+F11-F12-F13+F15-F19+F21-F17-F18+F20 ->  | G22: =+G11-G12-G13+G15-G19+G21-G17-G18+G20 ->  | H22: =+H11-H12-H13+H15-H19+H21-H17-H18+H20 ->  | J22: 0 | K22: 0 | L22: 0 | M22: 0 | N22: 0 | O22: 0
C25: =VLOOKUP("PF_6",ResString,Langue+1,FALSE) -> Prévision du compte des investissements
C27: =VLOOKUP("PF_7",ResString,Langue+1,FALSE) -> Total des dépenses | D27: =M_5 -> 0 | E27: =M_5_B -> 0 | F27: =M_5_B_1 -> 0 | G27: =M_5_P_1 -> 0 | H27: =M_5_P_2 -> 0 | I27: =M_5_P_3 -> 0 | J27: =M_5_P_4 -> 0 | K27: =M_5_P_5 -> 0 | L27: =M_5_P_6 -> 0 | M27: =M_5_P_7 -> 0 | N27: =M_5_P_8 -> 0 | O27: =M_5_P_9 -> 0
C28: =VLOOKUP("PF_8",ResString,Langue+1,FALSE) -> Total des recettes | D28: =M_6 -> 0 | E28: =M_6_B -> 0 | F28: =M_6_B_1 -> 0 | G28: =M_6_P_1 -> 0 | H28: =M_6_P_2 -> 0 | I28: =M_6_P_3 -> 0 | J28: =M_6_P_4 -> 0 | K28: =M_6_P_5 -> 0 | L28: =M_6_P_6 -> 0 | M28: =M_6_P_7 -> 0 | N28: =M_6_P_8 -> 0 | O28: =M_6_P_9 -> 0
C29: =VLOOKUP("DA_14",ResString,Langue+1,FALSE) -> Investissements nets | D29: =+D27-D28 -> 0 | E29: 0 | F29: 0 | G29: 0 | H29: 0 | I29: 0 | J29: 0 | K29: 0 | L29: 0 | M29: 0 | N29: 0 | O29: 0
C32: =VLOOKUP("PF_9",ResString,Langue+1,FALSE) -> Financement des investissements
C34: =VLOOKUP("PF_10",ResString,Langue+1,FALSE) -> Report des investissements nets | D34: =+D29 -> 0 | E34: 0 | F34: 0 | G34: 0 | H34: =+H29 -> 0 | I34: 0 | J34: 0 | K34: 0 | L34: 0 | M34: 0 | N34: 0 | O34: 0
C35: =VLOOKUP("RA_5_2",ResString,Langue+1,FALSE) -> Marge d'autofinancement | D35: =+D11 ->  | J35: 0 | K35: 0 | L35: 0 | M35: 0 | N35: 0 | O35: 0
C36: =VLOOKUP("PF_11",ResString,Langue+1,FALSE) -> Excédent (+) découvert (-) de financement | D36: =IF(D11<0,-(D34-D35),D35-D34) ->  | J36: 0 | K36: 0 | L36: 0 | M36: 0 | N36: 0 | O36: 0
C39: =VLOOKUP("PF_12",ResString,Langue+1,FALSE) -> Modification de la fortune/découvert
C41: =VLOOKUP("PF_13",ResString,Langue+1,FALSE) -> Excédent revenus (+) charges (-) | D41: =+D22 ->  | E41: =+E22 ->  | F41: =+F22 ->  | J41: 0 | K41: 0 | L41: 0 | M41: 0 | N41: 0 | O41: 0
C42: =VLOOKUP("PF_14",ResString,Langue+1,FALSE) -> Excédent /Découvert du bilan | D42: =M_299 -> 0 | E42: =M_ForNet+E41+M_3899_B ->  | F42: =M_ForNet_B+F41+M_3899_B_1 ->  | G42: =IF(AND(G9=0,G10=0),0,M_ForNet_B_1+G41+M_3899_P_1) ->  | H42: =IF(AND(H9=0,H10=0),0,M_ForNet_P_1+H41+M_3899_P_2) ->  | I42: =IF(AND(I9=0,I10=0),0,M_ForNet_P_2+I41+M_3899_P_3) ->  | J42: =IF(AND(J9=0,J10=0),0,M_ForNet_P_3+J41+M_3899_P_4) -> 0 | K42: =IF(AND(K9=0,K10=0),0,M_ForNet_P_4+K41+M_3899_P_5) -> 0 | L42: =IF(AND(L9=0,L10=0),0,M_ForNet_P_5+L41+M_3899_P_6) -> 0 | M42: =IF(AND(M9=0,M10=0),0,M_ForNet_P_6+M41+M_3899_P_7) -> 0 | N42: =IF(AND(N9=0,N10=0),0,M_ForNet_P_7+N41+M_3899_P_8) -> 0 | O42: =IF(AND(O9=0,O10=0),0,M_ForNet_P_8+O41+M_3899_P_9) -> 0
C45: =VLOOKUP("PF_43",ResString,Langue+1,FALSE) -> Modification des engagements
C47: =VLOOKUP("PF_46",ResString,Langue+1,FALSE) -> Variation capitaux de tiers | D47: =-D11+D13-D14-D15+D16+D29 ->  | E47: =-E11+E13-E14-E15+E16+E29 ->  | G47: =-G11+G13-G14-G15+G16+G29 ->  | J47: 0 | K47: 0 | L47: 0 | M47: 0 | N47: 0 | O47: 0
C48: =VLOOKUP("PF_45",ResString,Langue+1,FALSE) -> Capitaux de tiers | D48: =M_Eng -> 0 | E48: =D48+E47 ->  | F48: =E48+F47 ->  | G48: =IF(AND(M_VCT_P_1=0,G9=0,G10=0),0,M_ENG_B_1_P+M_VCT_P_1) ->  | H48: =IF(AND(M_VCT_P_2=0,H9=0,H10=0),0,M_ENG_P_1+M_VCT_P_2) ->  | I48: =IF(AND(M_VCT_P_3=0,I9=0,I10=0),0,M_ENG_P_2+M_VCT_P_3) ->  | J48: =IF(AND(M_VCT_P_4=0,J9=0,J10=0),0,M_ENG_P_3+M_VCT_P_4) -> 0 | K48: =IF(AND(M_VCT_P_5=0,K9=0,K10=0),0,M_ENG_P_4+M_VCT_P_5) -> 0 | L48: =IF(AND(M_VCT_P_6=0,L9=0,L10=0),0,M_ENG_P_5+M_VCT_P_6) -> 0 | M48: =IF(AND(M_VCT_P_7=0,M9=0,M10=0),0,M_ENG_P_6+M_VCT_P_7) -> 0 | N48: =IF(AND(M_VCT_P_8=0,N9=0,N10=0),0,M_ENG_P_7+M_VCT_P_8) -> 0 | O48: =IF(AND(M_VCT_P_9=0,O9=0,O10=0),0,M_ENG_P_8+M_VCT_P_9) -> 0

Sheet Aperçu résultats échelonnés
C2: =VLOOKUP("CRE_1",ResString,Langue+1,FALSE) -> Compte de résultats échelonné | E2: =VLOOKUP("AC_30",ResString,Langue+1,FALSE) -> Compte | F2: =VLOOKUP("AP_3",ResString,Langue+1,FALSE) -> Budget | G2: =VLOOKUP("AC_30",ResString,Langue+1,FALSE) -> Compte | H2: =VLOOKUP("AP_3",ResString,Langue+1,FALSE) -> Budget
E3: =An_1 -> 2024 | F3: =AN_2 -> 2025 | G3: =AN_2 -> 2025 | H3: =AN_3 -> 2026
C5: =VLOOKUP("CRE_2",ResString,Langue+1,FALSE) -> Charges d'exploitation
B6: 30 | C6: =VLOOKUP(30,ResString,Langue+1,FALSE) -> Charges de personnel | D6: CHF | E6: =M_30 -> 0 | F6: =M_30_B -> 0 | G6: =M_30_2 -> 0 | H6: =M_30_B_1 -> 0
B7: 31 | C7: =VLOOKUP(31,ResString,Langue+1,FALSE) -> Charges de biens et services et autres charges d'exploitation | D7: CHF | E7: =M_31 -> 0 | F7: =M_31_B -> 0 | G7: =M_31_2 -> 0 | H7: =M_31_B_1 -> 0
B8: 33 | C8: =VLOOKUP(33,ResString,Langue+1,FALSE) -> Amortissements du patrimoine administratif | D8: CHF | E8: =M_33 -> 0 | F8: =M_33_B -> 0 | G8: =M_33_2 -> 0 | H8: =M_33_B_1 -> 0
B9: 35 | C9: =VLOOKUP(35,ResString,Langue+1,FALSE) -> Attributions aux fonds et financements spéciaux | D9: CHF | E9: =M_35 -> 0 | F9: =M_35_B -> 0 | G9: =M_35_2 -> 0 | H9: =M_35_B_1 -> 0
B10: 36 | C10: =VLOOKUP(36,ResString,Langue+1,FALSE) -> Charges de transferts | D10: CHF | E10: =M_36 -> 0 | F10: =M_36_B -> 0 | G10: =M_36_2 -> 0 | H10: =M_36_B_1 -> 0
B11: 37 | C11: =VLOOKUP(37,ResString,Langue+1,FALSE) -> Subventions redistribuées | D11: CHF | E11: =M_37 -> 0 | F11: =M_37_B -> 0 | G11: =M_37_2 -> 0 | H11: =M_37_B_1 -> 0
C12: =VLOOKUP("CRE_3",ResString,Langue+1,FALSE) -> Total des charges d'exploitation | D12: CHF | E12: =SUM(E6:E11) -> 0 | F12: =SUM(F6:F11) -> 0 | G12: =SUM(G6:G11) -> 0 | H12: =SUM(H6:H11) -> 0
C14: =VLOOKUP("CRE_4",ResString,Langue+1,FALSE) -> Revenus d'exploitation
B15: 40 | C15: =VLOOKUP(40,ResString,Langue+1,FALSE) -> Revenus fiscaux | D15: CHF | E15: =M_40 -> 0 | F15: =M_40_B -> 0 | G15: =M_40_2 -> 0 | H15: =M_40_B_1 -> 0
B16: 41 | C16: =VLOOKUP(41,ResString,Langue+1,FALSE) -> Patentes et concessions | D16: CHF | E16: =M_41 -> 0 | F16: =M_41_B -> 0 | G16: =M_41_2 -> 0 | H16: =M_41_B_1 -> 0
B17: 42 | C17: =VLOOKUP(42,ResString,Langue+1,FALSE) -> Taxes | D17: CHF | E17: =M_42 -> 0 | F17: =M_42_B -> 0 | G17: =M_42_2 -> 0 | H17: =M_42_B_1 -> 0
B18: 43 | C18: =VLOOKUP(43,ResString,Langue+1,FALSE) -> Revenus divers | D18: CHF | E18: =M_43 -> 0 | F18: =M_43_B -> 0 | G18: =M_43_2 -> 0 | H18: =M_43_B_1 -> 0
B19: 45 | C19: =VLOOKUP(45,ResString,Langue+1,FALSE) -> Prélèvements sur les fonds et financements spéciaux | D19: CHF | E19: =M_45 -> 0 | F19: =M_45_B -> 0 | G19: =M_45_2 -> 0 | H19: =M_45_B_1 -> 0
B20: 46 | C20: =VLOOKUP(46,ResString,Langue+1,FALSE) -> Revenus de transferts | D20: CHF | E20: =M_46 -> 0 | F20: =M_46_B -> 0 | G20: =M_46_2 -> 0 | H20: =M_46_B_1 -> 0
B21: 47 | C21: =VLOOKUP(47,ResString,Langue+1,FALSE) -> Subventions à redistribuer | D21: CHF | E21: =M_47 -> 0 | F21: =M_47_B -> 0 | G21: =M_47_2 -> 0 | H21: =M_47_B_1 -> 0
C22: =VLOOKUP("CRE_5",ResString,Langue+1,FALSE) -> Total des revenus d'exploitation | D22: CHF | E22: =SUM(E15:E21) -> 0 | F22: =SUM(F15:F21) -> 0 | G22: =SUM(G15:G21) -> 0 | H22: =SUM(H15:H21) -> 0
B24: R1 | C24: =VLOOKUP("CRE_6",ResString,Langue+1,FALSE) -> Résultat provenant de l'activité d'exploitation | E24: =-E12+E22 -> 0 | F24: =-F12+F22 -> 0 | G24: =-G12+G22 -> 0 | H24: =-H12+H22 -> 0
B26: 34 | C26: =VLOOKUP(34,ResString,Langue+1,FALSE) -> Charges financières | D26: CHF | E26: =M_34 -> 0 | F26: =M_34_B -> 0 | G26: =M_34_2 -> 0 | H26: =M_34_B_1 -> 0
B27: 44 | C27: =VLOOKUP(44,ResString,Langue+1,FALSE) -> Revenus financiers | D27: CHF | E27: =M_44 -> 0 | F27: =M_44_B -> 0 | G27: =M_44_2 -> 0 | H27: =M_44_B_1 -> 0
B28: R2 | C28: =VLOOKUP("CRE_7",ResString,Langue+1,FALSE) -> Résultat provenant de l'activité de financement | D28: CHF | E28: =-E26+E27 -> 0 | F28: =-F26+F27 -> 0 | G28: =-G26+G27 -> 0 | H28: =-H26+H27 -> 0
B30: O1 | C30: =VLOOKUP("CRE_8",ResString,Langue+1,FALSE) -> Résultat provenant de l'activité opérationnelle (R1 + R2) | E30: =E24+E28 -> 0 | F30: =F24+F28 -> 0 | G30: =G24+G28 -> 0 | H30: =H24+H28 -> 0
B32: 38 | C32: =VLOOKUP(38,ResString,Langue+1,FALSE) -> Charges extraordinaires | D32: CHF | E32: =M_38+M_389 -> 0 | F32: =M_38_B+M_389_B -> 0 | G32: =M_38_2+M_389_2 -> 0 | H32: =M_38_B_1+M_389_B_1 -> 0
B33: 48 | C33: =VLOOKUP(48,ResString,Langue+1,FALSE) -> Revenus extraordinaires | D33: CHF | E33: =M_48+M_489 -> 0 | F33: =M_48_B+M_489_B -> 0 | G33: =M_48_2+M_489_2 -> 0 | H33: =M_48_B_1+M_489_B_1 -> 0
B34: E1 | C34: =VLOOKUP("CRE_9",ResString,Langue+1,FALSE) -> Résultat provenant de l'activité extraordinaire | D34: CHF | E34: =-E32+E33 -> 0 | F34: =-F32+F33 -> 0 | G34: =-G32+G33 -> 0 | H34: =-H32+H33 -> 0
C36: =VLOOKUP("CRE_10",ResString,Langue+1,FALSE) -> Résultat total du compte de résultats (O1 + E1) | D36: CHF | E36: =E30+E34 -> 0 | F36: =F30+F34 -> 0 | G36: =G30+G34 -> 0 | H36: =H30+H34 -> 0
C53: MenuCompteResultEchelonneCol
G54: 14.43 | H54: -1
G55: -1 | H55: 14.43
G57: 14.43 | H57: 14.43

Sheet Aperçu rés. et inv.
C2: =VLOOKUP("RA_1",ResString,Langue+1,FALSE) -> Aperçu du compte de résultats et investissements | F2: =VLOOKUP("AC_30",ResString,Langue+1,FALSE) -> Compte | G2: =VLOOKUP("AP_3",ResString,Langue+1,FALSE) -> Budget | H2: =VLOOKUP("AC_30",ResString,Langue+1,FALSE) -> Compte | I2: =VLOOKUP("AP_3",ResString,Langue+1,FALSE) -> Budget
F3: =An_1 -> 2024 | G3: =AN_2 -> 2025 | H3: =AN_2 -> 2025 | I3: =AN_3 -> 2026
C5: =VLOOKUP("RA_15",ResString,Langue+1,FALSE) -> Compte de résultats
C7: =VLOOKUP("RA_2",ResString,Langue+1,FALSE) -> Résultat avant amortissements comptables
C9: =VLOOKUP("RA_3",ResString,Langue+1,FALSE) -> Charges financières | D9: - | E9: CHF | F9: =M_3-M_33-M_35-M_364-M_365-M_366-M_389 -> 0 | G9: =M_3_B-M_33_B-M_35_B-M_364_B-M_365_B-M_366_B-M_389_B -> 0 | H9: =M_3_2-M_33_2-M_35_2-M_364_2-M_365_2-M_366_2-M_389_2 -> 0 | I9: =M_3_B_1-M_33_B_1-M_35_B_1-M_364_B_1-M_365_B_1-M_366_B_1-M_389_B_1 -> 0
C10: =VLOOKUP("RA_4",ResString,Langue+1,FALSE) -> Revenus financiers | D10: + | E10: CHF | F10: =M_4-M_45-M_489-M_4490 ->  | G10: =M_4_B-M_45_B-M_489_B-M_4490_B ->  | H10: =M_4_2-M_45_2-M_489_2-M_4490_2 ->  | I10: =M_4_B_1-M_45_B_1-M_489_B_1-M_4490_B_1 -> 
C11: =VLOOKUP("RA_5_1",ResString,Langue+1,FALSE) -> Marge d'autofinancement (négative) | D11: = | E11: CHF | F11: =IF((F10-F9)<1,ABS(F10-F9),) ->  | G11: =IF((G10-G9)<1,ABS(G10-G9),) ->  | H11: =IF((H10-H9)<1,ABS(H10-H9),) ->  | I11: =IF((I10-I9)<1,ABS(I10-I9),) -> 
C12: =VLOOKUP("RA_5_2",ResString,Langue+1,FALSE) -> Marge d'autofinancement | D12: = | E12: CHF | F12: =IF((F10-F9)>1,ABS(F10-F9),) ->  | G12: =IF((G10-G9)>1,ABS(G10-G9),) ->  | H12: =IF((H10-H9)>1,ABS(H10-H9),) ->  | I12: =IF((I10-I9)>1,ABS(I10-I9),) -> 
C14: =VLOOKUP("RA_6",ResString,Langue+1,FALSE) -> Résultat après amortissements comptables
C16: =VLOOKUP("RA_5_1",ResString,Langue+1,FALSE) -> Marge d'autofinancement (négative) | D16: - | E16: CHF | F16: =F11 ->  | G16: =G11 ->  | I16: =I11 -> 
C17: =VLOOKUP("RA_5_2",ResString,Langue+1,FALSE) -> Marge d'autofinancement | D17: + | E17: CHF | G17: =G12 ->  | I17: =I12 -> 
C18: =VLOOKUP("RA_7",ResString,Langue+1,FALSE) -> Amortissements planifiés | D18: - | E18: CHF | F18: =M_33+M_366 -> 0 | G18: =M_33_B+M_366_B -> 0 | H18: =M_33_2+M_366_2 -> 0 | I18: =M_33_B_1+M_366_B_1 -> 0
C19: =VLOOKUP("RA_22",ResString,Langue+1,FALSE) -> Attributions aux fonds et financements spéciaux | D19: - | E19: CHF | F19: =M_35 -> 0 | G19: =M_35_B -> 0 | H19: =M_35_2 -> 0 | I19: =M_35_B_1 -> 0
C20: =VLOOKUP("RA_23",ResString,Langue+1,FALSE) -> Prélèvements sur les fonds et financements spéciaux | D20: + | E20: CHF | F20: =M_45 -> 0 | G20: =M_45_B -> 0 | H20: =M_45_2 -> 0 | I20: =M_45_B_1 -> 0
C21: =VLOOKUP("RA_26",ResString,Langue+1,FALSE) -> Réévaluations des prêts du PA | D21: - | E21: CHF | F21: =M_364 -> 0 | G21: =M_364_B -> 0 | H21: =M_364_2 -> 0 | I21: =M_364_B_1 -> 0
C22: =VLOOKUP("RA_27",ResString,Langue+1,FALSE) -> Réévaluations des participations du PA | D22: - | E22: CHF | F22: =M_365 -> 0 | G22: =M_365_B -> 0 | H22: =M_365_2 -> 0 | I22: =M_365_B_1 -> 0
C23: =VLOOKUP("RA_24",ResString,Langue+1,FALSE) -> Attributions au capital propre | D23: - | E23: CHF | F23: =M_389 -> 0 | G23: =M_389_B -> 0 | H23: =M_389_2 -> 0 | I23: =M_389_B_1 -> 0
C24: =VLOOKUP("INF_57",ResString,Langue+1,FALSE) -> Réévaluations PA | D24: + | E24: CHF | F24: =M_4490 -> Remplir | G24: =M_4490_B -> Remplir | H24: =M_4490_2 -> Remplir | I24: =M_4490_B_1 -> Remplir
C25: =VLOOKUP("RA_25",ResString,Langue+1,FALSE) -> Prélèvements sur le capital propre | D25: + | E25: CHF | F25: =M_489 -> 0 | G25: =M_489_B -> 0 | H25: =M_489_2 -> 0 | I25: =M_489_B_1 -> 0
C26: =VLOOKUP("RA_10_1",ResString,Langue+1,FALSE) -> Excédent de charges | D26: = | E26: CHF | F26: =IF((-F16+F17-F18-F19+F20-F23+F25-F21-F22+F24)<0,ABS(-F16+F17-F18-F19+F20-F23+F25-F21-F22+F24),) ->  | G26: =IF((-G16+G17-G18-G19+G20-G23+G25-G21-G22+G24)<0,ABS(-G16+G17-G18-G19+G20-G23+G25-G21-G22+G24),) ->  | H26: =IF((-H16+H17-H18-H19+H20-H23+H25-H21-H22+H24)<0,ABS(-H16+H17-H18-H19+H20-H23+H25-H21-H22+H24),) ->  | I26: =IF((-I16+I17-I18-I19+I20-I23+I25-I21-I22+I24)<0,ABS(-I16+I17-I18-I19+I20-I23+I25-I21-I22+I24),) -> 
C27: =VLOOKUP("RA_10_2",ResString,Langue+1,FALSE) -> Excédent de revenus | D27: = | E27: CHF | F27: =IF((-F16+F17-F18-F19+F20-F23+F25-F21-F22+F24)>0,ABS(-F16+F17-F18-F19+F20-F23+F25-F21-F22+F24),) ->  | G27: =IF((-G16+G17-G18-G19+G20-G23+G25-G21-G22+G24)>0,ABS(-G16+G17-G18-G19+G20-G23+G25-G21-G22+G24),) ->  | H27: =IF((-H16+H17-H18-H19+H20-H23+H25-H21-H22+H24)>0,ABS(-H16+H17-H18-H19+H20-H23+H25-H21-H22+H24),) ->  | I27: =IF((-I16+I17-I18-I19+I20-I23+I25-I21-I22+I24)>0,ABS(-I16+I17-I18-I19+I20-I23+I25-I21-I22+I24),) -> 
C30: =VLOOKUP("RA_16",ResString,Langue+1,FALSE) -> Compte des investissements
C32: =VLOOKUP("RA_17",ResString,Langue+1,FALSE) -> Dépenses | D32: + | E32: CHF | F32: =M_5 -> 0 | G32: =M_5_B -> 0 | H32: =M_5_2 -> 0 | I32: =M_5_B_1 -> 0
C33: =VLOOKUP("RA_18",ResString,Langue+1,FALSE) -> Recettes | D33: - | E33: CHF | F33: =M_6 -> 0 | G33: =M_6_B -> 0 | H33: =M_6_2 -> 0 | I33: =M_6_B_1 -> 0
C34: =VLOOKUP("RA_19_1",ResString,Langue+1,FALSE) -> Investissements nets | D34: = | E34: CHF | F34: =IF((F32-F33)>0,ABS(F32-F33),) -> 0 | G34: =IF((G32-G33)>0,ABS(G32-G33),) -> 0 | H34: =IF((H32-H33)>0,ABS(H32-H33),) -> 0 | I34: =IF((I32-I33)>0,ABS(I32-I33),) -> 0
C35: =VLOOKUP("RA_19_2",ResString,Langue+1,FALSE) -> Investissements nets (négatifs) | D35: = | E35: CHF | F35: =IF((F32-F33)<0,ABS(F32-F33),) -> 0 | G35: =IF((G32-G33)<0,ABS(G32-G33),) -> 0 | H35: =IF((H32-H33)<0,ABS(H32-H33),) -> 0 | I35: =IF((I32-I33)<0,ABS(I32-I33),) -> 0
C38: =VLOOKUP("RA_20",ResString,Langue+1,FALSE) -> Financement
C40: =VLOOKUP("RA_5_1",ResString,Langue+1,FALSE) -> Marge d'autofinancement (négative) | D40: - | E40: CHF | F40: =F11 -> 
C41: =VLOOKUP("RA_5_2",ResString,Langue+1,FALSE) -> Marge d'autofinancement | D41: + | E41: CHF
C42: =VLOOKUP("RA_19_1",ResString,Langue+1,FALSE) -> Investissements nets | D42: - | E42: CHF | F42: =F34 -> 0 | G42: =G34 -> 0 | H42: 0 | I42: =I34 -> 0
C43: =VLOOKUP("RA_19_2",ResString,Langue+1,FALSE) -> Investissements nets (négatifs) | D43: + | E43: CHF | F43: 0 | G43: =G35 -> 0 | H43: 0 | I43: =I35 -> 0
C44: =VLOOKUP("RA_21_1",ResString,Langue+1,FALSE) -> Insuffisance de financement | D44: = | E44: CHF | F44: =IF((-F40+F41-F42+F43)<0,ABS(-F40+F41-F42+F43),) ->  | G44: =IF((-G40+G41-G42+G43)<0,ABS(-G40+G41-G42+G43),) ->  | H44: =IF((-H40+H41-H42+H43)<0,ABS(-H40+H41-H42+H43),) ->  | I44: =IF((-I40+I41-I42+I43)<0,ABS(-I40+I41-I42+I43),) -> 
C45: =VLOOKUP("RA_21_2",ResString,Langue+1,FALSE) -> Excédent de financement | D45: = | E45: CHF | F45: =IF((-F40+F41-F42+F43)>0,ABS(-F40+F41-F42+F43),) ->  | G45: =IF((-G40+G41-G42+G43)>0,ABS(-G40+G41-G42+G43),) ->  | H45: =IF((-H40+H41-H42+H43)>0,ABS(-H40+H41-H42+H43),) ->  | I45: =IF((-I40+I41-I42+I43)>0,ABS(-I40+I41-I42+I43),) -> 
C54: MenuAperCompteAdminCol
H55: 14.43 | I55: -1
H56: -1 | I56: 14.43
H58: 14.43 | I58: 14.43

Sheet Aperçu compte annuel
C2: =VLOOKUP("AC_1",ResString,Langue+1,FALSE) -> Aperçu du compte annuel | D2: =VLOOKUP("AC_30",ResString,Langue+1,FALSE)&" "&An_1 -> Compte 2024 | F2: =VLOOKUP("AP_3",ResString,Langue+1,FALSE)&" "&AN_2 -> Budget 2025 | H2: =VLOOKUP("AC_30",ResString,Langue+1,FALSE)&" "&AN_2 -> Compte 2025 | J2: =VLOOKUP("AP_3",ResString,Langue+1,FALSE)&" "&AN_3 -> Budget 2026
C4: =VLOOKUP("AC_2",ResString,Langue+1,FALSE) -> Compte de résultats | D4: =VLOOKUP("AC_31",ResString,Langue+1,FALSE) -> Charges | E4: =VLOOKUP("AC_32",ResString,Langue+1,FALSE) -> Revenus | F4: =VLOOKUP("AC_31",ResString,Langue+1,FALSE) -> Charges | G4: =VLOOKUP("AC_32",ResString,Langue+1,FALSE) -> Revenus | H4: =VLOOKUP("AC_31",ResString,Langue+1,FALSE) -> Charges | I4: =VLOOKUP("AC_32",ResString,Langue+1,FALSE) -> Revenus | J4: =VLOOKUP("AC_31",ResString,Langue+1,FALSE) -> Charges | K4: =VLOOKUP("AC_32",ResString,Langue+1,FALSE) -> Revenus
C6: =VLOOKUP("AC_3",ResString,Langue+1,FALSE) -> Total des charges (amortissements inclus) | D6: =M_3 -> 0 | F6: =M_3_B -> 0 | H6: =M_3_2 -> 0 | J6: =M_3_B_1 -> 0
C7: =VLOOKUP("AC_4",ResString,Langue+1,FALSE) -> Total des revenus | E7: =M_4 -> 0 | G7: =M_4_B -> 0 | I7: =M_4_2 -> 0 | K7: =M_4_B_1 -> 0
C8: =VLOOKUP("AC_5",ResString,Langue+1,FALSE) -> Excédent de revenus | D8: =IF((M_4-M_3)>0,(M_4-M_3),0) -> 0 | F8: =IF((M_4_B-M_3_B)>0,(M_4_B-M_3_B),0) -> 0 | H8: =ROUND(IF((M_4_2-M_3_2)>0,(M_4_2-M_3_2),0),2) -> 0 | J8: =IF((M_4_B_1-M_3_B_1)>0,(M_4_B_1-M_3_B_1),0) -> 0
C9: =VLOOKUP("AC_6",ResString,Langue+1,FALSE) -> Excédent de charges | E9: =IF((M_3-M_4)>0,M_3-M_4,0) -> 0 | G9: =IF((M_3_B-M_4_B)>0,M_3_B-M_4_B,0) -> 0 | I9: =ROUND(IF((M_3_2-M_4_2)>0,M_3_2-M_4_2,0),2) -> 0 | K9: =IF((M_3_B_1-M_4_B_1)>0,M_3_B_1-M_4_B_1,0) -> 0
C10: =VLOOKUP("AC_29",ResString,Langue+1,FALSE) -> Total | D10: =SUM(D6:D9) -> 0 | E10: 0 | F10: 0 | G10: 0 | H10: 0 | I10: 0 | J10: =SUM(J6:J9) -> 0 | K10: =SUM(K6:K9) -> 0
C12: =VLOOKUP("AC_7",ResString,Langue+1,FALSE) -> Compte des investissements | D12: =VLOOKUP("AC_34",ResString,Langue+1,FALSE) -> Dépenses | E12: =VLOOKUP("AC_35",ResString,Langue+1,FALSE) -> Recettes | F12: =VLOOKUP("AC_34",ResString,Langue+1,FALSE) -> Dépenses | G12: =VLOOKUP("AC_35",ResString,Langue+1,FALSE) -> Recettes | H12: =VLOOKUP("AC_34",ResString,Langue+1,FALSE) -> Dépenses | I12: =VLOOKUP("AC_35",ResString,Langue+1,FALSE) -> Recettes | J12: =VLOOKUP("AC_34",ResString,Langue+1,FALSE) -> Dépenses | K12: =VLOOKUP("AC_35",ResString,Langue+1,FALSE) -> Recettes
C14: =VLOOKUP("AC_9",ResString,Langue+1,FALSE) -> Total des dépenses reportées au bilan | D14: =M_5 -> 0 | F14: =M_5_B -> 0 | H14: =M_5_2 -> 0 | J14: =M_5_B_1 -> 0
C15: =VLOOKUP("AC_10",ResString,Langue+1,FALSE) -> Total des recettes reportées au bilan | E15: =M_6 -> 0 | G15: =M_6_B -> 0 | I15: =M_6_2 -> 0 | K15: =M_6_B_1 -> 0
C16: =VLOOKUP("AC_11",ResString,Langue+1,FALSE) -> Investissements nets 3) | E16: =M_5-M_6 -> 0 | G16: =M_5_B-M_6_B -> 0 | I16: =M_5_2-M_6_2 -> 0 | K16: =M_5_B_1-M_6_B_1 -> 0
C17: =VLOOKUP("AC_29",ResString,Langue+1,FALSE) -> Total | D17: =SUM(D14:D16) -> 0 | E17: 0 | F17: 0 | G17: 0 | H17: 0 | I17: 0 | J17: =SUM(J14:J16) -> 0 | K17: =SUM(K14:K16) -> 0
C19: =VLOOKUP("AC_12",ResString,Langue+1,FALSE) -> Financement
C21: =VLOOKUP("AC_13",ResString,Langue+1,FALSE) -> Report des investissements nets | D21: =M_5-M_6 -> 0 | F21: =M_5_B-M_6_B -> 0 | H21: =M_5_2-M_6_2 -> 0 | J21: =M_5_B_1-M_6_B_1 -> 0
C22: =VLOOKUP("AC_14",ResString,Langue+1,FALSE) -> Report des amortissements planifiés du patrimoine administratif | E22: =M_33+M_366 -> 0 | G22: =M_33_B+M_366_B -> 0 | I22: =M_33_2+M_366_2 -> 0 | K22: =M_33_B_1+M_366_B_1 -> 0
C23: =VLOOKUP("AC_36",ResString,Langue+1,FALSE) -> Report attributions aux fonds et financements spéciaux | E23: =M_35 -> 0 | G23: =M_35_B -> 0 | I23: =M_35_2 -> 0 | K23: =M_35_B_1 -> 0
C24: =VLOOKUP("AC_37",ResString,Langue+1,FALSE) -> Report prélèvements sur les fonds et financements spéciaux | D24: =M_45 -> 0 | F24: =M_45_B -> 0 | H24: =M_45_2 -> 0 | J24: =M_45_B_1 -> 0
C25: =VLOOKUP("AC_40",ResString,Langue+1,FALSE) -> Report réévaluation prêts du PA | E25: =M_364 -> 0 | G25: =M_364_B -> 0 | I25: =M_364_2 -> 0 | K25: =M_364_B_1 -> 0
C26: =VLOOKUP("AC_41",ResString,Langue+1,FALSE) -> Report réévaluation des participations du PA | E26: =M_365 -> 0 | G26: =M_365_B -> 0 | I26: =M_365_2 -> 0 | K26: =M_365_B_1 -> 0
C27: =VLOOKUP("AC_38",ResString,Langue+1,FALSE) -> Report attributions au capital propre | E27: =M_389 -> 0 | G27: =M_389_B -> 0 | I27: =M_389_2 -> 0 | K27: =M_389_B_1 -> 0
C28: =VLOOKUP("AC_42",ResString,Langue+1,FALSE) -> Report réévaluation du PA | D28: =M_4490 -> Remplir | F28: =M_4490_B -> Remplir | H28: =M_4490_2 -> Remplir | J28: =M_4490_B_1 -> Remplir
C29: =VLOOKUP("AC_39",ResString,Langue+1,FALSE) -> Report prélèvements sur le capital propre | D29: =M_489 -> 0 | F29: =M_489_B -> 0 | H29: =M_489_2 -> 0 | J29: =M_489_B_1 -> 0
C30: =VLOOKUP("AC_17",ResString,Langue+1,FALSE) -> Excédent de revenus du compte de résultats | E30: =IF(M_90>0,M_90,0) -> 0 | G30: =IF(M_90_B>0,M_90_B,0) -> 0 | I30: =IF(M_90_2>0,M_90_2,0) -> 0 | K30: =IF(M_90_B_1>0,M_90_B_1,0) -> 0
C31: =VLOOKUP("AC_18",ResString,Langue+1,FALSE) -> Excédent de charges du compte de résultats | D31: =IF(M_90<0,ABS(M_90),0) -> 0 | F31: =IF(M_90_B<0,ABS(M_90_B),0) -> 0 | H31: =IF(M_90_2<0,ABS(M_90_2),0) -> 0 | J31: =IF(M_90_B_1<0,ABS(M_90_B_1),0) -> 0
C32: =VLOOKUP("AC_19",ResString,Langue+1,FALSE) -> Excédent de financement | D32: =IF(SUM(D21:D31)<SUM(E21:E31),(SUM(E21:E32)-SUM(D21:D31)),0) -> 0 | F32: =IF(SUM(F21:F31)<SUM(G21:G31),(SUM(G21:G32)-SUM(F21:F31)),0) -> 0 | H32: =IF(SUM(H21:H31)<SUM(I21:I31),(SUM(I21:I32)-SUM(H21:H31)),0) -> 0 | J32: =IF(SUM(J21:J31)<SUM(K21:K31),(SUM(K21:K32)-SUM(J21:J31)),0) -> 0
C33: =VLOOKUP("AC_20",ResString,Langue+1,FALSE) -> Insuffisance de financement | E33: =IF(SUM(D21:D31)>SUM(E21:E31),(SUM(D21:D31)-SUM(E21:E31)),0) -> 0 | G33: =IF(SUM(F21:F31)>SUM(G21:G31),(SUM(F21:F31)-SUM(G21:G31)),0) -> 0 | I33: =IF(SUM(H21:H31)>SUM(I21:I31),(SUM(H21:H31)-SUM(I21:I31)),0) -> 0 | K33: =IF(SUM(J21:J31)>SUM(K21:K31),(SUM(J21:J31)-SUM(K21:K31)),0) -> 0
C34: =VLOOKUP("AC_29",ResString,Langue+1,FALSE) -> Total | D34: =SUM(D21:D33) -> 0 | E34: 0 | F34: 0 | G34: 0 | H34: 0 | I34: 0 | J34: 0 | K34: 0
C36: =VLOOKUP("AC_21",ResString,Langue+1,FALSE) -> Modification du capital
C38: =VLOOKUP("AC_22",ResString,Langue+1,FALSE) -> Report de l'excédent de financement | E38: =D32 -> 0 | G38: =F32 -> 0 | I38: =H32 -> 0 | K38: =J32 -> 0
C39: =VLOOKUP("AC_23",ResString,Langue+1,FALSE) -> Report de l'insuffisance de financement | D39: =E33 -> 0 | F39: =G33 -> 0 | H39: =I33 -> 0 | J39: =K33 -> 0
C40: =VLOOKUP("AC_24",ResString,Langue+1,FALSE) -> Report des dépenses d'investissement au bilan | E40: =D14 -> 0 | G40: =F14 -> 0 | I40: =H14 -> 0 | K40: =J14 -> 0
C41: =VLOOKUP("AC_25",ResString,Langue+1,FALSE) -> Report des recettes d'investissement au bilan | D41: =E15 -> 0 | F41: =G15 -> 0 | H41: =I15 -> 0 | J41: =K15 -> 0
C42: =VLOOKUP("AC_14",ResString,Langue+1,FALSE) -> Report des amortissements planifiés du patrimoine administratif | D42: =E22 -> 0 | F42: =G22 -> 0 | H42: =I22 -> 0 | J42: =K22 -> 0
C43: =VLOOKUP("AC_40",ResString,Langue+1,FALSE) -> Report réévaluation prêts du PA | D43: =E25 -> 0 | F43: =G25 -> 0 | H43: =I25 -> 0 | J43: =K25 -> 0
C44: =VLOOKUP("AC_41",ResString,Langue+1,FALSE) -> Report réévaluation des participations du PA | D44: =E26 -> 0 | F44: =G26 -> 0 | H44: =I26 -> 0 | J44: =K26 -> 0
C45: =VLOOKUP("AC_43",ResString,Langue+1,FALSE) -> Report attributions aux fonds et financements spéciaux capitaux tiers | D45: =M_350 -> 0 | F45: =M_350_B -> 0 | H45: =M_350_2 -> 0 | J45: =M_350_B_1 -> 0
C46: =VLOOKUP("AC_42",ResString,Langue+1,FALSE) -> Report réévaluation du PA | E46: =M_4490 -> Remplir | G46: =M_4490_B -> Remplir | I46: =M_4490_2 -> Remplir | K46: =M_4490_B_1 -> Remplir
C47: =VLOOKUP("AC_44",ResString,Langue+1,FALSE) -> Report prélèvements sur les fonds et financements spéciaux capitaux tiers | E47: =M_450 -> 0 | G47: =M_450_B -> 0 | I47: =M_450_2 -> 0 | K47: =M_450_B_1 -> 0
C48: =VLOOKUP("AC_27",ResString,Langue+1,FALSE) -> Augmentation du capital propre | D48: =IF(SUM(D38:D47)<SUM(E38:E47),(SUM(E38:E47)-SUM(D38:D47)),0) -> 0 | F48: =IF(SUM(F38:F47)<SUM(G38:G47),(SUM(G38:G47)-SUM(F38:F47)),0) -> 0 | H48: =IF(SUM(H38:H47)<SUM(I38:I47),(SUM(I38:I47)-SUM(H38:H47)),0) -> 0 | J48: =IF(SUM(J38:J47)<SUM(K38:K47),(SUM(K38:K47)-SUM(J38:J47)),0) -> 0
C49: =VLOOKUP("AC_28",ResString,Langue+1,FALSE) -> Diminution du capital propre | E49: =IF(SUM(D38:D47)>SUM(E38:E47),(SUM(D38:D47)-SUM(E38:E47)),0) -> 0 | G49: =IF(SUM(F38:F47)>SUM(G38:G47),(SUM(F38:F47)-SUM(G38:G47)),0) -> 0 | I49: =IF(SUM(H38:H47)>SUM(I38:I47),(SUM(H38:H47)-SUM(I38:I47)),0) -> 0 | K49: =IF(SUM(J38:J47)>SUM(K38:K47),(SUM(J38:J47)-SUM(K38:K47)),0) -> 0
C50: =VLOOKUP("AC_29",ResString,Langue+1,FALSE) -> Total | D50: =SUM(D39:D49) -> 0 | E50: =SUM(E38:E49) -> 0 | F50: =SUM(F39:F49) -> 0 | G50: =SUM(G38:G49) -> 0 | H50: =SUM(H39:H49) -> 0 | I50: =SUM(I38:I49) -> 0 | J50: =SUM(J39:J49) -> 0 | K50: =SUM(K38:K49) -> 0
C52: =VLOOKUP("AC_33",ResString,Langue+1,FALSE) -> 3) Remarque: si négatif = excédent de recettes du compte des investissements
C59: MenuAperCompteAnnuelCol | H59: Co | J59: Bu
H60: 14.43 | I60: 14.43 | J60: -1 | K60: -1
H61: -1 | I61: -1 | J61: 14.43 | K61: 14.13
H63: 14.43 | I63: 14.43 | J63: 14.43 | K63: 14.43

Sheet Tableau de flux de trésorerie (hidden)
A2: Présentation du résultat annuel | D2: =VLOOKUP("FT_1",ResString,Langue+1,FALSE) -> Tableau de flux de trésorerie | I2: =VLOOKUP("FT_2",ResString,Langue+1,FALSE) -> Flux
E3: =VLOOKUP("FT_3",ResString,Langue+1,FALSE) -> Diminution des actifs et augmentation des passif | F3: =VLOOKUP("FT_4",ResString,Langue+1,FALSE) -> provenance des fonds (+)
A4: 1 | E4: =VLOOKUP("FT_5",ResString,Langue+1,FALSE) -> Augmentation des actifs et diminution des passifs | F4: =VLOOKUP("FT_6",ResString,Langue+1,FALSE) -> emploi de fonds (-)
D6: =VLOOKUP("FT_7",ResString,Langue+1,FALSE) -> Résultat ordinaire du compte de résultats | I6: =M_CREO_2 -> 0
D7: =VLOOKUP("FT_8",ResString,Langue+1,FALSE) -> Résultat extraordinaire du compte de résultats | I7: =M_CREE_2 -> 0
D8: =VLOOKUP("RA_7",ResString,Langue+1,FALSE) -> Amortissements planifiés | H8: + | I8: =M_33_2+M_366_2 -> 0
D9: =VLOOKUP("RA_22",ResString,Langue+1,FALSE) -> Attributions aux fonds et financements spéciaux | H9: + | I9: =M_35_2 -> 0
D10: =VLOOKUP("RA_23",ResString,Langue+1,FALSE) -> Prélèvements sur les fonds et financements spéciaux | H10: - | I10: =M_45_2 -> 0
D11: =VLOOKUP("RA_26",ResString,Langue+1,FALSE) -> Réévaluations des prêts du PA | H11: + | I11: =M_364_2 -> 0
D12: =VLOOKUP("RA_27",ResString,Langue+1,FALSE) -> Réévaluations des participations du PA | H12: + | I12: =M_365_2 -> 0
D13: =VLOOKUP("RA_24",ResString,Langue+1,FALSE) -> Attributions au capital propre | H13: + | I13: =M_389_2 -> 0
D14: =VLOOKUP("RA_25",ResString,Langue+1,FALSE) -> Prélèvements sur le capital propre | H14: - | I14: =M_489_2 -> 0
A15: 10 | D15: =VLOOKUP("FT_9",ResString,Langue+1,FALSE) -> Flux de trésorerie provenant de l'activité opérationnnelle et extraordinaire | I15: =I6+I7+I8+I9-I10+I11+I12+I13-I14 -> 0
A16: 100
E17: =VLOOKUP("FT_10",ResString,Langue+1,FALSE) -> Dépenses d'investissements
D18: 50 | E18: =VLOOKUP(D18,ResString,Langue+1,FALSE) -> Immobilisations corporelles | H18: - | I18: =M_50_2 -> 0
D19: 51 | E19: Investissements pour le compte de tiers | H19: - | I19: =M_51_2 -> 0
D20: 52 | E20: Immobilisations incorporelles | H20: - | I20: =M_52_2 -> 0
D21: 54 | E21: Prêts | H21: - | I21: =M_54_2 -> 0
D22: 55 | E22: Participations et capital social | H22: - | I22: =M_55_2 -> 0
D23: 56 | E23: Propres subventions d'investissement | H23: - | I23: =M_56_2 -> 0
D24: 57 | E24: Subventions d'investissement redistribuées | H24: - | I24: =M_57_2 -> 0
E26: =VLOOKUP("FT_11",ResString,Langue+1,FALSE) -> Recettes d'investissements
D27: 60 | E27: =VLOOKUP(D27,ResString,Langue+1,FALSE) -> Transferts au patrimoine financier | H27: + | I27: =M_60_2 -> 0
D28: 61 | E28: Remboursements | H28: + | I28: =M_61_2 -> 0
D29: 62 | E29: Transferts d'immobilisations incorporelles | H29: + | I29: =M_62_2 -> 0
D30: 63 | E30: Subventions d'investissement acquises | H30: + | I30: =M_63_2 -> 0
D31: 64 | E31: Remboursement de prêts | H31: + | I31: =M_64_2 -> 0
D32: 65 | E32: Transferts de participations | H32: + | I32: =M_65_2 -> 0
D33: 66 | E33: Remboursement de subventions d'investissement propres | H33: + | I33: =M_66_2 -> 0
D34: 67 | E34: Subventions d'investissement à redistribuer | H34: + | I34: =M_67_2 -> 0
D36: =VLOOKUP("FT_12",ResString,Langue+1,FALSE) -> Flux de trésorerie provenant de l'activité d'investissemement | I36: =-SUM(I18:I24)+SUM(I27:I34) -> 0
F37: =VLOOKUP("BF_2",ResString,Langue+1,FALSE) & " 31.12."&An_1 -> Etat 31.12.2024 | G37: =VLOOKUP("BF_2",ResString,Langue+1,FALSE) & " 31.12."&AN_2 -> Etat 31.12.2025
D38: 100 | E38: =VLOOKUP(D38,ResString,Langue+1,FALSE) -> Disponibilités et placements à court terme | F38: =M_100 -> 0 | G38: =M_100_2 -> 0
D39: 101 | E39: =VLOOKUP(D39,ResString,Langue+1,FALSE) -> Créances | F39: =M_101 -> 0 | G39: =M_101_2 -> 0 | I39: =F39-G39 -> 0
D40: 102 | E40: Placements financiers à court terme | F40: =M_102 -> 0 | G40: =M_102_2 -> 0 | I40: 0
A41: 239 | D41: 104 | E41: Actifs de régularisation | F41: =M_104 -> 0 | G41: =M_104_2 -> 0 | I41: 0
D42: 106 | E42: Marchandises, fournitures et travaux en cours | F42: =M_106 -> 0 | G42: =M_106_2 -> 0 | I42: 0
D43: 107 | E43: Placements financiers | F43: =M_107 -> 0 | G43: =M_107_2 -> 0 | I43: 0
D44: 108 | E44: Immobilisations corporelles du patrimoine financier | F44: =M_108 -> 0 | G44: =M_108_2 -> 0 | I44: 0
D45: 109 | E45: Créances envers les financements spéciaux et fonds des capitaux de tiers | F45: =M_109 -> 0 | G45: =M_109_2 -> 0
A46: 203 | D46: 200 | E46: Engagements courants | F46: =M_200 -> 0 | G46: =M_200_2 -> 0 | I46: =G46-F46 -> 0
A47: 204 | D47: 201 | E47: Engagements financiers à court terme | F47: =M_201 -> 0 | G47: =M_201_2 -> 0 | I47: =G47-F47 -> 0
A48: § | D48: 204 | E48: Passifs de régularisation | F48: =M_204 -> 0 | G48: =M_204_2 -> 0 | I48: 0
D49: 205 | E49: Provisions à court terme | F49: =M_205 -> 0 | G49: =M_205_2 -> 0 | I49: 0
D50: 206 | E50: Engagements financiers à long terme | F50: =M_206 -> 0 | G50: =M_206_2 -> 0 | I50: 0
A51: 22 | D51: 208 | E51: Provisions à long terme | F51: =M_208 -> 0 | G51: =M_208_2 -> 0 | I51: 0
A52: 228 | D52: 209 | E52: Engagements envers les financements spéciaux et fonds classés dans les capitaux de tiers | F52: =M_209 -> 0 | G52: =M_209_2 -> 0
D53: =VLOOKUP("FT_13",ResString,Langue+1,FALSE) -> Flux de trésorerie provenant de l'activité de financement | I53: =SUM(I38:I52) -> 0
D55: 29 | E55: =VLOOKUP(D55,ResString,Langue+1,FALSE) -> Capital propre | F55: =M_29 -> 0 | G55: =M_29_2 -> 0
H57: =VLOOKUP("FT_14",ResString,Langue+1,FALSE) -> Variation des liquidités et placements à court terme | I57: =I15+I36+I53 -> 0
D59: 100 | E59: =VLOOKUP(D59,ResString,Langue+1,FALSE) -> Disponibilités et placements à court terme | F59: =M_100 -> 0 | G59: =M_100_2 -> 0 | I59: =G59-F59 -> 0

Sheet Aperçu bilan (hidden)
A2: Présentation du résultat annuel | D2: =VLOOKUP("BF_1",ResString,Langue+1,FALSE) -> Aperçu du bilan | F2: =VLOOKUP("BF_2",ResString,Langue+1,FALSE) & " 31.12."&An_1 -> Etat 31.12.2024 | G2: =VLOOKUP("BF_2",ResString,Langue+1,FALSE) & " 31.12."&AN_2 -> Etat 31.12.2025 | I2: =VLOOKUP("BF_3",ResString,Langue+1,FALSE) -> Provenance des fonds | J2: =VLOOKUP("BF_4",ResString,Langue+1,FALSE) -> Emploi de fonds
I3: =VLOOKUP("BF_5",ResString,Langue+1,FALSE) -> (diminution des actifs, augmentation des passifs) | J3: =VLOOKUP("BF_6",ResString,Langue+1,FALSE) -> (augmentation des actifs, diminution des passifs)
A4: 1 | D4: 1 | E4: =VLOOKUP(D4,ResString,Langue+1,FALSE) -> Actif | F4: =M_1 -> 0 | G4: =M_1_2 -> 0
A5: 10 | E5: =VLOOKUP("GR_1",ResString,Langue+1,FALSE) -> Patrimoine financier | F5: =M_PatFin -> 0 | G5: =M_PatFin_2 -> 0
A6: 100 | D6: 100 | E6: =VLOOKUP(D6,ResString,Langue+1,FALSE) -> Disponibilités et placements à court terme | F6: =M_100 -> 0 | G6: =M_100_2 -> 0 | I6: =IF(F6>G6,F6-G6,0) -> 0 | J6: =IF(F6<G6,G6-F6,0) -> 0
A7: 101 | D7: 101 | E7: Créances | F7: =M_101 -> 0 | G7: =M_101_2 -> 0 | I7: 0 | J7: 0
A8: 102 | D8: 102 | E8: Placements financiers à court terme | F8: =M_102 -> 0 | G8: =M_102_2 -> 0 | I8: 0 | J8: 0
A9: 103 | D9: 104 | E9: Actifs de régularisation | F9: =M_104 -> 0 | G9: =M_104_2 -> 0 | I9: 0 | J9: 0
D10: 106 | E10: Marchandises, fournitures et travaux en cours | F10: =M_106 -> 0 | G10: =M_106_2 -> 0 | I10: 0 | J10: 0
D11: 107 | E11: Placements financiers | F11: =M_107 -> 0 | G11: =M_107_2 -> 0 | I11: 0 | J11: 0
D12: 108 | E12: Immobilisations corporelles du patrimoine financier | F12: =M_108 -> 0 | G12: =M_108_2 -> 0 | I12: 0 | J12: 0
D13: 109 | E13: Créances envers les financements spéciaux et fonds des capitaux de tiers | F13: =M_109 -> 0 | G13: =M_109_2 -> 0
A15: 11 | E15: =VLOOKUP("GR_2",ResString,Langue+1,FALSE) -> Patrimoine administratif | F15: =M_PatAdm -> 0 | G15: =M_PatAdm_2 -> 0
A16: 114 | D16: 140 | E16: =VLOOKUP(D16,ResString,Langue+1,FALSE) -> Immobilisations corporelles du patrimoine administratif | F16: =M_140 -> 0 | G16: =M_140_2 -> 0
A17: 115 | D17: 142 | E17: =VLOOKUP(D17,ResString,Langue+1,FALSE) -> Immobilisations incorporelles | F17: =M_142 -> 0 | G17: =M_142_2 -> 0
A18: 116 | D18: 144 | E18: =VLOOKUP(D18,ResString,Langue+1,FALSE) -> Prêts | F18: =M_144 -> 0 | G18: =M_144X_2 -> 0
A19: 117 | D19: 145 | E19: =VLOOKUP(D19,ResString,Langue+1,FALSE) -> Participation capital social | F19: =M_145 -> 0 | G19: =M_145X_2 -> 0
D20: 146 | E20: =VLOOKUP(D20,ResString,Langue+1,FALSE) -> Subventions d'investissement | F20: =M_146 -> 0 | G20: =M_146X_2 -> 0
A22: 2 | D22: 2 | E22: =VLOOKUP(D22,ResString,Langue+1,FALSE) -> Passif | F22: =M_2 -> 0 | G22: =M_2_2 -> 0
A23: 20 | E23: =VLOOKUP("GR_5",ResString,Langue+1,FALSE) -> Capitaux de tiers | F23: =M_Eng -> 0 | G23: =M_Eng_2 -> 0
A24: 200 | D24: 200 | E24: =VLOOKUP(D24,ResString,Langue+1,FALSE) -> Engagements courants | F24: =M_200 -> 0 | G24: =M_200_2 -> 0 | I24: =IF(G24>F24,G24-F24,0) -> 0 | J24: =IF(F24>G24,F24-G24,0) -> 0
A25: 201 | D25: 201 | E25: Engagements financiers à court terme | F25: =M_201 -> 0 | G25: =M_201_2 -> 0 | I25: 0 | J25: 0
A26: 202 | D26: 204 | E26: Passifs de régularisation | F26: =M_204 -> 0 | G26: =M_204_2 -> 0 | I26: 0 | J26: 0
A27: 203 | D27: 205 | E27: Provisions à court terme | F27: =M_205 -> 0 | G27: =M_205_2 -> 0 | I27: 0 | J27: 0
A28: 204 | D28: 206 | E28: Engagements financiers à long terme | F28: =M_206 -> 0 | G28: =M_206_2 -> 0 | I28: 0 | J28: 0
A29: § | D29: 208 | E29: Provisions à long terme | F29: =M_208 -> 0 | G29: =M_208_2 -> 0 | I29: 0 | J29: 0
D30: 209 | E30: Engagements envers les financements spéciaux et fonds classés dans les capitaux de tiers | F30: =M_209 -> 0 | G30: =M_209_2 -> 0
A33: 23 | E33: =VLOOKUP("GR_6",ResString,Langue+1,FALSE) -> Capital propre | F33: =M_29 -> 0 | G33: =M_29_2 -> 0
A34: 239 | D34: 29 | E34: =VLOOKUP(D34,ResString,Langue+1,FALSE) -> Capital propre | F34: =M_29 -> 0 | G34: =M_29_2 -> 0
H36: =VLOOKUP("BF_7",ResString,Langue+1,FALSE) -> Excédent de financement du compte de résultats | I36: =Inv_Exc -> 0
H37: =VLOOKUP("BF_8",ResString,Langue+1,FALSE) -> Insuffisance de financement du compte de résultats | J37: =Inv_Dec -> 0
I38: =SUM(I5:I37) -> 0 | J38: =SUM(J5:J37) -> 0

Sheet CR selon les tâches
D2: =VLOOKUP("AP_4",ResString,Langue+1,FALSE) -> Compte de résultats selon les tâches | E2: =VLOOKUP("AC_30",ResString,Langue+1,FALSE)&" "&An_1 -> Compte 2024 | G2: =VLOOKUP("AP_3",ResString,Langue+1,FALSE)&" "&AN_2 -> Budget 2025 | I2: =VLOOKUP("AC_30",ResString,Langue+1,FALSE)&" "&AN_2 -> Compte 2025 | K2: =VLOOKUP("AP_3",ResString,Langue+1,FALSE)&" "&AN_3 -> Budget 2026
E4: =VLOOKUP("AC_31",ResString,Langue+1,FALSE) -> Charges | F4: =VLOOKUP("AC_32",ResString,Langue+1,FALSE) -> Revenus | G4: =VLOOKUP("AC_31",ResString,Langue+1,FALSE) -> Charges | H4: =VLOOKUP("AC_32",ResString,Langue+1,FALSE) -> Revenus | I4: =VLOOKUP("AC_31",ResString,Langue+1,FALSE) -> Charges | J4: =VLOOKUP("AC_32",ResString,Langue+1,FALSE) -> Revenus | K4: =VLOOKUP("AC_31",ResString,Langue+1,FALSE) -> Charges | L4: =VLOOKUP("AC_32",ResString,Langue+1,FALSE) -> Revenus
C6: 0 | D6: =VLOOKUP("CF_0",ResString,Langue+1,FALSE) -> Administration générale | E6: =CF0_C -> 0 | F6: =CF0_R -> 0 | G6: =CF0_C_B -> 0 | H6: =CF0_R_B -> 0 | I6: =CF0_C_2 -> 0 | J6: =CF0_R_2 -> 0 | K6: =CF0_C_B_1 -> 0 | L6: =CF0_R_B_1 -> 0
C7: 1 | D7: =VLOOKUP("CF_1",ResString,Langue+1,FALSE) -> Ordre et sécurité publics, défense | E7: =CF1_C -> 0 | F7: =CF1_R -> 0 | G7: =CF1_C_B -> 0 | H7: =CF1_R_B -> 0 | I7: =CF1_C_2 -> 0 | J7: =CF1_R_2 -> 0 | K7: =CF1_C_B_1 -> 0 | L7: =CF1_R_B_1 -> 0
C8: 2 | D8: =VLOOKUP("CF_2",ResString,Langue+1,FALSE) -> Formation | E8: =CF2_C -> 0 | F8: =CF2_R -> 0 | G8: =CF2_C_B -> 0 | H8: =CF2_R_B -> 0 | I8: =CF2_C_2 -> 0 | J8: =CF2_R_2 -> 0 | K8: =CF2_C_B_1 -> 0 | L8: =CF2_R_B_1 -> 0
C9: 3 | D9: =VLOOKUP("CF_3",ResString,Langue+1,FALSE) -> Culture, sports et loisirs, église | E9: =CF3_C -> 0 | F9: =CF3_R -> 0 | G9: =CF3_C_B -> 0 | H9: =CF3_R_B -> 0 | I9: =CF3_C_2 -> 0 | J9: =CF3_R_2 -> 0 | K9: =CF3_C_B_1 -> 0 | L9: =CF3_R_B_1 -> 0
C10: 4 | D10: =VLOOKUP("CF_4",ResString,Langue+1,FALSE) -> Santé | E10: =CF4_C -> 0 | F10: =CF4_R -> 0 | G10: =CF4_C_B -> 0 | H10: =CF4_R_B -> 0 | I10: =CF4_C_2 -> 0 | J10: =CF4_R_2 -> 0 | K10: =CF4_C_B_1 -> 0 | L10: =CF4_R_B_1 -> 0
C11: 5 | D11: =VLOOKUP("CF_5",ResString,Langue+1,FALSE) -> Prévoyance sociale | E11: =CF5_C -> 0 | F11: =CF5_R -> 0 | G11: =CF5_C_B -> 0 | H11: =CF5_R_B -> 0 | I11: =CF5_C_2 -> 0 | J11: =CF5_R_2 -> 0 | K11: =CF5_C_B_1 -> 0 | L11: =CF5_R_B_1 -> 0
C12: 6 | D12: =VLOOKUP("CF_6",ResString,Langue+1,FALSE) -> Trafic et télécommunications | E12: =CF6_C -> 0 | F12: =CF6_R -> 0 | G12: =CF6_C_B -> 0 | H12: =CF6_R_B -> 0 | I12: =CF6_C_2 -> 0 | J12: =CF6_R_2 -> 0 | K12: =CF6_C_B_1 -> 0 | L12: =CF6_R_B_1 -> 0
C13: 7 | D13: =VLOOKUP("CF_7",ResString,Langue+1,FALSE) -> Protection de l'environnement et aménagement du territoire | E13: =CF7_C -> 0 | F13: =CF7_R -> 0 | G13: =CF7_C_B -> 0 | H13: =CF7_R_B -> 0 | I13: =CF7_C_2 -> 0 | J13: =CF7_R_2 -> 0 | K13: =CF7_C_B_1 -> 0 | L13: =CF7_R_B_1 -> 0
C14: 8 | D14: =VLOOKUP("CF_8",ResString,Langue+1,FALSE) -> Economie publique | E14: =CF8_C -> 0 | F14: =CF8_R -> 0 | G14: =CF8_C_B -> 0 | H14: =CF8_R_B -> 0 | I14: =CF8_C_2 -> 0 | J14: =CF8_R_2 -> 0 | K14: =CF8_C_B_1 -> 0 | L14: =CF8_R_B_1 -> 0
C15: 9 | D15: =VLOOKUP("CF_9",ResString,Langue+1,FALSE) -> Finances et impôts | E15: =CF9_C -> 0 | F15: =CF9_R -> 0 | G15: =CF9_C_B -> 0 | H15: =CF9_R_B -> 0 | I15: =CF9_C_2 -> 0 | J15: =CF9_R_2 -> 0 | K15: =CF9_C_B_1 -> 0 | L15: =CF9_R_B_1 -> 0
D16: =VLOOKUP("AP_5",ResString,Langue+1,FALSE) -> Total des charges et des revenus | E16: =CFT_C -> 0 | F16: =CFT_R -> 0 | G16: =CFT_C_B -> 0 | H16: =CFT_R_B -> 0 | I16: =CFT_C_2 -> 0 | J16: =CFT_R_2 -> 0 | K16: =CFT_C_B_1 -> 0 | L16: =CFT_R_B_1 -> 0
D18: =VLOOKUP("AP_6",ResString,Langue+1,FALSE) -> Excédent de charges | F18: =IF(CFT_C-CFT_R>0,CFT_C-CFT_R,0) -> 0 | H18: =IF(CFT_C_B-CFT_R_B>0,CFT_C_B-CFT_R_B,0) -> 0 | J18: =IF(CFT_C_2-CFT_R_2>0,CFT_C_2-CFT_R_2,0) -> 0 | L18: =IF(CFT_C_B_1-CFT_R_B_1>0,CFT_C_B_1-CFT_R_B_1,0) -> 0
D19: =VLOOKUP("AP_7",ResString,Langue+1,FALSE) -> Excédent de revenus | E19: =IF(CFT_R-CFT_C>0,CFT_R-CFT_C,0) -> 0 | G19: =IF(CFT_R_B-CFT_C_B>0,CFT_R_B-CFT_C_B,0) -> 0 | I19: =IF(CFT_R_2-CFT_C_2>0,CFT_R_2-CFT_C_2,0) -> 0 | K19: =IF(CFT_R_B_1-CFT_C_B_1>0,CFT_R_B_1-CFT_C_B_1,0) -> 0
D49: MenuCFTaches
I50: 14 | J50: 14 | K50: -1 | L50: -1
I51: -1 | J51: -1 | K51: 14 | L51: 14
I53: 14 | J53: 14 | K53: 14 | L53: 14

Sheet CR selon les natures
D2: =VLOOKUP("AP_8",ResString,Langue+1,FALSE) -> Compte de résultats selon les natures | E2: =VLOOKUP("AC_30",ResString,Langue+1,FALSE)&" "&An_1 -> Compte 2024 | G2: =VLOOKUP("AP_3",ResString,Langue+1,FALSE)&" "&AN_2 -> Budget 2025 | I2: =VLOOKUP("AC_30",ResString,Langue+1,FALSE)&" "&AN_2 -> Compte 2025 | K2: =VLOOKUP("AP_3",ResString,Langue+1,FALSE)&" "&AN_3 -> Budget 2026
E4: =VLOOKUP("AC_31",ResString,Langue+1,FALSE) -> Charges | F4: =VLOOKUP("AC_32",ResString,Langue+1,FALSE) -> Revenus | G4: =VLOOKUP("AC_31",ResString,Langue+1,FALSE) -> Charges | H4: =VLOOKUP("AC_32",ResString,Langue+1,FALSE) -> Revenus | I4: =VLOOKUP("AC_31",ResString,Langue+1,FALSE) -> Charges | J4: =VLOOKUP("AC_32",ResString,Langue+1,FALSE) -> Revenus | K4: =VLOOKUP("AC_31",ResString,Langue+1,FALSE) -> Charges | L4: =VLOOKUP("AC_32",ResString,Langue+1,FALSE) -> Revenus
C6: 30 | D6: =VLOOKUP(30,ResString,Langue+1,FALSE) -> Charges de personnel | E6: =M_30 -> 0 | G6: =M_30_B -> 0 | I6: =M_30_2 -> 0 | K6: =M_30_B_1 -> 0
C7: 31 | D7: =VLOOKUP(31,ResString,Langue+1,FALSE) -> Charges de biens et services et autres charges d'exploitation | E7: =M_31 -> 0 | G7: =M_31_B -> 0 | I7: =M_31_2 -> 0 | K7: =M_31_B_1 -> 0
C8: 33 | D8: =VLOOKUP(33,ResString,Langue+1,FALSE) -> Amortissements du patrimoine administratif | E8: =M_33 -> 0 | G8: =M_33_B -> 0 | I8: =M_33_2 -> 0 | K8: =M_33_B_1 -> 0
C9: 34 | D9: =VLOOKUP(34,ResString,Langue+1,FALSE) -> Charges financières | E9: =M_34 -> 0 | G9: =M_34_B -> 0 | I9: =M_34_2 -> 0 | K9: =M_34_B_1 -> 0
C10: 35 | D10: =VLOOKUP(35,ResString,Langue+1,FALSE) -> Attributions aux fonds et financements spéciaux | E10: =M_35 -> 0 | G10: =M_35_B -> 0 | I10: =M_35_2 -> 0 | K10: =M_35_B_1 -> 0
C11: 36 | D11: =VLOOKUP(36,ResString,Langue+1,FALSE) -> Charges de transferts | E11: =M_36 -> 0 | G11: =M_36_B -> 0 | I11: =M_36_2 -> 0 | K11: =M_36_B_1 -> 0
C12: 37 | D12: =VLOOKUP(37,ResString,Langue+1,FALSE) -> Subventions redistribuées | E12: =M_37 -> 0 | G12: =M_37_B -> 0 | I12: =M_37_2 -> 0 | K12: =M_37_B_1 -> 0
C13: 38 | D13: =VLOOKUP(38,ResString,Langue+1,FALSE) -> Charges extraordinaires | E13: =M_38+M_389 -> 0 | G13: =M_38_B+M_389_B -> 0 | I13: =M_38_2+M_389_2 -> 0 | K13: =M_38_B_1+M_389_B_1 -> 0
C14: 39 | D14: =VLOOKUP(39,ResString,Langue+1,FALSE) -> Imputations internes | E14: =M_39 -> 0 | G14: =M_39_B -> 0 | I14: =M_39_2 -> 0 | K14: =M_39_B_1 -> 0
C15: 40 | D15: =VLOOKUP(40,ResString,Langue+1,FALSE) -> Revenus fiscaux | F15: =M_40 -> 0 | H15: =M_40_B -> 0 | J15: =M_40_2 -> 0 | L15: =M_40_B_1 -> 0
C16: 41 | D16: =VLOOKUP(41,ResString,Langue+1,FALSE) -> Patentes et concessions | F16: =M_41 -> 0 | H16: =M_41_B -> 0 | J16: =M_41_2 -> 0 | L16: =M_41_B_1 -> 0
C17: 42 | D17: =VLOOKUP(42,ResString,Langue+1,FALSE) -> Taxes | F17: =M_42 -> 0 | H17: =M_42_B -> 0 | J17: =M_42_2 -> 0 | L17: =M_42_B_1 -> 0
C18: 43 | D18: =VLOOKUP(43,ResString,Langue+1,FALSE) -> Revenus divers | F18: =M_43 -> 0 | H18: =M_43_B -> 0 | J18: =M_43_2 -> 0 | L18: =M_43_B_1 -> 0
C19: 44 | D19: =VLOOKUP(44,ResString,Langue+1,FALSE) -> Revenus financiers | F19: =M_44 -> 0 | H19: =M_44_B -> 0 | J19: =M_44_2 -> 0 | L19: =M_44_B_1 -> 0
C20: 45 | D20: =VLOOKUP(45,ResString,Langue+1,FALSE) -> Prélèvements sur les fonds et financements spéciaux | F20: =M_45 -> 0 | H20: =M_45_B -> 0 | J20: =M_45_2 -> 0 | L20: =M_45_B_1 -> 0
C21: 46 | D21: =VLOOKUP(46,ResString,Langue+1,FALSE) -> Revenus de transferts | F21: =M_46 -> 0 | H21: =M_46_B -> 0 | J21: =M_46_2 -> 0 | L21: =M_46_B_1 -> 0
C22: 47 | D22: =VLOOKUP(47,ResString,Langue+1,FALSE) -> Subventions à redistribuer | F22: =M_47 -> 0 | H22: =M_47_B -> 0 | J22: =M_47_2 -> 0 | L22: =M_47_B_1 -> 0
C23: 48 | D23: =VLOOKUP(48,ResString,Langue+1,FALSE) -> Revenus extraordinaires | F23: =M_48+M_489 -> 0 | H23: =M_48_B+M_489_B -> 0 | J23: =M_48_2+M_489_2 -> 0 | L23: =M_48_B_1+M_489_B_1 -> 0
C24: 49 | D24: =VLOOKUP(49,ResString,Langue+1,FALSE) -> Imputations internes | F24: =M_49 -> 0 | H24: =M_49_B -> 0 | J24: =M_49_2 -> 0 | L24: =M_49_B_1 -> 0
D25: =VLOOKUP("AP_5",ResString,Langue+1,FALSE) -> Total des charges et des revenus | E25: =M_3 -> 0 | F25: =M_4 -> 0 | G25: =M_3_B -> 0 | H25: =M_4_B -> 0 | I25: =M_3_2 -> 0 | J25: =M_4_2 -> 0 | K25: =M_3_B_1 -> 0 | L25: =M_4_B_1 -> 0
D27: =VLOOKUP("AP_6",ResString,Langue+1,FALSE) -> Excédent de charges | F27: =IF(M_3-M_4>0,M_3-M_4,0) -> 0 | H27: =IF(M_3_B-M_4_B>0,M_3_B-M_4_B,0) -> 0 | J27: =IF(M_3_2-M_4_2>0,M_3_2-M_4_2,0) -> 0 | L27: =IF(M_3_B_1-M_4_B_1>0,M_3_B_1-M_4_B_1,0) -> 0
D28: =VLOOKUP("AP_7",ResString,Langue+1,FALSE) -> Excédent de revenus | E28: =IF(M_4-M_3>0,M_4-M_3,0) -> 0 | G28: =IF(M_4_B-M_3_B>0,M_4_B-M_3_B,0) -> 0 | I28: =IF(M_4_2-M_3_2>0,M_4_2-M_3_2,0) -> 0 | K28: =IF(M_4_B_1-M_3_B_1>0,M_4_B_1-M_3_B_1,0) -> 0
D49: MenuCFNatures
I50: 14 | J50: 14 | K50: -1 | L50: -1
I51: -1 | J51: -1 | K51: 14 | L51: 14
I53: 14 | J53: 14 | K53: 14 | L53: 14

Sheet CI selon les tâches
D2: =VLOOKUP("CI_T",ResString,Langue+1,FALSE) -> Compte des investissements selon les tâches | E2: =VLOOKUP("AC_30",ResString,Langue+1,FALSE)&" "&An_1 -> Compte 2024 | G2: =VLOOKUP("AP_3",ResString,Langue+1,FALSE)&" "&AN_2 -> Budget 2025 | I2: =VLOOKUP("AC_30",ResString,Langue+1,FALSE)&" "&AN_2 -> Compte 2025 | K2: =VLOOKUP("AP_3",ResString,Langue+1,FALSE)&" "&AN_3 -> Budget 2026
E4: =VLOOKUP("CI_D",ResString,Langue+1,FALSE) -> Dépenses | F4: =VLOOKUP("CI_R",ResString,Langue+1,FALSE) -> Recettes | G4: =VLOOKUP("CI_D",ResString,Langue+1,FALSE) -> Dépenses | H4: =VLOOKUP("CI_R",ResString,Langue+1,FALSE) -> Recettes | I4: =VLOOKUP("CI_D",ResString,Langue+1,FALSE) -> Dépenses | J4: =VLOOKUP("CI_R",ResString,Langue+1,FALSE) -> Recettes | K4: =VLOOKUP("CI_D",ResString,Langue+1,FALSE) -> Dépenses | L4: =VLOOKUP("CI_R",ResString,Langue+1,FALSE) -> Recettes
C6: 0 | D6: =VLOOKUP("CF_0",ResString,Langue+1,FALSE) -> Administration générale | E6: =CI0_D -> 0 | F6: =CI0_R -> 0 | G6: =CI0_D_B -> 0 | H6: =CI0_R_B -> 0 | I6: =CI0_D_2 -> 0 | J6: =CI0_R_2 -> 0 | K6: =CI0_D_B_1 -> 0 | L6: =CI0_R_B_1 -> 0
C7: 1 | D7: =VLOOKUP("CF_1",ResString,Langue+1,FALSE) -> Ordre et sécurité publics, défense | E7: =CI1_D -> 0 | F7: =CI1_R -> 0 | G7: =CI1_D_B -> 0 | H7: =CI1_R_B -> 0 | I7: =CI1_D_2 -> 0 | J7: =CI1_R_2 -> 0 | K7: =CI1_D_B_1 -> 0 | L7: =CI1_R_B_1 -> 0
C8: 2 | D8: =VLOOKUP("CF_2",ResString,Langue+1,FALSE) -> Formation | E8: =CI2_D -> 0 | F8: =CI2_R -> 0 | G8: =CI2_D_B -> 0 | H8: =CI2_R_B -> 0 | I8: =CI2_D_2 -> 0 | J8: =CI2_R_2 -> 0 | K8: =CI2_D_B_1 -> 0 | L8: =CI2_R_B_1 -> 0
C9: 3 | D9: =VLOOKUP("CF_3",ResString,Langue+1,FALSE) -> Culture, sports et loisirs, église | E9: =CI3_D -> 0 | F9: =CI3_R -> 0 | G9: =CI3_D_B -> 0 | H9: =CI3_R_B -> 0 | I9: =CI3_D_2 -> 0 | J9: =CI3_R_2 -> 0 | K9: =CI3_D_B_1 -> 0 | L9: =CI3_R_B_1 -> 0
C10: 4 | D10: =VLOOKUP("CF_4",ResString,Langue+1,FALSE) -> Santé | E10: =CI4_D -> 0 | F10: =CI4_R -> 0 | G10: =CI4_D_B -> 0 | H10: =CI4_R_B -> 0 | I10: =CI4_D_2 -> 0 | J10: =CI4_R_2 -> 0 | K10: =CI4_D_B_1 -> 0 | L10: =CI4_R_B_1 -> 0
C11: 5 | D11: =VLOOKUP("CF_5",ResString,Langue+1,FALSE) -> Prévoyance sociale | E11: =CI5_D -> 0 | F11: =CI5_R -> 0 | G11: =CI5_D_B -> 0 | H11: =CI5_R_B -> 0 | I11: =CI5_D_2 -> 0 | J11: =CI5_R_2 -> 0 | K11: =CI5_D_B_1 -> 0 | L11: =CI5_R_B_1 -> 0
C12: 6 | D12: =VLOOKUP("CF_6",ResString,Langue+1,FALSE) -> Trafic et télécommunications | E12: =CI6_D -> 0 | F12: =CI6_R -> 0 | G12: =CI6_D_B -> 0 | H12: =CI6_R_B -> 0 | I12: =CI6_D_2 -> 0 | J12: =CI6_R_2 -> 0 | K12: =CI6_D_B_1 -> 0 | L12: =CI6_R_B_1 -> 0
C13: 7 | D13: =VLOOKUP("CF_7",ResString,Langue+1,FALSE) -> Protection de l'environnement et aménagement du territoire | E13: =CI7_D -> 0 | F13: =CI7_R -> 0 | G13: =CI7_D_B -> 0 | H13: =CI7_R_B -> 0 | I13: =CI7_D_2 -> 0 | J13: =CI7_R_2 -> 0 | K13: =CI7_D_B_1 -> 0 | L13: =CI7_R_B_1 -> 0
C14: 8 | D14: =VLOOKUP("CF_8",ResString,Langue+1,FALSE) -> Economie publique | E14: =CI8_D -> 0 | F14: =CI8_R -> 0 | G14: =CI8_D_B -> 0 | H14: =CI8_R_B -> 0 | I14: =CI8_D_2 -> 0 | J14: =CI8_R_2 -> 0 | K14: =CI8_D_B_1 -> 0 | L14: =CI8_R_B_1 -> 0
C15: 9 | D15: =VLOOKUP("CF_9",ResString,Langue+1,FALSE) -> Finances et impôts | E15: =CI9_D -> 0 | F15: =CI9_R -> 0 | G15: =CI9_D_B -> 0 | H15: =CI9_R_B -> 0 | I15: =CI9_D_2 -> 0 | J15: =CI9_R_2 -> 0 | K15: =CI9_D_B_1 -> 0 | L15: =CI9_R_B_1 -> 0
D16: =VLOOKUP("AP_10",ResString,Langue+1,FALSE) -> Total des dépenses et des recettes | E16: =CIT_D -> 0 | F16: =CIT_R -> 0 | G16: =CIT_D_B -> 0 | H16: =CIT_R_B -> 0 | I16: =CIT_D_2 -> 0 | J16: =CIT_R_2 -> 0 | K16: =CIT_D_B_1 -> 0 | L16: =CIT_R_B_1 -> 0
D18: =VLOOKUP("AP_11",ResString,Langue+1,FALSE) -> Excédent de dépenses | F18: =IF(CIT_D-CIT_R>0,CIT_D-CIT_R,0) -> 0 | H18: =IF(CIT_D_B-CIT_R_B>0,CIT_D_B-CIT_R_B,0) -> 0 | J18: =IF(CIT_D_2-CIT_R_2>0,CIT_D_2-CIT_R_2,0) -> 0 | L18: =IF(CIT_D_B_1-CIT_R_B_1>0,CIT_D_B_1-CIT_R_B_1,0) -> 0
D19: =VLOOKUP("AP_12",ResString,Langue+1,FALSE) -> Excédent de recettes | E19: =IF(CIT_R-CIT_D>0,CIT_R-CIT_D,0) -> 0 | G19: =IF(CIT_R_B-CIT_D_B>0,CIT_R_B-CIT_D_B,0) -> 0 | I19: =IF(CIT_R_2-CIT_D_2>0,CIT_R_2-CIT_D_2,0) -> 0 | K19: =IF(CIT_R_B_1-CIT_D_B_1>0,CIT_R_B_1-CIT_D_B_1,0) -> 0
D50: MenuCITaches
I51: 14 | J51: 14 | K51: -1 | L51: -1
I52: -1 | J52: -1 | K52: 14 | L52: 14
I54: 14 | J54: 14 | K54: 14 | L54: 14

Sheet CI selon les natures
D2: =VLOOKUP("AP_9",ResString,Langue+1,FALSE) -> Compte des investissements selon les natures | E2: =VLOOKUP("AC_30",ResString,Langue+1,FALSE)&" "&An_1 -> Compte 2024 | G2: =VLOOKUP("AP_3",ResString,Langue+1,FALSE)&" "&AN_2 -> Budget 2025 | I2: =VLOOKUP("AC_30",ResString,Langue+1,FALSE)&" "&AN_2 -> Compte 2025 | K2: =VLOOKUP("AP_3",ResString,Langue+1,FALSE)&" "&AN_3 -> Budget 2026
E4: =VLOOKUP("CI_D",ResString,Langue+1,FALSE) -> Dépenses | F4: =VLOOKUP("CI_R",ResString,Langue+1,FALSE) -> Recettes | G4: =VLOOKUP("CI_D",ResString,Langue+1,FALSE) -> Dépenses | H4: =VLOOKUP("CI_R",ResString,Langue+1,FALSE) -> Recettes | I4: =VLOOKUP("CI_D",ResString,Langue+1,FALSE) -> Dépenses | J4: =VLOOKUP("CI_R",ResString,Langue+1,FALSE) -> Recettes | K4: =VLOOKUP("CI_D",ResString,Langue+1,FALSE) -> Dépenses | L4: =VLOOKUP(6,ResString,Langue+1,FALSE) -> Recettes
C6: 50 | D6: =VLOOKUP(50,ResString,Langue+1,FALSE) -> Immobilisations corporelles | E6: =M_50 -> 0 | G6: =M_50_B -> 0 | I6: =M_50_2 -> 0 | K6: =M_50_B_1 -> 0
C7: 51 | D7: =VLOOKUP(51,ResString,Langue+1,FALSE) -> Investissements pour le compte de tiers | E7: =M_51 -> 0 | G7: =M_51_B -> 0 | I7: =M_51_2 -> 0 | K7: =M_51_B_1 -> 0
C8: 52 | D8: =VLOOKUP(52,ResString,Langue+1,FALSE) -> Immobilisations incorporelles | E8: =M_52 -> 0 | G8: =M_52_B -> 0 | I8: =M_52_2 -> 0 | K8: =M_52_B_1 -> 0
C9: 54 | D9: =VLOOKUP(54,ResString,Langue+1,FALSE) -> Prêts | E9: =M_54 -> 0 | G9: =M_54_B -> 0 | I9: =M_54_2 -> 0 | K9: =M_54_B_1 -> 0
C10: 55 | D10: =VLOOKUP(55,ResString,Langue+1,FALSE) -> Participations et capital social | E10: =M_55 -> 0 | G10: =M_55_B -> 0 | I10: =M_55_2 -> 0 | K10: =M_55_B_1 -> 0
C11: 56 | D11: =VLOOKUP(56,ResString,Langue+1,FALSE) -> Propres subventions d'investissement | E11: =M_56 -> 0 | G11: =M_56_B -> 0 | I11: =M_56_2 -> 0 | K11: =M_56_B_1 -> 0
C12: 57 | D12: =VLOOKUP(57,ResString,Langue+1,FALSE) -> Subventions d'investissement redistribuées | E12: =M_57 -> 0 | G12: =M_57_B -> 0 | I12: =M_57_2 -> 0 | K12: =M_57_B_1 -> 0
D13: =VLOOKUP(59,ResString,Langue+1,FALSE) -> Report au bilan | E13: =M_59 -> 0 | G13: =M_59_B -> 0 | I13: =M_59_2 -> 0 | K13: =M_59_B -> 0
C14: 60 | D14: =VLOOKUP(60,ResString,Langue+1,FALSE) -> Transferts au patrimoine financier | F14: =M_60 -> 0 | H14: =M_60_B -> 0 | J14: =M_60_2 -> 0 | L14: =M_60_B_1 -> 0
C15: 61 | D15: =VLOOKUP(61,ResString,Langue+1,FALSE) -> Remboursements | F15: =M_61 -> 0 | H15: =M_61_B -> 0 | J15: =M_61_2 -> 0 | L15: =M_61_B_1 -> 0
C16: 62 | D16: =VLOOKUP(62,ResString,Langue+1,FALSE) -> Transferts d'immobilisations incorporelles | F16: =M_62 -> 0 | H16: =M_62_B -> 0 | J16: =M_62_2 -> 0 | L16: =M_62_B_1 -> 0
C17: 63 | D17: =VLOOKUP(63,ResString,Langue+1,FALSE) -> Subventions d'investissement acquises | F17: =M_63 -> 0 | H17: =M_63_B -> 0 | J17: =M_63_2 -> 0 | L17: =M_63_B_1 -> 0
C18: 64 | D18: =VLOOKUP(64,ResString,Langue+1,FALSE) -> Remboursement de prêts | F18: =M_64 -> 0 | H18: =M_64_B -> 0 | J18: =M_64_2 -> 0 | L18: =M_64_B_1 -> 0
C19: 65 | D19: =VLOOKUP(65,ResString,Langue+1,FALSE) -> Transferts de participations | F19: =M_65 -> 0 | H19: =M_65_B -> 0 | J19: =M_65_2 -> 0 | L19: =M_65_B_1 -> 0
C20: 66 | D20: =VLOOKUP(66,ResString,Langue+1,FALSE) -> Remboursement de subventions d'investissement propres | F20: =M_66 -> 0 | H20: =M_66_B -> 0 | J20: =M_66_2 -> 0 | L20: =M_66_B_1 -> 0
C21: 67 | D21: =VLOOKUP(67,ResString,Langue+1,FALSE) -> Subventions d'investissement à redistribuer | F21: =M_67 -> 0 | H21: =M_67_B -> 0 | J21: =M_67_2 -> 0 | L21: =M_67_B_1 -> 0
D22: =VLOOKUP(67,ResString,Langue+1,FALSE) -> Subventions d'investissement à redistribuer | F22: =M_69 -> 0 | H22: =M_69_B -> 0 | J22: =M_69_2 -> 0 | L22: =M_69_B -> 0
D23: =VLOOKUP("AP_10",ResString,Langue+1,FALSE) -> Total des dépenses et des recettes | E23: =M_5 -> 0 | F23: =M_6 -> 0 | G23: =M_5_B -> 0 | H23: =M_6_B -> 0 | I23: =M_5_2 -> 0 | J23: =M_6_2 -> 0 | K23: =M_5_B_1 -> 0 | L23: =M_6_B_1 -> 0
D25: =VLOOKUP("AP_11",ResString,Langue+1,FALSE) -> Excédent de dépenses | F25: =IF(M_5-M_6>0,M_5-M_6,0) -> 0 | H25: =IF(M_5_B-M_6_B>0,M_5_B-M_6_B,0) -> 0 | J25: =IF(M_5_2-M_6_2>0,M_5_2-M_6_2,0) -> 0 | L25: =IF(M_5_B_1-M_6_B_1>0,M_5_B_1-M_6_B_1,0) -> 0
D26: =VLOOKUP("AP_12",ResString,Langue+1,FALSE) -> Excédent de recettes | E26: =IF(M_6-M_5>0,M_6-M_5,0) -> 0 | G26: =IF(M_6_B-M_5_B>0,M_6_B-M_5_B,0) -> 0 | I26: =IF(M_6_2-M_5_2>0,M_6_2-M_5_2,0) -> 0 | K26: =IF(M_6_B_1-M_5_B_1>0,M_6_B_1-M_5_B_1,0) -> 0
D52: MenuCINatures
I53: 14 | J53: 14 | K53: -1 | L53: -1
I54: -1 | J54: -1 | K54: 14 | L54: 14
I56: 14 | J56: 14 | K56: 14 | L56: 14

Sheet Graphe CR natures, charges
C2: =VLOOKUP("MNU_16",ResString,Langue+1,FALSE) -> Compte de résultats selon les natures, charges
C4: 30 | D4: =VLOOKUP(C4,ResString,Langue+1,FALSE) -> Charges de personnel | E4: =F4/$F$13 ->  | F4: =IF(res_Interface = 0, M_30_2,M_30_B_1) -> 0 | H4: =F12 -> 0
C5: 31 | D5: Charges de biens et services et autres charges d'exploitation | F5: =IF(res_Interface = 0, M_31_2,M_31_B_1) -> 0 | H5: =F11 -> 0
C6: 33 | D6: Amortissements du patrimoine administratif | F6: =IF(res_Interface = 0, M_33_2,M_33_B_1) -> 0 | H6: =F10 -> 0
C7: 34 | D7: Charges financières | F7: =IF(res_Interface = 0, M_34_2,M_34_B_1) -> 0 | H7: =F9 -> 0
C8: 35 | D8: Attributions aux fonds et financements spéciaux | F8: =IF(res_Interface = 0, M_35_2,M_35_B_1) -> 0 | H8: =F8 -> 0
C9: 36 | D9: Charges de transferts | F9: =IF(res_Interface = 0, M_36_2,M_36_B_1) -> 0 | H9: =F7 -> 0
C10: 37 | D10: Subventions redistribuées | F10: =IF(res_Interface = 0, M_37_2,M_37_B_1) -> 0 | H10: =F6 -> 0
C11: 38 | D11: Charges extraordinaires | F11: =IF(res_Interface = 0, M_38_2+M_389_2,M_38_B_1+M_389_B_1) -> 0 | H11: =F5 -> 0
C12: 39 | D12: Imputations internes | F12: =IF(res_Interface = 0, M_39_2,M_39_B_1) -> 0 | H12: =F4 -> 0
D13: Total | F13: =IF(res_Interface = 0, M_3_2,M_3_B_1) -> 0

Sheet Graphe CR natures, revenus
C2: =VLOOKUP("MNU_17",ResString,Langue+1,FALSE) -> Compte de résultats selon les natures, revenus
C4: 40 | D4: =VLOOKUP(C4,ResString,Langue+1,FALSE) -> Revenus fiscaux | E4: =F4/$F$14 ->  | F4: =IF(res_Interface = 0, M_40_2,M_40_B_1) -> 0 | H4: =F13 -> 0
C5: 41 | D5: Patentes et concessions | F5: =IF(res_Interface = 0, M_41_2,M_41_B_1) -> 0 | H5: =F13 -> 0
C6: 42 | D6: Taxes | F6: =IF(res_Interface = 0, M_42_2,M_42_B_1) -> 0 | H6: =F12 -> 0
C7: 43 | D7: Revenus divers | F7: =IF(res_Interface = 0, M_43_2,M_43_B_1) -> 0 | H7: =F11 -> 0
C8: 44 | D8: Revenus financiers | F8: =IF(res_Interface = 0, M_44_2,M_44_B_1) -> 0 | H8: =F10 -> 0
C9: 45 | D9: Prélèvements sur les fonds et financements spéciaux | F9: =IF(res_Interface = 0, M_45_2,M_45_B_1) -> 0 | H9: =F9 -> 0
C10: 46 | D10: Revenus de transferts | F10: =IF(res_Interface = 0, M_46_2,M_46_B_1) -> 0 | H10: =F8 -> 0
C11: 47 | D11: Subventions à redistribuer | F11: =IF(res_Interface = 0, M_47_2,M_47_B_1) -> 0 | H11: =F7 -> 0
C12: 48 | D12: Revenus extraordinaires | F12: =IF(res_Interface = 0, M_48_2+M_489_2,M_48_B_1+M_489_B_1) -> 0 | H12: =F6 -> 0
C13: 49 | D13: Imputations internes | F13: =IF(res_Interface = 0, M_49_2,M_49_B_1) -> 0 | H13: =F5 -> 0
D14: Total | F14: =IF(res_Interface = 0, M_4_2,M_4_B_1) -> 0

Sheet Graphe CR tâches, charges
C2: =VLOOKUP("MNU_18",ResString,Langue+1,FALSE) -> Compte de résultats selon les tâches, charges
C4: 0 | D4: =VLOOKUP("CF_0",ResString,Langue+1,FALSE) -> Administration générale | E4: =F4/$F$14 ->  | F4: =IF(res_Interface = 0, CF0_C_2,CF0_C_B_1) -> 0 | H4: =F13 -> 0
C5: 1 | D5: =VLOOKUP("CF_1",ResString,Langue+1,FALSE) -> Ordre et sécurité publics, défense | F5: =IF(res_Interface = 0, CF1_C_2,CF1_C_B_1) -> 0 | H5: =F12 -> 0
C6: 2 | D6: =VLOOKUP("CF_2",ResString,Langue+1,FALSE) -> Formation | F6: =IF(res_Interface = 0, CF2_C_2,CF2_C_B_1) -> 0 | H6: =F11 -> 0
C7: 3 | D7: =VLOOKUP("CF_3",ResString,Langue+1,FALSE) -> Culture, sports et loisirs, église | F7: =IF(res_Interface = 0, CF3_C_2,CF3_C_B_1) -> 0 | H7: =F10 -> 0
C8: 4 | D8: =VLOOKUP("CF_4",ResString,Langue+1,FALSE) -> Santé | F8: =IF(res_Interface = 0, CF4_C_2,CF4_C_B_1) -> 0 | H8: =F9 -> 0
C9: 5 | D9: =VLOOKUP("CF_5",ResString,Langue+1,FALSE) -> Prévoyance sociale | F9: =IF(res_Interface = 0, CF5_C_2,CF5_C_B_1) -> 0 | H9: =F8 -> 0
C10: 6 | D10: =VLOOKUP("CF_6",ResString,Langue+1,FALSE) -> Trafic et télécommunications | F10: =IF(res_Interface = 0, CF6_C_2,CF6_C_B_1) -> 0 | H10: =F7 -> 0
C11: 7 | D11: =VLOOKUP("CF_7",ResString,Langue+1,FALSE) -> Protection de l'environnement et aménagement du territoire | F11: =IF(res_Interface = 0, CF7_C_2,CF7_C_B_1) -> 0 | H11: =F6 -> 0
C12: 8 | D12: =VLOOKUP("CF_8",ResString,Langue+1,FALSE) -> Economie publique | F12: =IF(res_Interface = 0, CF8_C_2,CF8_C_B_1) -> 0 | H12: =F5 -> 0
C13: 9 | D13: =VLOOKUP("CF_9",ResString,Langue+1,FALSE) -> Finances et impôts | F13: =IF(res_Interface = 0, CF9_C_2,CF9_C_B_1) -> 0 | H13: =F4 -> 0
C14: Total | F14: =IF(res_Interface = 0, CFT_C_2,CFT_C_B_1) -> 0

Sheet Graphe CR tâches, revenus
C2: =VLOOKUP("MNU_19",ResString,Langue+1,FALSE) -> Compte de résultats selon les tâches, revenus
C4: 0 | D4: =VLOOKUP("CF_0",ResString,Langue+1,FALSE) -> Administration générale | E4: =F4/$F$14 ->  | F4: =IF(res_Interface = 0, CF0_R_2,CF0_R_B_1) -> 0 | H4: =F13 -> 0
C5: 1 | D5: =VLOOKUP("CF_1",ResString,Langue+1,FALSE) -> Ordre et sécurité publics, défense | F5: =IF(res_Interface = 0, CF1_R_2,CF1_R_B_1) -> 0 | H5: =F12 -> 0
C6: 2 | D6: =VLOOKUP("CF_2",ResString,Langue+1,FALSE) -> Formation | F6: =IF(res_Interface = 0, CF2_R_2,CF2_R_B_1) -> 0 | H6: =F11 -> 0
C7: 3 | D7: =VLOOKUP("CF_3",ResString,Langue+1,FALSE) -> Culture, sports et loisirs, église | F7: =IF(res_Interface = 0, CF3_R_2,CF3_R_B_1) -> 0 | H7: =F10 -> 0
C8: 4 | D8: =VLOOKUP("CF_4",ResString,Langue+1,FALSE) -> Santé | F8: =IF(res_Interface = 0, CF4_R_2,CF4_R_B_1) -> 0 | H8: =F9 -> 0
C9: 5 | D9: =VLOOKUP("CF_5",ResString,Langue+1,FALSE) -> Prévoyance sociale | F9: =IF(res_Interface = 0, CF5_R_2,CF5_R_B_1) -> 0 | H9: =F8 -> 0
C10: 6 | D10: =VLOOKUP("CF_6",ResString,Langue+1,FALSE) -> Trafic et télécommunications | F10: =IF(res_Interface = 0, CF6_R_2,CF6_R_B_1) -> 0 | H10: =F7 -> 0
C11: 7 | D11: =VLOOKUP("CF_7",ResString,Langue+1,FALSE) -> Protection de l'environnement et aménagement du territoire | F11: =IF(res_Interface = 0, CF7_R_2,CF7_R_B_1) -> 0 | H11: =F6 -> 0
C12: 8 | D12: =VLOOKUP("CF_8",ResString,Langue+1,FALSE) -> Economie publique | F12: =IF(res_Interface = 0, CF8_R_2,CF8_R_B_1) -> 0 | H12: =F5 -> 0
C13: 9 | D13: =VLOOKUP("CF_9",ResString,Langue+1,FALSE) -> Finances et impôts | F13: =IF(res_Interface = 0, CF9_R_2,CF9_R_B_1) -> 0 | H13: =F4 -> 0
C14: Total | F14: =IF(res_Interface = 0, CFT_R_2,CFT_R_B_1) -> 0

Sheet Graphe CI tâches, dépenses
C2: =VLOOKUP("MNU_20",ResString,Langue+1,FALSE) -> Compte des investissements selon les tâches, dépenses
C4: 0 | D4: =VLOOKUP("CF_0",ResString,Langue+1,FALSE) -> Administration générale | E4: =IFERROR(F4/$F$14,0) -> 0 | F4: =IF(res_Interface = 0, CI0_D_2,CI0_D_B_1) -> 0 | H4: =F13 -> 0
C5: 1 | D5: =VLOOKUP("CF_1",ResString,Langue+1,FALSE) -> Ordre et sécurité publics, défense | E5: =F5/$F$14 ->  | F5: =IF(res_Interface = 0, CI1_D_2,CI1_D_B_1) -> 0 | H5: =F12 -> 0
C6: 2 | D6: =VLOOKUP("CF_2",ResString,Langue+1,FALSE) -> Formation | F6: =IF(res_Interface = 0, CI2_D_2,CI2_D_B_1) -> 0 | H6: =F11 -> 0
C7: 3 | D7: =VLOOKUP("CF_3",ResString,Langue+1,FALSE) -> Culture, sports et loisirs, église | F7: =IF(res_Interface = 0, CI3_D_2,CI3_D_B_1) -> 0 | H7: =F10 -> 0
C8: 4 | D8: =VLOOKUP("CF_4",ResString,Langue+1,FALSE) -> Santé | F8: =IF(res_Interface = 0, CI4_D_2,CI4_D_B_1) -> 0 | H8: =F9 -> 0
C9: 5 | D9: =VLOOKUP("CF_5",ResString,Langue+1,FALSE) -> Prévoyance sociale | F9: =IF(res_Interface = 0, CI5_D_2,CI5_D_B_1) -> 0 | H9: =F8 -> 0
C10: 6 | D10: =VLOOKUP("CF_6",ResString,Langue+1,FALSE) -> Trafic et télécommunications | F10: =IF(res_Interface = 0, CI6_D_2,CI6_D_B_1) -> 0 | H10: =F7 -> 0
C11: 7 | D11: =VLOOKUP("CF_7",ResString,Langue+1,FALSE) -> Protection de l'environnement et aménagement du territoire | F11: =IF(res_Interface = 0, CI7_D_2,CI7_D_B_1) -> 0 | H11: =F6 -> 0
C12: 8 | D12: =VLOOKUP("CF_8",ResString,Langue+1,FALSE) -> Economie publique | E12: =IFERROR(F12/$F$14,0) -> 0 | F12: =IF(res_Interface = 0, CI8_D_2,CI8_D_B_1) -> 0 | H12: =F5 -> 0
C13: 9 | D13: =VLOOKUP("CF_9",ResString,Langue+1,FALSE) -> Finances et impôts | E13: =IFERROR(F13/$F$14,0) -> 0 | F13: =IF(res_Interface = 0, CI9_D_2,CI9_D_B_1) -> 0 | H13: =F4 -> 0
C14: Total | F14: =IF(res_Interface = 0, CIT_D_2,CIT_D_B_1) -> 0

Sheet Graphe CI tâches, recettes
C2: =VLOOKUP("MNU_21",ResString,Langue+1,FALSE) -> Compte des investissements selon les tâches, recettes
C4: 0 | D4: =VLOOKUP("CF_0",ResString,Langue+1,FALSE) -> Administration générale | E4: =IFERROR(F4/$F$14,0) -> 0 | F4: =IF(res_Interface = 0, CI0_R_2,CI0_R_B_1) -> 0 | H4: =F13 -> 0
C5: 1 | D5: =VLOOKUP("CF_1",ResString,Langue+1,FALSE) -> Ordre et sécurité publics, défense | E5: =F5/$F$14 ->  | F5: =IF(res_Interface = 0, CI1_R_2,CI1_R_B_1) -> 0 | H5: =F12 -> 0
C6: 2 | D6: =VLOOKUP("CF_2",ResString,Langue+1,FALSE) -> Formation | F6: =IF(res_Interface = 0, CI2_R_2,CI2_R_B_1) -> 0 | H6: =F11 -> 0
C7: 3 | D7: =VLOOKUP("CF_3",ResString,Langue+1,FALSE) -> Culture, sports et loisirs, église | F7: =IF(res_Interface = 0, CI3_R_2,CI3_R_B_1) -> 0 | H7: =F10 -> 0
C8: 4 | D8: =VLOOKUP("CF_4",ResString,Langue+1,FALSE) -> Santé | F8: =IF(res_Interface = 0, CI4_R_2,CI4_R_B_1) -> 0 | H8: =F9 -> 0
C9: 5 | D9: =VLOOKUP("CF_5",ResString,Langue+1,FALSE) -> Prévoyance sociale | F9: =IF(res_Interface = 0, CI5_R_2,CI5_R_B_1) -> 0 | H9: =F8 -> 0
C10: 6 | D10: =VLOOKUP("CF_6",ResString,Langue+1,FALSE) -> Trafic et télécommunications | F10: =IF(res_Interface = 0, CI6_R_2,CI6_R_B_1) -> 0 | H10: =F7 -> 0
C11: 7 | D11: =VLOOKUP("CF_7",ResString,Langue+1,FALSE) -> Protection de l'environnement et aménagement du territoire | F11: =IF(res_Interface = 0, CI7_R_2,CI7_R_B_1) -> 0 | H11: =F6 -> 0
C12: 8 | D12: =VLOOKUP("CF_8",ResString,Langue+1,FALSE) -> Economie publique | E12: =IFERROR(F12/$F$14,0) -> 0 | F12: =IF(res_Interface = 0, CI8_R_2,CI8_R_B_1) -> 0 | H12: =F5 -> 0
C13: 9 | D13: =VLOOKUP("CF_9",ResString,Langue+1,FALSE) -> Finances et impôts | E13: =IFERROR(F13/$F$14,0) -> 0 | F13: =IF(res_Interface = 0, CI9_R_2,CI9_R_B_1) -> 0 | H13: =F4 -> 0
C14: Total | F14: =IF(res_Interface = 0, CIT_R_2,CIT_R_B_1) -> 0

Sheet I1 - I2
F2: =An_1 -> 2024 | G2: =AN_2 -> 2025 | H2: =VLOOKUP("AP_1",ResString,Langue+1,FALSE) -> Moyenne | I2: =AN_2 -> 2025 | J2: =AN_3 -> 2026 | K2: =AN_3+1 -> 2027 | L2: =AN_3+2 -> 2028 | M2: =AN_3+3 -> 2029 | N2: =AN_3+4 -> 2030 | O2: =AN_3+5 -> 2031 | P2: =AN_3+6 -> 2032 | Q2: =AN_3+7 -> 2033 | R2: =AN_3+8 -> 2034 | S2: =AN_3+9 -> 2035
B6: =VLOOKUP("TAN_1",ResString,Langue+1,FALSE) -> 1. Taux d’endettement net (I1)
B8: =VLOOKUP("TAN_2",ResString,Langue+1,FALSE) -> Dette nette I | E8: CHF | F8: =M_DetNet -> 0 | G8: =M_DetNet_2 -> 0 | H8: =AVERAGE(F8:G8) -> 0 | I8: =M_DetNet_B ->  | J8: =M_DetNet_B_1 ->  | K8: =M_DetNet_P_1 ->  | L8: =M_DetNet_P_2 ->  | M8: =M_DetNet_P_3 ->  | N8: =M_DetNet_P_4 -> 0 | O8: =M_DetNet_P_5 -> 0 | P8: =M_DetNet_P_6 -> 0 | Q8: =M_DetNet_P_7 -> 0 | R8: =M_DetNet_P_8 -> 0 | S8: =M_DetNet_P_9 -> 0
B9: =VLOOKUP("TAN_3",ResString,Langue+1,FALSE) -> Revenus fiscaux | E9: CHF | F9: =M_40 -> 0 | G9: =M_40_2 -> 0 | H9: =AVERAGE(F9:G9) -> 0 | I9: =M_40_B -> 0 | J9: =M_40_B_1 -> 0 | K9: =M_40_P_1 -> 0 | L9: =M_40_P_2 -> 0 | M9: =M_40_P_3 -> 0 | N9: =M_40_P_4 -> 0 | O9: =M_40_P_5 -> 0 | P9: =M_40_P_6 -> 0 | Q9: =M_40_P_7 -> 0 | R9: =M_40_P_8 -> 0 | S9: =M_40_P_9 -> 0
F11: =IFERROR(F8/F9,"") ->  | G11: =IFERROR(G8/G9,"") ->  | L11: =IFERROR(L8/L9,"") -> 
D14: =VLOOKUP("AP_2",ResString,Langue+1,FALSE) -> Valeurs indicatives
F16: < 100% | G16: =VLOOKUP("TAN_4",ResString,Langue+1,FALSE) -> bon | I16: =VLOOKUP("TAN_4",ResString,Langue+1,FALSE) -> bon
F17: 100% - 150% | G17: =VLOOKUP("TAN_5",ResString,Langue+1,FALSE) -> suffisant | I17: =VLOOKUP("TAN_5",ResString,Langue+1,FALSE) -> suffisant
F18: > 150% | G18: =VLOOKUP("TAN_6",ResString,Langue+1,FALSE) -> mauvais | I18: =VLOOKUP("TAN_6",ResString,Langue+1,FALSE) -> mauvais
B19: =VLOOKUP("TAN_1_BRG",ResString,Langue+1,FALSE) -> La bourgeoisie ne disposant point de revenus fiscaux (nature 40), cet indicateur n'a pas lieu d'être calculé.
B21: =VLOOKUP("DAT_1",ResString,Langue+1,FALSE) -> 2. Degré d’autofinancement (I2)
B23: =VLOOKUP("DAT_2",ResString,Langue+1,FALSE) -> Autofinancement | E23: CHF | F23: =M_AutFin ->  | G23: =M_AutFin_2 ->  | H23: =AVERAGE(F23:G23) ->  | I23: =M_AutFin_B ->  | J23: =M_AutFin_B_1 ->  | K23: =M_AutFin_P_1 ->  | L23: =M_AutFin_P_2 ->  | M23: =M_AutFin_P_3 ->  | N23: =M_AutFin_P_4 -> 0 | O23: =M_AutFin_P_5 -> 0 | P23: =M_AutFin_P_6 -> 0 | Q23: =M_AutFin_P_7 -> 0 | R23: =M_AutFin_P_8 -> 0 | S23: =M_AutFin_P_9 -> 0
B24: =VLOOKUP("DAT_3",ResString,Langue+1,FALSE) -> investissements nets | E24: CHF | F24: =M_InvNet -> 0 | G24: =M_InvNet_2 -> 0 | H24: =AVERAGE(F24:G24) -> 0 | I24: =M_InvNet_B -> 0 | J24: =M_InvNet_B_1 -> 0 | K24: =M_InvNet_P_1 -> 0 | L24: =M_InvNet_P_2 -> 0 | M24: =M_InvNet_P_3 -> 0 | N24: =M_InvNet_P_4 -> 0 | O24: =M_InvNet_P_5 -> 0 | P24: =M_InvNet_P_6 -> 0 | Q24: =M_InvNet_P_7 -> 0 | R24: =M_InvNet_P_8 -> 0 | S24: =M_InvNet_P_9 -> 0
F26: =IFERROR(F23/F24,"") ->  | G26: =IFERROR(G23/G24,"") -> 
D29: =VLOOKUP("AP_2",ResString,Langue+1,FALSE) -> Valeurs indicatives
F31: > 100% | G31: =VLOOKUP("DAT_4",ResString,Langue+1,FALSE) -> haute conjoncture | I31: =VLOOKUP("DAT_4",ResString,Langue+1,FALSE) -> haute conjoncture
F32: 80 -100% | G32: =VLOOKUP("DAT_5",ResString,Langue+1,FALSE) -> cas normal | I32: =VLOOKUP("DAT_5",ResString,Langue+1,FALSE) -> cas normal
F33: 50 – 80% | G33: =VLOOKUP("DAT_6",ResString,Langue+1,FALSE) -> récession | I33: =VLOOKUP("DAT_6",ResString,Langue+1,FALSE) -> récession
B38: MenuDegAutoFin
G39: 15 | H39: 15 | I39: -1 | J39: -1 | K39: -1 | L39: -1 | M39: -1 | N39: -1 | O39: -1 | P39: -1 | Q39: -1 | R39: -1 | S39: -1
G40: -1 | H40: -1 | I40: 15 | J40: 15 | K40: 15 | L40: 15 | M40: 15 | N40: 15 | O40: 15 | P40: 15 | Q40: 15 | R40: 15 | S40: 15
G42: 15 | H42: 15 | I42: 15 | J42: 15 | K42: 15 | L42: 15 | M42: 15 | N42: 15 | O42: 15 | P42: 15 | Q42: 15 | R42: 15 | S42: 15

Sheet I3 - I4
F2: =An_1 -> 2024 | G2: =AN_2 -> 2025 | H2: =VLOOKUP("AP_1",ResString,Langue+1,FALSE) -> Moyenne | I2: =AN_2 -> 2025 | J2: =AN_3 -> 2026 | K2: =AN_3+1 -> 2027 | L2: =AN_3+2 -> 2028 | M2: =AN_3+3 -> 2029 | N2: =AN_3+4 -> 2030 | O2: =AN_3+5 -> 2031 | P2: =AN_3+6 -> 2032 | Q2: =AN_3+7 -> 2033 | R2: =AN_3+8 -> 2034 | S2: =AN_3+9 -> 2035
B6: =VLOOKUP("PCI_1",ResString,Langue+1,FALSE) -> 3. Part des charges d’intérêts (I3)
B8: =VLOOKUP("PCI_2",ResString,Langue+1,FALSE) -> Charges d‘intérêts nets | E8: CHF | F8: =M_CharIntNet -> 0 | G8: =M_CharIntNet_2 -> 0 | H8: =AVERAGE(F8:G8) -> 0 | I8: =M_CharIntNet_B -> 0 | J8: =M_CharIntNet_B_1 -> 0 | K8: =M_CharIntNet_P_1 ->  | L8: =M_CharIntNet_P_2 ->  | M8: =M_CharIntNet_P_3 ->  | N8: =M_CharIntNet_P_4 -> 0 | O8: =M_CharIntNet_P_5 -> 0 | P8: =M_CharIntNet_P_6 -> 0 | Q8: =M_CharIntNet_P_7 -> 0 | R8: =M_CharIntNet_P_8 -> 0 | S8: =M_CharIntNet_P_9 -> 0
B9: =VLOOKUP("PCI_3",ResString,Langue+1,FALSE) -> Revenus courants | E9: CHF | F9: =M_RevCour -> 0 | G9: =M_RevCour_2 -> 0 | H9: =AVERAGE(F9:G9) -> 0 | I9: =M_RevCour_B -> 0 | J9: =M_RevCour_B_1 -> 0 | K9: =M_RevCour_P_1 ->  | L9: =M_RevCour_P_2 ->  | M9: =M_RevCour_P_3 ->  | N9: =M_RevCour_P_4 -> 0 | O9: =M_RevCour_P_5 -> 0 | P9: =M_RevCour_P_6 -> 0 | Q9: =M_RevCour_P_7 -> 0 | R9: =M_RevCour_P_8 -> 0 | S9: =M_RevCour_P_9 -> 0
F11: =IFERROR(F8/F9,"") ->  | G11: =IFERROR(G8/G9,"") ->  | I11: =IFERROR(I8/I9,"") -> 
D14: =VLOOKUP("AP_2",ResString,Langue+1,FALSE) -> Valeurs indicatives
F16: 0% – 4% | G16: =VLOOKUP("PCI_4",ResString,Langue+1,FALSE) -> bon | I16: =VLOOKUP("PCI_4",ResString,Langue+1,FALSE) -> bon
F17: 4% – 9% | G17: =VLOOKUP("PCI_5",ResString,Langue+1,FALSE) -> suffisant | I17: =VLOOKUP("PCI_5",ResString,Langue+1,FALSE) -> suffisant
F18: > 9% | G18: =VLOOKUP("PCI_6",ResString,Langue+1,FALSE) -> mauvais | I18: =VLOOKUP("PCI_6",ResString,Langue+1,FALSE) -> mauvais
B21: =VLOOKUP("DBR_1",ResString,Langue+1,FALSE) -> 4. Dette brute par rapport aux revenus (I4)
B23: =VLOOKUP("DBR_2",ResString,Langue+1,FALSE) -> Dette brute | E23: CHF | F23: =M_DetBrut ->  | G23: =M_DetBrut_2 ->  | H23: =AVERAGE(F23:G23) ->  | I23: =M_DetBrut_B ->  | J23: =M_DetBrut_B_1 ->  | K23: =M_DetBrut_P_1 ->  | L23: =M_DetBrut_P_2 ->  | M23: =M_DetBrut_P_3 ->  | N23: =M_DetBrut_P_4 -> 0 | O23: =M_DetBrut_P_5 -> 0 | P23: =M_DetBrut_P_6 -> 0 | Q23: =M_DetBrut_P_7 -> 0 | R23: =M_DetBrut_P_8 -> 0 | S23: =M_DetBrut_P_9 -> 0
B24: =VLOOKUP("DBR_3",ResString,Langue+1,FALSE) -> Revenus courants | E24: CHF | F24: =M_RevCour -> 0 | G24: =M_RevCour_2 -> 0 | H24: =AVERAGE(F24:G24) -> 0 | I24: =M_RevCour_B -> 0 | J24: =M_RevCour_B_1 -> 0 | K24: =M_RevCour_P_1 ->  | L24: =M_RevCour_P_2 ->  | M24: =M_RevCour_P_3 ->  | N24: =M_RevCour_P_4 -> 0 | O24: =M_RevCour_P_5 -> 0 | P24: =M_RevCour_P_6 -> 0 | Q24: =M_RevCour_P_7 -> 0 | R24: =M_RevCour_P_8 -> 0 | S24: =M_RevCour_P_9 -> 0
F26: =IFERROR(F23/F24,"") ->  | G26: =IFERROR(G23/G24,"") -> 
D29: =VLOOKUP("AP_2",ResString,Langue+1,FALSE) -> Valeurs indicatives
F31: < 50% | G31: =VLOOKUP("DBR_4",ResString,Langue+1,FALSE) -> très bon | I31: =VLOOKUP("DBR_4",ResString,Langue+1,FALSE) -> très bon
F32: 50% – 100% | G32: =VLOOKUP("DBR_5",ResString,Langue+1,FALSE) -> bon | I32: =VLOOKUP("DBR_5",ResString,Langue+1,FALSE) -> bon
F33: 100% – 150% | G33: =VLOOKUP("DBR_6",ResString,Langue+1,FALSE) -> moyen | I33: =VLOOKUP("DBR_6",ResString,Langue+1,FALSE) -> moyen
F34: 150% – 200% | G34: =VLOOKUP("DBR_7",ResString,Langue+1,FALSE) -> mauvais | I34: =VLOOKUP("DBR_7",ResString,Langue+1,FALSE) -> mauvais
F35: > 200% | G35: =VLOOKUP("DBR_8",ResString,Langue+1,FALSE) -> critique | I35: =VLOOKUP("DBR_8",ResString,Langue+1,FALSE) -> critique
B39: MenuCapAutoFin
G40: 15 | H40: 15 | I40: -1 | J40: -1 | K40: -1 | L40: -1 | M40: -1 | N40: -1 | O40: -1 | P40: -1 | Q40: -1 | R40: -1 | S40: -1
G41: -1 | H41: -1 | I41: 15 | J41: 15 | K41: 15 | L41: 15 | M41: 15 | N41: 15 | O41: 15 | P41: 15 | Q41: 15 | R41: 15 | S41: 15
G43: 15 | H43: 15 | I43: 15 | J43: 15 | K43: 15 | L43: 15 | M43: 15 | N43: 15 | O43: 15 | P43: 15 | Q43: 15 | R43: 15 | S43: 15

Sheet I5 - I6
F2: =An_1 -> 2024 | G2: =AN_2 -> 2025 | H2: =VLOOKUP("AP_1",ResString,Langue+1,FALSE) -> Moyenne | I2: =AN_2 -> 2025 | J2: =AN_3 -> 2026 | K2: =AN_3+1 -> 2027 | L2: =AN_3+2 -> 2028 | M2: =AN_3+3 -> 2029 | N2: =AN_3+4 -> 2030 | O2: =AN_3+5 -> 2031 | P2: =AN_3+6 -> 2032 | Q2: =AN_3+7 -> 2033 | R2: =AN_3+8 -> 2034 | S2: =AN_3+9 -> 2035
B6: =VLOOKUP("PDI_1",ResString,Langue+1,FALSE) -> 5. Proportion des investissements (I5)
B8: =VLOOKUP("PDI_2",ResString,Langue+1,FALSE) -> Investissements bruts | E8: CHF | F8: =M_InvBrut -> 0 | G8: =M_InvBrut_2 -> 0 | H8: =AVERAGE(F8:G8) -> 0 | I8: =M_InvBrut_B -> 0 | J8: =M_InvBrut_B_1 -> 0 | K8: =M_InvBrut_P_1 -> 0 | L8: =M_InvBrut_P_2 -> 0 | M8: =M_InvBrut_P_3 -> 0 | N8: =M_InvBrut_P_4 -> 0 | O8: =M_InvBrut_P_5 -> 0 | P8: =M_InvBrut_P_6 -> 0 | Q8: =M_InvBrut_P_7 -> 0 | R8: =M_InvBrut_P_8 -> 0 | S8: =M_InvBrut_P_9 -> 0
B9: =VLOOKUP("PDI_3",ResString,Langue+1,FALSE) -> Dépenses totales | E9: CHF | F9: =M_DepTotal ->  | G9: =M_DepTotal_2 ->  | H9: =AVERAGE(F9:G9) ->  | I9: =M_DepTotal_B ->  | J9: =M_DepTotal_B_1 ->  | K9: =M_DepTotal_P_1 ->  | L9: =M_DepTotal_P_2 ->  | M9: =M_DepTotal_P_3 ->  | N9: =M_DepTotal_P_4 -> 0 | O9: =M_DepTotal_P_5 -> 0 | P9: =M_DepTotal_P_6 -> 0 | Q9: =M_DepTotal_P_7 -> 0 | R9: =M_DepTotal_P_8 -> 0 | S9: =M_DepTotal_P_9 -> 0
F11: =IFERROR(F8/F9,"") ->  | G11: =IFERROR(G8/G9,"") -> 
D14: =VLOOKUP("AP_2",ResString,Langue+1,FALSE) -> Valeurs indicatives
F16: < 10% | G16: =VLOOKUP("PDI_4",ResString,Langue+1,FALSE) -> eff. d’inv. faible | I16: =VLOOKUP("PDI_4",ResString,Langue+1,FALSE) -> eff. d’inv. faible
F17: 10% – 20% | G17: =VLOOKUP("PDI_5",ResString,Langue+1,FALSE) -> eff. d’inv. moyen | I17: =VLOOKUP("PDI_5",ResString,Langue+1,FALSE) -> eff. d’inv. moyen
F18: 20% – 30% | G18: =VLOOKUP("PDI_6",ResString,Langue+1,FALSE) -> eff. d’inv. élevé | I18: =VLOOKUP("PDI_6",ResString,Langue+1,FALSE) -> eff. d’inv. élevé
F19: > 30% | G19: =VLOOKUP("PDI_7",ResString,Langue+1,FALSE) -> eff. d’inv. très élevé | I19: =VLOOKUP("PDI_7",ResString,Langue+1,FALSE) -> eff. d’inv. très élevé
B22: =VLOOKUP("PSD_1",ResString,Langue+1,FALSE) -> 6. Part du service de la dette (I6)
B24: =VLOOKUP("PSD_2",ResString,Langue+1,FALSE) -> Service de la dette | E24: CHF | F24: =M_SerDette ->  | G24: =M_SerDette_2 -> 0 | H24: =AVERAGE(F24:G24) ->  | I24: =M_SerDette_B -> 0 | J24: =M_SerDette_B_1 -> 0 | K24: =M_SerDette_P_1 ->  | L24: =M_SerDette_P_2 ->  | M24: =M_SerDette_P_3 ->  | N24: =M_SerDette_P_4 -> 0 | O24: =M_SerDette_P_5 -> 0 | P24: =M_SerDette_P_6 -> 0 | Q24: =M_SerDette_P_7 -> 0 | R24: =M_SerDette_P_8 -> 0 | S24: =M_SerDette_P_9 -> 0
B25: =VLOOKUP("PSD_3",ResString,Langue+1,FALSE) -> Revenus courants | E25: CHF | F25: =M_RevCour -> 0 | G25: =M_RevCour_2 -> 0 | H25: =AVERAGE(F25:G25) -> 0 | I25: =M_RevCour_B -> 0 | J25: =M_RevCour_B_1 -> 0 | K25: =M_RevCour_P_1 ->  | L25: =M_RevCour_P_2 ->  | M25: =M_RevCour_P_3 ->  | N25: =M_RevCour_P_4 -> 0 | O25: =M_RevCour_P_5 -> 0 | P25: =M_RevCour_P_6 -> 0 | Q25: =M_RevCour_P_7 -> 0 | R25: =M_RevCour_P_8 -> 0 | S25: =M_RevCour_P_9 -> 0
F27: =IFERROR(F24/F25,"") ->  | G27: =IFERROR(G24/G25,"") -> 
D30: =VLOOKUP("AP_2",ResString,Langue+1,FALSE) -> Valeurs indicatives
F32: < 5% | G32: =VLOOKUP("PSD_4",ResString,Langue+1,FALSE) -> charge faible | I32: =VLOOKUP("PSD_4",ResString,Langue+1,FALSE) -> charge faible
F33: 5% – 15% | G33: =VLOOKUP("PSD_5",ResString,Langue+1,FALSE) -> charge acceptable | I33: =VLOOKUP("PSD_5",ResString,Langue+1,FALSE) -> charge acceptable
F34: > 15% | G34: =VLOOKUP("PSD_6",ResString,Langue+1,FALSE) -> charge forte | I34: =VLOOKUP("PSD_6",ResString,Langue+1,FALSE) -> charge forte
B73: MenuEndHab
G74: 15 | H74: 15 | I74: -1 | J74: -1 | K74: -1 | L74: -1 | M74: -1 | N74: -1 | O74: -1 | P74: -1 | Q74: -1 | R74: -1 | S74: -1
G75: -1 | H75: -1 | I75: 15 | J75: 15 | K75: 15 | L75: 15 | M75: 15 | N75: 15 | O75: 15 | P75: 15 | Q75: 15 | R75: 15 | S75: 15
G77: 15 | H77: 15 | I77: 15 | J77: 15 | K77: 15 | L77: 15 | M77: 15 | N77: 15 | O77: 15 | P77: 15 | Q77: 15 | R77: 15 | S77: 15

Sheet I7 - I8
F2: =An_1 -> 2024 | G2: =AN_2 -> 2025 | H2: =VLOOKUP("AP_1",ResString,Langue+1,FALSE) -> Moyenne | I2: =AN_2 -> 2025 | J2: =AN_3 -> 2026 | K2: =AN_3+1 -> 2027 | L2: =AN_3+2 -> 2028 | M2: =AN_3+3 -> 2029 | N2: =AN_3+4 -> 2030 | O2: =AN_3+5 -> 2031 | P2: =AN_3+6 -> 2032 | Q2: =AN_3+7 -> 2033 | R2: =AN_3+8 -> 2034 | S2: =AN_3+9 -> 2035
B6: =VLOOKUP("DNH_1",ResString,Langue+1,FALSE) -> 7. Dette nette 1 par habitant (I7)
B8: =VLOOKUP("DNH_2",ResString,Langue+1,FALSE) -> Dette nette I | E8: CHF | F8: =M_DetNet -> 0 | G8: =M_DetNet_2 -> 0 | H8: =AVERAGE(F8:G8) -> 0 | I8: =M_DetNet_B ->  | J8: =M_DetNet_B_1 ->  | K8: =M_DetNet_P_1 ->  | L8: =M_DetNet_P_2 ->  | M8: =M_DetNet_P_3 ->  | N8: =M_DetNet_P_4 -> 0 | O8: =M_DetNet_P_5 -> 0 | P8: =M_DetNet_P_6 -> 0 | Q8: =M_DetNet_P_7 -> 0 | R8: =M_DetNet_P_8 -> 0 | S8: =M_DetNet_P_9 -> 0
B9: =VLOOKUP("DNH_3",ResString,Langue+1,FALSE) -> Population résidante permanente | F9: =Population_AN_1_B -> Remplir | G9: =Population_AN_2_B -> Remplir | H9: =AVERAGE(F9:G9) ->  | I9: =Population_AN_2_B -> Remplir | J9: =Population_AN_3_B -> Remplir | K9: =Population_AN_4_B -> Remplir | L9: =Population_AN_5_B -> Remplir | M9: =Population_AN_6_B -> Remplir | N9: =Population_AN_7_B -> 0 | O9: =Population_AN_8_B -> 0 | P9: =Population_AN_9_B -> 0 | Q9: =Population_AN_10_B -> 0 | R9: =Population_AN_11_B -> 0 | S9: =Population_AN_12_B -> 0
F11: =IFERROR(F8/F9,"") ->  | G11: =IFERROR(G8/G9,"") -> 
D14: =VLOOKUP("AP_2",ResString,Langue+1,FALSE) -> Valeurs indicatives
F16: < 0 CHF | G16: =VLOOKUP("DNH_4",ResString,Langue+1,FALSE) -> patrimoine net | I16: =VLOOKUP("DNH_4",ResString,Langue+1,FALSE) -> patrimoine net
F17: 0 – 1‘000 CHF | G17: =VLOOKUP("DNH_5",ResString,Langue+1,FALSE) -> endettement faible | I17: =VLOOKUP("DNH_5",ResString,Langue+1,FALSE) -> endettement faible
F18: 1‘001 – 2‘500 CHF | G18: =VLOOKUP("DNH_6",ResString,Langue+1,FALSE) -> endettement moyen | I18: =VLOOKUP("DNH_6",ResString,Langue+1,FALSE) -> endettement moyen
F19: 2‘501 – 5‘000 CHF | G19: =VLOOKUP("DNH_7",ResString,Langue+1,FALSE) -> endettement important | I19: =VLOOKUP("DNH_7",ResString,Langue+1,FALSE) -> endettement important
F20: > 5'000 CHF | G20: =VLOOKUP("DNH_8",ResString,Langue+1,FALSE) -> endettement très important | I20: =VLOOKUP("DNH_8",ResString,Langue+1,FALSE) -> endettement très important
B23: =VLOOKUP("TAU_1",ResString,Langue+1,FALSE) -> 8. Taux d’autofinancement (I8)
B25: =VLOOKUP("TAU_2",ResString,Langue+1,FALSE) -> Autofinancement | E25: CHF | F25: =M_AutFin ->  | G25: =M_AutFin_2 ->  | H25: =AVERAGE(F25:G25) ->  | I25: =M_AutFin_B ->  | J25: =M_AutFin_B_1 ->  | K25: =M_AutFin_P_1 ->  | L25: =M_AutFin_P_2 ->  | M25: =M_AutFin_P_3 ->  | N25: =M_AutFin_P_4 -> 0 | O25: =M_AutFin_P_5 -> 0 | P25: =M_AutFin_P_6 -> 0 | Q25: =M_AutFin_P_7 -> 0 | R25: =M_AutFin_P_8 -> 0 | S25: =M_AutFin_P_9 -> 0
B26: =VLOOKUP("TAU_3",ResString,Langue+1,FALSE) -> Revenus courants | E26: CHF | F26: =M_RevCour -> 0 | G26: =M_RevCour_2 -> 0 | H26: =AVERAGE(F26:G26) -> 0 | I26: =M_RevCour_B -> 0 | J26: =M_RevCour_B_1 -> 0 | K26: =M_RevCour_P_1 ->  | L26: =M_RevCour_P_2 ->  | M26: =M_RevCour_P_3 ->  | N26: =M_RevCour_P_4 -> 0 | O26: =M_RevCour_P_5 -> 0 | P26: =M_RevCour_P_6 -> 0 | Q26: =M_RevCour_P_7 -> 0 | R26: =M_RevCour_P_8 -> 0 | S26: =M_RevCour_P_9 -> 0
F28: =IFERROR(F25/F26,"") ->  | G28: =IFERROR(G25/G26,"") -> 
D31: =VLOOKUP("AP_2",ResString,Langue+1,FALSE) -> Valeurs indicatives
F33: > 20% | G33: =VLOOKUP("TAU_4",ResString,Langue+1,FALSE) -> bon | I33: =VLOOKUP("TAU_4",ResString,Langue+1,FALSE) -> bon
F34: 10% – 20% | G34: =VLOOKUP("TAU_5",ResString,Langue+1,FALSE) -> moyen | I34: =VLOOKUP("TAU_5",ResString,Langue+1,FALSE) -> moyen
F35: < 10% | G35: =VLOOKUP("TAU_6",ResString,Langue+1,FALSE) -> mauvais | I35: =VLOOKUP("TAU_6",ResString,Langue+1,FALSE) -> mauvais
B83: MenuTauxVolDet
G84: 16 | H84: 16 | I84: -1 | J84: -1 | K84: -1 | L84: -1 | M84: -1 | N84: -1 | O84: -1 | P84: -1 | Q84: -1 | R84: -1 | S84: -1
G85: -1 | H85: -1 | I85: 16 | J85: 16 | K85: 16 | L85: 16 | M85: 16 | N85: 16 | O85: 16 | P85: 16 | Q85: 16 | R85: 16 | S85: 16
G87: 16 | H87: 16 | I87: 16 | J87: 16 | K87: 16 | L87: 16 | M87: 16 | N87: 16 | O87: 16 | P87: 16 | Q87: 16 | R87: 16 | S87: 16

Sheet Aperçu indicateurs
O1: MenuAperIndCol
B2: =VLOOKUP("RC_1",ResString,Langue+1,FALSE) -> Aperçu des indicateurs financiers
F3: =VLOOKUP("AC_30",ResString,Langue+1,FALSE) -> Compte | G3: =VLOOKUP("AP_3",ResString,Langue+1,FALSE) -> Budget | H3: =VLOOKUP("AP_3",ResString,Langue+1,FALSE) -> Budget | P3: -1 | Q3: 16.5 | R3: -1 | S3: 16.5
B5: =VLOOKUP("TAN_1",ResString,Langue+1,FALSE) -> 1. Taux d’endettement net (I1) | F5: =An_1 -> 2024 | G5: =AN_2 -> 2025 | H5: =AN_3 -> 2026 | I5: =VLOOKUP("AP_1",ResString,Langue+1,FALSE) -> Moyenne | J5: =VLOOKUP("AP_1",ResString,Langue+1,FALSE) -> Moyenne
B6: =VLOOKUP("TAN_7",ResString,Langue+1,FALSE) -> Dette nette en % des revenus fiscaux | F6: =TAN_AN_1 ->  | G6: =IF(res_Interface=0,TAN_AN_2,TAN_AN_2_B) ->  | H6: =TAN_AN_3 ->  | I6: =AVERAGE(M_DetNet,M_DetNet_B,M_DetNet_B_1)/AVERAGE(M_40,M_40_B,M_40_B_1) ->  | J6: =TAN_AN_M -> 
B8: =VLOOKUP("AP_2",ResString,Langue+1,FALSE) -> Valeurs indicatives
D9: < 100% | E9: =VLOOKUP("TAN_4",ResString,Langue+1,FALSE) -> bon
D10: 100% - 150% | E10: =VLOOKUP("TAN_5",ResString,Langue+1,FALSE) -> suffisant
D11: > 150% | E11: =VLOOKUP("TAN_6",ResString,Langue+1,FALSE) -> mauvais
B14: =VLOOKUP("DAT_1",ResString,Langue+1,FALSE) -> 2. Degré d’autofinancement (I2) | F14: =An_1 -> 2024 | G14: =AN_2 -> 2025 | H14: =AN_3 -> 2026 | I14: =VLOOKUP("AP_1",ResString,Langue+1,FALSE) -> Moyenne | J14: =VLOOKUP("AP_1",ResString,Langue+1,FALSE) -> Moyenne
B15: =VLOOKUP("DAT_7",ResString,Langue+1,FALSE) -> Autofinancement en % des investissements nets | F15: =DAT_AN_1 ->  | G15: =IF(res_Interface=0,DAT_AN_2,DAT_AN_2_B) ->  | H15: =DAT_AN_3 ->  | I15: =AVERAGE(M_AutFin,M_AutFin_B,M_AutFin_B_1)/AVERAGE(M_InvNet,M_InvNet_B,M_InvNet_B_1) ->  | J15: =DAT_AN_M -> 
B17: =VLOOKUP("AP_2",ResString,Langue+1,FALSE) -> Valeurs indicatives
D18: > 100% | E18: =VLOOKUP("DAT_4",ResString,Langue+1,FALSE) -> haute conjoncture
D19: 80% - 100% | E19: =VLOOKUP("DAT_5",ResString,Langue+1,FALSE) -> cas normal
D20: 50% - 80% | E20: =VLOOKUP("DAT_6",ResString,Langue+1,FALSE) -> récession
B23: =VLOOKUP("PCI_1",ResString,Langue+1,FALSE) -> 3. Part des charges d’intérêts (I3) | F23: =An_1 -> 2024 | G23: =AN_2 -> 2025 | H23: =AN_3 -> 2026 | I23: =VLOOKUP("AP_1",ResString,Langue+1,FALSE) -> Moyenne | J23: =VLOOKUP("AP_1",ResString,Langue+1,FALSE) -> Moyenne
B24: =VLOOKUP("PCI_7",ResString,Langue+1,FALSE) -> Charges d'intérêts nets en % des revenus courants | F24: =PCI_AN_1 ->  | G24: =IF(res_Interface=0,PCI_AN_2,PCI_AN_2_B) ->  | H24: =PCI_AN_3 ->  | I24: =AVERAGE(M_CharIntNet,M_CharIntNet_B,M_CharIntNet_B_1)/AVERAGE(M_RevCour,M_RevCour_B,M_RevCour_B_1) ->  | J24: =PCI_AN_M -> 
B26: =VLOOKUP("AP_2",ResString,Langue+1,FALSE) -> Valeurs indicatives
D27: 0% – 4% | E27: =VLOOKUP("PCI_4",ResString,Langue+1,FALSE) -> bon
D28: 4% – 9% | E28: =VLOOKUP("PCI_5",ResString,Langue+1,FALSE) -> suffisant
D29: > 9% | E29: =VLOOKUP("PCI_6",ResString,Langue+1,FALSE) -> mauvais
B32: =VLOOKUP("DBR_1",ResString,Langue+1,FALSE) -> 4. Dette brute par rapport aux revenus (I4) | F32: =An_1 -> 2024 | G32: =AN_2 -> 2025 | H32: =AN_3 -> 2026 | I32: =VLOOKUP("AP_1",ResString,Langue+1,FALSE) -> Moyenne | J32: =VLOOKUP("AP_1",ResString,Langue+1,FALSE) -> Moyenne
B33: =VLOOKUP("DBR_9",ResString,Langue+1,FALSE) -> Dette brute en % des revenus courants | F33: =DBR_AN_1 ->  | G33: =IF(res_Interface=0,DBR_AN_2,DBR_AN_2_B) ->  | H33: =DBR_AN_3 ->  | I33: =AVERAGE(M_DetBrut,M_DetBrut_B,M_DetBrut_B_1)/AVERAGE(M_RevCour,M_RevCour_B,M_RevCour_B_1) ->  | J33: =DBR_AN_M -> 
B35: =VLOOKUP("AP_2",ResString,Langue+1,FALSE) -> Valeurs indicatives
D36: < 50% | E36: =VLOOKUP("DBR_4",ResString,Langue+1,FALSE) -> très bon
D37: 50% – 100% | E37: =VLOOKUP("DBR_5",ResString,Langue+1,FALSE) -> bon
D38: 100% – 150% | E38: =VLOOKUP("DBR_6",ResString,Langue+1,FALSE) -> moyen
D39: 150% – 200% | E39: =VLOOKUP("DBR_7",ResString,Langue+1,FALSE) -> mauvais
D40: > 200% | E40: =VLOOKUP("DBR_8",ResString,Langue+1,FALSE) -> critique
B43: =VLOOKUP("PDI_1",ResString,Langue+1,FALSE) -> 5. Proportion des investissements (I5) | F43: =An_1 -> 2024 | G43: =AN_2 -> 2025 | H43: =AN_3 -> 2026 | I43: =VLOOKUP("AP_1",ResString,Langue+1,FALSE) -> Moyenne | J43: =VLOOKUP("AP_1",ResString,Langue+1,FALSE) -> Moyenne
B44: =VLOOKUP("PDI_8",ResString,Langue+1,FALSE) -> Investissements bruts en % des dépenses totales | F44: =PDI_AN_1 ->  | G44: =IF(res_Interface=0,PDI_AN_2,PDI_AN_2_B) ->  | H44: =PDI_AN_3 ->  | I44: =AVERAGE(M_InvBrut,M_InvBrut_B,M_InvBrut_B_1)/AVERAGE(M_DepTotal,M_DepTotal_B,M_DepTotal_B_1) ->  | J44: =PDI_AN_M -> 
B46: =VLOOKUP("AP_2",ResString,Langue+1,FALSE) -> Valeurs indicatives
D47: < 10% | E47: =VLOOKUP("PDI_4",ResString,Langue+1,FALSE) -> eff. d’inv. faible
D48: 10% – 20% | E48: =VLOOKUP("PDI_5",ResString,Langue+1,FALSE) -> eff. d’inv. moyen
D49: 20% – 30% | E49: =VLOOKUP("PDI_6",ResString,Langue+1,FALSE) -> eff. d’inv. élevé
D50: > 30% | E50: =VLOOKUP("PDI_7",ResString,Langue+1,FALSE) -> eff. d’inv. très élevé
B53: =VLOOKUP("PSD_1",ResString,Langue+1,FALSE) -> 6. Part du service de la dette (I6) | F53: =An_1 -> 2024 | G53: =AN_2 -> 2025 | H53: =AN_3 -> 2026 | I53: =VLOOKUP("AP_1",ResString,Langue+1,FALSE) -> Moyenne | J53: =VLOOKUP("AP_1",ResString,Langue+1,FALSE) -> Moyenne
B54: =VLOOKUP("PSD_7",ResString,Langue+1,FALSE) -> Service de la dette en % des revenus courants | F54: =PSD_AN_1 ->  | G54: =IF(res_Interface=0,PSD_AN_2,PSD_AN_2_B) ->  | H54: =PSD_AN_3 ->  | I54: =AVERAGE(M_SerDette,M_SerDette_B,M_SerDette_B_1)/AVERAGE(M_RevCour,M_RevCour_B,M_RevCour_B_1) ->  | J54: =PSD_AN_M -> 
B56: =VLOOKUP("AP_2",ResString,Langue+1,FALSE) -> Valeurs indicatives
D57: < 5% | E57: =VLOOKUP("PSD_4",ResString,Langue+1,FALSE) -> charge faible
D58: 5% – 15% | E58: =VLOOKUP("PSD_5",ResString,Langue+1,FALSE) -> charge acceptable
D59: > 15% | E59: =VLOOKUP("PSD_6",ResString,Langue+1,FALSE) -> charge forte
B62: =VLOOKUP("DNH_1",ResString,Langue+1,FALSE) -> 7. Dette nette 1 par habitant (I7) | F62: =An_1 -> 2024 | G62: =AN_2 -> 2025 | H62: =AN_3 -> 2026 | I62: =VLOOKUP("AP_1",ResString,Langue+1,FALSE) -> Moyenne | J62: =VLOOKUP("AP_1",ResString,Langue+1,FALSE) -> Moyenne
B63: =VLOOKUP("DNH_9",ResString,Langue+1,FALSE) -> Dette nette I par habitant | F63: =DNH_AN_1 ->  | G63: =IF(res_Interface=0,DNH_AN_2,DNH_AN_B_2) ->  | H63: =DNH_AN_3 ->  | I63: =AVERAGE(M_DetNet,M_DetNet_B,M_DetNet_B_1)/AVERAGE(Population_AN_1_B,Population_AN_2_B,Population_AN_3_B) ->  | J63: =DNH_AN_M -> 
B65: =VLOOKUP("AP_2",ResString,Langue+1,FALSE) -> Valeurs indicatives
D66: < 0 CHF | E66: =VLOOKUP("DNH_4",ResString,Langue+1,FALSE) -> patrimoine net
D67: 0 – 1‘000 CHF | E67: =VLOOKUP("DNH_5",ResString,Langue+1,FALSE) -> endettement faible
D68: 1‘001 – 2‘500 CHF | E68: =VLOOKUP("DNH_6",ResString,Langue+1,FALSE) -> endettement moyen
D69: 2‘501 – 5‘000 CHF | E69: =VLOOKUP("DNH_7",ResString,Langue+1,FALSE) -> endettement important
D70: > 5'000 CHF | E70: =VLOOKUP("DNH_8",ResString,Langue+1,FALSE) -> endettement très important
B73: =VLOOKUP("TAU_1",ResString,Langue+1,FALSE) -> 8. Taux d’autofinancement (I8) | F73: =An_1 -> 2024 | G73: =AN_2 -> 2025 | H73: =AN_3 -> 2026 | I73: =VLOOKUP("AP_1",ResString,Langue+1,FALSE) -> Moyenne | J73: =VLOOKUP("AP_1",ResString,Langue+1,FALSE) -> Moyenne
B74: =VLOOKUP("TAU_7",ResString,Langue+1,FALSE) -> Autofinancement en % des revenus courants | F74: =TAU_AN_1 ->  | G74: =IF(res_Interface=0,TAU_AN_2,TAU_AN_2_B) ->  | H74: =TAU_AN_3 ->  | I74: =AVERAGE(M_AutFin,M_AutFin_B,M_AutFin_B_1)/AVERAGE(M_RevCour,M_RevCour_B,M_RevCour_B_1) ->  | J74: =TAU_AN_M -> 
B76: =VLOOKUP("AP_2",ResString,Langue+1,FALSE) -> Valeurs indicatives
D77: > 20% | E77: =VLOOKUP("TAU_4",ResString,Langue+1,FALSE) -> bon
D78: 10% – 20% | E78: =VLOOKUP("TAU_5",ResString,Langue+1,FALSE) -> moyen
D79: < 10% | E79: =VLOOKUP("TAU_6",ResString,Langue+1,FALSE) -> mauvais
C99: MenuAperInd
H100: -1 | I100: -1 | J100: 11
H101: 11 | I101: 11 | J101: -1
H102: -1 | I102: -1 | J102: 11
H103: 11 | I103: 11 | J103: 11

Sheet Evolution indicateurs
C2: =VLOOKUP("MNU_1030",ResString,Langue+1,FALSE) -> Evolution indicateurs | E2: =VLOOKUP("MNU_12",ResString,Langue+1,FALSE) -> Comptes | F2: =VLOOKUP("MNU_12",ResString,Langue+1,FALSE) -> Comptes | G2: =VLOOKUP("AP_1",ResString,Langue+1,FALSE) -> Moyenne | H2: =VLOOKUP("AP_3",ResString,Langue+1,FALSE) -> Budget | I2: =VLOOKUP("AP_3",ResString,Langue+1,FALSE) -> Budget | J2: =VLOOKUP("PF_15",ResString,Langue+1,FALSE) -> Plan financier | K2: Plan financier | L2: Plan financier | M2: Plan financier | N2: Plan financier | O2: Plan financier | P2: Plan financier | Q2: Plan financier | R2: Plan financier
E3: =An_1 -> 2024 | F3: =AN_2 -> 2025 | H3: =AN_2 -> 2025 | I3: =AN_3 -> 2026 | J3: =AN_3+1 -> 2027 | K3: =AN_3+2 -> 2028 | L3: =AN_3+3 -> 2029 | M3: =AN_3+4 -> 2030 | N3: =AN_3+5 -> 2031 | O3: =AN_3+6 -> 2032 | P3: =AN_3+7 -> 2033 | Q3: =AN_3+8 -> 2034 | R3: =AN_3+9 -> 2035
C5: =VLOOKUP("TAN_1",ResString,Langue+1,FALSE) -> 1. Taux d’endettement net (I1) | E5: =TAN_AN_1 ->  | F5: =TAN_AN_2 ->  | G5: =TAN_AN_M ->  | H5: =TAN_AN_2_B ->  | I5: =TAN_AN_3 ->  | J5: =TAN_AN_4 ->  | K5: =TAN_AN_5 ->  | L5: =TAN_AN_6 ->  | M5: =TAN_AN_7 ->  | N5: =TAN_AN_8 ->  | O5: =TAN_AN_9 ->  | P5: =TAN_AN_10 ->  | Q5: =TAN_AN_11 ->  | R5: =TAN_AN_12 -> 
E6: =IFERROR( VLOOKUP(TANNote(TAN_AN_1),ResString,Langue+1,FALSE),"") ->  | F6: =IFERROR( VLOOKUP(TANNote(TAN_AN_2),ResString,Langue+1,FALSE),"") ->  | G6: =IFERROR( VLOOKUP(TANNote(TAN_AN_M),ResString,Langue+1,FALSE),"") ->  | H6: =IFERROR( VLOOKUP(TANNote(TAN_AN_2_B),ResString,Langue+1,FALSE),"") ->  | I6: =IFERROR( VLOOKUP(TANNote(TAN_AN_3),ResString,Langue+1,FALSE),"") ->  | J6: =IFERROR( VLOOKUP(TANNote(TAN_AN_4),ResString,Langue+1,FALSE),"") ->  | K6: =IFERROR( VLOOKUP(TANNote(TAN_AN_5),ResString,Langue+1,FALSE),"") ->  | L6: =IFERROR( VLOOKUP(TANNote(TAN_AN_6),ResString,Langue+1,FALSE),"") ->  | M6: =IFERROR( VLOOKUP(TANNote(TAN_AN_7),ResString,Langue+1,FALSE),"") ->  | N6: =IFERROR( VLOOKUP(TANNote(TAN_AN_8),ResString,Langue+1,FALSE),"") ->  | O6: =IFERROR( VLOOKUP(TANNote(TAN_AN_9),ResString,Langue+1,FALSE),"") ->  | P6: =IFERROR( VLOOKUP(TANNote(TAN_AN_10),ResString,Langue+1,FALSE),"") ->  | Q6: =IFERROR( VLOOKUP(TANNote(TAN_AN_11),ResString,Langue+1,FALSE),"") ->  | R6: =IFERROR( VLOOKUP(TANNote(TAN_AN_12),ResString,Langue+1,FALSE),"") -> 
C8: =VLOOKUP("DAT_1",ResString,Langue+1,FALSE) -> 2. Degré d’autofinancement (I2) | E8: =DAT_AN_1 ->  | F8: =DAT_AN_2 ->  | G8: =DAT_AN_M ->  | H8: =DAT_AN_2_B ->  | I8: =DAT_AN_3 ->  | J8: =DAT_AN_4 ->  | K8: =DAT_AN_5 ->  | L8: =DAT_AN_6 ->  | M8: =DAT_AN_7 ->  | N8: =DAT_AN_8 ->  | O8: =DAT_AN_9 ->  | P8: =DAT_AN_10 ->  | Q8: =DAT_AN_11 ->  | R8: =DAT_AN_12 -> 
E9: =IFERROR( VLOOKUP(DATNote(DAT_AN_1),ResString,Langue+1,FALSE),"") ->  | F9: =IFERROR( VLOOKUP(DATNote(DAT_AN_2),ResString,Langue+1,FALSE),"") ->  | G9: =IFERROR( VLOOKUP(DATNote(DAT_AN_M),ResString,Langue+1,FALSE),"") ->  | H9: =IFERROR( VLOOKUP(DATNote(DAT_AN_2_B),ResString,Langue+1,FALSE),"") ->  | I9: =IFERROR( VLOOKUP(DATNote(DAT_AN_3),ResString,Langue+1,FALSE),"") ->  | J9: =IFERROR( VLOOKUP(DATNote(DAT_AN_4),ResString,Langue+1,FALSE),"") ->  | K9: =IFERROR( VLOOKUP(DATNote(DAT_AN_5),ResString,Langue+1,FALSE),"") ->  | L9: =IFERROR( VLOOKUP(DATNote(DAT_AN_6),ResString,Langue+1,FALSE),"") ->  | M9: =IFERROR( VLOOKUP(DATNote(DAT_AN_7),ResString,Langue+1,FALSE),"") ->  | N9: =IFERROR( VLOOKUP(DATNote(DAT_AN_8),ResString,Langue+1,FALSE),"") ->  | O9: =IFERROR( VLOOKUP(DATNote(DAT_AN_9),ResString,Langue+1,FALSE),"") ->  | P9: =IFERROR( VLOOKUP(DATNote(DAT_AN_10),ResString,Langue+1,FALSE),"") ->  | Q9: =IFERROR( VLOOKUP(DATNote(DAT_AN_11),ResString,Langue+1,FALSE),"") ->  | R9: =IFERROR( VLOOKUP(DATNote(DAT_AN_12),ResString,Langue+1,FALSE),"") -> 
C11: =VLOOKUP("TA_1",ResString,Langue+1,FALSE) ->  | E11: =TA_An_1 ->  | F11: =TA_An_2 ->  | G11: =TA_An_M ->  | H11: =TA_An_2_B ->  | I11: =TA_An_3 ->  | J11: =TA_An_4 ->  | K11: =TA_An_5 ->  | L11: =TA_An_6 ->  | M11: =TA_An_7 ->  | N11: =TA_An_8 ->  | O11: =TA_An_9 ->  | P11: =TA_An_10 ->  | Q11: =TA_An_11 ->  | R11: =TA_An_12 -> 
E12: =IFERROR( VLOOKUP(TANote(TA_An_1),ResString,Langue+1,FALSE),"") ->  | F12: =IFERROR( VLOOKUP(TANote(TA_An_2),ResString,Langue+1,FALSE),"") ->  | G12: =IFERROR( VLOOKUP(TANote(TA_An_M),ResString,Langue+1,FALSE),"") ->  | H12: =IFERROR( VLOOKUP(TANote(TA_An_2_B),ResString,Langue+1,FALSE),"") ->  | I12: =IFERROR( VLOOKUP(TANote(TA_An_3),ResString,Langue+1,FALSE),"") ->  | J12: =IFERROR( VLOOKUP(TANote(TA_An_4),ResString,Langue+1,FALSE),"") ->  | K12: =IFERROR( VLOOKUP(TANote(TA_An_5),ResString,Langue+1,FALSE),"") ->  | L12: =IFERROR( VLOOKUP(TANote(TA_An_6),ResString,Langue+1,FALSE),"") ->  | M12: =IFERROR( VLOOKUP(TANote(TA_An_7),ResString,Langue+1,FALSE),"") ->  | N12: =IFERROR( VLOOKUP(TANote(TA_An_8),ResString,Langue+1,FALSE),"") ->  | O12: =IFERROR( VLOOKUP(TANote(TA_An_9),ResString,Langue+1,FALSE),"") ->  | P12: =IFERROR( VLOOKUP(TANote(TA_An_10),ResString,Langue+1,FALSE),"") ->  | Q12: =IFERROR( VLOOKUP(TANote(TA_An_11),ResString,Langue+1,FALSE),"") ->  | R12: =IFERROR( VLOOKUP(TANote(TA_An_12),ResString,Langue+1,FALSE),"") -> 
C14: =VLOOKUP("PCI_1",ResString,Langue+1,FALSE) -> 3. Part des charges d’intérêts (I3) | E14: =PCI_AN_1 ->  | F14: =PCI_AN_2 ->  | G14: =PCI_AN_M ->  | H14: =PCI_AN_2_B ->  | I14: =PCI_AN_3 ->  | J14: =PCI_AN_4 ->  | K14: =PCI_AN_5 ->  | L14: =PCI_AN_6 ->  | M14: =PCI_AN_7 ->  | N14: =PCI_AN_8 ->  | O14: =PCI_AN_9 ->  | P14: =PCI_AN_10 ->  | Q14: =PCI_AN_11 ->  | R14: =PCI_AN_12 -> 
E15: =IFERROR( VLOOKUP(PCINote(PCI_AN_1),ResString,Langue+1,FALSE),"") ->  | F15: =IFERROR( VLOOKUP(PCINote(PCI_AN_2),ResString,Langue+1,FALSE),"") ->  | G15: =IFERROR( VLOOKUP(PCINote(PCI_AN_M),ResString,Langue+1,FALSE),"") ->  | H15: =IFERROR( VLOOKUP(PCINote(PCI_AN_2_B),ResString,Langue+1,FALSE),"") ->  | I15: =IFERROR( VLOOKUP(PCINote(PCI_AN_3),ResString,Langue+1,FALSE),"") ->  | J15: =IFERROR( VLOOKUP(PCINote(PCI_AN_4),ResString,Langue+1,FALSE),"") ->  | K15: =IFERROR( VLOOKUP(PCINote(PCI_AN_5),ResString,Langue+1,FALSE),"") ->  | L15: =IFERROR( VLOOKUP(PCINote(PCI_AN_6),ResString,Langue+1,FALSE),"") ->  | M15: =IFERROR( VLOOKUP(PCINote(PCI_AN_7),ResString,Langue+1,FALSE),"") ->  | N15: =IFERROR( VLOOKUP(PCINote(PCI_AN_8),ResString,Langue+1,FALSE),"") ->  | O15: =IFERROR( VLOOKUP(PCINote(PCI_AN_9),ResString,Langue+1,FALSE),"") ->  | P15: =IFERROR( VLOOKUP(PCINote(PCI_AN_10),ResString,Langue+1,FALSE),"") ->  | Q15: =IFERROR( VLOOKUP(PCINote(PCI_AN_11),ResString,Langue+1,FALSE),"") ->  | R15: =IFERROR( VLOOKUP(PCINote(PCI_AN_12),ResString,Langue+1,FALSE),"") -> 
C17: =VLOOKUP("DBR_1",ResString,Langue+1,FALSE) -> 4. Dette brute par rapport aux revenus (I4) | E17: =DBR_AN_1 ->  | F17: =DBR_AN_2 ->  | G17: =DBR_AN_M ->  | H17: =DBR_AN_2_B ->  | I17: =DBR_AN_3 ->  | J17: =DBR_AN_4 ->  | K17: =DBR_AN_5 ->  | L17: =DBR_AN_6 ->  | M17: =DBR_AN_7 ->  | N17: =DBR_AN_8 ->  | O17: =DBR_AN_9 ->  | P17: =DBR_AN_10 ->  | Q17: =DBR_AN_11 ->  | R17: =DBR_AN_12 -> 
E18: =IFERROR( VLOOKUP(DBRNote(DBR_AN_1),ResString,Langue+1,FALSE),"") ->  | F18: =IFERROR( VLOOKUP(DBRNote(DBR_AN_2),ResString,Langue+1,FALSE),"") ->  | G18: =IFERROR( VLOOKUP(DBRNote(DBR_AN_M),ResString,Langue+1,FALSE),"") ->  | H18: =IFERROR( VLOOKUP(DBRNote(DBR_AN_2_B),ResString,Langue+1,FALSE),"") ->  | I18: =IFERROR( VLOOKUP(DBRNote(DBR_AN_3),ResString,Langue+1,FALSE),"") ->  | J18: =IFERROR( VLOOKUP(DBRNote(DBR_AN_4),ResString,Langue+1,FALSE),"") ->  | K18: =IFERROR( VLOOKUP(DBRNote(DBR_AN_5),ResString,Langue+1,FALSE),"") ->  | L18: =IFERROR( VLOOKUP(DBRNote(DBR_AN_6),ResString,Langue+1,FALSE),"") ->  | M18: =IFERROR( VLOOKUP(DBRNote(DBR_AN_7),ResString,Langue+1,FALSE),"") ->  | N18: =IFERROR( VLOOKUP(DBRNote(DBR_AN_8),ResString,Langue+1,FALSE),"") ->  | O18: =IFERROR( VLOOKUP(DBRNote(DBR_AN_9),ResString,Langue+1,FALSE),"") ->  | P18: =IFERROR( VLOOKUP(DBRNote(DBR_AN_10),ResString,Langue+1,FALSE),"") ->  | Q18: =IFERROR( VLOOKUP(DBRNote(DBR_AN_11),ResString,Langue+1,FALSE),"") ->  | R18: =IFERROR( VLOOKUP(DBRNote(DBR_AN_12),ResString,Langue+1,FALSE),"") -> 
C20: =VLOOKUP("PDI_1",ResString,Langue+1,FALSE) -> 5. Proportion des investissements (I5) | E20: =PDI_AN_1 ->  | F20: =PDI_AN_2 ->  | G20: =PDI_AN_M ->  | H20: =PDI_AN_2_B ->  | I20: =PDI_AN_3 ->  | J20: =PDI_AN_4 ->  | K20: =PDI_AN_5 ->  | L20: =PDI_AN_6 ->  | M20: =PDI_AN_7 ->  | N20: =PDI_AN_8 ->  | O20: =PDI_AN_9 ->  | P20: =PDI_AN_10 ->  | Q20: =PDI_AN_11 ->  | R20: =PDI_AN_12 -> 
E21: =IFERROR( VLOOKUP(PDINote(PDI_AN_1),ResString,Langue+1,FALSE),"") ->  | F21: =IFERROR( VLOOKUP(PDINote(PDI_AN_2),ResString,Langue+1,FALSE),"") ->  | G21: =IFERROR( VLOOKUP(PDINote(PDI_AN_M),ResString,Langue+1,FALSE),"") ->  | H21: =IFERROR( VLOOKUP(PDINote(PDI_AN_2_B),ResString,Langue+1,FALSE),"") ->  | I21: =IFERROR( VLOOKUP(PDINote(PDI_AN_3),ResString,Langue+1,FALSE),"") ->  | J21: =IFERROR( VLOOKUP(PDINote(PDI_AN_4),ResString,Langue+1,FALSE),"") ->  | K21: =IFERROR( VLOOKUP(PDINote(PDI_AN_5),ResString,Langue+1,FALSE),"") ->  | L21: =IFERROR( VLOOKUP(PDINote(PDI_AN_6),ResString,Langue+1,FALSE),"") ->  | M21: =IFERROR( VLOOKUP(PDINote(PDI_AN_7),ResString,Langue+1,FALSE),"") ->  | N21: =IFERROR( VLOOKUP(PDINote(PDI_AN_8),ResString,Langue+1,FALSE),"") ->  | O21: =IFERROR( VLOOKUP(PDINote(PDI_AN_9),ResString,Langue+1,FALSE),"") ->  | P21: =IFERROR( VLOOKUP(PDINote(PDI_AN_10),ResString,Langue+1,FALSE),"") ->  | Q21: =IFERROR( VLOOKUP(PDINote(PDI_AN_11),ResString,Langue+1,FALSE),"") ->  | R21: =IFERROR( VLOOKUP(PDINote(PDI_AN_12),ResString,Langue+1,FALSE),"") -> 
C23: =VLOOKUP("PSD_1",ResString,Langue+1,FALSE) -> 6. Part du service de la dette (I6) | E23: =PSD_AN_1 ->  | F23: =PSD_AN_2 ->  | G23: =PSD_AN_M ->  | H23: =PSD_AN_2_B ->  | I23: =PSD_AN_3 ->  | J23: =PSD_AN_4 ->  | K23: =PSD_AN_5 ->  | L23: =PSD_AN_6 ->  | M23: =PSD_AN_7 ->  | N23: =PSD_AN_8 ->  | O23: =PSD_AN_9 ->  | P23: =PSD_AN_10 ->  | Q23: =PSD_AN_11 ->  | R23: =PSD_AN_12 -> 
E24: =IFERROR( VLOOKUP(PSDNote(PSD_AN_1),ResString,Langue+1,FALSE),"") ->  | F24: =IFERROR( VLOOKUP(PSDNote(PSD_AN_2),ResString,Langue+1,FALSE),"") ->  | G24: =IFERROR( VLOOKUP(PSDNote(PSD_AN_M),ResString,Langue+1,FALSE),"") ->  | H24: =IFERROR( VLOOKUP(PSDNote(PSD_AN_2_B),ResString,Langue+1,FALSE),"") ->  | I24: =IFERROR( VLOOKUP(PSDNote(PSD_AN_3),ResString,Langue+1,FALSE),"") ->  | J24: =IFERROR( VLOOKUP(PSDNote(PSD_AN_4),ResString,Langue+1,FALSE),"") ->  | K24: =IFERROR( VLOOKUP(PSDNote(PSD_AN_5),ResString,Langue+1,FALSE),"") ->  | L24: =IFERROR( VLOOKUP(PSDNote(PSD_AN_6),ResString,Langue+1,FALSE),"") ->  | M24: =IFERROR( VLOOKUP(PSDNote(PSD_AN_7),ResString,Langue+1,FALSE),"") ->  | N24: =IFERROR( VLOOKUP(PSDNote(PSD_AN_8),ResString,Langue+1,FALSE),"") ->  | O24: =IFERROR( VLOOKUP(PSDNote(PSD_AN_9),ResString,Langue+1,FALSE),"") ->  | P24: =IFERROR( VLOOKUP(PSDNote(PSD_AN_10),ResString,Langue+1,FALSE),"") ->  | Q24: =IFERROR( VLOOKUP(PSDNote(PSD_AN_11),ResString,Langue+1,FALSE),"") ->  | R24: =IFERROR( VLOOKUP(PSDNote(PSD_AN_12),ResString,Langue+1,FALSE),"") -> 
C26: =VLOOKUP("DNH_1",ResString,Langue+1,FALSE) -> 7. Dette nette 1 par habitant (I7) | E26: =DNH_AN_1 ->  | F26: =DNH_AN_2 ->  | G26: =DNH_AN_M ->  | H26: =DNH_AN_B_2 ->  | I26: =DNH_AN_3 ->  | J26: =DNH_AN_4 ->  | K26: =DNH_AN_5 ->  | L26: =DNH_AN_6 ->  | M26: =DNH_AN_7 ->  | N26: =DNH_AN_8 ->  | O26: =DNH_AN_9 ->  | P26: =DNH_AN_10 ->  | Q26: =DNH_AN_11 ->  | R26: =DNH_AN_12 -> 
E27: =IFERROR( VLOOKUP(DNHNote(DNH_AN_1),ResString,Langue+1,FALSE),"") ->  | F27: =IFERROR( VLOOKUP(DNHNote(DNH_AN_2),ResString,Langue+1,FALSE),"") ->  | G27: =IFERROR( VLOOKUP(DNHNote(DNH_AN_M),ResString,Langue+1,FALSE),"") ->  | H27: =IFERROR( VLOOKUP(DNHNote(DNH_AN_B_2),ResString,Langue+1,FALSE),"") ->  | I27: =IFERROR( VLOOKUP(DNHNote(DNH_AN_3),ResString,Langue+1,FALSE),"") ->  | J27: =IFERROR( VLOOKUP(DNHNote(DNH_AN_4),ResString,Langue+1,FALSE),"") ->  | K27: =IFERROR( VLOOKUP(DNHNote(DNH_AN_5),ResString,Langue+1,FALSE),"") ->  | L27: =IFERROR( VLOOKUP(DNHNote(DNH_AN_6),ResString,Langue+1,FALSE),"") ->  | M27: =IFERROR( VLOOKUP(DNHNote(DNH_AN_7),ResString,Langue+1,FALSE),"") ->  | N27: =IFERROR( VLOOKUP(DNHNote(DNH_AN_8),ResString,Langue+1,FALSE),"") ->  | O27: =IFERROR( VLOOKUP(DNHNote(DNH_AN_9),ResString,Langue+1,FALSE),"") ->  | P27: =IFERROR( VLOOKUP(DNHNote(DNH_AN_10),ResString,Langue+1,FALSE),"") ->  | Q27: =IFERROR( VLOOKUP(DNHNote(DNH_AN_11),ResString,Langue+1,FALSE),"") ->  | R27: =IFERROR( VLOOKUP(DNHNote(DNH_AN_12),ResString,Langue+1,FALSE),"") -> 
C29: =VLOOKUP("TAU_1",ResString,Langue+1,FALSE) -> 8. Taux d’autofinancement (I8) | E29: =TAU_AN_1 ->  | F29: =TAU_AN_2 ->  | G29: =TAU_AN_M ->  | H29: =TAU_AN_2_B ->  | I29: =TAU_AN_3 ->  | J29: =TAU_AN_4 ->  | K29: =TAU_AN_5 ->  | L29: =TAU_AN_6 ->  | M29: =TAU_AN_7 ->  | N29: =TAU_AN_8 ->  | O29: =TAU_AN_9 ->  | P29: =TAU_AN_10 ->  | Q29: =TAU_AN_11 ->  | R29: =TAU_AN_12 -> 
E30: =IFERROR( VLOOKUP(TAUNote(TAU_AN_1),ResString,Langue+1,FALSE),"") ->  | F30: =IFERROR( VLOOKUP(TAUNote(TAU_AN_2),ResString,Langue+1,FALSE),"") ->  | G30: =IFERROR( VLOOKUP(TAUNote(TAU_AN_M),ResString,Langue+1,FALSE),"") ->  | H30: =IFERROR( VLOOKUP(TAUNote(TAU_AN_2_B),ResString,Langue+1,FALSE),"") ->  | I30: =IFERROR( VLOOKUP(TAUNote(TAU_AN_3),ResString,Langue+1,FALSE),"") ->  | J30: =IFERROR( VLOOKUP(TAUNote(TAU_AN_4),ResString,Langue+1,FALSE),"") ->  | K30: =IFERROR( VLOOKUP(TAUNote(TAU_AN_5),ResString,Langue+1,FALSE),"") ->  | L30: =IFERROR( VLOOKUP(TAUNote(TAU_AN_6),ResString,Langue+1,FALSE),"") ->  | M30: =IFERROR( VLOOKUP(TAUNote(TAU_AN_7),ResString,Langue+1,FALSE),"") ->  | N30: =IFERROR( VLOOKUP(TAUNote(TAU_AN_8),ResString,Langue+1,FALSE),"") ->  | O30: =IFERROR( VLOOKUP(TAUNote(TAU_AN_9),ResString,Langue+1,FALSE),"") ->  | P30: =IFERROR( VLOOKUP(TAUNote(TAU_AN_10),ResString,Langue+1,FALSE),"") ->  | Q30: =IFERROR( VLOOKUP(TAUNote(TAU_AN_11),ResString,Langue+1,FALSE),"") ->  | R30: =IFERROR( VLOOKUP(TAUNote(TAU_AN_12),ResString,Langue+1,FALSE),"") -> 
C71: MenuEvoInd
E72: 12 | F72: 12 | G72: 12 | H72: -1 | I72: -1 | J72: -1 | K72: -1 | L72: -1 | M72: -1 | N72: -1 | O72: -1 | P72: -1 | Q72: -1 | R72: -1
E73: 12 | F73: -1 | G73: -1 | H73: 12 | I73: 12 | J73: 12 | K73: 12 | L73: 12 | M73: 12 | N73: 12 | O73: 12 | P73: 12 | Q73: 12 | R73: 12
E75: 12 | F75: 12 | G75: 12 | H75: 12 | I75: 12 | J75: 12 | K75: 12 | L75: 12 | M75: 12 | N75: 12 | O75: 12 | P75: 12 | Q75: 12 | R75: 12

Sheet Ae - Plan financier (hidden)
C2: =VLOOKUP("PF_15",ResString,Langue+1,FALSE) -> Plan financier
C4: =VLOOKUP("PF_1",ResString,Langue+1,FALSE) -> Résultat | D4: =VLOOKUP("AC_30",ResString,Langue+1,FALSE) -> Compte | E4: =VLOOKUP(TypeExercice_A_2,GetTypeExercice_A,2,FALSE) -> Budget | F4: =VLOOKUP(TypeExercice_A_3,GetTypeExercice_A,2,FALSE) -> Budget | G4: =VLOOKUP(TypeExercice_A_4,GetTypeExercice_A,2,FALSE) -> Budget | H4: =VLOOKUP(TypeExercice_A_5,GetTypeExercice_A,2,FALSE) -> Plan financier | I4: =VLOOKUP(TypeExercice_A_6,GetTypeExercice_A,2,FALSE) -> Plan financier | J4: =VLOOKUP(TypeExercice_A_7,GetTypeExercice_A,2,FALSE) -> Plan financier | K4: =VLOOKUP(TypeExercice_A_8,GetTypeExercice_A,2,FALSE) -> Plan financier | L4: =VLOOKUP(TypeExercice_A_9,GetTypeExercice_A,2,FALSE) -> Plan financier | M4: =VLOOKUP(TypeExercice_A_10,GetTypeExercice_A,2,FALSE) -> Plan financier
D5: =AN_1_A -> 0 | E5: =AN_1_A+1 -> 1 | F5: =AN_1_A+2 -> 2 | G5: =AN_1_A+3 -> 3 | H5: =AN_1_A+4 -> 4 | I5: =AN_1_A+5 -> 5 | J5: =AN_1_A+6 -> 6 | K5: =AN_1_A+7 -> 7 | L5: =AN_1_A+8 -> 8 | M5: =AN_1_A+9 -> 9
C7: =VLOOKUP("PF_2",ResString,Langue+1,FALSE) -> Prévisions compte de résultats
C9: =VLOOKUP("PF_3",ResString,Langue+1,FALSE) -> Total des charges financières | D9: =M_3_A_1-M_33_A_1-M_35_A_1-M_364_A_1-M_365_A_1-M_366_A_1-M_389_A_1 -> 0 | E9: =M_3_A_2-M_33_A_2-M_35_A_2-M_364_A_2-M_365_A_2-M_366_A_2-M_389_A_2 -> 0 | F9: =M_3_A_3-M_33_A_3-M_35_A_3-M_364_A_3-M_365_A_3-M_366_A_3-M_389_A_3 -> 0 | G9: =M_3_A_4-M_33_A_4-M_35_A_4-M_364_A_4-M_365_A_4-M_366_A_4-M_389_A_4 -> 0 | H9: =M_3_A_5-M_33_A_5-M_35_A_5-M_364_A_5-M_365_A_5-M_366_A_5-M_389_A_5 -> 0 | I9: =M_3_A_6-M_33_A_6-M_35_A_6-M_364_A_6-M_365_A_6-M_366_A_6-M_389_A_6 -> 0 | J9: =M_3_A_7-M_33_A_7-M_35_A_7-M_364_A_7-M_365_A_7-M_366_A_7-M_389_A_7 -> 0 | K9: =M_3_A_8-M_33_A_8-M_35_A_8-M_364_A_8-M_365_A_8-M_366_A_8-M_389_A_8 -> 0 | L9: =M_3_A_9-M_33_A_9-M_35_A_9-M_364_A_9-M_365_A_9-M_366_A_9-M_389_A_9 -> 0 | M9: =M_3_A_10-M_33_A_10-M_35_A_10-M_364_A_10-M_365_A_10-M_366_A_10-M_389_A_10 -> 0
C10: =VLOOKUP("PF_4",ResString,Langue+1,FALSE) -> Total des revenus financiers | D10: =M_4_A_1-M_45_A_1-M_489_A_1-M_4490_A_1 -> 0 | E10: =M_4_A_2-M_45_A_2-M_489_A_2-M_4490_A_2 -> 0 | F10: =M_4_A_3-M_45_A_3-M_489_A_3-M_4490_A_3 -> 0 | G10: =M_4_A_4-M_45_A_4-M_489_A_4-M_4490_A_4 -> 0 | H10: =M_4_A_5-M_45_A_5-M_489_A_5-M_4490_A_5 -> 0 | I10: =M_4_A_6-M_45_A_6-M_489_A_6-M_4490_A_6 -> 0 | J10: =M_4_A_7-M_45_A_7-M_489_A_7-M_4490_A_7 -> 0 | K10: =M_4_A_8-M_45_A_8-M_489_A_8-M_4490_A_8 -> 0 | L10: =M_4_A_9-M_45_A_9-M_489_A_9-M_4490_A_9 -> 0 | M10: =M_4_A_10-M_45_A_10-M_489_A_10-M_4490_A_10 -> 0
C11: =VLOOKUP("RA_5_2",ResString,Langue+1,FALSE) -> Marge d'autofinancement | D11: =+D10-D9 -> 0 | E11: =+E10-E9 -> 0 | F11: =+F10-F9 -> 0 | G11: =+G10-G9 -> 0 | H11: 0 | I11: 0 | J11: 0 | K11: 0 | L11: 0 | M11: 0
C12: =VLOOKUP("RA_7",ResString,Langue+1,FALSE) -> Amortissements planifiés | D12: =M_33_A_1+M_366_A_1 -> 0 | E12: =M_33_A_2+M_366_A_2 -> 0 | F12: =M_33_A_3+M_366_A_3 -> 0 | G12: =M_33_A_4+M_366_A_4 -> 0 | H12: =M_33_A_5+M_366_A_5 -> 0 | I12: =M_33_A_6+M_366_A_6 -> 0 | J12: =M_33_A_7+M_366_A_7 -> 0 | K12: =M_33_A_8+M_366_A_8 -> 0 | L12: =M_33_A_9+M_366_A_9 -> 0 | M12: =M_33_A_10+M_366_A_10 -> 0
C13: =VLOOKUP("RA_22",ResString,Langue+1,FALSE) -> Attributions aux fonds et financements spéciaux | D13: =M_35_A_1 -> 0 | E13: =M_35_A_2 -> 0 | F13: =M_35_A_3 -> 0 | G13: =M_35_A_4 -> 0 | H13: =M_35_A_5 -> 0 | I13: =M_35_A_6 -> 0 | J13: =M_35_A_7 -> 0 | K13: =M_35_A_8 -> 0 | L13: =M_35_A_9 -> 0 | M13: =M_35_A_10 -> 0
C14: =VLOOKUP("RA_28",ResString,Langue+1,FALSE) -> Dont fonds et financements spéciaux capital propre | D14: =M_351_A_1 -> 0 | E14: =M_351_A_2 -> 0 | F14: =M_351_A_3 -> 0 | G14: =M_351_A_4 -> 0 | H14: =M_351_A_5 -> 0 | I14: =M_351_A_6 -> 0 | J14: =M_351_A_7 -> 0 | K14: =M_351_A_8 -> 0 | L14: =M_351_A_9 -> 0 | M14: =M_351_A_10 -> 0
C15: =VLOOKUP("RA_23",ResString,Langue+1,FALSE) -> Prélèvements sur les fonds et financements spéciaux | D15: =M_45_A_1 -> 0 | E15: =M_45_A_2 -> 0 | F15: =M_45_A_3 -> 0 | G15: =M_45_A_4 -> 0 | H15: =M_45_A_5 -> 0 | I15: =M_45_A_6 -> 0 | J15: =M_45_A_7 -> 0 | K15: =M_45_A_8 -> 0 | L15: =M_45_A_9 -> 0 | M15: =M_45_A_10 -> 0
C16: =VLOOKUP("RA_28",ResString,Langue+1,FALSE) -> Dont fonds et financements spéciaux capital propre | D16: =M_451_A_1 -> 0 | E16: =M_451_A_2 -> 0 | F16: =M_451_A_3 -> 0 | G16: =M_451_A_4 -> 0 | H16: =M_451_A_5 -> 0 | I16: =M_451_A_6 -> 0 | J16: =M_451_A_7 -> 0 | K16: =M_451_A_8 -> 0 | L16: =M_451_A_9 -> 0 | M16: =M_451_A_10 -> 0
C17: =VLOOKUP("RA_26",ResString,Langue+1,FALSE) -> Réévaluations des prêts du PA | D17: =M_364_A_1 -> 0 | E17: =M_364_A_2 -> 0 | F17: =M_364_A_3 -> 0 | G17: =M_364_A_4 -> 0 | H17: =M_364_A_5 -> 0 | I17: =M_364_A_6 -> 0 | J17: =M_364_A_7 -> 0 | K17: =M_364_A_8 -> 0 | L17: =M_364_A_9 -> 0 | M17: =M_364_A_10 -> 0
C18: =VLOOKUP("RA_27",ResString,Langue+1,FALSE) -> Réévaluations des participations du PA | D18: =M_365_A_1 -> 0 | E18: =M_365_A_2 -> 0 | F18: =M_365_A_3 -> 0 | G18: =M_365_A_4 -> 0 | H18: =M_365_A_5 -> 0 | I18: =M_365_A_6 -> 0 | J18: =M_365_A_7 -> 0 | K18: =M_365_A_8 -> 0 | L18: =M_365_A_9 -> 0 | M18: =M_365_A_10 -> 0
C19: =VLOOKUP("RA_24",ResString,Langue+1,FALSE) -> Attributions au capital propre | D19: =M_389_A_1 -> 0 | E19: =M_389_A_2 -> 0 | F19: =M_389_A_3 -> 0 | G19: =M_389_A_4 -> 0 | H19: =M_389_A_5 -> 0 | I19: =M_389_A_6 -> 0 | J19: =M_389_A_7 -> 0 | K19: =M_389_A_8 -> 0 | L19: =M_389_A_9 -> 0 | M19: =M_389_A_10 -> 0
C20: =VLOOKUP("INF_57",ResString,Langue+1,FALSE) -> Réévaluations PA | D20: =M_4490_A_1 -> 0 | E20: =M_4490_A_2 -> 0 | F20: =M_4490_A_3 -> 0 | G20: =M_4490_A_4 -> 0 | H20: =M_4490_A_5 -> 0 | I20: =M_4490_A_6 -> 0 | J20: =M_4490_A_7 -> 0 | K20: =M_4490_A_8 -> 0 | L20: =M_4490_A_9 -> 0 | M20: =M_4490_A_10 -> 0
C21: =VLOOKUP("RA_25",ResString,Langue+1,FALSE) -> Prélèvements sur le capital propre | D21: =M_489_A_1 -> 0 | E21: =M_489_A_2 -> 0 | F21: =M_489_A_3 -> 0 | G21: =M_489_A_4 -> 0 | H21: =M_489_A_5 -> 0 | I21: =M_489_A_6 -> 0 | J21: =M_489_A_7 -> 0 | K21: =M_489_A_8 -> 0 | L21: =M_489_A_9 -> 0 | M21: =M_489_A_10 -> 0
C22: =VLOOKUP("PF_5",ResString,Langue+1,FALSE) -> Excédent revenus (+) charges (-) | D22: =+D11-D12-D13+D15-D17-D18-D19+D21+D20 -> 0 | E22: =+E11-E12-E13+E15-E17-E18-E19+E21+E20 -> 0 | F22: =+F11-F12-F13+F15-F17-F18-F19+F21+F20 -> 0 | G22: 0 | H22: =+H11-H12-H13+H15-H17-H18-H19+H21+H20 -> 0 | I22: =+I11-I12-I13+I15-I17-I18-I19+I21+I20 -> 0 | J22: 0 | K22: 0 | L22: 0 | M22: 0
C25: =VLOOKUP("PF_6",ResString,Langue+1,FALSE) -> Prévision du compte des investissements
C27: =VLOOKUP("PF_7",ResString,Langue+1,FALSE) -> Total des dépenses | D27: =M_5_A_1 -> 0 | E27: =M_5_A_2 -> 0 | F27: =M_5_A_3 -> 0 | G27: =M_5_A_4 -> 0 | H27: =M_5_A_5 -> 0 | I27: =M_5_A_6 -> 0 | J27: =M_5_A_7 -> 0 | K27: =M_5_A_8 -> 0 | L27: =M_5_A_9 -> 0 | M27: =M_5_A_10 -> 0
C28: =VLOOKUP("PF_8",ResString,Langue+1,FALSE) -> Total des recettes | D28: =M_6_A_1 -> 0 | E28: =M_6_A_2 -> 0 | F28: =M_6_A_3 -> 0 | G28: =M_6_A_4 -> 0 | H28: =M_6_A_5 -> 0 | I28: =M_6_A_6 -> 0 | J28: =M_6_A_7 -> 0 | K28: =M_6_A_8 -> 0 | L28: =M_6_A_9 -> 0 | M28: =M_6_A_10 -> 0
C29: =VLOOKUP("DA_14",ResString,Langue+1,FALSE) -> Investissements nets | D29: =+D27-D28 -> 0 | E29: 0 | F29: 0 | G29: 0 | H29: 0 | I29: 0 | J29: 0 | K29: 0 | L29: 0 | M29: 0
C32: =VLOOKUP("PF_9",ResString,Langue+1,FALSE) -> Financement des investissements
C34: =VLOOKUP("PF_10",ResString,Langue+1,FALSE) -> Report des investissements nets | D34: =+D29 -> 0 | E34: 0 | F34: 0 | G34: 0 | H34: =+H29 -> 0 | I34: 0 | J34: 0 | K34: 0 | L34: 0 | M34: 0
C35: =VLOOKUP("RA_5_2",ResString,Langue+1,FALSE) -> Marge d'autofinancement | D35: =+D11 -> 0 | E35: 0 | F35: 0 | G35: 0 | H35: 0 | I35: 0 | J35: 0 | K35: 0 | L35: 0 | M35: 0
C36: =VLOOKUP("PF_11",ResString,Langue+1,FALSE) -> Excédent (+) découvert (-) de financement | D36: =D35-D34 -> 0 | E36: =E35-E34 -> 0 | F36: 0 | G36: 0 | H36: 0 | I36: 0 | J36: 0 | K36: 0 | L36: 0 | M36: 0
C39: =VLOOKUP("PF_12",ResString,Langue+1,FALSE) -> Modification de la fortune/découvert
C41: =VLOOKUP("PF_13",ResString,Langue+1,FALSE) -> Excédent revenus (+) charges (-) | D41: =D22 -> 0 | E41: =E22 -> 0 | F41: 0 | G41: 0 | H41: 0 | I41: 0 | J41: 0 | K41: 0 | L41: 0 | M41: 0
C42: =VLOOKUP("PF_14",ResString,Langue+1,FALSE) -> Excédent /Découvert du bilan | D42: =M_299_A_1 -> 0 | E42: =M_ForNet+E41+M_3899_A_2 -> 0 | F42: =M_ForNet_B+F41+M_3899_A_3 -> 0 | G42: =M_ForNet_B_1+G41+M_3899_A_4 -> 0 | H42: =M_ForNet_P_1+H41+M_3899_A_5 -> 0 | I42: =M_ForNet_P_2+I41+M_3899_A_6 -> 0 | J42: =M_ForNet_P_3+J41+M_3899_A_7 -> 0 | K42: =M_ForNet_P_4+K41+M_3899_A_8 -> 0 | L42: =M_ForNet_P_5+L41+M_3899_A_9 -> 0 | M42: =M_ForNet_P_6+M41+M_3899_A_10 -> 0
C45: =VLOOKUP("PF_43",ResString,Langue+1,FALSE) -> Modification des engagements
C47: =VLOOKUP("PF_46",ResString,Langue+1,FALSE) -> Variation capitaux de tiers | D47: =-D11+D13-D14+D16-D15+D29 -> 0 | E47: =-E11+E13-E14+E16-E15+E29 -> 0 | F47: =-F11+F13-F14+F16-F15+F29 -> 0 | G47: 0 | H47: 0 | I47: 0 | J47: 0 | K47: 0 | L47: 0 | M47: 0
C48: =VLOOKUP("PF_45",ResString,Langue+1,FALSE) -> Capitaux de tiers | D48: =M_Captie_A_1 -> 0 | E48: =D48+E47 -> 0 | F48: =E48+F47 -> 0 | G48: 0 | H48: 0 | I48: 0 | J48: 0 | K48: 0 | L48: 0 | M48: 0

Sheet Ae-I1 - I2 (hidden)
F2: =AN_A_1 -> 0 | G2: =AN_A_1 +1 -> 1 | H2: =AN_A_1 +2 -> 2 | I2: =AN_A_1 +3 -> 3 | J2: =AN_A_1 +4 -> 4 | K2: =AN_A_1 +5 -> 5 | L2: =AN_A_1 +6 -> 6 | M2: =AN_A_1 +7 -> 7 | N2: =AN_A_1 +8 -> 8 | O2: =AN_A_1 +9 -> 9
B5: =VLOOKUP("TAN_1",ResString,Langue+1,FALSE) -> 1. Taux d’endettement net (I1)
B7: =VLOOKUP("TAN_2",ResString,Langue+1,FALSE) -> Dette nette I | E7: CHF | F7: =M_DetNet_A_1 -> 0 | G7: =M_DetNet_A_2 -> 0 | H7: =M_DetNet_A_3 -> 0 | I7: =M_DetNet_A_4 -> 0 | J7: =M_DetNet_A_5 -> 0 | K7: =M_DetNet_A_6 -> 0 | L7: =M_DetNet_A_7 -> 0 | M7: =M_DetNet_A_8 -> 0 | N7: =M_DetNet_A_9 -> 0 | O7: =M_DetNet_A_10 -> 0
B8: =VLOOKUP("TAN_3",ResString,Langue+1,FALSE) -> Revenus fiscaux | C8: 40 | E8: CHF | F8: =M_40_A_1 -> 0 | G8: =M_40_A_2 -> 0 | H8: =M_40_A_3 -> 0 | I8: =M_40_A_4 -> 0 | J8: =M_40_A_5 -> 0 | K8: =M_40_A_6 -> 0 | L8: =M_40_A_7 -> 0 | M8: =M_40_A_8 -> 0 | N8: =M_40_A_9 -> 0 | O8: =M_40_A_10 -> 0
F10: =IFERROR(F7/F8,"") ->  | G10: =IFERROR(G7/G8,"") -> 
D13: =VLOOKUP("AP_2",ResString,Langue+1,FALSE) -> Valeurs indicatives
F15: < 100% | G15: =VLOOKUP("TAN_4",ResString,Langue+1,FALSE) -> bon
F16: 100% - 150% | G16: =VLOOKUP("TAN_5",ResString,Langue+1,FALSE) -> suffisant
F17: > 150% | G17: =VLOOKUP("TAN_6",ResString,Langue+1,FALSE) -> mauvais
B20: =VLOOKUP("DAT_1",ResString,Langue+1,FALSE) -> 2. Degré d’autofinancement (I2)
B22: =VLOOKUP("DAT_2",ResString,Langue+1,FALSE) -> Autofinancement | E22: CHF | F22: =M_AutFin_A_1 -> 0 | G22: =M_AutFin_A_2 -> 0 | H22: =M_AutFin_A_3 -> 0 | I22: =M_AutFin_A_4 -> 0 | J22: =M_AutFin_A_5 -> 0 | K22: =M_AutFin_A_6 -> 0 | L22: =M_AutFin_A_7 -> 0 | M22: =M_AutFin_A_8 -> 0 | N22: =M_AutFin_A_9 -> 0 | O22: =M_AutFin_A_10 -> 0
B23: =VLOOKUP("DAT_3",ResString,Langue+1,FALSE) -> investissements nets | E23: CHF | F23: =M_InvNet_A_1 -> 0 | G23: =M_InvNet_A_2 -> 0 | H23: =M_InvNet_A_3 -> 0 | I23: =M_InvNet_A_4 -> 0 | J23: =M_InvNet_A_5 -> 0 | K23: =M_InvNet_A_6 -> 0 | L23: =M_InvNet_A_7 -> 0 | M23: =M_InvNet_A_8 -> 0 | N23: =M_InvNet_A_9 -> 0 | O23: =M_InvNet_A_10 -> 0
F25: =IFERROR(F22/F23,"") ->  | G25: =IFERROR(G22/G23,"") -> 
D28: =VLOOKUP("AP_2",ResString,Langue+1,FALSE) -> Valeurs indicatives
F30: > 100% | G30: =VLOOKUP("DAT_4",ResString,Langue+1,FALSE) -> haute conjoncture
F31: 80 -100% | G31: =VLOOKUP("DAT_5",ResString,Langue+1,FALSE) -> cas normal
F32: 50 – 80% | G32: =VLOOKUP("DAT_6",ResString,Langue+1,FALSE) -> récession

Sheet Ae-I3 - I4 (hidden)
F2: =AN_A_1 -> 0 | G2: =AN_A_1 +1 -> 1 | H2: =AN_A_1 +2 -> 2 | I2: =AN_A_1 +3 -> 3 | J2: =AN_A_1 +4 -> 4 | K2: =AN_A_1 +5 -> 5 | L2: =AN_A_1 +6 -> 6 | M2: =AN_A_1 +7 -> 7 | N2: =AN_A_1 +8 -> 8 | O2: =AN_A_1 +9 -> 9
B6: =VLOOKUP("PCI_1",ResString,Langue+1,FALSE) -> 3. Part des charges d’intérêts (I3)
B8: =VLOOKUP("PCI_2",ResString,Langue+1,FALSE) -> Charges d‘intérêts nets | E8: CHF | F8: =M_CharIntNet_A_1 -> 0 | G8: =M_CharIntNet_A_2 -> 0 | H8: =M_CharIntNet_A_3 -> 0 | I8: =M_CharIntNet_A_4 -> 0 | J8: =M_CharIntNet_A_5 -> 0 | K8: =M_CharIntNet_A_6 -> 0 | L8: =M_CharIntNet_A_7 -> 0 | M8: =M_CharIntNet_A_8 -> 0 | N8: =M_CharIntNet_A_9 -> 0 | O8: =M_CharIntNet_A_10 -> 0
B9: =VLOOKUP("PCI_3",ResString,Langue+1,FALSE) -> Revenus courants | E9: CHF | F9: =M_RevCour_A_1 -> 0 | G9: =M_RevCour_A_2 -> 0 | H9: =M_RevCour_A_3 -> 0 | I9: =M_RevCour_A_4 -> 0 | J9: =M_RevCour_A_5 -> 0 | K9: =M_RevCour_A_6 -> 0 | L9: =M_RevCour_A_7 -> 0 | M9: =M_RevCour_A_8 -> 0 | N9: =M_RevCour_A_9 -> 0 | O9: =M_RevCour_A_10 -> 0
F11: =IFERROR(F8/F9,"") ->  | G11: =IFERROR(G8/G9,"") -> 
D14: =VLOOKUP("AP_2",ResString,Langue+1,FALSE) -> Valeurs indicatives
F16: 0% – 4% | G16: =VLOOKUP("PCI_4",ResString,Langue+1,FALSE) -> bon
F17: 4% – 9% | G17: =VLOOKUP("PCI_5",ResString,Langue+1,FALSE) -> suffisant
F18: > 9% | G18: =VLOOKUP("PCI_6",ResString,Langue+1,FALSE) -> mauvais
B21: =VLOOKUP("DBR_1",ResString,Langue+1,FALSE) -> 4. Dette brute par rapport aux revenus (I4)
B23: =VLOOKUP("DBR_2",ResString,Langue+1,FALSE) -> Dette brute | E23: CHF | F23: =M_DetBrut_A_1 -> 0 | G23: =M_DetBrut_A_2 -> 0 | H23: =M_DetBrut_A_3 -> 0 | I23: =M_DetBrut_A_4 -> 0 | J23: =M_DetBrut_A_5 -> 0 | K23: =M_DetBrut_A_6 -> 0 | L23: =M_DetBrut_A_7 -> 0 | M23: =M_DetBrut_A_8 -> 0 | N23: =M_DetBrut_A_9 -> 0 | O23: =M_DetBrut_A_10 -> 0
B24: =VLOOKUP("DBR_3",ResString,Langue+1,FALSE) -> Revenus courants | E24: CHF | F24: =M_RevCour_A_1 -> 0 | G24: =M_RevCour_A_2 -> 0 | H24: =M_RevCour_A_3 -> 0 | I24: =M_RevCour_A_4 -> 0 | J24: =M_RevCour_A_5 -> 0 | K24: =M_RevCour_A_6 -> 0 | L24: =M_RevCour_A_7 -> 0 | M24: =M_RevCour_A_8 -> 0 | N24: =M_RevCour_A_9 -> 0 | O24: =M_RevCour_A_10 -> 0
F26: =IFERROR(F23/F24,"") ->  | G26: =IFERROR(G23/G24,"") -> 
D29: =VLOOKUP("AP_2",ResString,Langue+1,FALSE) -> Valeurs indicatives
F31: < 50% | G31: =VLOOKUP("DBR_4",ResString,Langue+1,FALSE) -> très bon
F32: 50% – 100% | G32: =VLOOKUP("DBR_5",ResString,Langue+1,FALSE) -> bon
F33: 100% – 150% | G33: =VLOOKUP("DBR_6",ResString,Langue+1,FALSE) -> moyen
F34: 150% – 200% | G34: =VLOOKUP("DBR_7",ResString,Langue+1,FALSE) -> mauvais
F35: > 200% | G35: =VLOOKUP("DBR_8",ResString,Langue+1,FALSE) -> critique

Sheet Ae-I5 - I6 (hidden)
F2: =AN_A_1 -> 0 | G2: =AN_A_1 +1 -> 1 | H2: =AN_A_1 +2 -> 2 | I2: =AN_A_1 +3 -> 3 | J2: =AN_A_1 +4 -> 4 | K2: =AN_A_1 +5 -> 5 | L2: =AN_A_1 +6 -> 6 | M2: =AN_A_1 +7 -> 7 | N2: =AN_A_1 +8 -> 8 | O2: =AN_A_1 +9 -> 9
B6: =VLOOKUP("PDI_1",ResString,Langue+1,FALSE) -> 5. Proportion des investissements (I5)
B8: =VLOOKUP("PDI_2",ResString,Langue+1,FALSE) -> Investissements bruts | E8: CHF | F8: =M_InvBrut_A_1 -> 0 | G8: =M_InvBrut_A_2 -> 0 | H8: =M_InvBrut_A_3 -> 0 | I8: =M_InvBrut_A_4 -> 0 | J8: =M_InvBrut_A_5 -> 0 | K8: =M_InvBrut_A_6 -> 0 | L8: =M_InvBrut_A_7 -> 0 | M8: =M_InvBrut_A_8 -> 0 | N8: =M_InvBrut_A_9 -> 0 | O8: =M_InvBrut_A_10 -> 0
B9: =VLOOKUP("PDI_3",ResString,Langue+1,FALSE) -> Dépenses totales | E9: CHF | F9: =M_DepTotal_A_1 -> 0 | G9: =M_DepTotal_A_2 -> 0 | H9: =M_DepTotal_A_3 -> 0 | I9: =M_DepTotal_A_4 -> 0 | J9: =M_DepTotal_A_5 -> 0 | K9: =M_DepTotal_A_6 -> 0 | L9: =M_DepTotal_A_7 -> 0 | M9: =M_DepTotal_A_8 -> 0 | N9: =M_DepTotal_A_9 -> 0 | O9: =M_DepTotal_A_10 -> 0
F11: =IFERROR(F8/F9,"") ->  | G11: =IFERROR(G8/G9,"") -> 
D14: =VLOOKUP("AP_2",ResString,Langue+1,FALSE) -> Valeurs indicatives
F16: < 10% | G16: =VLOOKUP("PDI_4",ResString,Langue+1,FALSE) -> eff. d’inv. faible
F17: 10% – 20% | G17: =VLOOKUP("PDI_5",ResString,Langue+1,FALSE) -> eff. d’inv. moyen
F18: 20% – 30% | G18: =VLOOKUP("PDI_6",ResString,Langue+1,FALSE) -> eff. d’inv. élevé
F19: > 40% | G19: =VLOOKUP("PDI_7",ResString,Langue+1,FALSE) -> eff. d’inv. très élevé
B22: =VLOOKUP("PSD_1",ResString,Langue+1,FALSE) -> 6. Part du service de la dette (I6)
B24: =VLOOKUP("PSD_2",ResString,Langue+1,FALSE) -> Service de la dette | E24: CHF | F24: =M_SerDette_A_1 -> 0 | G24: =M_SerDette_A_2 -> 0 | H24: =M_SerDette_A_3 -> 0 | I24: =M_SerDette_A_4 -> 0 | J24: =M_SerDette_A_5 -> 0 | K24: =M_SerDette_A_6 -> 0 | L24: =M_SerDette_A_7 -> 0 | M24: =M_SerDette_A_8 -> 0 | N24: =M_SerDette_A_9 -> 0 | O24: =M_SerDette_A_10 -> 0
B25: =VLOOKUP("PSD_3",ResString,Langue+1,FALSE) -> Revenus courants | E25: CHF | F25: =M_RevCour_A_1 -> 0 | G25: =M_RevCour_A_2 -> 0 | H25: =M_RevCour_A_3 -> 0 | I25: =M_RevCour_A_4 -> 0 | J25: =M_RevCour_A_5 -> 0 | K25: =M_RevCour_A_6 -> 0 | L25: =M_RevCour_A_7 -> 0 | M25: =M_RevCour_A_8 -> 0 | N25: =M_RevCour_A_9 -> 0 | O25: =M_RevCour_A_10 -> 0
F27: =IFERROR(F24/F25,"") ->  | G27: =IFERROR(G24/G25,"") -> 
D30: =VLOOKUP("AP_2",ResString,Langue+1,FALSE) -> Valeurs indicatives
F32: < 5% | G32: =VLOOKUP("PSD_4",ResString,Langue+1,FALSE) -> charge faible
F33: 5% – 15% | G33: =VLOOKUP("PSD_5",ResString,Langue+1,FALSE) -> charge acceptable
F34: > 15% | G34: =VLOOKUP("PSD_6",ResString,Langue+1,FALSE) -> charge forte

Sheet Ae-I7 - I8 (hidden)
F2: =AN_A_1 -> 0 | G2: =AN_A_1 +1 -> 1 | H2: =AN_A_1 +2 -> 2 | I2: =AN_A_1 +3 -> 3 | J2: =AN_A_1 +4 -> 4 | K2: =AN_A_1 +5 -> 5 | L2: =AN_A_1 +6 -> 6 | M2: =AN_A_1 +7 -> 7 | N2: =AN_A_1 +8 -> 8 | O2: =AN_A_1 +9 -> 9
B6: =VLOOKUP("DNH_1",ResString,Langue+1,FALSE) -> 7. Dette nette 1 par habitant (I7)
B8: =VLOOKUP("DNH_2",ResString,Langue+1,FALSE) -> Dette nette I | E8: CHF | F8: =M_DetNet_A_1 -> 0 | G8: =M_DetNet_A_2 -> 0 | H8: =M_DetNet_A_3 -> 0 | I8: =M_DetNet_A_4 -> 0 | J8: =M_DetNet_A_5 -> 0 | K8: =M_DetNet_A_6 -> 0 | L8: =M_DetNet_A_7 -> 0 | M8: =M_DetNet_A_8 -> 0 | N8: =M_DetNet_A_9 -> 0 | O8: =M_DetNet_A_10 -> 0
B9: =VLOOKUP("DNH_3",ResString,Langue+1,FALSE) -> Population résidante permanente | F9: =Population_AN_1_A -> 0 | G9: =Population_AN_2_A -> 0 | H9: =Population_AN_3_A -> 0 | I9: =Population_AN_4_A -> 0 | J9: =Population_AN_5_A -> 0 | K9: =Population_AN_6_A -> 0 | L9: =Population_AN_7_A -> 0 | M9: =Population_AN_8_A -> 0 | N9: =Population_AN_9_A -> 0 | O9: =Population_AN_10_A -> 0
F11: =IFERROR(F8/F9,"") ->  | G11: =IFERROR(G8/G9,"") -> 
D14: =VLOOKUP("AP_2",ResString,Langue+1,FALSE) -> Valeurs indicatives
F16: < 0 CHF | G16: =VLOOKUP("DNH_4",ResString,Langue+1,FALSE) -> patrimoine net
F17: 0 – 1‘000 CHF | G17: =VLOOKUP("DNH_5",ResString,Langue+1,FALSE) -> endettement faible
F18: 1‘001 – 2‘500 CHF | G18: =VLOOKUP("DNH_6",ResString,Langue+1,FALSE) -> endettement moyen
F19: 2‘501 – 5‘000 CHF | G19: =VLOOKUP("DNH_7",ResString,Langue+1,FALSE) -> endettement important
F20: > 5'000 CHF | G20: =VLOOKUP("DNH_8",ResString,Langue+1,FALSE) -> endettement très important
B23: =VLOOKUP("TAU_1",ResString,Langue+1,FALSE) -> 8. Taux d’autofinancement (I8)
B25: =VLOOKUP("TAU_2",ResString,Langue+1,FALSE) -> Autofinancement | E25: CHF | F25: =M_AutFin_A_1 -> 0 | G25: =M_AutFin_A_2 -> 0 | H25: =M_AutFin_A_3 -> 0 | I25: =M_AutFin_A_4 -> 0 | J25: =M_AutFin_A_5 -> 0 | K25: =M_AutFin_A_6 -> 0 | L25: =M_AutFin_A_7 -> 0 | M25: =M_AutFin_A_8 -> 0 | N25: =M_AutFin_A_9 -> 0 | O25: =M_AutFin_A_10 -> 0
B26: =VLOOKUP("TAU_3",ResString,Langue+1,FALSE) -> Revenus courants | E26: CHF | F26: =M_RevCour_A_1 -> 0 | G26: =M_RevCour_A_2 -> 0 | H26: =M_RevCour_A_3 -> 0 | I26: =M_RevCour_A_4 -> 0 | J26: =M_RevCour_A_5 -> 0 | K26: =M_RevCour_A_6 -> 0 | L26: =M_RevCour_A_7 -> 0 | M26: =M_RevCour_A_8 -> 0 | N26: =M_RevCour_A_9 -> 0 | O26: =M_RevCour_A_10 -> 0
F28: =IFERROR(F25/F26,"") ->  | G28: =IFERROR(G25/G26,"") -> 
D31: =VLOOKUP("AP_2",ResString,Langue+1,FALSE) -> Valeurs indicatives
F33: > 20% | G33: =VLOOKUP("TAU_4",ResString,Langue+1,FALSE) -> bon
F34: 10% – 20% | G34: =VLOOKUP("TAU_5",ResString,Langue+1,FALSE) -> moyen
F35: < 10% | G35: =VLOOKUP("TAU_6",ResString,Langue+1,FALSE) -> mauvais

Sheet Ae-Evolution indicateurs (hidden)
C2: =VLOOKUP("MNU_1030",ResString,Langue+1,FALSE) -> Evolution indicateurs | E2: =VLOOKUP("AC_30",ResString,Langue+1,FALSE) -> Compte | F2: =VLOOKUP(TypeExercice_A_2,GetTypeExercice_A,2,FALSE) -> Budget | G2: =VLOOKUP(TypeExercice_A_3,GetTypeExercice_A,2,FALSE) -> Budget | H2: =VLOOKUP(TypeExercice_A_4,GetTypeExercice_A,2,FALSE) -> Budget | I2: =VLOOKUP(TypeExercice_A_5,GetTypeExercice_A,2,FALSE) -> Plan financier | J2: =VLOOKUP(TypeExercice_A_6,GetTypeExercice_A,2,FALSE) -> Plan financier | K2: =VLOOKUP(TypeExercice_A_7,GetTypeExercice_A,2,FALSE) -> Plan financier | L2: =VLOOKUP(TypeExercice_A_8,GetTypeExercice_A,2,FALSE) -> Plan financier | M2: =VLOOKUP(TypeExercice_A_9,GetTypeExercice_A,2,FALSE) -> Plan financier | N2: =VLOOKUP(TypeExercice_A_10,GetTypeExercice_A,2,FALSE) -> Plan financier
E3: =AN_1_A -> 0 | F3: =AN_1_A+1 -> 1 | G3: =AN_1_A+2 -> 2 | H3: =AN_1_A+3 -> 3 | I3: =AN_1_A+4 -> 4 | J3: =AN_1_A+5 -> 5 | K3: =AN_1_A+6 -> 6 | L3: =AN_1_A+7 -> 7 | M3: =AN_1_A+8 -> 8 | N3: =AN_1_A+9 -> 9
C5: =VLOOKUP("TAN_1",ResString,Langue+1,FALSE) -> 1. Taux d’endettement net (I1) | E5: =TAN_AN_A_1 ->  | F5: =TAN_AN_A_2 ->  | G5: =TAN_AN_A_3 ->  | H5: =TAN_AN_A_4 ->  | I5: =TAN_AN_A_5 ->  | J5: =TAN_AN_A_6 ->  | K5: =TAN_AN_A_7 ->  | L5: =TAN_AN_A_8 ->  | M5: =TAN_AN_A_9 ->  | N5: =TAN_AN_A_10 -> 
E6: =IFERROR( VLOOKUP(TANNote(TAN_AN_A_1),ResString,Langue+1,FALSE),"") ->  | F6: =IFERROR( VLOOKUP(TANNote(TAN_AN_A_2),ResString,Langue+1,FALSE),"") ->  | G6: =IFERROR( VLOOKUP(TANNote(TAN_AN_A_3),ResString,Langue+1,FALSE),"") ->  | H6: =IFERROR( VLOOKUP(TANNote(TAN_AN_A_4),ResString,Langue+1,FALSE),"") ->  | I6: =IFERROR( VLOOKUP(TANNote(TAN_AN_A_5),ResString,Langue+1,FALSE),"") ->  | J6: =IFERROR( VLOOKUP(TANNote(TAN_AN_A_6),ResString,Langue+1,FALSE),"") ->  | K6: =IFERROR( VLOOKUP(TANNote(TAN_AN_A_7),ResString,Langue+1,FALSE),"") ->  | L6: =IFERROR( VLOOKUP(TANNote(TAN_AN_A_8),ResString,Langue+1,FALSE),"") ->  | M6: =IFERROR( VLOOKUP(TANNote(TAN_AN_A_9),ResString,Langue+1,FALSE),"") ->  | N6: =IFERROR( VLOOKUP(TANNote(TAN_AN_A_10),ResString,Langue+1,FALSE),"") -> 
C8: =VLOOKUP("DAT_1",ResString,Langue+1,FALSE) -> 2. Degré d’autofinancement (I2) | E8: =DAT_AN_A_1 ->  | F8: =DAT_AN_A_2 ->  | G8: =DAT_AN_A_3 ->  | H8: =DAT_AN_A_4 ->  | I8: =DAT_AN_A_5 ->  | J8: =DAT_AN_A_6 ->  | K8: =DAT_AN_A_7 ->  | L8: =DAT_AN_A_8 ->  | M8: =DAT_AN_A_9 ->  | N8: =DAT_AN_A_10 -> 
E9: =IFERROR( VLOOKUP(DATNote(DAT_AN_A_1),ResString,Langue+1,FALSE),"") ->  | F9: =IFERROR( VLOOKUP(DATNote(DAT_AN_A_2),ResString,Langue+1,FALSE),"") ->  | G9: =IFERROR( VLOOKUP(DATNote(DAT_AN_A_3),ResString,Langue+1,FALSE),"") ->  | H9: =IFERROR( VLOOKUP(DATNote(DAT_AN_A_4),ResString,Langue+1,FALSE),"") ->  | I9: =IFERROR( VLOOKUP(DATNote(DAT_AN_A_5),ResString,Langue+1,FALSE),"") ->  | J9: =IFERROR( VLOOKUP(DATNote(DAT_AN_A_6),ResString,Langue+1,FALSE),"") ->  | K9: =IFERROR( VLOOKUP(DATNote(DAT_AN_A_7),ResString,Langue+1,FALSE),"") ->  | L9: =IFERROR( VLOOKUP(DATNote(DAT_AN_A_8),ResString,Langue+1,FALSE),"") ->  | M9: =IFERROR( VLOOKUP(DATNote(DAT_AN_A_9),ResString,Langue+1,FALSE),"") ->  | N9: =IFERROR( VLOOKUP(DATNote(DAT_AN_A_10),ResString,Langue+1,FALSE),"") -> 
C11: =VLOOKUP("PCI_1",ResString,Langue+1,FALSE) -> 3. Part des charges d’intérêts (I3) | E11: =PCI_AN_A_1 ->  | F11: =PCI_AN_A_2 ->  | G11: =PCI_AN_A_3 ->  | H11: =PCI_AN_A_4 ->  | I11: =PCI_AN_A_5 ->  | J11: =PCI_AN_A_6 ->  | K11: =PCI_AN_A_7 ->  | L11: =PCI_AN_A_8 ->  | M11: =PCI_AN_A_9 ->  | N11: =PCI_AN_A_10 -> 
E12: =IFERROR( VLOOKUP(PCINote(PCI_AN_A_1),ResString,Langue+1,FALSE),"") ->  | F12: =IFERROR( VLOOKUP(PCINote(PCI_AN_A_2),ResString,Langue+1,FALSE),"") ->  | G12: =IFERROR( VLOOKUP(PCINote(PCI_AN_A_3),ResString,Langue+1,FALSE),"") ->  | H12: =IFERROR( VLOOKUP(PCINote(PCI_AN_A_4),ResString,Langue+1,FALSE),"") ->  | I12: =IFERROR( VLOOKUP(PCINote(PCI_AN_A_5),ResString,Langue+1,FALSE),"") ->  | J12: =IFERROR( VLOOKUP(PCINote(PCI_AN_A_6),ResString,Langue+1,FALSE),"") ->  | K12: =IFERROR( VLOOKUP(PCINote(PCI_AN_A_7),ResString,Langue+1,FALSE),"") ->  | L12: =IFERROR( VLOOKUP(PCINote(PCI_AN_A_8),ResString,Langue+1,FALSE),"") ->  | M12: =IFERROR( VLOOKUP(PCINote(PCI_AN_A_9),ResString,Langue+1,FALSE),"") ->  | N12: =IFERROR( VLOOKUP(PCINote(PCI_AN_A_10),ResString,Langue+1,FALSE),"") -> 
C14: =VLOOKUP("DBR_1",ResString,Langue+1,FALSE) -> 4. Dette brute par rapport aux revenus (I4) | E14: =DBR_AN_A_1 ->  | F14: =DBR_AN_A_2 ->  | G14: =DBR_AN_A_3 ->  | H14: =DBR_AN_A_4 ->  | I14: =DBR_AN_A_5 ->  | J14: =DBR_AN_A_6 ->  | K14: =DBR_AN_A_7 ->  | L14: =DBR_AN_A_8 ->  | M14: =DBR_AN_A_9 ->  | N14: =DBR_AN_A_10 -> 
E15: =IFERROR( VLOOKUP(DBRNote(DBR_AN_A_1),ResString,Langue+1,FALSE),"") ->  | F15: =IFERROR( VLOOKUP(DBRNote(DBR_AN_A_2),ResString,Langue+1,FALSE),"") ->  | G15: =IFERROR( VLOOKUP(DBRNote(DBR_AN_A_3),ResString,Langue+1,FALSE),"") ->  | H15: =IFERROR( VLOOKUP(DBRNote(DBR_AN_A_4),ResString,Langue+1,FALSE),"") ->  | I15: =IFERROR( VLOOKUP(DBRNote(DBR_AN_A_5),ResString,Langue+1,FALSE),"") ->  | J15: =IFERROR( VLOOKUP(DBRNote(DBR_AN_A_6),ResString,Langue+1,FALSE),"") ->  | K15: =IFERROR( VLOOKUP(DBRNote(DBR_AN_A_7),ResString,Langue+1,FALSE),"") ->  | L15: =IFERROR( VLOOKUP(DBRNote(DBR_AN_A_8),ResString,Langue+1,FALSE),"") ->  | M15: =IFERROR( VLOOKUP(DBRNote(DBR_AN_A_9),ResString,Langue+1,FALSE),"") ->  | N15: =IFERROR( VLOOKUP(DBRNote(DBR_AN_A_10),ResString,Langue+1,FALSE),"") -> 
C17: =VLOOKUP("PDI_1",ResString,Langue+1,FALSE) -> 5. Proportion des investissements (I5) | E17: =PDI_AN_A_1 ->  | F17: =PDI_AN_A_2 ->  | G17: =PDI_AN_A_3 ->  | H17: =PDI_AN_A_4 ->  | I17: =PDI_AN_A_5 ->  | J17: =PDI_AN_A_6 ->  | K17: =PDI_AN_A_7 ->  | L17: =PDI_AN_A_8 ->  | M17: =PDI_AN_A_9 ->  | N17: =PDI_AN_A_10 -> 
E18: =IFERROR( VLOOKUP(PDINote(PDI_AN_A_1),ResString,Langue+1,FALSE),"") ->  | F18: =IFERROR( VLOOKUP(PDINote(PDI_AN_A_2),ResString,Langue+1,FALSE),"") ->  | G18: =IFERROR( VLOOKUP(PDINote(PDI_AN_A_3),ResString,Langue+1,FALSE),"") ->  | H18: =IFERROR( VLOOKUP(PDINote(PDI_AN_A_4),ResString,Langue+1,FALSE),"") ->  | I18: =IFERROR( VLOOKUP(PDINote(PDI_AN_A_5),ResString,Langue+1,FALSE),"") ->  | J18: =IFERROR( VLOOKUP(PDINote(PDI_AN_A_6),ResString,Langue+1,FALSE),"") ->  | K18: =IFERROR( VLOOKUP(PDINote(PDI_AN_A_7),ResString,Langue+1,FALSE),"") ->  | L18: =IFERROR( VLOOKUP(PDINote(PDI_AN_A_8),ResString,Langue+1,FALSE),"") ->  | M18: =IFERROR( VLOOKUP(PDINote(PDI_AN_A_9),ResString,Langue+1,FALSE),"") ->  | N18: =IFERROR( VLOOKUP(PDINote(PDI_AN_A_10),ResString,Langue+1,FALSE),"") -> 
C20: =VLOOKUP("PSD_1",ResString,Langue+1,FALSE) -> 6. Part du service de la dette (I6) | E20: =PSD_AN_A_1 ->  | F20: =PSD_AN_A_2 ->  | G20: =PSD_AN_A_3 ->  | H20: =PSD_AN_A_4 ->  | I20: =PSD_AN_A_5 ->  | J20: =PSD_AN_A_6 ->  | K20: =PSD_AN_A_7 ->  | L20: =PSD_AN_A_8 ->  | M20: =PSD_AN_A_9 ->  | N20: =PSD_AN_A_10 -> 
E21: =IFERROR( VLOOKUP(PSDNote(PSD_AN_A_1),ResString,Langue+1,FALSE),"") ->  | F21: =IFERROR( VLOOKUP(PSDNote(PSD_AN_A_2),ResString,Langue+1,FALSE),"") ->  | G21: =IFERROR( VLOOKUP(PSDNote(PSD_AN_A_3),ResString,Langue+1,FALSE),"") ->  | H21: =IFERROR( VLOOKUP(PSDNote(PSD_AN_A_4),ResString,Langue+1,FALSE),"") ->  | I21: =IFERROR( VLOOKUP(PSDNote(PSD_AN_A_5),ResString,Langue+1,FALSE),"") ->  | J21: =IFERROR( VLOOKUP(PSDNote(PSD_AN_A_6),ResString,Langue+1,FALSE),"") ->  | K21: =IFERROR( VLOOKUP(PSDNote(PSD_AN_A_7),ResString,Langue+1,FALSE),"") ->  | L21: =IFERROR( VLOOKUP(PSDNote(PSD_AN_A_8),ResString,Langue+1,FALSE),"") ->  | M21: =IFERROR( VLOOKUP(PSDNote(PSD_AN_A_9),ResString,Langue+1,FALSE),"") ->  | N21: =IFERROR( VLOOKUP(PSDNote(PSD_AN_A_10),ResString,Langue+1,FALSE),"") -> 
C23: =VLOOKUP("DNH_1",ResString,Langue+1,FALSE) -> 7. Dette nette 1 par habitant (I7) | E23: =DNH_AN_A_1 ->  | F23: =DNH_AN_A_2 ->  | G23: =DNH_AN_A_3 ->  | H23: =DNH_AN_A_4 ->  | I23: =DNH_AN_A_5 ->  | J23: =DNH_AN_A_6 ->  | K23: =DNH_AN_A_7 ->  | L23: =DNH_AN_A_8 ->  | M23: =DNH_AN_A_9 ->  | N23: =DNH_AN_A_10 -> 
E24: =IFERROR( VLOOKUP(DNHNote(DNH_AN_A_1),ResString,Langue+1,FALSE),"") ->  | F24: =IFERROR( VLOOKUP(DNHNote(DNH_AN_A_2),ResString,Langue+1,FALSE),"") ->  | G24: =IFERROR( VLOOKUP(DNHNote(DNH_AN_A_3),ResString,Langue+1,FALSE),"") ->  | H24: =IFERROR( VLOOKUP(DNHNote(DNH_AN_A_4),ResString,Langue+1,FALSE),"") ->  | I24: =IFERROR( VLOOKUP(DNHNote(DNH_AN_A_5),ResString,Langue+1,FALSE),"") ->  | J24: =IFERROR( VLOOKUP(DNHNote(DNH_AN_A_6),ResString,Langue+1,FALSE),"") ->  | K24: =IFERROR( VLOOKUP(DNHNote(DNH_AN_A_7),ResString,Langue+1,FALSE),"") ->  | L24: =IFERROR( VLOOKUP(DNHNote(DNH_AN_A_8),ResString,Langue+1,FALSE),"") ->  | M24: =IFERROR( VLOOKUP(DNHNote(DNH_AN_A_9),ResString,Langue+1,FALSE),"") ->  | N24: =IFERROR( VLOOKUP(DNHNote(DNH_AN_A_10),ResString,Langue+1,FALSE),"") -> 
C26: =VLOOKUP("TAU_1",ResString,Langue+1,FALSE) -> 8. Taux d’autofinancement (I8) | E26: =TAU_AN_A_1 ->  | F26: =TAU_AN_A_2 ->  | G26: =TAU_AN_A_3 ->  | H26: =TAU_AN_A_4 ->  | I26: =TAU_AN_A_5 ->  | J26: =TAU_AN_A_6 ->  | K26: =TAU_AN_A_7 ->  | L26: =TAU_AN_A_8 ->  | M26: =TAU_AN_A_9 ->  | N26: =TAU_AN_A_10 -> 
E27: =IFERROR( VLOOKUP(TAUNote(TAU_AN_A_1),ResString,Langue+1,FALSE),"") ->  | F27: =IFERROR( VLOOKUP(TAUNote(TAU_AN_A_2),ResString,Langue+1,FALSE),"") ->  | G27: =IFERROR( VLOOKUP(TAUNote(TAU_AN_A_3),ResString,Langue+1,FALSE),"") ->  | H27: =IFERROR( VLOOKUP(TAUNote(TAU_AN_A_4),ResString,Langue+1,FALSE),"") ->  | I27: =IFERROR( VLOOKUP(TAUNote(TAU_AN_A_5),ResString,Langue+1,FALSE),"") ->  | J27: =IFERROR( VLOOKUP(TAUNote(TAU_AN_A_6),ResString,Langue+1,FALSE),"") ->  | K27: =IFERROR( VLOOKUP(TAUNote(TAU_AN_A_7),ResString,Langue+1,FALSE),"") ->  | L27: =IFERROR( VLOOKUP(TAUNote(TAU_AN_A_8),ResString,Langue+1,FALSE),"") ->  | M27: =IFERROR( VLOOKUP(TAUNote(TAU_AN_A_9),ResString,Langue+1,FALSE),"") ->  | N27: =IFERROR( VLOOKUP(TAUNote(TAU_AN_A_10),ResString,Langue+1,FALSE),"") -> 

Sheet Lexique

Sheet Crédits conseil général (hidden)
BA1: RowAddCount1 | BB1: 0
C2: =VLOOKUP("CCG_1",ResString,Langue+1,FALSE) -> Tableau des crédits d'engagements et complémentaires utilisés et encore disponibles conseil général OGFCo, art. 81 et 82 | BA2: RowAddCount2 | BB2: 0
C5: =VLOOKUP("CCG_4",ResString,Langue+1,FALSE) -> Compte | D5: =VLOOKUP("CCG_5",ResString,Langue+1,FALSE) -> Libellé, ouvrage | E5: =VLOOKUP("CCG_2",ResString,Langue+1,FALSE) -> Crédit initial | H5: =VLOOKUP("CCG_3",ResString,Langue+1,FALSE) -> Crédit complémentaire | M5: =VLOOKUP("CCG_12",ResString,Langue+1,FALSE) -> Crédit global | N5: =VLOOKUP("CCG_13",ResString,Langue+1,FALSE) -> Crédit utilisé | O5: =VLOOKUP("CCG_14",ResString,Langue+1,FALSE) -> Crédit disponible | P5: =VLOOKUP("CCG_15",ResString,Langue+1,FALSE) -> Crédit valable jusqu'en
E6: =VLOOKUP("CCG_6",ResString,Langue+1,FALSE) -> Montant investissement | F6: =VLOOKUP("CCG_7",ResString,Langue+1,FALSE) -> Organe compétent : décision du | H6: =VLOOKUP("CCG_10",ResString,Langue+1,FALSE) -> Montant | I6: =VLOOKUP("CCG_8",ResString,Langue+1,FALSE) -> Conseil Municipal | J6: =VLOOKUP("CCG_10",ResString,Langue+1,FALSE) -> Montant | K6: =VLOOKUP("CCG_9",ResString,Langue+1,FALSE) -> Conseil Général | L6: Conseil Général décision du:
F7: =VLOOKUP("CCG_8",ResString,Langue+1,FALSE) -> Conseil Municipal | G7: =VLOOKUP("CCG_9",ResString,Langue+1,FALSE) -> Conseil Général | I7: =VLOOKUP("CCG_11",ResString,Langue+1,FALSE) -> décision du : | K7: =VLOOKUP("CCG_11",ResString,Langue+1,FALSE) -> décision du :
M8: =E8+H8+J8 -> 0 | O8: =M8-N8 -> 0
M9: =E9+H9+J9 -> 0 | O9: =M9-N9 -> 0
M10: =E10+H10+J10 -> 0 | O10: =M10-N10 -> 0
C12: =VLOOKUP("CCG_16",ResString,Langue+1,FALSE) -> Les crédits d'engagements de la compétence de l'exécutif ne figurent pas dans ce tableau.
C16: =VLOOKUP("CCG_17",ResString,Langue+1,FALSE) -> Tableau des crédits budgétaires et supplémentaires conseil général
C17: =VLOOKUP("CCG_18",ResString,Langue+1,FALSE) -> Lco, art. 30 al. 1 lit. b) et OGFCo, art. 83 et 84
C20: =VLOOKUP("CCG_4",ResString,Langue+1,FALSE) -> Compte | D20: =VLOOKUP("CCG_5",ResString,Langue+1,FALSE) -> Libellé, ouvrage | E20: =VLOOKUP("CCG_19",ResString,Langue+1,FALSE) -> Budget | F20: =VLOOKUP("CCG_26",ResString,Langue+1,FALSE) -> Compte | G20: =VLOOKUP("CCG_20",ResString,Langue+1,FALSE) -> Ecart en % | H20: =VLOOKUP("CCG_21",ResString,Langue+1,FALSE) -> Ecart en francs | I20: =VLOOKUP("CCG_22",ResString,Langue+1,FALSE) -> Date décision
G23: =IF(E23<>0,H23/E23,0) -> 0 | H23: =F23-E23 -> 0
G24: =IF(E24<>0,H24/E24,0) -> 0 | H24: =F24-E24 -> 0
G25: =IF(E25<>0,H25/E25,0) -> 0 | H25: =F25-E25 -> 0
G26: 0 | H26: 0
G27: 0 | H27: 0
C28: =VLOOKUP("CCG_23",ResString,Langue+1,FALSE) -> Les dépassements de crédit budgétaire inférieurs à 50'000 ne figurent pas dans ce tableau.
C29: =VLOOKUP("CCG_24",ResString,Langue+1,FALSE) -> Les dépassements de crédit budgétaire inférieurs à 10 % ne figurent pas dans ce tableau.
C30: =VLOOKUP("CCG_25",ResString,Langue+1,FALSE) -> Les dépassements de crédit budgétaire concernant des dépenses liées ne figurent pas dans ce tableau.

Sheet Crédits assemblée primaire (hidden)
BA1: RowAddCount3 | BB1: 0
C2: =VLOOKUP("CAP_1",ResString,Langue+1,FALSE) -> Tableau des crédits d'engagements et complémentaires utilisés et encore disponibles Assemblée bourgeoisiale | BA2: RowAddCount4 | BB2: 0
C3: =VLOOKUP("CAP_2",ResString,Langue+1,FALSE) -> OGFCo, art. 81 et 82
C5: =VLOOKUP("CAP_5",ResString,Langue+1,FALSE) -> Compte | D5: =VLOOKUP("CAP_6",ResString,Langue+1,FALSE) -> Libellé, ouvrage | E5: =VLOOKUP("CAP_3",ResString,Langue+1,FALSE) -> Crédit initial | H5: =VLOOKUP("CAP_4",ResString,Langue+1,FALSE) -> Crédit complémentaire | L5: =VLOOKUP("CAP_13",ResString,Langue+1,FALSE) -> Crédit global | M5: =VLOOKUP("CAP_14",ResString,Langue+1,FALSE) -> Crédit utilisé | N5: =VLOOKUP("CAP_15",ResString,Langue+1,FALSE) -> Crédit disponible | O5: =VLOOKUP("CAP_16",ResString,Langue+1,FALSE) -> Crédit valable jusqu'en
E6: =VLOOKUP("CAP_7",ResString,Langue+1,FALSE) -> Montant investissement | F6: =VLOOKUP("CAP_8",ResString,Langue+1,FALSE) -> Organe compétent : décision du | H6: =VLOOKUP("CAP_11",ResString,Langue+1,FALSE) -> Montant | I6: =VLOOKUP("CAP_9",ResString,Langue+1,FALSE) -> Conseil Bourgeoisial | J6: =VLOOKUP("CAP_11",ResString,Langue+1,FALSE) -> Montant | K6: =VLOOKUP("CAP_10",ResString,Langue+1,FALSE) -> Assemblée Bourgeoisiale
F7: =VLOOKUP("CAP_9",ResString,Langue+1,FALSE) -> Conseil Bourgeoisial | G7: =VLOOKUP("CAP_10",ResString,Langue+1,FALSE) -> Assemblée Bourgeoisiale | I7: =VLOOKUP("CAP_12",ResString,Langue+1,FALSE) -> décision du : | K7: =VLOOKUP("CAP_12",ResString,Langue+1,FALSE) -> décision du :
L8: =E8+H8+J8 -> 0 | N8: =L8-M8 -> 0
L9: =E9+H9+J9 -> 0 | N9: =L9-M9 -> 0
L10: =E10+H10+J10 -> 0 | N10: =L10-M10 -> 0
C12: =VLOOKUP("CAP_17",ResString,Langue+1,FALSE) -> Les crédits d'engagements de la compétence de l'exécutif ne figurent pas dans ce tableau.
C16: =VLOOKUP("CAP_18",ResString,Langue+1,FALSE) -> Tableau des crédits budgétaires et supplémentaires assemblée bourgeoisiale
C17: =VLOOKUP("CAP_19",ResString,Langue+1,FALSE) -> OGFCo, art. 83 et 84
C19: =VLOOKUP("CAP_5",ResString,Langue+1,FALSE) -> Compte | D19: =VLOOKUP("CAP_6",ResString,Langue+1,FALSE) -> Libellé, ouvrage | E19: =VLOOKUP("CAP_20",ResString,Langue+1,FALSE) -> Budget | F19: =VLOOKUP("CAP_21",ResString,Langue+1,FALSE) -> Compte | G19: =VLOOKUP("CAP_22",ResString,Langue+1,FALSE) -> Ecart en francs | H19: =VLOOKUP("CAP_23",ResString,Langue+1,FALSE) -> Date décision
G22: =F22-E22 -> 0
G23: =F23-E23 -> 0
G24: =F24-E24 -> 0
G25: 0
G26: 0
C27: =VLOOKUP("CAP_24",ResString,Langue+1,FALSE) -> Les dépassements de crédit budgétaire inférieurs à 50'000 ne figurent pas dans ce tableau.
C28: =VLOOKUP("CAP_25",ResString,Langue+1,FALSE) -> Les dépassements de crédit budgétaire concernant des dépenses liées ne figurent pas dans ce tableau.

Sheet Capitaux propres (hidden)
C2: =VLOOKUP("ECP_1",ResString,Langue+1,FALSE) -> Etat du capital propre
C4: =VLOOKUP("ECP_19",ResString,Langue+1,FALSE) -> en francs suisse | E4: =VLOOKUP("ECP_2",ResString,Langue+1,FALSE) -> Solde au 01.01 | F4: =VLOOKUP("ECP_3",ResString,Langue+1,FALSE) -> Attributions | G4: =VLOOKUP("ECP_4",ResString,Langue+1,FALSE) -> Prélèvements | H4: =VLOOKUP("ECP_5",ResString,Langue+1,FALSE) -> Solde au 31.12
C6: 29 | D6: =VLOOKUP(C6,ResString,Langue+1,FALSE) -> Capital propre | E6: =E7+E8+E9+E10+E11 -> 0 | F6: =SUM(F7:F11) -> 0 | G6: =SUM(G7:G11) -> 0 | H6: =H7+H8+H9+H10+H11 -> 0
C7: 290 | D7: =VLOOKUP(C7,ResString,Langue+1,FALSE) -> Engagements et avances sur financements spéciaux classés dans le capital propre | H7: =E7+F7-G7 -> 0
C8: 291 | D8: =VLOOKUP(C8,ResString,Langue+1,FALSE) -> Fonds classés dans le capital propre | H8: =E8+F8-G8 -> 0
C9: 294 | D9: =VLOOKUP(C9,ResString,Langue+1,FALSE) -> Réserves de politique budgétaire | H9: =E9+F9-G9 -> 0
C10: 296 | D10: =VLOOKUP(C10,ResString,Langue+1,FALSE) -> Réserve liée au retraitement du patrimoine financier | H10: =E10+F10-G10 -> 0
C11: 299 | D11: =VLOOKUP("ECP_16",ResString,Langue+1,FALSE) -> Excédent/découvert du bilan | H11: =E11+F11-G11 -> 0

Sheet Tableau des provisions (hidden)
BA1: RowAddCount5 | BB1: 0
C2: =VLOOKUP("TP_1",ResString,Langue+1,FALSE) -> Tableau des provisions | H2: =VLOOKUP("TP_12",ResString,Langue+1,FALSE) -> en francs suisses | BA2: RowAddCount6 | BB2: 0
C4: 205 | D4: =VLOOKUP(205,ResString,Langue+1,FALSE) -> Provisions à court terme
C5: =VLOOKUP("TP_2",ResString,Langue+1,FALSE) -> Compte | D5: =VLOOKUP("TP_3",ResString,Langue+1,FALSE) -> Dénomination | E5: =VLOOKUP("TP_4",ResString,Langue+1,FALSE) -> Solde au | F5: =VLOOKUP("TP_5",ResString,Langue+1,FALSE) -> Création | G5: =VLOOKUP("TP_7",ResString,Langue+1,FALSE) -> Dissolution | H5: =VLOOKUP("TP_4",ResString,Langue+1,FALSE) -> Solde au
E6: 01.01. | F6: =VLOOKUP("TP_6",ResString,Langue+1,FALSE) -> Augmentation | G6: =VLOOKUP("TP_8",ResString,Langue+1,FALSE) -> Réduction | H6: 31.12.
H7: =E7+F7-G7 -> 0
H8: 0
H9: 0
C11: 208 | D11: =VLOOKUP(208,ResString,Langue+1,FALSE) -> Provisions à long terme
C12: =VLOOKUP("TP_2",ResString,Langue+1,FALSE) -> Compte | D12: =VLOOKUP("TP_3",ResString,Langue+1,FALSE) -> Dénomination | E12: =VLOOKUP("TP_4",ResString,Langue+1,FALSE) -> Solde au | F12: =VLOOKUP("TP_5",ResString,Langue+1,FALSE) -> Création | G12: =VLOOKUP("TP_7",ResString,Langue+1,FALSE) -> Dissolution | H12: =VLOOKUP("TP_4",ResString,Langue+1,FALSE) -> Solde au
E13: 01.01. | F13: =VLOOKUP("TP_6",ResString,Langue+1,FALSE) -> Augmentation | G13: =VLOOKUP("TP_8",ResString,Langue+1,FALSE) -> Réduction | H13: 31.12.
H14: =E14+F14-G14 -> 0
H15: 0
H16: 0
C18: =VLOOKUP("TP_9",ResString,Langue+1,FALSE) -> Total provisions à court terme | E18: =SUM(INDEX(E:E, 7):INDEX(E:E, 9 + RowAddCount5)) -> 0 | F18: =SUM(INDEX(F:F, 7):INDEX(F:F, 9 + RowAddCount5)) -> 0 | G18: =SUM(INDEX(G:G, 7):INDEX(G:G, 9 + RowAddCount5)) -> 0 | H18: =SUM(INDEX(H:H, 7):INDEX(H:H, 9 + RowAddCount5)) -> 0
C19: =VLOOKUP("TP_10",ResString,Langue+1,FALSE) -> Total provisions à long terme | E19: =SUM(INDEX(E:E, 14 + RowAddCount5):INDEX(E:E, 16 + RowAddCount5 + RowAddCount6)) -> 0 | F19: =SUM(INDEX(F:F, 14 + RowAddCount5):INDEX(F:F, 16 + RowAddCount5 + RowAddCount6)) -> 0 | G19: =SUM(INDEX(G:G, 14 + RowAddCount5):INDEX(G:G, 16 + RowAddCount5 + RowAddCount6)) -> 0 | H19: =SUM(INDEX(H:H, 14 + RowAddCount5):INDEX(H:H, 16 + RowAddCount5 + RowAddCount6)) -> 0
C21: =VLOOKUP("TP_11",ResString,Langue+1,FALSE) -> Total des provisions | E21: =SUM(INDEX(E:E, 18 + RowAddCount5 + RowAddCount6):INDEX(E:E, 19 + RowAddCount5 + RowAddCount6)) -> 0 | F21: =SUM(INDEX(F:F, 18 + RowAddCount5 + RowAddCount6):INDEX(F:F, 19 + RowAddCount5 + RowAddCount6)) -> 0 | G21: =SUM(INDEX(G:G, 18 + RowAddCount5 + RowAddCount6):INDEX(G:G, 19 + RowAddCount5 + RowAddCount6)) -> 0 | H21: =SUM(INDEX(H:H, 18 + RowAddCount5 + RowAddCount6):INDEX(H:H, 19 + RowAddCount5 + RowAddCount6)) -> 0

Sheet Tableau des participations (hidden)
BA1: RowAddCount7a | BB1: 0
C2: =VLOOKUP("TPA_1",ResString,Langue+1,FALSE) -> Tableau des participations | BA2: RowAddCount7b | BB2: 0
BA3: RowAddCount7c | BB3: 0
BA4: RowAddCount7d | BB4: 0
BA5: RowAddCount7e | BB5: 0
C6: =VLOOKUP("TPA_2",ResString,Langue+1,FALSE) -> en francs suisses | D6: =VLOOKUP("TPA_3",ResString,Langue+1,FALSE) -> Nombre | E6: =VLOOKUP("TPA_5",ResString,Langue+1,FALSE) -> Part de la | F6: =VLOOKUP("TPA_7",ResString,Langue+1,FALSE) -> Valeur nominale | G6: =VLOOKUP("TPA_8",ResString,Langue+1,FALSE) -> Rendement | H6: =VLOOKUP("TPA_9",ResString,Langue+1,FALSE) -> Valeur comptable au | I6: =VLOOKUP("TPA_9",ResString,Langue+1,FALSE) -> Valeur comptable au
D7: =VLOOKUP("TPA_4",ResString,Langue+1,FALSE) -> détenu | E7: =VLOOKUP("TPA_6",ResString,Langue+1,FALSE) -> commune | F7: =VLOOKUP("TPA_16",ResString,Langue+1,FALSE) -> totale | G7: CHF | H7: 01.01 | I7: 31.12
E8: =VLOOKUP("TPA_15",ResString,Langue+1,FALSE) -> en %
C9: =VLOOKUP("TPA_10",ResString,Langue+1,FALSE) -> Institut de droit public
C11: =VLOOKUP("TPA_11",ResString,Langue+1,FALSE) -> Société anonyme
C13: =VLOOKUP("TPA_12",ResString,Langue+1,FALSE) -> Fondation
C15: =VLOOKUP("TPA_13",ResString,Langue+1,FALSE) -> Société coopérative
C17: =VLOOKUP("TPA_14",ResString,Langue+1,FALSE) -> Divers

Sheet Tableau des garanties (hidden)
BA1: RowAddCount8 | BB1: 0
C2: =VLOOKUP("TGA_1",ResString,Langue+1,FALSE) -> Tableau des garanties | BA2: RowAddCount9 | BB2: 0
C7: =VLOOKUP("TGA_2",ResString,Langue+1,FALSE) -> en francs suisses | D7: =VLOOKUP("TGA_3",ResString,Langue+1,FALSE) -> Solde au | E7: =VLOOKUP("TGA_3",ResString,Langue+1,FALSE) -> Solde au | F7: =VLOOKUP("TGA_4",ResString,Langue+1,FALSE) -> Ecart
D8: 01.01 | E8: 31.12
F10: =E10-D10 -> 0
F11: =E11-D11 -> 0
F12: =E12-D12 -> 0
F13: 0
F14: 0
F15: 0
F16: 0
F17: 0
F18: 0
F19: 0
F20: 0
F21: 0
F22: 0
F23: 0
F24: 0
F25: 0

Sheet Tableau immobilisations (hidden)
C2: =VLOOKUP("TI_1",ResString,Langue+1,FALSE) -> Tableau des immobilisations
C4: =VLOOKUP("TI_2",ResString,Langue+1,FALSE) -> Compte No | D4: =VLOOKUP("TI_3",ResString,Langue+1,FALSE) -> Intitulé | E4: =VLOOKUP("TI_4",ResString,Langue+1,FALSE) -> Solde au 01.01 | F4: =VLOOKUP("TI_5",ResString,Langue+1,FALSE) -> Dépenses | G4: =VLOOKUP("TI_6",ResString,Langue+1,FALSE) -> Recettes | H4: =VLOOKUP("TI_7",ResString,Langue+1,FALSE) -> Solde au 31.12 | I4: =VLOOKUP("TI_8",ResString,Langue+1,FALSE) -> Amortissements | J4: =VLOOKUP("TI_9",ResString,Langue+1,FALSE) -> Situation après amortissements | K4: =VLOOKUP("TI_10",ResString,Langue+1,FALSE) -> Amortissements minimum obligatoires | L4: =VLOOKUP("TI_11",ResString,Langue+1,FALSE) -> Contrôle
D5: =VLOOKUP("TI_13",ResString,Langue+1,FALSE) -> Comptes ordinaires
C6: 1400 | D6: =VLOOKUP(1400,ResString,Langue+1,FALSE) -> Terrains | H6: =E6+F6-G6 -> 0 | J6: =H6-I6 -> 0 | K6: 0 | L6: =IF(H6=0,0,I6/H6) -> 0
C7: 1401 | D7: =VLOOKUP(1401,ResString,Langue+1,FALSE) -> Routes / voies de communication | H7: =E7+F7-G7 -> 0 | J7: =H7-I7 -> 0 | K7: 0.07 | L7: =IF(H7=0,0,I7/H7) -> 0
C8: 1402 | D8: =VLOOKUP(1402,ResString,Langue+1,FALSE) -> Aménagement des cours d'eau du PA | H8: 0 | J8: =H8-I8 -> 0 | K8: 0.07 | L8: 0
C9: 1403 | D9: =VLOOKUP(1403,ResString,Langue+1,FALSE) -> Autres travaux de génie-civil | H9: 0 | J9: =H9-I9 -> 0 | K9: 0.07 | L9: 0
C10: 1404 | D10: =VLOOKUP(1404,ResString,Langue+1,FALSE) -> Bâtiments du PA | H10: =E10+F10-G10 -> 0 | J10: =H10-I10 -> 0 | K10: 0.08 | L10: 0
C11: 1405 | D11: =VLOOKUP(1405,ResString,Langue+1,FALSE) -> Forêts PA | H11: 0 | J11: 0 | K11: 0 | L11: 0
C12: 1406 | D12: =VLOOKUP(1406,ResString,Langue+1,FALSE) -> Biens meubles du PA | H12: 0 | J12: 0 | K12: 0.35 | L12: 0
C13: 1409 | D13: =VLOOKUP(1409,ResString,Langue+1,FALSE) -> Autres immobilisations corporelles | H13: 0 | J13: 0 | K13: 0.5 | L13: 0
C14: 1420 | D14: =VLOOKUP(1420,ResString,Langue+1,FALSE) -> Logiciel du PA | H14: 0 | J14: 0 | K14: 0.5 | L14: 0
C15: 1421 | D15: =VLOOKUP(1421,ResString,Langue+1,FALSE) -> Licences, droits d'utilisation, droits des marques PA | H15: 0 | J15: 0 | K15: 0.5 | L15: 0
C16: 1429 | D16: =VLOOKUP(1429,ResString,Langue+1,FALSE) -> Autres immobilisations incorporelles | H16: 0 | J16: 0 | K16: 0.5 | L16: 0
C17: 144X | D17: =VLOOKUP(144,ResString,Langue+1,FALSE) -> Prêts | H17: 0 | J17: 0 | K17: =VLOOKUP("TI_12",ResString,Langue+1,FALSE) -> Selon risque | L17: 0
C18: 145X | D18: =VLOOKUP(145,ResString,Langue+1,FALSE) -> Participation capital social | H18: 0 | J18: 0 | K18: =VLOOKUP("TI_12",ResString,Langue+1,FALSE) -> Selon risque | L18: 0
C19: 146X | D19: =VLOOKUP(146,ResString,Langue+1,FALSE) -> Subventions d'investissement | H19: 0 | J19: 0 | K19: 0.1 | L19: 0
D20: =VLOOKUP("TI_14",ResString,Langue+1,FALSE) -> Total comptes ordinaires | E20: =SUM(E6:E19) -> 0 | F20: 0 | G20: 0 | H20: 0 | I20: 0 | J20: 0
C22: =VLOOKUP("TI_2",ResString,Langue+1,FALSE) -> Compte No | D22: =VLOOKUP("TI_3",ResString,Langue+1,FALSE) -> Intitulé | E22: =VLOOKUP("TI_4",ResString,Langue+1,FALSE) -> Solde au 01.01 | F22: =VLOOKUP("TI_5",ResString,Langue+1,FALSE) -> Dépenses | G22: =VLOOKUP("TI_6",ResString,Langue+1,FALSE) -> Recettes | H22: =VLOOKUP("TI_7",ResString,Langue+1,FALSE) -> Solde au 31.12 | I22: =VLOOKUP("TI_8",ResString,Langue+1,FALSE) -> Amortissements | J22: =VLOOKUP("TI_9",ResString,Langue+1,FALSE) -> Situation après amortissements
D23: =VLOOKUP("TI_15",ResString,Langue+1,FALSE) -> Comptes spécifiques (Entreprises électriques, téléphériques et navigation)
C24: 1400.x | D24: =VLOOKUP(1400,ResString,Langue+1,FALSE) -> Terrains | H24: =E24+F24-G24 -> 0 | J24: =H24-I24 -> 0 | K24: =VLOOKUP("TI_21",ResString,Langue+1,FALSE) -> Selon Notice A 1995 AFC
C25: 1401.x | D25: =VLOOKUP(1401,ResString,Langue+1,FALSE) -> Routes / voies de communication | H25: 0 | J25: =H25-I25 -> 0 | K25: Selon Notice A 1995 AFC
C26: 1402.x | D26: =VLOOKUP(1402,ResString,Langue+1,FALSE) -> Aménagement des cours d'eau du PA | H26: 0 | J26: 0 | K26: Selon Notice A 1995 AFC
C27: 1403.x | D27: =VLOOKUP(1403,ResString,Langue+1,FALSE) -> Autres travaux de génie-civil | H27: 0 | J27: 0 | K27: Selon Notice A 1995 AFC
C28: 1404.x | D28: =VLOOKUP(1404,ResString,Langue+1,FALSE) -> Bâtiments du PA | H28: 0 | J28: 0 | K28: Selon Notice A 1995 AFC
C29: 1405.x | D29: =VLOOKUP(1405,ResString,Langue+1,FALSE) -> Forêts PA | H29: 0 | J29: 0 | K29: Selon Notice A 1995 AFC
C30: 1406.x | D30: =VLOOKUP(1406,ResString,Langue+1,FALSE) -> Biens meubles du PA | H30: 0 | J30: 0 | K30: Selon Notice A 1995 AFC
C31: 1409.x | D31: =VLOOKUP(1409,ResString,Langue+1,FALSE) -> Autres immobilisations corporelles | H31: 0 | J31: 0 | K31: Selon Notice A 1995 AFC
C32: 1420.x | D32: =VLOOKUP(1420,ResString,Langue+1,FALSE) -> Logiciel du PA | H32: 0 | J32: 0 | K32: Selon Notice A 1995 AFC
C33: 1421.x | D33: =VLOOKUP(1421,ResString,Langue+1,FALSE) -> Licences, droits d'utilisation, droits des marques PA | H33: 0 | J33: 0 | K33: Selon Notice A 1995 AFC
C34: 1429.x | D34: =VLOOKUP(1429,ResString,Langue+1,FALSE) -> Autres immobilisations incorporelles | H34: 0 | J34: 0 | K34: Selon Notice A 1995 AFC
C35: 144X.x | D35: =VLOOKUP(144,ResString,Langue+1,FALSE) -> Prêts | H35: 0 | J35: 0 | K35: Selon Notice A 1995 AFC
C36: 145X.x | D36: =VLOOKUP(145,ResString,Langue+1,FALSE) -> Participation capital social | H36: 0 | J36: 0 | K36: Selon Notice A 1995 AFC
C37: 146X.x | D37: =VLOOKUP(146,ResString,Langue+1,FALSE) -> Subventions d'investissement | H37: 0 | J37: 0 | K37: Selon Notice A 1995 AFC
D39: =VLOOKUP("TI_16",ResString,Langue+1,FALSE) -> Total comptes spécifiques | E39: =SUM(E24:E37) -> 0 | F39: 0 | G39: 0 | H39: 0 | I39: 0 | J39: 0
D41: =VLOOKUP("TI_17",ResString,Langue+1,FALSE) -> Total immobilisations du PA | E41: =E20+E39 -> 0 | F41: 0 | G41: 0 | H41: 0 | I41: 0 | J41: 0
C43: 6 | D43: =VLOOKUP("TI_18",ResString,Langue+1,FALSE) -> Entreprises électriques
C44: 7 | D44: =VLOOKUP("TI_19",ResString,Langue+1,FALSE) -> Téléphériques
C45: 8 | D45: =VLOOKUP("TI_20",ResString,Langue+1,FALSE) -> Navigation
D47: =HYPERLINK(VLOOKUP("TI_22",ResString,Langue+1,FALSE),VLOOKUP("TI_21",ResString,Langue+1,FALSE)) -> Selon Notice A 1995 AFC

Sheet Res (hidden)
K2: Commune | L2: =VLOOKUP(Commune,Communes,3,FALSE) -> Arbaz | N2: Variables annuelles | O2: Exercice 1 | P2: Exercice 2 | Q2: Premier exercice Plan financier | S2: Interface | T2: 1 | U2: Liste_An | V2: 1 | W2: 2013
K3: Commune n° | L3: 3 | S3: Index_An | T3: 6 | V3: 2 | W3: 2014
K4: Commune n° CI | L4: =VLOOKUP(Commune,RangeCommuneNo,2,FALSE) -> 121 | N4: Année | O4: =AN_3-2 -> 2024 | P4: =AN_3-1 -> 2025 | S4: AN_3 | T4: 2026 | V4: 3 | W4: 2015
K5: Langue | L5: =VLOOKUP(Commune,Communes,4,FALSE) -> 1 | N5: Coefficient d'impôt moyen | O5: 1.204508197 | P5: 1.201639344 | V5: 4 | W5: 2016
K6: Population An 1 | L6: =VLOOKUP(Commune,Communes,5,FALSE) -> 0 | V6: 5 | W6: 2017
F7: Budget | K7: Population An 2 | L7: =VLOOKUP(Commune,Communes,6,FALSE) -> 0 | V7: 6 | W7: 2018
K8: IsPrintFooter | L8: TRUE | O8: La population de l'année précédente au 31.12 est prise en compte | V8: 7 | W8: 2019
C9: Range "ResString" | D9: Français | E9: Deutsch | F9: FR | G9: DE | H9: FR | I9: DE | N9: Code langue | O9: Population | V9: 8 | W9: 2020
K10: Range "Communes" | O10: =An_1 -> 2024 | P10: =AN_2 -> 2025 | Q10: Diff | V10: 9 | W10: 2021
V11: 10 | W11: 2022
K12: 1 | L12: 75 | M12: Agarn | N12: 2 | Q12: =P12-O12 -> 0 | R12: =Q12/O12 ->  | V12: 11 | W12: 2023
K13: 2 | L13: 76 | M13: Albinen | N13: 2 | Q13: 0 | V13: 12 | W13: 2024
K14: 3 | L14: 121 | M14: Arbaz | N14: 1 | Q14: 0 | V14: 13 | W14: 2025
K15: 4 | L15: 127 | M15: Ardon | N15: 1 | Q15: 0
K16: 5 | L16: 63 | M16: Ausserberg | N16: 2 | Q16: 0
K17: 6 | L17: 1 | M17: Ausserbinn | N17: 2 | Q17: 0
K18: 7 | L18: 113 | M18: Ayent | N18: 1 | Q18: 0
K19: 8 | L19: 91 | M19: Ayer | N19: 1 | Q19: 0
K20: 9 | L20: 43 | M20: Baltschieder | N20: 2 | Q20: 0
K21: 10 | L21: 2 | M21: Bellwald | N21: 2 | Q21: 0
K22: 11 | L22: 22 | M22: Bettmeralp | N22: 2 | Q22: 0
K23: 12 | L23: 4 | M23: Binn | N23: 2 | Q23: 0
K24: 13 | L24: 23 | M24: Bister | N24: 2 | Q24: 0
K25: 14 | L25: 24 | M25: Bitsch | N25: 2 | Q25: 0
K26: 15 | L26: 64 | M26: Blatten | N26: 2 | Q26: 0
K27: 16 | L27: 144 | M27: Bourg-St-Pierre | N27: 1 | Q27: 0
K28: 17 | L28: 132 | M28: Bovernier | N28: 1 | Q28: 0
K29: 18 | L29: 33 | M29: Brig-Glis | N29: 2 | Q29: 0
K30: 19 | L30: 65 | M30: Bürchen | N30: 2 | Q30: 0
K31: 20 | L31: 92 | M31: Chalais | N31: 1 | Q31: 0
K32: 21 | L32: 128 | M32: Chamoson | N32: 1 | Q32: 0
K33: 22 | L33: 159 | M33: Champéry | N33: 1 | Q33: 0
K34: 23 | L34: 93 | M34: Chandolin | N34: 1 | Q34: 0
K35: 24 | L35: 94 | M35: Chermignon | N35: 1 | Q35: 0
K36: 25 | L36: 95 | M36: Chippis | N36: 1 | Q36: 0
K37: 26 | L37: 160 | M37: Collombey-Muraz | N37: 1 | Q37: 0
K38: 27 | L38: 149 | M38: Collonges | N38: 1 | Q38: 0
K39: 28 | L39: 129 | M39: Conthey | N39: 1 | Q39: 0
K40: 29 | L40: 150 | M40: Dorénaz | N40: 1 | Q40: 0
K41: 30 | L41: 35 | M41: Eggerberg | N41: 2 | Q41: 0
K42: 31 | L42: 66 | M42: Eischoll | N42: 2 | Q42: 0
K43: 32 | L43: 44 | M43: Eisten | N43: 2 | Q43: 0
K44: 33 | L44: 45 | M44: Embd | N44: 2 | Q44: 0
K45: 34 | L45: 78 | M45: Ergisch | N45: 2 | Q45: 0
K46: 35 | L46: 6 | M46: Ernen | N46: 2 | Q46: 0
K47: 36 | L47: 151 | M47: Evionnaz | N47: 1 | Q47: 0
K48: 37 | L48: 114 | M48: Evolène | N48: 1 | Q48: 0
K49: 38 | L49: 67 | M49: Ferden | N49: 2 | Q49: 0
K50: 39 | L50: 7 | M50: Fiesch | N50: 2 | Q50: 0
K51: 40 | L51: 8 | M51: Fieschertal | N51: 2 | Q51: 0
K52: 41 | L52: 152 | M52: Finhaut | N52: 1 | Q52: 0
K53: 42 | L53: 134 | M53: Fully | N53: 1 | Q53: 0
K54: 43 | L54: 81 | M54: Gampel-Bratsch | N54: 2 | Q54: 0
K55: 44 | L55: 13 | M55: Goms | N55: 2 | Q55: 0
K56: 45 | L56: 26 | M56: Goppisberg | N56: 2 | Q56: 0
K57: 46 | L57: 47 | M57: Grächen | N57: 2 | Q57: 0
K58: 47 | L58: 27 | M58: Greich | N58: 2 | Q58: 0
K59: 48 | L59: 28 | M59: Grengiols | N59: 2 | Q59: 0
K60: 49 | L60: 97 | M60: Grimentz | N60: 1 | Q60: 0
K61: 50 | L61: 122 | M61: Grimisuat | N61: 1 | Q61: 0
K62: 51 | L62: 98 | M62: Grône | N62: 1 | Q62: 0
K63: 52 | L63: 82 | M63: Guttet-Feschel | N63: 2 | Q63: 0
K64: 53 | L64: 115 | M64: Hérémence | N64: 1 | Q64: 0
K65: 54 | L65: 99 | M65: Icogne | N65: 1 | Q65: 0
K66: 55 | L66: 83 | M66: Inden | N66: 2 | Q66: 0
K67: 56 | L67: 135 | M67: Isérables | N67: 1 | Q67: 0
K68: 57 | L68: 69 | M68: Kippel | N68: 2 | Q68: 0
K69: 58 | L69: 48 | M69: Lalden | N69: 2 | Q69: 0
K70: 59 | L70: 11 | M70: Lax | N70: 2 | Q70: 0
K71: 60 | L71: 100 | M71: Lens | N71: 1 | Q71: 0
K72: 61 | L72: 84 | M72: Leuk | N72: 2 | Q72: =P72-O72 -> 0 | R72: =Q72/O72 -> 
K73: 62 | L73: 85 | M73: Leukerbad | N73: 2 | Q73: 0
K74: 63 | L74: 136 | M74: Leytron | N74: 1 | Q74: 0
K75: 64 | L75: 145 | M75: Liddes | N75: 1 | Q75: 0
K76: 65 | L76: 138 | M76: Martigny | N76: 1 | Q76: 0
K77: 66 | L77: 137 | M77: Martigny-Combe | N77: 1 | Q77: 0
K78: 67 | L78: 116 | M78: Mase | N78: 1 | Q78: 0
K79: 68 | L79: 153 | M79: Massongex | N79: 1 | Q79: 0
K80: 69 | L80: 154 | M80: Mex | N80: 1 | Q80: 0
K81: 70 | L81: 101 | M81: Miège | N81: 1 | Q81: 0
K82: 71 | L82: 102 | M82: Mollens | N82: 1 | Q82: 0
K83: 72 | L83: 103 | M83: Montana | N83: 1 | Q83: 0
K84: 73 | L84: 161 | M84: Monthey | N84: 1 | Q84: 0
K85: 74 | L85: 30 | M85: Mörel-Filet | N85: 2 | Q85: 0
K86: 75 | L86: 38 | M86: Naters | N86: 2 | Q86: 0
K87: 76 | L87: 117 | M87: Nax | N87: 1 | Q87: 0
K88: 77 | L88: 130 | M88: Nendaz | N88: 1 | Q88: 0
K89: 78 | L89: 70 | M89: Niedergesteln | N89: 2 | Q89: 0
K90: 79 | L90: 86 | M90: Oberems | N90: 2 | Q90: 0
K91: 80 | L91: 15 | M91: Obergoms | N91: 2 | Q91: 0
K92: 81 | L92: 146 | M92: Orsières | N92: 1 | Q92: 0
K93: 82 | L93: 162 | M93: Port-Valais | N93: 1 | Q93: =P93-O93 -> 0 | R93: =Q93/O93 -> 
K94: 83 | L94: 49 | M94: Randa | N94: 2 | Q94: 0
K95: 84 | L95: 1104 | M95: Randogne | N95: 1 | Q95: 0
K96: 85 | L96: 71 | M96: Raron | N96: 2 | Q96: 0
K97: 86 | L97: 139 | M97: Riddes | N97: 1 | Q97: 0
K98: 87 | L98: 39 | M98: Ried-Brig | N98: 2 | Q98: 0
K99: 88 | L99: 31 | M99: Ried-Mörel | N99: 2 | Q99: 0
K100: 89 | L100: 50 | M100: Saas-Almagell | N100: 2 | Q100: 0
K101: 90 | L101: 51 | M101: Saas-Balen | N101: 2 | Q101: 0
K102: 91 | L102: 52 | M102: Saas-Fee | N102: 2 | Q102: 0
K103: 92 | L103: 53 | M103: Saas-Grund | N103: 2 | Q103: 0
K104: 93 | L104: 140 | M104: Saillon | N104: 1 | Q104: 0
K105: 94 | L105: 87 | M105: Salgesch | N105: 2 | Q105: 0
K106: 95 | L106: 156 | M106: Salvan | N106: 1 | Q106: 0
K107: 96 | L107: 124 | M107: Savièse | N107: 1 | Q107: 0
K108: 97 | L108: 141 | M108: Saxon | N108: 1 | Q108: 0
K109: 98 | L109: 147 | M109: Sembrancher | N109: 1 | Q109: 0
K110: 99 | L110: 108 | M110: Sierre | N110: 1 | Q110: 0
K111: 100 | L111: 40 | M111: Simplon | N111: 2 | Q111: 0
K112: 101 | L112: 125 | M112: Sion | N112: 1 | Q112: 0
K113: 102 | L113: 54 | M113: St.Niklaus | N113: 2 | Q113: 0
K114: 103 | L114: 55 | M114: Stalden | N114: 2 | Q114: 0
K115: 104 | L115: 56 | M115: Staldenried | N115: 2 | Q115: 0
K116: 105 | L116: 72 | M116: Steg-Hohtenn | N116: 2 | Q116: 0
K117: 106 | L117: 163 | M117: St-Gingolph | N117: 1 | Q117: 0
K118: 107 | L118: 105 | M118: St-Jean | N118: 1 | Q118: 0
K119: 108 | L119: 106 | M119: St-Léonard | N119: 1 | Q119: 0
K120: 109 | L120: 107 | M120: St-Luc | N120: 1 | Q120: 0
K121: 110 | L121: 118 | M121: St-Martin | N121: 1 | Q121: 0
K122: 111 | L122: 155 | M122: St-Maurice | N122: 1 | Q122: 0
K123: 112 | L123: 57 | M123: Täsch | N123: 2 | Q123: 0
K124: 113 | L124: 41 | M124: Termen | N124: 2 | Q124: 0
K125: 114 | L125: 58 | M125: Törbel | N125: 2 | Q125: 0
K126: 115 | L126: 142 | M126: Trient | N126: 1 | Q126: 0
K127: 116 | L127: 164 | M127: Troistorrents | N127: 1 | Q127: 0
K128: 117 | L128: 1088 | M128: Turtmann | N128: 2 | Q128: 0
K129: 118 | L129: 73 | M129: Unterbäch | N129: 2 | Q129: 0
K130: 119 | L130: 89 | M130: Unterems | N130: 2 | Q130: =P130-O130 -> 0 | R130: =Q130/O130 -> 
K131: 120 | L131: 143 | M131: Val de Bagnes | N131: 1 | Q131: 0
K132: 121 | L132: 165 | M132: Val-d'Illiez | N132: 1 | Q132: 0
K133: 122 | L133: 90 | M133: Varen | N133: 2 | Q133: 0
K134: 123 | L134: 109 | M134: Venthône | N134: 1 | Q134: 0
K135: 124 | L135: 119 | M135: Vernamiège | N135: 1 | Q135: 0
K136: 125 | L136: 157 | M136: Vernayaz | N136: 1 | Q136: 0
K137: 126 | L137: 158 | M137: Vérossaz | N137: 1 | Q137: =P137-O137 -> 0 | R137: =Q137/O137 -> 
K138: 127 | L138: 131 | M138: Vétroz | N138: 1 | Q138: 0
K139: 128 | L139: 120 | M139: Vex | N139: 1 | Q139: 0
K140: 129 | L140: 110 | M140: Veyras | N140: 1 | Q140: 0
K141: 130 | L141: 126 | M141: Veysonnaz | N141: 1 | Q141: 0
K142: 131 | L142: 166 | M142: Vionnaz | N142: 1 | Q142: 0
K143: 132 | L143: 59 | M143: Visp | N143: 2 | Q143: 0
K144: 133 | L144: 60 | M144: Visperterminen | N144: 2 | Q144: 0
K145: 134 | L145: 111 | M145: Vissoie | N145: 1 | Q145: 0
K146: 135 | L146: 167 | M146: Vouvry | N146: 1 | Q146: 0
K147: 136 | L147: 74 | M147: Wiler | N147: 2 | Q147: 0
K148: 137 | L148: 61 | M148: Zeneggen | N148: 2 | Q148: 0
K149: 138 | L149: 62 | M149: Zermatt | N149: 2 | Q149: 0
K150: 139 | L150: 42 | M150: Zwischbergen | N150: 2 | Q150: 0
K162: =VLOOKUP("RC_3",ResString,Langue+1,FALSE) -> NB : Si les investissements nets sont négatifs (recettes d'investissements supérieures aux dépenses d'investissements), le ratio n'a pas de valeur indicative et c'est pourquoi il n'est pas pris en compte dans le calcul de la moyenne.
L165: AJOUTER
L167: 26 | M167: Goppisberg | N167: 2
L168: 27 | M168: Greich | N168: 2
L169: 31 | M169: Ried-Mörel | N169: 2
L170: 91 | M170: Ayer | N170: 1
L171: 93 | M171: Chandolin | N171: 1
L172: 97 | M172: Grimentz | N172: 1
L173: 105 | M173: St-Jean | N173: 1
L174: 107 | M174: St-Luc | N174: 1
L175: 110 | M175: Noble-Contrée | N175: 1
L176: 111 | M176: Vissoie | N176: 1
L177: 143 | M177: Val de Bagnes | N177: 1
L180: SUPPRIMER
L182: 48 | M182: 9 | N182: Geschinen
L183: 49 | M183: 10 | N183: Gluringen
L184: 80 | M184: 12 | N184: Mühlebach
L185: 117 | M185: 20 | N185: Steinhaus
K413: 900.001
K609: =LEN(D1529) -> 26
K610: 20
K611: 27
K612: 19 | L612: =LEN(E1529) -> 25
K613: 20 | L613: 28
K614: 19 | L614: 28
L615: 18
L616: 19
L617: 18
K623: =LEN(D1535) -> 20
K624: 26
K625: 26
K626: 25 | L626: =LEN(E1535) -> 19
J627: Onglets (Max 31 caractères) | K627: 25 | L627: 30
K628: 23 | L628: 29
K629: 26 | L629: 29
K630: =LEN(#REF!) ->  | L630: 28
K631: =LEN(#REF!) ->  | L631: 23
K632: =LEN(D1542) -> 28 | L632: 28
K633: 30 | L633: =LEN(#REF!) -> 
K634: 18 | L634: =LEN(#REF!) -> 
K635: 26 | L635: =LEN(E1542) -> 20
K636: 26 | L636: =LEN(E1543) -> 26
L637: =LEN(E1544) -> 20
L638: =LEN(E1545) -> 29
L639: =LEN(E1546) -> 30
J829: Séparateur de note
A830: s | C830: 1 | D830: Actif | E830: Aktiven
C831: 100 | D831: Disponibilités et placements à court terme | E831: Flüssige Mittel und kurzfristige Geldanlagen
C832: 101 | D832: Créances | E832: Forderungen
C833: 102 | D833: Placements financiers à court terme | E833: Kurzfristige Finanzanlagen
C834: 104 | D834: Actifs de régularisation | E834: Aktive Rechnungsabgrenzungen
... 1010 more rows

Sheet Res_An (hidden)
B4: SlcTypeExercice_A_2 / 3
B5: GetTypeExercice_A
A6: 1 | B6: =VLOOKUP("AC_30",ResString,Langue+1,FALSE) -> Compte
A7: 2 | B7: =VLOOKUP("AP_3",ResString,Langue+1,FALSE) -> Budget
A8: 3 | B8: =VLOOKUP("PF_15",ResString,Langue+1,FALSE) -> Plan financier
B10: TypeExercice_A
A12: 2 | B12: 2
A13: 3 | B13: 2
A14: 4 | B14: 2
A15: 5 | B15: 3
A16: 6 | B16: 3
A17: 7 | B17: 3
A18: 8 | B18: 3
A19: 9 | B19: 3
A20: 10 | B20: 3
A21: 11
A22: 12

Sheet Calcul (hidden)
B3: Degré d'autofinancement
B5: 0 | C5: 2
B6: 0.6 | C6: 3
B7: 0.8 | C7: 4
B8: 1 | C8: 5
B10: Valeur | C10: =IF(res_Interface =0,DA_An_M,DA_BP_M) -> 
B11: Note | C11: =IF(C10 < 0,1,VLOOKUP(C10,DA_Note_Tab,2,TRUE)) -> 
B14: Capacité d'autofinancement
B16: 0 | C16: 2
B17: 0.08 | C17: 3
B18: 0.15 | C18: 4
B19: 0.2 | C19: 5
B21: Valeur | C21: =IF(res_Interface =0,CA_An_M,CA_BP_M) -> 
B22: Note | C22: =IF(C21 < 0,1,VLOOKUP(C21,CA_Note_Tab,2,TRUE)) -> 
B25: Taux des amortissements ordinaires
B27: 0 | C27: 1
B28: 0.02 | C28: 2
B29: 0.05 | C29: 3
B30: 0.08 | C30: 4
B31: 0.1 | C31: 5
B33: Valeur | C33: =IF(res_Interface =0,TA_An_M,TA_BP_M) -> 
B34: Note | C34: =IF(C33 < 0,1,VLOOKUP(C33,TA_Note_Tab,2,TRUE)) -> 
B37: Endettement net par habitant
B39: 0 | C39: 5
B40: 3000 | C40: 4
B41: 5000 | C41: 3
B42: 7000 | C42: 2
B43: 9000 | C43: 1
B45: Valeur | C45: =IF(res_Interface =0,EN_An_M,EN_BP_M) -> 
B46: Note | C46: =IF(C45 < 0,5,VLOOKUP(C45,EN_Note_Tab,2,TRUE)) -> 
B49: Taux de volume de la dette brute
B51: 0 | C51: 5
B52: 1.5 | C52: 4
B53: 2 | C53: 3
B54: 2.5 | C54: 2
B55: 3 | C55: 1
B57: Valeur | C57: =IF(res_Interface =0,TV_An_M,TV_BP_M) -> 
B58: Note | C58: =IF(C57 < 0,5,VLOOKUP(C57,TV_Note_Tab,2,TRUE)) -> 

Sheet Vue (hidden)
E2: VuePages | G2: CI | H2: BP | I2: AN | J2: Dev | K2: FR | L2: DE
K3: max 32 caractères | L3: max 32 caractères
C4: 1 | E4: 1 | F4: Menu | G4: 1 | H4: 1 | I4: 1 | J4: 1 | K4: Menu | L4: Menu
C5: 2 | E5: 2 | F5: Données | G5: 1 | H5: 1 | I5: 0 | J5: 1 | K5: Données | L5: Angaben
C6: 3 | E6: 3 | F6: Ae-Données | G6: 0 | H6: 0 | I6: 1 | J6: 1 | K6: Ae-Données | L6: Ae-Angaben
C7: 4 | E7: 4 | F7: Validation | G7: 1 | H7: 0 | I7: 0 | J7: 1 | K7: Validation | L7: Validierung
C8: 5 | E8: 5 | F8: Plan financier | G8: 0 | H8: 1 | I8: 0 | J8: 1 | K8: Plan financier | L8: Finanzplan
C9: 6 | E9: 6 | F9: Aperçu résultats échelonnés | G9: 1 | H9: 1 | I9: 0 | J9: 1 | K9: Aperçu résultats échelonnés | L9: Überblick gestufte ER
C10: 7 | E10: 7 | F10: Aperçu rés. et inv. | G10: 1 | H10: 1 | I10: 0 | J10: 1 | K10: Aperçu rés. et inv. | L10: Überblick ER und IR
C11: 8 | E11: 8 | F11: Aperçu compte annuel | G11: 1 | H11: 1 | I11: 0 | J11: 1 | K11: Aperçu compte annuel | L11: Überblick der Jahresrechnung
C12: 9 | E12: 9 | F12: Tableau de flux de trésorerie | G12: 1 | H12: 0 | I12: 0 | J12: 1 | K12: Tableau de flux de trésorerie | L12: Geldflussrechnung
C13: 10 | E13: 10 | F13: Aperçu bilan | G13: 1 | H13: 0 | I13: 0 | J13: 1 | K13: Aperçu bilan | L13: Überblick der Bilanz
C14: 11 | E14: 11 | F14: CR selon les tâches | G14: 1 | H14: 1 | I14: 0 | J14: 1 | K14: CR selon les tâches | L14: ER nach Funktionen
C15: 12 | E15: 12 | F15: CR selon les natures | G15: 1 | H15: 1 | I15: 0 | J15: 1 | K15: CR selon les natures | L15: ER nach Sachgruppen
C16: 13 | E16: 13 | F16: CI selon les tâches | G16: 1 | H16: 1 | I16: 0 | J16: 1 | K16: CI selon les tâches | L16: IR nach Funktionen
C17: 14 | E17: 14 | F17: CI selon les natures | G17: 1 | H17: 1 | I17: 0 | J17: 1 | K17: CI selon les natures | L17: IR nach Sachgruppen
C18: 15 | E18: 15 | F18: Graphe CR natures, charges | G18: 1 | H18: 1 | I18: 0 | J18: 1 | K18: Graphe CR natures, charges | L18: Grafik ER nach Sachgr., Aufwand
C19: 16 | E19: 16 | F19: Graphe CR natures, revenus | G19: 1 | H19: 1 | I19: 0 | J19: 1 | K19: Graphe CR natures, revenus | L19: Grafik ER nach Sachgr., Ertrag
C20: 17 | E20: 17 | F20: Graphe CR tâches, charges | G20: 1 | H20: 1 | I20: 0 | J20: 1 | K20: Graphe CR tâches, charges | L20: Grafik ER nach Funk., Aufwand
C21: 18 | E21: 18 | F21: Graphe CR tâches, revenus | G21: 1 | H21: 1 | I21: 0 | J21: 1 | K21: Graphe CR tâches, revenus | L21: Grafik ER nach Funk., Ertrag
C22: 19 | E22: 19 | F22: Graphe CI tâches, dépenses | G22: 1 | H22: 1 | I22: 0 | J22: 1 | K22: Graphe CI tâches, dépenses | L22: Grafik Ausgaben nach Funktion
C23: 20 | E23: 20 | F23: Graphe CI tâches, recettes | G23: 1 | H23: 1 | I23: 0 | J23: 1 | K23: Graphe CI tâches, recettes | L23: Grafik Einnahmen nach Funktion
C24: 21 | D24: Ind 1-2 | E24: 21 | F24: Degré d’autofinancement | G24: 1 | H24: 1 | I24: 0 | J24: 1 | K24: I1 - I2 | L24: I1 - I2
C25: 22 | D25: Ind 3-4 | E25: 22 | F25: Capacité d’autofinancement | G25: 1 | H25: 1 | I25: 0 | J25: 1 | K25: I3 - I4 | L25: I3 - I4
C26: 23 | D26: Ind 5-6 | E26: 23 | F26: Endettement net par habitan | G26: 1 | H26: 1 | I26: 0 | J26: 1 | K26: I5 - I6 | L26: I5 - I6
C27: 24 | D27: Ind 7-8 | E27: 24 | F27: Taux de volume de la dette brute | G27: 1 | H27: 1 | I27: 0 | J27: 1 | K27: I7 - I8 | L27: I7 - I8
C28: 25 | E28: 25 | F28: Aperçu des indicateurs financiers | G28: 1 | H28: 1 | I28: 0 | J28: 1 | K28: Aperçu indicateurs | L28: Kennzahlen-Überblick
C29: 26 | D29: //// | E29: 26 | F29: Evolution des indicateurs | G29: 1 | H29: 1 | I29: 0 | J29: 1 | K29: Evolution indicateurs | L29: Kennzahlen-Entwicklung
C30: 27 | E30: 27 | F30: Ae - Plan financier | G30: 0 | H30: 0 | I30: 1 | J30: 1 | K30: Ae - Plan financier | L30: Ae-Finanzplan
C31: 28 | D31: Ind 1-2 | E31: 28 | F31: Ae - degré autofinancement | G31: 0 | H31: 0 | I31: 1 | J31: 1 | K31: Ae-I1 - I2 | L31: Ae-I1 - I2
C32: 29 | D32: Ind 3-4 | E32: 29 | F32: Ae - Capacité autofinancement | G32: 0 | H32: 0 | I32: 1 | J32: 1 | K32: Ae-I3 - I4 | L32: Ae-I3 - I4
C33: 30 | D33: Ind 5-6 | E33: 30 | F33: Ae - Dette nette | G33: 0 | H33: 0 | I33: 1 | J33: 1 | K33: Ae-I5 - I6 | L33: Ae-I5 - I6
C34: 31 | D34: Ind 7-8 | E34: 31 | F34: Ae - Taux vol. dette brute | G34: 0 | H34: 0 | I34: 1 | J34: 1 | K34: Ae-I7 - I8 | L34: Ae-I7 - I8
C35: 32 | E35: 32 | F35: Ae - Evolution indicateurs | G35: 0 | H35: 0 | I35: 1 | J35: 1 | K35: Ae-Evolution indicateurs | L35: Ae-Kennzahlen-Entwicklung
C36: 33 | D36: Nouveau | E36: 33 | F36: Lexique | G36: 1 | H36: 1 | I36: 1 | J36: 1 | K36: Lexique | L36: Lexikon
C37: 34 | E37: 34 | F37: Crédits conseil général | G37: 0 | H37: 0 | I37: 0 | J37: 1 | K37: Crédits conseil général | L37: Kredite Generalrat
C38: 35 | E38: 35 | F38: Crédits assemblée primaire | G38: 1 | H38: 0 | I38: 0 | J38: 1 | K38: Crédits assemblée primaire | L38: Kredite Urvesammlung
C39: 36 | E39: 36 | F39: Capitaux propres | G39: 1 | H39: 0 | I39: 0 | J39: 1 | K39: Capitaux propres | L39: Eigenkapital
C40: 37 | E40: 37 | F40: Tableau des provisions | G40: 1 | H40: 0 | I40: 0 | J40: 1 | K40: Tableau des provisions | L40: Rückstellungsspiegel
C41: 38 | E41: 38 | F41: Tableau des participations | G41: 1 | H41: 0 | I41: 0 | J41: 1 | K41: Tableau des participations | L41: Beteiligungsspiegel
C42: 39 | E42: 39 | F42: Tableau des garanties | G42: 1 | H42: 0 | I42: 0 | J42: 1 | K42: Tableau des garanties | L42: Gewährleistungsspiegel
C43: 40 | E43: 40 | F43: Tableau immobilisations | G43: 1 | H43: 0 | I43: 0 | J43: 1 | K43: Tableau immobilisations | L43: Anlagenspiegel
C44: 41 | E44: 41 | F44: Res | G44: 0 | H44: 0 | I44: 0 | J44: 1 | K44: Res | L44: Res
C45: 42 | E45: 42 | F45: Res_An | G45: 0 | H45: 0 | I45: 0 | J45: 1 | K45: Res_An | L45: Res_An
C46: 43 | E46: 43 | F46: Calcul | G46: 0 | H46: 0 | I46: 0 | J46: 1 | K46: Calcul | L46: Calcul
C47: 44 | E47: 44 | F47: Vue | G47: 0 | H47: 0 | I47: 0 | J47: 1 | K47: Vue | L47: Vue
C48: 45 | E48: 45 | F48: IndCalcul | G48: 0 | H48: 0 | I48: 0 | J48: 1 | K48: IndCalcul | L48: IndCalcul

Sheet IndCalcul (hidden)
G2: M_ | H2: M_xxx_2 | I2: M_xxx_B | J2: M_xxx_B_1 | K2: M_xxx_P_1 | L2: M_xxx_P_2 | M2: M_xxx_P_3 | N2: M_xxx_P_4 | O2: M_xxx_P_5 | P2: M_xxx_P_6 | Q2: M_xxx_P_7 | R2: M_xxx_P_8 | S2: M_xxx_P_9 | U2: M_xxx_A_1 | V2: M_xxx_A_2 | W2: M_xxx_A_3 | X2: M_xxx_A_4 | Y2: M_xxx_A_5 | Z2: M_xxx_A_6 | AA2: M_xxx_A_7 | AB2: M_xxx_A_8 | AC2: M_xxx_A_9 | AD2: M_xxx_A_10
B6: C9 | C6: Investissements bruts
F8: 5 | G8: =M_5 -> 0 | H8: =M_5_2 -> 0 | I8: =M_5_B -> 0 | J8: =M_5_B_1 -> 0 | K8: =M_5_P_1 -> 0 | L8: =M_5_P_2 -> 0 | M8: =M_5_P_3 -> 0 | N8: =M_5_P_4 -> 0 | O8: =M_5_P_5 -> 0 | P8: =M_5_P_6 -> 0 | Q8: =M_5_P_7 -> 0 | R8: =M_5_P_8 -> 0 | S8: =M_5_P_9 -> 0 | U8: =M_5_A_1 -> 0 | V8: =M_5_A_2 -> 0 | W8: =M_5_A_3 -> 0 | X8: =M_5_A_4 -> 0 | Y8: =M_5_A_5 -> 0 | Z8: =M_5_A_6 -> 0 | AA8: =M_5_A_7 -> 0 | AB8: =M_5_A_8 -> 0 | AC8: =M_5_A_9 -> 0 | AD8: =M_5_A_10 -> 0
E9: - | F9: 57 | G9: =M_57*-1 -> 0 | H9: =M_57_2*-1 -> 0 | I9: =M_57_B*-1 -> 0 | J9: =M_57_B_1*-1 -> 0 | K9: =M_57_P_1*-1 -> 0 | L9: =M_57_P_2*-1 -> 0 | M9: =M_57_P_3*-1 -> 0 | N9: =M_57_P_4*-1 -> 0 | O9: =M_57_P_5*-1 -> 0 | P9: =M_57_P_6*-1 -> 0 | Q9: =M_57_P_7*-1 -> 0 | R9: =M_57_P_8*-1 -> 0 | S9: =M_57_P_9*-1 -> 0 | U9: =M_57_A_1*-1 -> 0 | V9: =M_57_A_2*-1 -> 0 | W9: =M_57_A_3*-1 -> 0 | X9: =M_57_A_4*-1 -> 0 | Y9: =M_57_A_5*-1 -> 0 | Z9: =M_57_A_6*-1 -> 0 | AA9: =M_57_A_7*-1 -> 0 | AB9: =M_57_A_8*-1 -> 0 | AC9: =M_57_A_9*-1 -> 0 | AD9: =M_57_A_10*-1 -> 0
D11: InvBrut | G11: =SUM(G8:G9) -> 0 | H11: =SUM(H8:H9) -> 0 | I11: 0 | J11: 0 | K11: 0 | L11: 0 | M11: 0 | N11: 0 | O11: 0 | P11: 0 | Q11: 0 | R11: 0 | S11: 0 | U11: =SUM(U8:U10) -> 0 | V11: 0 | W11: 0 | X11: 0 | Y11: 0 | Z11: 0 | AA11: 0 | AB11: 0 | AC11: 0 | AD11: 0
B14: C10 | C14: Dette brute
F16: 200 | G16: =M_200 -> 0 | H16: =M_200_2 -> 0 | I16: =M_200+M_VCT_B ->  | J16: =M_C_200_DB+M_VCT_B_1 ->  | K16: =IF(M_VCT_P_1=0,0,M_VCT_P_1+M_C_200_DB_1) ->  | L16: =IF(M_VCT_P_2=0,0,M_VCT_P_2+M_C_200_DB_2) ->  | M16: =IF(M_VCT_P_3=0,0,M_VCT_P_3+M_C_200_DB_3) ->  | N16: =IF(M_VCT_P_4=0,0,M_VCT_P_4+M_C_200_DB_4) -> 0 | O16: =IF(M_VCT_P_5=0,0,M_VCT_P_5+M_C_200_DB_5) -> 0 | P16: =IF(M_VCT_P_6=0,0,M_VCT_P_6+M_C_200_DB_6) -> 0 | Q16: =IF(M_VCT_P_7=0,0,M_VCT_P_7+M_C_200_DB_7) -> 0 | R16: =IF(M_VCT_P_8=0,0,M_VCT_P_8+M_C_200_DB_8) -> 0 | S16: =IF(M_VCT_P_9=0,0,M_VCT_P_9+M_C_200_DB_9) -> 0 | U16: =M_200_A_1 -> 0 | V16: =M_200_A_2 -> 0 | W16: =M_200_A_3 -> 0 | X16: =M_200_A_4 -> 0 | Y16: =M_200_A_5 -> 0 | Z16: =M_200_A_6 -> 0 | AA16: =M_200_A_7 -> 0 | AB16: =M_200_A_8 -> 0 | AC16: =M_200_A_9 -> 0 | AD16: =M_200_A_10 -> 0
F17: 201 | G17: =M_201 -> 0 | H17: =M_201_2 -> 0 | I17: =M_201 -> 0 | J17: =M_201 -> 0 | K17: =IF(M_C_200_DB_2=0,0,M_201) ->  | L17: =IF(M_C_200_DB_3=0,0,M_201) ->  | M17: =IF(M_C_200_DB_4=0,0,M_201) ->  | N17: =IF(M_C_200_DB_5=0,0,M_201) -> 0 | O17: =IF(M_C_200_DB_6=0,0,M_201) -> 0 | P17: =IF(M_C_200_DB_7=0,0,M_201) -> 0 | Q17: =IF(M_C_200_DB_8=0,0,M_201) -> 0 | R17: =IF(M_C_200_DB_9=0,0,M_201) -> 0 | S17: =IF(M_C_200_DB_10=0,0,M_201) -> 0 | U17: =M_201_A_1 -> 0 | V17: =M_201_A_2 -> 0 | W17: =M_201_A_3 -> 0 | X17: =M_201_A_4 -> 0 | Y17: =M_201_A_5 -> 0 | Z17: =M_201_A_6 -> 0 | AA17: =M_201_A_7 -> 0 | AB17: =M_201_A_8 -> 0 | AC17: =M_201_A_9 -> 0 | AD17: =M_201_A_10 -> 0
E18: - | F18: 2016 | G18: =M_2016*-1 ->  | H18: =M_2016_2*-1 ->  | I18: =M_2016_B*-1 ->  | J18: =M_2016_B_1*-1 ->  | K18: =IF(M_C_200_DB_2=0,0,M_2016_P_1*-1) ->  | L18: =IF(M_C_200_DB_3=0,0,M_2016_P_2*-1) ->  | M18: =IF(M_C_200_DB_4=0,0,M_2016_P_3*-1) ->  | N18: =IF(M_C_200_DB_5=0,0,M_2016_P_4*-1) -> 0 | O18: =IF(M_C_200_DB_6=0,0,M_2016_P_5*-1) -> 0 | P18: =IF(M_C_200_DB_7=0,0,M_2016_P_6*-1) -> 0 | Q18: =IF(M_C_200_DB_8=0,0,M_2016_P_7*-1) -> 0 | R18: =IF(M_C_200_DB_9=0,0,M_2016_P_8*-1) -> 0 | S18: =IF(M_C_200_DB_10=0,0,M_2016_P_9*-1) -> 0 | U18: =M_2016_A_1*-1 -> 0 | V18: =M_2016_A_2*-1 -> 0 | W18: =M_2016_A_3*-1 -> 0 | X18: =M_2016_A_4*-1 -> 0 | Y18: =M_2016_A_5*-1 -> 0 | Z18: =M_2016_A_6*-1 -> 0 | AA18: =M_2016_A_7*-1 -> 0 | AB18: =M_2016_A_8*-1 -> 0 | AC18: =M_2016_A_9*-1 -> 0 | AD18: =M_2016_A_10*-1 -> 0
F19: 206 | G19: =M_206 -> 0 | H19: =M_206_2 -> 0 | I19: =M_206 -> 0 | J19: =M_206 -> 0 | K19: =IF(M_C_200_DB_2=0,0,M_206) ->  | L19: =IF(M_C_200_DB_3=0,0,M_206) ->  | M19: =IF(M_C_200_DB_4=0,0,M_206) ->  | N19: =IF(M_C_200_DB_5=0,0,M_206) -> 0 | O19: =IF(M_C_200_DB_6=0,0,M_206) -> 0 | P19: =IF(M_C_200_DB_7=0,0,M_206) -> 0 | Q19: =IF(M_C_200_DB_8=0,0,M_206) -> 0 | R19: =IF(M_C_200_DB_9=0,0,M_206) -> 0 | S19: =IF(M_C_200_DB_10=0,0,M_206) -> 0 | U19: =M_206_A_1 -> 0 | V19: =M_206_A_2 -> 0 | W19: =M_206_A_3 -> 0 | X19: =M_206_A_4 -> 0 | Y19: =M_206_A_5 -> 0 | Z19: =M_206_A_6 -> 0 | AA19: =M_206_A_7 -> 0 | AB19: =M_206_A_8 -> 0 | AC19: =M_206_A_9 -> 0 | AD19: =M_206_A_10 -> 0
E20: - | F20: 2066 | G20: =M_2066*-1 ->  | H20: =M_2066_2*-1 ->  | I20: =M_2066_B*-1 ->  | J20: =M_2066_B_1*-1 ->  | K20: =IF(M_C_200_DB_2=0,0,M_2066_P_1*-1) ->  | L20: =IF(M_C_200_DB_3=0,0,M_2066_P_2*-1) ->  | M20: =IF(M_C_200_DB_4=0,0,M_2066_P_3*-1) ->  | N20: =IF(M_C_200_DB_5=0,0,M_2066_P_4*-1) -> 0 | O20: =IF(M_C_200_DB_6=0,0,M_2066_P_5*-1) -> 0 | P20: =IF(M_C_200_DB_7=0,0,M_2066_P_6*-1) -> 0 | Q20: =IF(M_C_200_DB_8=0,0,M_2066_P_7*-1) -> 0 | R20: =IF(M_C_200_DB_9=0,0,M_2066_P_8*-1) -> 0 | S20: =IF(M_C_200_DB_10=0,0,M_2066_P_9*-1) -> 0 | U20: =M_2066_A_1*-1 -> 0 | V20: =M_2066_A_2*-1 -> 0 | W20: =M_2066_A_3*-1 -> 0 | X20: =M_2066_A_4*-1 -> 0 | Y20: =M_2066_A_5*-1 -> 0 | Z20: =M_2066_A_6*-1 -> 0 | AA20: =M_2066_A_7*-1 -> 0 | AB20: =M_2066_A_8*-1 -> 0 | AC20: =M_2066_A_9*-1 -> 0 | AD20: =M_2066_A_10*-1 -> 0
E21: - | F21: 2068
D23: DetBrut | G23: =SUM(G16:G22) ->  | H23: =SUM(H16:H22) ->  | I23: =SUM(I16:I22) ->  | K23: =SUM(K16:K22) ->  | L23: =SUM(L16:L22) ->  | M23: =SUM(M16:M22) ->  | N23: 0 | O23: 0 | P23: 0 | Q23: 0 | R23: 0 | S23: 0 | U23: 0 | V23: =SUM(V16:V22) -> 0 | W23: =SUM(W16:W22) -> 0 | X23: =SUM(X16:X22) -> 0 | Y23: =SUM(Y16:Y22) -> 0 | Z23: =SUM(Z16:Z22) -> 0 | AA23: =SUM(AA16:AA22) -> 0 | AB23: =SUM(AB16:AB22) -> 0 | AC23: =SUM(AC16:AC22) -> 0 | AD23: =SUM(AD16:AD22) -> 0
B26: C11 | C26: Dépenses totales
F28: DepCour | G28: =M_DepCour ->  | H28: =M_DepCour_2 ->  | I28: =M_DepCour_B ->  | J28: =M_DepCour_B_1 ->  | K28: =M_DepCour_P_1 ->  | L28: =M_DepCour_P_2 ->  | M28: =M_DepCour_P_3 ->  | N28: =M_DepCour_P_4 -> 0 | O28: =M_DepCour_P_5 -> 0 | P28: =M_DepCour_P_6 -> 0 | Q28: =M_DepCour_P_7 -> 0 | R28: =M_DepCour_P_8 -> 0 | S28: =M_DepCour_P_9 -> 0 | U28: =M_DepCour_A_1 -> 0 | V28: =M_DepCour_A_2 -> 0 | W28: =M_DepCour_A_3 -> 0 | X28: =M_DepCour_A_4 -> 0 | Y28: =M_DepCour_A_5 -> 0 | Z28: =M_DepCour_A_6 -> 0 | AA28: =M_DepCour_A_7 -> 0 | AB28: =M_DepCour_A_8 -> 0 | AC28: =M_DepCour_A_9 -> 0 | AD28: =M_DepCour_A_10 -> 0
F29: InvBrut | G29: =M_InvBrut -> 0 | H29: =M_InvBrut_2 -> 0 | I29: =M_InvBrut_B -> 0 | J29: =M_InvBrut_B_1 -> 0 | K29: =M_InvBrut_P_1 -> 0 | L29: =M_InvBrut_P_2 -> 0 | M29: =M_InvBrut_P_3 -> 0 | N29: =M_InvBrut_P_4 -> 0 | O29: =M_InvBrut_P_5 -> 0 | P29: =M_InvBrut_P_6 -> 0 | Q29: =M_InvBrut_P_7 -> 0 | R29: =M_InvBrut_P_8 -> 0 | S29: =M_InvBrut_P_9 -> 0 | U29: =M_InvBrut_A_1 -> 0 | V29: =M_InvBrut_A_2 -> 0 | W29: =M_InvBrut_A_3 -> 0 | X29: =M_InvBrut_A_4 -> 0 | Y29: =M_InvBrut_A_5 -> 0 | Z29: =M_InvBrut_A_6 -> 0 | AA29: =M_InvBrut_A_7 -> 0 | AB29: =M_InvBrut_A_8 -> 0 | AC29: =M_InvBrut_A_9 -> 0 | AD29: =M_InvBrut_A_10 -> 0
D31: DepTotal | G31: =SUM(G28:G30) ->  | H31: =SUM(H28:H30) ->  | I31: =SUM(I28:I30) ->  | K31: =SUM(K28:K30) ->  | L31: =SUM(L28:L30) ->  | M31: =SUM(M28:M30) ->  | N31: 0 | O31: 0 | P31: 0 | Q31: 0 | R31: 0 | S31: 0 | U31: 0 | V31: =SUM(V28:V30) -> 0 | W31: =SUM(W28:W30) -> 0 | X31: =SUM(X28:X30) -> 0 | Y31: =SUM(Y28:Y30) -> 0 | Z31: =SUM(Z28:Z30) -> 0 | AA31: =SUM(AA28:AA30) -> 0 | AB31: =SUM(AB28:AB30) -> 0 | AC31: =SUM(AC28:AC30) -> 0 | AD31: =SUM(AD28:AD30) -> 0
B34: C12 | C34: Recettes totales
F36: RecCour | G36: =M_RecCour ->  | H36: =M_RecCour_2 ->  | I36: =M_RecCour_B ->  | J36: =M_RecCour_B_1 ->  | K36: =M_RecCour_P_1 ->  | L36: =M_RecCour_P_2 ->  | M36: =M_RecCour_P_3 ->  | N36: =M_RecCour_P_4 -> 0 | O36: =M_RecCour_P_5 -> 0 | P36: =M_RecCour_P_6 -> 0 | Q36: =M_RecCour_P_7 -> 0 | R36: =M_RecCour_P_8 -> 0 | S36: =M_RecCour_P_9 -> 0 | U36: =M_RecCour_A_1 -> 0 | V36: =M_RecCour_A_2 -> 0 | W36: =M_RecCour_A_3 -> 0 | X36: =M_RecCour_A_4 -> 0 | Y36: =M_RecCour_A_5 -> 0 | Z36: =M_RecCour_A_6 -> 0 | AA36: =M_RecCour_A_7 -> 0 | AB36: =M_RecCour_A_8 -> 0 | AC36: =M_RecCour_A_9 -> 0 | AD36: =M_RecCour_A_10 -> 0
F37: RecInv | G37: =M_RecInv -> 0 | H37: =M_RecInv_2 -> 0 | I37: =M_RecInv_B -> 0 | J37: =M_RecInv_B_1 -> 0 | K37: =M_RecInv_P_1 -> 0 | L37: =M_RecInv_P_2 -> 0 | M37: =M_RecInv_P_3 -> 0 | N37: =M_RecInv_P_4 -> 0 | O37: =M_RecInv_P_5 -> 0 | P37: =M_RecInv_P_6 -> 0 | Q37: =M_RecInv_P_7 -> 0 | R37: =M_RecInv_P_8 -> 0 | S37: =M_RecInv_P_9 -> 0 | U37: =M_RecInv_A_1 -> 0 | V37: =M_RecInv_A_2 -> 0 | W37: =M_RecInv_A_3 -> 0 | X37: =M_RecInv_A_4 -> 0 | Y37: =M_RecInv_A_5 -> 0 | Z37: =M_RecInv_A_6 -> 0 | AA37: =M_RecInv_A_7 -> 0 | AB37: =M_RecInv_A_8 -> 0 | AC37: =M_RecInv_A_9 -> 0 | AD37: =M_RecInv_A_10 -> 0
D39: RecTotal | G39: =SUM(G36:G38) ->  | H39: =SUM(H36:H38) ->  | I39: =SUM(I36:I38) ->  | K39: =SUM(K36:K38) ->  | L39: =SUM(L36:L38) ->  | M39: =SUM(M36:M38) ->  | N39: 0 | O39: 0 | P39: 0 | Q39: 0 | R39: 0 | S39: 0 | U39: 0 | V39: =SUM(V36:V38) -> 0 | W39: =SUM(W36:W38) -> 0 | X39: =SUM(X36:X38) -> 0 | Y39: =SUM(Y36:Y38) -> 0 | Z39: =SUM(Z36:Z38) -> 0 | AA39: =SUM(AA36:AA38) -> 0 | AB39: =SUM(AB36:AB38) -> 0 | AC39: =SUM(AC36:AC38) -> 0 | AD39: =SUM(AD36:AD38) -> 0
B42: C13 | C42: Recettes d'investissement
F44: 6 | G44: =M_6 -> 0 | H44: =M_6_2 -> 0 | I44: =M_6_B -> 0 | J44: =M_6_B_1 -> 0 | K44: =M_6_P_1 -> 0 | L44: =M_6_P_2 -> 0 | M44: =M_6_P_3 -> 0 | N44: =M_6_P_4 -> 0 | O44: =M_6_P_5 -> 0 | P44: =M_6_P_6 -> 0 | Q44: =M_6_P_7 -> 0 | R44: =M_6_P_8 -> 0 | S44: =M_6_P_9 -> 0 | U44: =M_6_A_1 -> 0 | V44: =M_6_A_2 -> 0 | W44: =M_6_A_3 -> 0 | X44: =M_6_A_4 -> 0 | Y44: =M_6_A_5 -> 0 | Z44: =M_6_A_6 -> 0 | AA44: =M_6_A_7 -> 0 | AB44: =M_6_A_8 -> 0 | AC44: =M_6_A_9 -> 0 | AD44: =M_6_A_10 -> 0
E45: - | F45: 67 | G45: =M_67*-1 -> 0 | H45: =M_67_2*-1 -> 0 | I45: =M_67_B*-1 -> 0 | J45: =M_67_B_1*-1 -> 0 | K45: =M_67_P_1*-1 -> 0 | L45: =M_67_P_2*-1 -> 0 | M45: =M_67_P_3*-1 -> 0 | N45: =M_67_P_4*-1 -> 0 | O45: =M_67_P_5*-1 -> 0 | P45: =M_67_P_6*-1 -> 0 | Q45: =M_67_P_7*-1 -> 0 | R45: =M_67_P_8*-1 -> 0 | S45: =M_67_P_9*-1 -> 0 | U45: =M_67_A_1*-1 -> 0 | V45: =M_67_A_2*-1 -> 0 | W45: =M_67_A_3*-1 -> 0 | X45: =M_67_A_4*-1 -> 0 | Y45: =M_67_A_5*-1 -> 0 | Z45: =M_67_A_6*-1 -> 0 | AA45: =M_67_A_7*-1 -> 0 | AB45: =M_67_A_8*-1 -> 0 | AC45: =M_67_A_9*-1 -> 0 | AD45: =M_67_A_10*-1 -> 0
D46: RecInv | G46: =SUM(G44:G45) -> 0 | H46: =SUM(H44:H45) -> 0 | I46: 0 | J46: 0 | K46: 0 | L46: 0 | M46: 0 | N46: 0 | O46: 0 | P46: 0 | Q46: 0 | R46: 0 | S46: 0 | U46: =SUM(U44:U45) -> 0 | V46: =SUM(V44:V45) -> 0 | W46: 0 | X46: 0 | Y46: 0 | Z46: 0 | AA46: 0 | AB46: 0 | AC46: 0 | AD46: 0
B49: C14 | C49: Service de la dette
F51: 340 | G51: =M_340 -> Remplir | H51: =M_340_2 -> Remplir | I51: =M_340_B -> Remplir | J51: =M_340_B_1 -> Remplir | K51: =M_340_P_1 -> Remplir | L51: =M_340_P_2 -> Remplir | M51: =M_340_P_3 -> Remplir | N51: =M_340_P_4 -> 0 | O51: =M_340_P_5 -> 0 | P51: =M_340_P_6 -> 0 | Q51: =M_340_P_7 -> 0 | R51: =M_340_P_8 -> 0 | S51: =M_340_P_9 -> 0 | U51: =M_340_A_1 -> 0 | V51: =M_340_A_2 -> 0 | W51: =M_340_A_3 -> 0 | X51: =M_340_A_4 -> 0 | Y51: =M_340_A_5 -> 0 | Z51: =M_340_A_6 -> 0 | AA51: =M_340_A_7 -> 0 | AB51: =M_340_A_8 -> 0 | AC51: =M_340_A_9 -> 0 | AD51: =M_340_A_10 -> 0
E52: - | F52: 440 | G52: =M_440 -> 0 | H52: =M_440_2*-1 -> 0 | I52: =M_440_B*-1 -> 0 | J52: =M_440_B_1*-1 -> 0 | K52: =M_440_P_1*-1 ->  | L52: =M_440_P_2*-1 ->  | M52: =M_440_P_3*-1 ->  | N52: =M_440_P_4*-1 -> 0 | O52: =M_440_P_5*-1 -> 0 | P52: =M_440_P_6*-1 -> 0 | Q52: =M_440_P_7*-1 -> 0 | R52: =M_440_P_8*-1 -> 0 | S52: =M_440_P_9*-1 -> 0 | U52: =M_440_A_1 *-1 -> 0 | V52: =M_440_A_2 *-1 -> 0 | W52: =M_440_A_3 *-1 -> 0 | X52: =M_440_A_4*-1 -> 0 | Y52: =M_440_A_5 *-1 -> 0 | Z52: =M_440_A_6 *-1 -> 0 | AA52: =M_440_A_7 *-1 -> 0 | AB52: =M_440_A_8 *-1 -> 0 | AC52: =M_440_A_9 *-1 -> 0 | AD52: =M_440_A_10 *-1 -> 0
F53: 33 | G53: =M_33 -> 0 | H53: =M_33_2 -> 0 | I53: =M_33_B -> 0 | J53: =M_33_B_1 -> 0 | K53: =M_33_P_1 -> Remplir | L53: =M_33_P_2 -> Remplir | M53: =M_33_P_3 -> Remplir | N53: =M_33_P_4 -> 0 | O53: =M_33_P_5 -> 0 | P53: =M_33_P_6 -> 0 | Q53: =M_33_P_7 -> 0 | R53: =M_33_P_8 -> 0 | S53: =M_33_P_9 -> 0 | U53: =M_33_A_1 -> 0 | V53: =M_33_A_2 -> 0 | W53: =M_33_A_3 -> 0 | X53: =M_33_A_4 -> 0 | Y53: =M_33_A_5 -> 0 | Z53: =M_33_A_6 -> 0 | AA53: =M_33_A_7 -> 0 | AB53: =M_33_A_8 -> 0 | AC53: =M_33_A_9 -> 0 | AD53: =M_33_A_10 -> 0
F54: 364 | G54: =M_364 -> 0 | H54: =M_364_2 -> 0 | I54: =M_364_B -> 0 | J54: =M_364_B_1 -> 0 | K54: =M_364_P_1 -> 0 | L54: =M_364_P_2 -> 0 | M54: =M_364_P_3 -> 0 | N54: =M_364_P_4 -> 0 | O54: =M_364_P_5 -> 0 | P54: =M_364_P_6 -> 0 | Q54: =M_364_P_7 -> 0 | R54: =M_364_P_8 -> 0 | S54: =M_364_P_9 -> 0 | U54: =M_364_A_1 -> 0 | V54: =M_364_A_2 -> 0 | W54: =M_364_A_3 -> 0 | X54: =M_364_A_4 -> 0 | Y54: =M_364_A_5 -> 0 | Z54: =M_364_A_6 -> 0 | AA54: =M_364_A_7 -> 0 | AB54: =M_364_A_8 -> 0 | AC54: =M_364_A_9 -> 0 | AD54: =M_364_A_10 -> 0
F55: 365 | G55: =M_365 -> 0 | H55: =M_365_2 -> 0 | I55: =M_365_B -> 0 | J55: =M_365_B_1 -> 0 | K55: =M_365_P_1 -> Remplir | L55: =M_365_P_2 -> Remplir | M55: =M_365_P_3 -> Remplir | N55: =M_365_P_4 -> 0 | O55: =M_365_P_5 -> 0 | P55: =M_365_P_6 -> 0 | Q55: =M_365_P_7 -> 0 | R55: =M_365_P_8 -> 0 | S55: =M_365_P_9 -> 0 | U55: =M_365_A_1 -> 0 | V55: =M_365_A_2 -> 0 | W55: =M_365_A_3 -> 0 | X55: =M_365_A_4 -> 0 | Y55: =M_365_A_5 -> 0 | Z55: =M_365_A_6 -> 0 | AA55: =M_365_A_7 -> 0 | AB55: =M_365_A_8 -> 0 | AC55: =M_365_A_9 -> 0 | AD55: =M_365_A_10 -> 0
F56: 366 | G56: =M_366 -> 0 | H56: =M_366_2 -> 0 | I56: =M_366_B -> 0 | J56: =M_366_B_1 -> 0 | K56: =M_366_P_1 -> Remplir | L56: =M_366_P_2 -> Remplir | M56: =M_366_P_3 -> Remplir | N56: =M_366_P_4 -> 0 | O56: =M_366_P_5 -> 0 | P56: =M_366_P_6 -> 0 | Q56: =M_366_P_7 -> 0 | R56: =M_366_P_8 -> 0 | S56: =M_366_P_9 -> 0 | U56: =M_366_A_1 -> 0 | V56: =M_366_A_2 -> 0 | W56: =M_366_A_3 -> 0 | X56: =M_366_A_4 -> 0 | Y56: =M_366_A_5 -> 0 | Z56: =M_366_A_6 -> 0 | AA56: =M_366_A_7 -> 0 | AB56: =M_366_A_8 -> 0 | AC56: =M_366_A_9 -> 0 | AD56: =M_366_A_10 -> 0
E57: - | F57: 466
D59: ServDette | G59: =G51-G52+G53+G54+G55+G56-G57 ->  | H59: =SUM(H51:H56) -> 0 | I59: =SUM(I51:I56) -> 0 | J59: 0 | N59: 0 | O59: 0 | P59: 0 | Q59: 0 | R59: 0 | S59: 0 | U59: =SUM(U51:U58) -> 0 | V59: =SUM(V51:V58) -> 0 | W59: 0 | X59: 0 | Y59: 0 | Z59: 0 | AA59: 0 | AB59: 0 | AC59: 0 | AD59: 0
B62: C 15 | C62: Dépenses courante
F64: 30 | G64: =M_30 -> 0 | H64: =M_30_2 -> 0 | I64: =M_30_B -> 0 | J64: =M_30_B_1 -> 0 | K64: =M_30_P_1 -> Remplir | L64: =M_30_P_2 -> Remplir | M64: =M_30_P_3 -> Remplir | N64: =M_30_P_4 -> 0 | O64: =M_30_P_5 -> 0 | P64: =M_30_P_6 -> 0 | Q64: =M_30_P_7 -> 0 | R64: =M_30_P_8 -> 0 | S64: =M_30_P_9 -> 0 | U64: =M_30_A_1 -> 0 | V64: =M_30_A_2 -> 0 | W64: =M_30_A_3 -> 0 | X64: =M_30_A_4 -> 0 | Y64: =M_30_A_5 -> 0 | Z64: =M_30_A_6 -> 0 | AA64: =M_30_A_7 -> 0 | AB64: =M_30_A_8 -> 0 | AC64: =M_30_A_9 -> 0 | AD64: =M_30_A_10 -> 0
F65: 31 | G65: =M_31 -> 0 | H65: =M_31_2 -> 0 | I65: =M_31_B -> 0 | J65: =M_31_B_1 -> 0 | K65: =M_31_P_1 -> Remplir | L65: =M_31_P_2 -> Remplir | M65: =M_31_P_3 -> Remplir | N65: =M_31_P_4 -> 0 | O65: =M_31_P_5 -> 0 | P65: =M_31_P_6 -> 0 | Q65: =M_31_P_7 -> 0 | R65: =M_31_P_8 -> 0 | S65: =M_31_P_9 -> 0 | U65: =M_31_A_1 -> 0 | V65: =M_31_A_2 -> 0 | W65: =M_31_A_3 -> 0 | X65: =M_31_A_4 -> 0 | Y65: =M_31_A_5 -> 0 | Z65: =M_31_A_6 -> 0 | AA65: =M_31_A_7 -> 0 | AB65: =M_31_A_8 -> 0 | AC65: =M_31_A_9 -> 0 | AD65: =M_31_A_10 -> 0
E66: - | F66: 3180 | G66: =M_3180*-1 ->  | H66: =M_3180_2*-1 ->  | I66: =M_3180_B*-1 ->  | J66: =M_3180_B_1*-1 ->  | K66: =M_3180_P_1*-1 ->  | L66: =M_3180_P_2*-1 ->  | M66: =M_3180_P_3*-1 ->  | N66: =M_3180_P_4*-1 -> 0 | O66: =M_3180_P_5*-1 -> 0 | P66: =M_3180_P_6*-1 -> 0 | Q66: =M_3180_P_7*-1 -> 0 | R66: =M_3180_P_8*-1 -> 0 | S66: =M_3180_P_9*-1 -> 0 | U66: =M_3180_A_1*-1 -> 0 | V66: =M_3180_A_2*-1 -> 0 | W66: =M_3180_A_3*-1 -> 0 | X66: =M_3180_A_4*-1 -> 0 | Y66: =M_3180_A_5*-1 -> 0 | Z66: =M_3180_A_6*-1 -> 0 | AA66: =M_3180_A_7*-1 -> 0 | AB66: =M_3180_A_8*-1 -> 0 | AC66: =M_3180_A_9*-1 -> 0 | AD66: =M_3180_A_10*-1 -> 0
F67: 34 | G67: =M_34 -> 0 | H67: =M_34_2 -> 0 | I67: =M_34_B -> 0 | J67: =M_34_B_1 -> 0 | K67: =M_34_P_1 -> Remplir | L67: =M_34_P_2 -> Remplir | M67: =M_34_P_3 -> Remplir | N67: =M_34_P_4 -> 0 | O67: =M_34_P_5 -> 0 | P67: =M_34_P_6 -> 0 | Q67: =M_34_P_7 -> 0 | R67: =M_34_P_8 -> 0 | S67: =M_34_P_9 -> 0 | U67: =M_34_A_1 -> 0 | V67: =M_34_A_2 -> 0 | W67: =M_34_A_3 -> 0 | X67: =M_34_A_4 -> 0 | Y67: =M_34_A_5 -> 0 | Z67: =M_34_A_6 -> 0 | AA67: =M_34_A_7 -> 0 | AB67: =M_34_A_8 -> 0 | AC67: =M_34_A_9 -> 0 | AD67: =M_34_A_10 -> 0
E68: - | F68: 344 | G68: =M_344*-1 ->  | H68: =M_344_2*-1 ->  | I68: =M_344_B*-1 ->  | J68: =M_344_B_1*-1 ->  | K68: =M_344_P_1*-1 ->  | L68: =M_344_P_2*-1 ->  | M68: =M_344_P_3*-1 ->  | N68: =M_344_P_4*-1 -> 0 | O68: =M_344_P_5*-1 -> 0 | P68: =M_344_P_6*-1 -> 0 | Q68: =M_344_P_7*-1 -> 0 | R68: =M_344_P_8*-1 -> 0 | S68: =M_344_P_9*-1 -> 0 | U68: =M_344_A_1*-1 -> 0 | V68: =M_344_A_2*-1 -> 0 | W68: =M_344_A_3*-1 -> 0 | X68: =M_344_A_4*-1 -> 0 | Y68: =M_344_A_5*-1 -> 0 | Z68: =M_344_A_6*-1 -> 0 | AA68: =M_344_A_7*-1 -> 0 | AB68: =M_344_A_8*-1 -> 0 | AC68: =M_344_A_9*-1 -> 0 | AD68: =M_344_A_10*-1 -> 0
F69: 36 | G69: =M_36 -> 0 | H69: =M_36_2 -> 0 | I69: =M_36_B -> 0 | J69: =M_36_B_1 -> 0 | K69: =M_36_P_1 ->  | L69: =M_36_P_2 ->  | M69: =M_36_P_3 ->  | N69: =M_36_P_4 -> 0 | O69: =M_36_P_5 -> 0 | P69: =M_36_P_6 -> 0 | Q69: =M_36_P_7 -> 0 | R69: =M_36_P_8 -> 0 | S69: =M_36_P_9 -> 0 | U69: =M_36_A_1 -> 0 | V69: =M_36_A_2 -> 0 | W69: =M_36_A_3 -> 0 | X69: =M_36_A_4 -> 0 | Y69: =M_36_A_5 -> 0 | Z69: =M_36_A_6 -> 0 | AA69: =M_36_A_7 -> 0 | AB69: =M_36_A_8 -> 0 | AC69: =M_36_A_9 -> 0 | AD69: =M_36_A_10 -> 0
E70: - | F70: 364 | G70: =M_364*-1 -> 0 | H70: =M_364_2*-1 -> 0 | I70: =M_364_B*-1 -> 0 | J70: =M_364_B_1*-1 -> 0 | K70: =M_364_P_1*-1 -> 0 | L70: =M_364_P_2*-1 -> 0 | M70: =M_364_P_3*-1 -> 0 | N70: =M_364_P_4*-1 -> 0 | O70: =M_364_P_5*-1 -> 0 | P70: =M_364_P_6*-1 -> 0 | Q70: =M_364_P_7*-1 -> 0 | R70: =M_364_P_8*-1 -> 0 | S70: =M_364_P_9*-1 -> 0 | U70: =M_364_A_1*-1 -> 0 | V70: =M_364_A_2*-1 -> 0 | W70: =M_364_A_3*-1 -> 0 | X70: =M_364_A_4*-1 -> 0 | Y70: =M_364_A_5*-1 -> 0 | Z70: =M_364_A_6*-1 -> 0 | AA70: =M_364_A_7*-1 -> 0 | AB70: =M_364_A_8*-1 -> 0 | AC70: =M_364_A_9*-1 -> 0 | AD70: =M_364_A_10*-1 -> 0
E71: - | F71: 365 | G71: =M_365*-1 -> 0 | H71: =M_365_2*-1 -> 0 | I71: =M_365_B*-1 -> 0 | J71: =M_365_B_1*-1 -> 0 | K71: =M_365_P_1*-1 ->  | L71: =M_365_P_2*-1 ->  | M71: =M_365_P_3*-1 ->  | N71: =M_365_P_4*-1 -> 0 | O71: =M_365_P_5*-1 -> 0 | P71: =M_365_P_6*-1 -> 0 | Q71: =M_365_P_7*-1 -> 0 | R71: =M_365_P_8*-1 -> 0 | S71: =M_365_P_9*-1 -> 0 | U71: =M_365_A_1*-1 -> 0 | V71: =M_365_A_2*-1 -> 0 | W71: =M_365_A_3*-1 -> 0 | X71: =M_365_A_4*-1 -> 0 | Y71: =M_365_A_5*-1 -> 0 | Z71: =M_365_A_6*-1 -> 0 | AA71: =M_365_A_7*-1 -> 0 | AB71: =M_365_A_8*-1 -> 0 | AC71: =M_365_A_9*-1 -> 0 | AD71: =M_365_A_10*-1 -> 0
E72: - | F72: 366 | G72: =M_366*-1 -> 0 | H72: =M_366_2*-1 -> 0 | I72: =M_366_B*-1 -> 0 | J72: =M_366_B_1*-1 -> 0 | K72: =M_366_P_1*-1 ->  | L72: =M_366_P_2*-1 ->  | M72: =M_366_P_3*-1 ->  | N72: =M_366_P_4*-1 -> 0 | O72: =M_366_P_5*-1 -> 0 | P72: =M_366_P_6*-1 -> 0 | Q72: =M_366_P_7*-1 -> 0 | R72: =M_366_P_8*-1 -> 0 | S72: =M_366_P_9*-1 -> 0 | U72: =M_366_A_1*-1 -> 0 | V72: =M_366_A_2*-1 -> 0 | W72: =M_366_A_3*-1 -> 0 | X72: =M_366_A_4*-1 -> 0 | Y72: =M_366_A_5*-1 -> 0 | Z72: =M_366_A_6*-1 -> 0 | AA72: =M_366_A_7*-1 -> 0 | AB72: =M_366_A_8*-1 -> 0 | AC72: =M_366_A_9*-1 -> 0 | AD72: =M_366_A_10*-1 -> 0
F73: 380 | G73: =M_380 -> Remplir | H73: =M_380_2 -> Remplir | I73: =M_380_B -> Remplir | J73: =M_380_B_1 -> Remplir | K73: =M_380_P_1 -> Remplir | L73: =M_380_P_2 -> Remplir | M73: =M_380_P_3 -> Remplir | N73: =M_380_P_4 -> 0 | O73: =M_380_P_5 -> 0 | P73: =M_380_P_6 -> 0 | Q73: =M_380_P_7 -> 0 | R73: =M_380_P_8 -> 0 | S73: =M_380_P_9 -> 0 | U73: =M_380_A_1 -> 0 | V73: =M_380_A_2 -> 0 | W73: =M_380_A_3 -> 0 | X73: =M_380_A_4 -> 0 | Y73: =M_380_A_5 -> 0 | Z73: =M_380_A_6 -> 0 | AA73: =M_380_A_7 -> 0 | AB73: =M_380_A_8 -> 0 | AC73: =M_380_A_9 -> 0 | AD73: =M_380_A_10 -> 0
F74: 381 | G74: =M_381 -> Remplir | H74: =M_381_2 -> Remplir | I74: =M_381_B -> Remplir | J74: =M_381_B_1 -> Remplir | K74: =M_381_P_1 -> Remplir | L74: =M_381_P_2 -> Remplir | M74: =M_381_P_3 -> Remplir | N74: =M_381_P_4 -> 0 | O74: =M_381_P_5 -> 0 | P74: =M_381_P_6 -> 0 | Q74: =M_381_P_7 -> 0 | R74: =M_381_P_8 -> 0 | S74: =M_381_P_9 -> 0 | U74: =M_381_A_1 -> 0 | V74: =M_381_A_2 -> 0 | W74: =M_381_A_3 -> 0 | X74: =M_381_A_4 -> 0 | Y74: =M_381_A_5 -> 0 | Z74: =M_381_A_6 -> 0 | AA74: =M_381_A_7 -> 0 | AB74: =M_381_A_8 -> 0 | AC74: =M_381_A_9 -> 0 | AD74: =M_381_A_10 -> 0
F75: 3840 | G75: =M_3840 -> Remplir | H75: =M_3840_2 -> Remplir | I75: =M_3840_B -> Remplir | J75: =M_3840_B_1 -> Remplir | K75: =M_3840_P_1 -> Remplir | L75: =M_3840_P_2 -> Remplir | M75: =M_3840_P_3 -> Remplir | N75: =M_3840_P_4 -> 0 | O75: =M_3840_P_5 -> 0 | P75: =M_3840_P_6 -> 0 | Q75: =M_3840_P_7 -> 0 | R75: =M_3840_P_8 -> 0 | S75: =M_3840_P_9 -> 0 | U75: =M_3840_A_1 -> 0 | V75: =M_3840_A_2 -> 0 | W75: =M_3840_A_3 -> 0 | X75: =M_3840_A_4 -> 0 | Y75: =M_3840_A_5 -> 0 | Z75: =M_3840_A_6 -> 0 | AA75: =M_3840_A_7 -> 0 | AB75: =M_3840_A_8 -> 0 | AC75: =M_3840_A_9 -> 0 | AD75: =M_3840_A_10 -> 0
F76: 386 | G76: =M_386 -> Remplir | H76: =M_386_2 -> Remplir | I76: =M_386_B -> Remplir | J76: =M_386_B_1 -> Remplir | K76: =M_386_P_1 -> Remplir | L76: =M_386_P_2 -> Remplir | M76: =M_386_P_3 -> Remplir | N76: =M_386_P_4 -> 0 | O76: =M_386_P_5 -> 0 | P76: =M_386_P_6 -> 0 | Q76: =M_386_P_7 -> 0 | R76: =M_386_P_8 -> 0 | S76: =M_386_P_9 -> 0 | U76: =M_386_A_1 -> 0 | V76: =M_386_A_2 -> 0 | W76: =M_386_A_3 -> 0 | X76: =M_386_A_4 -> 0 | Y76: =M_386_A_5 -> 0 | Z76: =M_386_A_6 -> 0 | AA76: =M_386_A_7 -> 0 | AB76: =M_386_A_8 -> 0 | AC76: =M_386_A_9 -> 0 | AD76: =M_386_A_10 -> 0
D78: DepCour | G78: =SUM(G64:G77) ->  | H78: =SUM(H64:H77) ->  | I78: =SUM(I64:I77) ->  | K78: =SUM(K64:K77) ->  | L78: =SUM(L64:L77) ->  | M78: =SUM(M64:M77) ->  | N78: 0 | O78: 0 | P78: 0 | Q78: 0 | R78: 0 | S78: 0 | U78: 0 | V78: =SUM(V64:V77) -> 0 | W78: =SUM(W64:W77) -> 0 | X78: =SUM(X64:X77) -> 0 | Y78: =SUM(Y64:Y77) -> 0 | Z78: =SUM(Z64:Z77) -> 0 | AA78: =SUM(AA64:AA77) -> 0 | AB78: =SUM(AB64:AB77) -> 0 | AC78: =SUM(AC64:AC77) -> 0 | AD78: =SUM(AD64:AD77) -> 0
B81: C 16 | C81: Charges courantes
F83: 30 | G83: =M_30 -> 0 | H83: =M_30_2 -> 0 | I83: =M_30_B -> 0 | J83: =M_30_B_1 -> 0 | K83: =M_30_P_1 -> Remplir | L83: =M_30_P_2 -> Remplir | M83: =M_30_P_3 -> Remplir | N83: =M_30_P_4 -> 0 | O83: =M_30_P_5 -> 0 | P83: =M_30_P_6 -> 0 | Q83: =M_30_P_7 -> 0 | R83: =M_30_P_8 -> 0 | S83: =M_30_P_9 -> 0 | U83: =M_30_A_1 -> 0 | V83: =M_30_A_2 -> 0 | W83: =M_30_A_3 -> 0 | X83: =M_30_A_4 -> 0 | Y83: =M_30_A_5 -> 0 | Z83: =M_30_A_6 -> 0 | AA83: =M_30_A_7 -> 0 | AB83: =M_30_A_8 -> 0 | AC83: =M_30_A_9 -> 0 | AD83: =M_30_A_10 -> 0
F84: 31 | G84: =M_31 -> 0 | H84: =M_31_2 -> 0 | I84: =M_31_B -> 0 | J84: =M_31_B_1 -> 0 | K84: =M_31_P_1 -> Remplir | L84: =M_31_P_2 -> Remplir | M84: =M_31_P_3 -> Remplir | N84: =M_31_P_4 -> 0 | O84: =M_31_P_5 -> 0 | P84: =M_31_P_6 -> 0 | Q84: =M_31_P_7 -> 0 | R84: =M_31_P_8 -> 0 | S84: =M_31_P_9 -> 0 | U84: =M_31_A_1 -> 0 | V84: =M_31_A_2 -> 0 | W84: =M_31_A_3 -> 0 | X84: =M_31_A_4 -> 0 | Y84: =M_31_A_5 -> 0 | Z84: =M_31_A_6 -> 0 | AA84: =M_31_A_7 -> 0 | AB84: =M_31_A_8 -> 0 | AC84: =M_31_A_9 -> 0 | AD84: =M_31_A_10 -> 0
F85: 33 | G85: =M_33 -> 0 | H85: =M_33_2 -> 0 | I85: =M_33_B -> 0 | J85: =M_33_B_1 -> 0 | K85: =M_33_P_1 -> Remplir | L85: =M_33_P_2 -> Remplir | M85: =M_33_P_3 -> Remplir | N85: =M_33_P_4 -> 0 | O85: =M_33_P_5 -> 0 | P85: =M_33_P_6 -> 0 | Q85: =M_33_P_7 -> 0 | R85: =M_33_P_8 -> 0 | S85: =M_33_P_9 -> 0 | U85: =M_33_A_1 -> 0 | V85: =M_33_A_2 -> 0 | W85: =M_33_A_3 -> 0 | X85: =M_33_A_4 -> 0 | Y85: =M_33_A_5 -> 0 | Z85: =M_33_A_6 -> 0 | AA85: =M_33_A_7 -> 0 | AB85: =M_33_A_8 -> 0 | AC85: =M_33_A_9 -> 0 | AD85: =M_33_A_10 -> 0
F86: 34 | G86: =M_34 -> 0 | H86: =M_34_2 -> 0 | I86: =M_34_B -> 0 | J86: =M_34_B_1 -> 0 | K86: =M_34_P_1 -> Remplir | L86: =M_34_P_2 -> Remplir | M86: =M_34_P_3 -> Remplir | N86: =M_34_P_4 -> 0 | O86: =M_34_P_5 -> 0 | P86: =M_34_P_6 -> 0 | Q86: =M_34_P_7 -> 0 | R86: =M_34_P_8 -> 0 | S86: =M_34_P_9 -> 0 | U86: =M_34_A_1 -> 0 | V86: =M_34_A_2 -> 0 | W86: =M_34_A_3 -> 0 | X86: =M_34_A_4 -> 0 | Y86: =M_34_A_5 -> 0 | Z86: =M_34_A_6 -> 0 | AA86: =M_34_A_7 -> 0 | AB86: =M_34_A_8 -> 0 | AC86: =M_34_A_9 -> 0 | AD86: =M_34_A_10 -> 0
F87: 35 | G87: =M_35 -> 0 | H87: =M_35_2 -> 0 | I87: =M_35_B -> 0 | J87: =M_35_B_1 -> 0 | K87: =M_35_P_1 ->  | L87: =M_35_P_2 ->  | M87: =M_35_P_3 ->  | N87: =M_35_P_4 -> 0 | O87: =M_35_P_5 -> 0 | P87: =M_35_P_6 -> 0 | Q87: =M_35_P_7 -> 0 | R87: =M_35_P_8 -> 0 | S87: =M_35_P_9 -> 0 | U87: =M_35_A_1 -> 0 | V87: =M_35_A_2 -> 0 | W87: =M_35_A_3 -> 0 | X87: =M_35_A_4 -> 0 | Y87: =M_35_A_5 -> 0 | Z87: =M_35_A_6 -> 0 | AA87: =M_35_A_7 -> 0 | AB87: =M_35_A_8 -> 0 | AC87: =M_35_A_9 -> 0 | AD87: =M_35_A_10 -> 0
F88: 36 | G88: =M_36 -> 0 | H88: =M_36_2 -> 0 | I88: =M_36_B -> 0 | J88: =M_36_B_1 -> 0 | K88: =M_36_P_1 ->  | L88: =M_36_P_2 ->  | M88: =M_36_P_3 ->  | N88: =M_36_P_4 -> 0 | O88: =M_36_P_5 -> 0 | P88: =M_36_P_6 -> 0 | Q88: =M_36_P_7 -> 0 | R88: =M_36_P_8 -> 0 | S88: =M_36_P_9 -> 0 | U88: =M_36_A_1 -> 0 | V88: =M_36_A_2 -> 0 | W88: =M_36_A_3 -> 0 | X88: =M_36_A_4 -> 0 | Y88: =M_36_A_5 -> 0 | Z88: =M_36_A_6 -> 0 | AA88: =M_36_A_7 -> 0 | AB88: =M_36_A_8 -> 0 | AC88: =M_36_A_9 -> 0 | AD88: =M_36_A_10 -> 0
F89: 380 | G89: =M_380 -> Remplir | H89: =M_380_2 -> Remplir | I89: =M_380_B -> Remplir | J89: =M_380_B_1 -> Remplir | K89: =M_380_P_1 -> Remplir | L89: =M_380_P_2 -> Remplir | M89: =M_380_P_3 -> Remplir | N89: =M_380_P_4 -> 0 | O89: =M_380_P_5 -> 0 | P89: =M_380_P_6 -> 0 | Q89: =M_380_P_7 -> 0 | R89: =M_380_P_8 -> 0 | S89: =M_380_P_9 -> 0 | U89: =M_380_A_1 -> 0 | V89: =M_380_A_2 -> 0 | W89: =M_380_A_3 -> 0 | X89: =M_380_A_4 -> 0 | Y89: =M_380_A_5 -> 0 | Z89: =M_380_A_6 -> 0 | AA89: =M_380_A_7 -> 0 | AB89: =M_380_A_8 -> 0 | AC89: =M_380_A_9 -> 0 | AD89: =M_380_A_10 -> 0
F90: 381 | G90: =M_381 -> Remplir | H90: =M_381_2 -> Remplir | I90: =M_381_B -> Remplir | J90: =M_381_B_1 -> Remplir | K90: =M_381_P_1 -> Remplir | L90: =M_381_P_2 -> Remplir | M90: =M_381_P_3 -> Remplir | N90: =M_381_P_4 -> 0 | O90: =M_381_P_5 -> 0 | P90: =M_381_P_6 -> 0 | Q90: =M_381_P_7 -> 0 | R90: =M_381_P_8 -> 0 | S90: =M_381_P_9 -> 0 | U90: =M_381_A_1 -> 0 | V90: =M_381_A_2 -> 0 | W90: =M_381_A_3 -> 0 | X90: =M_381_A_4 -> 0 | Y90: =M_381_A_5 -> 0 | Z90: =M_381_A_6 -> 0 | AA90: =M_381_A_7 -> 0 | AB90: =M_381_A_8 -> 0 | AC90: =M_381_A_9 -> 0 | AD90: =M_381_A_10 -> 0
F91: 384 | G91: =M_384 -> Remplir | H91: =M_384_2 -> Remplir | I91: =M_384_B -> Remplir | J91: =M_384_B_1 -> Remplir | K91: =M_384_P_1 -> Remplir | L91: =M_384_P_2 -> Remplir | M91: =M_384_P_3 -> Remplir | N91: =M_384_P_4 -> 0 | O91: =M_384_P_5 -> 0 | P91: =M_384_P_6 -> 0 | Q91: =M_384_P_7 -> 0 | R91: =M_384_P_8 -> 0 | S91: =M_384_P_9 -> 0 | U91: =M_384_A_1 -> 0 | V91: =M_384_A_2 -> 0 | W91: =M_384_A_3 -> 0 | X91: =M_384_A_4 -> 0 | Y91: =M_384_A_5 -> 0 | Z91: =M_384_A_6 -> 0 | AA91: =M_384_A_7 -> 0 | AB91: =M_384_A_8 -> 0 | AC91: =M_384_A_9 -> 0 | AD91: =M_384_A_10 -> 0
F92: 386 | G92: =M_386 -> Remplir | H92: =M_386_2 -> Remplir | I92: =M_386_B -> Remplir | J92: =M_386_B_1 -> Remplir | K92: =M_386_P_1 -> Remplir | L92: =M_386_P_2 -> Remplir | M92: =M_386_P_3 -> Remplir | N92: =M_386_P_4 -> 0 | O92: =M_386_P_5 -> 0 | P92: =M_386_P_6 -> 0 | Q92: =M_386_P_7 -> 0 | R92: =M_386_P_8 -> 0 | S92: =M_386_P_9 -> 0 | U92: =M_386_A_1 -> 0 | V92: =M_386_A_2 -> 0 | W92: =M_386_A_3 -> 0 | X92: =M_386_A_4 -> 0 | Y92: =M_386_A_5 -> 0 | Z92: =M_386_A_6 -> 0 | AA92: =M_386_A_7 -> 0 | AB92: =M_386_A_8 -> 0 | AC92: =M_386_A_9 -> 0 | AD92: =M_386_A_10 -> 0
D94: CharCour | G94: =SUM(G83:G93) -> 0 | H94: =SUM(H83:H93) -> 0 | I94: =SUM(I83:I93) -> 0 | J94: 0 | K94: =SUM(K83:K93) ->  | L94: =SUM(L83:L93) ->  | M94: =SUM(M83:M93) ->  | N94: 0 | O94: 0 | P94: 0 | Q94: 0 | R94: 0 | S94: 0 | U94: 0 | V94: =SUM(V83:V93) -> 0 | W94: =SUM(W83:W93) -> 0 | X94: =SUM(X83:X93) -> 0 | Y94: =SUM(Y83:Y93) -> 0 | Z94: =SUM(Z83:Z93) -> 0 | AA94: =SUM(AA83:AA93) -> 0 | AB94: =SUM(AB83:AB93) -> 0 | AC94: =SUM(AC83:AC93) -> 0 | AD94: =SUM(AD83:AD93) -> 0
B97: C 17 | C97: Recettes courantes
F99: 40 | G99: =M_40 -> 0 | H99: =M_40_2 -> 0 | I99: =M_40_B -> 0 | J99: =M_40_B_1 -> 0 | K99: =M_40_P_1 -> 0 | L99: =M_40_P_2 -> 0 | M99: =M_40_P_3 -> 0 | N99: =M_40_P_4 -> 0 | O99: =M_40_P_5 -> 0 | P99: =M_40_P_6 -> 0 | Q99: =M_40_P_7 -> 0 | R99: =M_40_P_8 -> 0 | S99: =M_40_P_9 -> 0 | U99: =M_40_A_1 -> 0 | V99: =M_40_A_2 -> 0 | W99: =M_40_A_3 -> 0 | X99: =M_40_A_4 -> 0 | Y99: =M_40_A_5 -> 0 | Z99: =M_40_A_6 -> 0 | AA99: =M_40_A_7 -> 0 | AB99: =M_40_A_8 -> 0 | AC99: =M_40_A_9 -> 0 | AD99: =M_40_A_10 -> 0
F100: 41 | G100: =M_41 -> 0 | H100: =M_41_2 -> 0 | I100: =M_41_B -> 0 | J100: =M_41_B_1 -> 0 | K100: =M_41_P_1 -> Remplir | L100: =M_41_P_2 -> Remplir | M100: =M_41_P_3 -> Remplir | N100: =M_41_P_4 -> 0 | O100: =M_41_P_5 -> 0 | P100: =M_41_P_6 -> 0 | Q100: =M_41_P_7 -> 0 | R100: =M_41_P_8 -> 0 | S100: =M_41_P_9 -> 0 | U100: =M_41_A_1 -> 0 | V100: =M_41_A_2 -> 0 | W100: =M_41_A_3 -> 0 | X100: =M_41_A_4 -> 0 | Y100: =M_41_A_5 -> 0 | Z100: =M_41_A_6 -> 0 | AA100: =M_41_A_7 -> 0 | AB100: =M_41_A_8 -> 0 | AC100: =M_41_A_9 -> 0 | AD100: =M_41_A_10 -> 0
F101: 42 | G101: =M_42 -> 0 | H101: =M_42_2 -> 0 | I101: =M_42_B -> 0 | J101: =M_42_B_1 -> 0 | K101: =M_42_P_1 -> Remplir | L101: =M_42_P_2 -> Remplir | M101: =M_42_P_3 -> Remplir | N101: =M_42_P_4 -> 0 | O101: =M_42_P_5 -> 0 | P101: =M_42_P_6 -> 0 | Q101: =M_42_P_7 -> 0 | R101: =M_42_P_8 -> 0 | S101: =M_42_P_9 -> 0 | U101: =M_42_A_1 -> 0 | V101: =M_42_A_2 -> 0 | W101: =M_42_A_3 -> 0 | X101: =M_42_A_4 -> 0 | Y101: =M_42_A_5 -> 0 | Z101: =M_42_A_6 -> 0 | AA101: =M_42_A_7 -> 0 | AB101: =M_42_A_8 -> 0 | AC101: =M_42_A_9 -> 0 | AD101: =M_42_A_10 -> 0
F102: 430 | G102: =M_430 -> Remplir | H102: =M_430_2 -> Remplir | I102: =M_430_B -> Remplir | J102: =M_430_B_1 -> Remplir | K102: =M_430_P_1 -> Remplir | L102: =M_430_P_2 -> Remplir | M102: =M_430_P_3 -> Remplir | N102: =M_430_P_4 -> 0 | O102: =M_430_P_5 -> 0 | P102: =M_430_P_6 -> 0 | Q102: =M_430_P_7 -> 0 | R102: =M_430_P_8 -> 0 | S102: =M_430_P_9 -> 0 | U102: =M_430_A_1 -> 0 | V102: =M_430_A_2 -> 0 | W102: =M_430_A_3 -> 0 | X102: =M_430_A_4 -> 0 | Y102: =M_430_A_5 -> 0 | Z102: =M_430_A_6 -> 0 | AA102: =M_430_A_7 -> 0 | AB102: =M_430_A_8 -> 0 | AC102: =M_430_A_9 -> 0 | AD102: =M_430_A_10 -> 0
F103: 439 | G103: =M_439 -> Remplir | H103: =M_439_2 -> Remplir | I103: =M_439_B -> Remplir | J103: =M_439_B_1 -> Remplir | K103: =M_439_P_1 -> Remplir | L103: =M_439_P_2 -> Remplir | M103: =M_439_P_3 -> Remplir | N103: =M_439_P_4 -> 0 | O103: =M_439_P_5 -> 0 | P103: =M_439_P_6 -> 0 | Q103: =M_439_P_7 -> 0 | R103: =M_439_P_8 -> 0 | S103: =M_439_P_9 -> 0 | U103: =M_439_A_1 -> 0 | V103: =M_439_A_2 -> 0 | W103: =M_439_A_3 -> 0 | X103: =M_439_A_4 -> 0 | Y103: =M_439_A_5 -> 0 | Z103: =M_439_A_6 -> 0 | AA103: =M_439_A_7 -> 0 | AB103: =M_439_A_8 -> 0 | AC103: =M_439_A_9 -> 0 | AD103: =M_439_A_10 -> 0
F104: 44 | G104: =M_44 -> 0 | H104: =M_44_2 -> 0 | I104: =M_44_B -> 0 | J104: =M_44_B_1 -> 0 | K104: =M_44_P_1 ->  | L104: =M_44_P_2 ->  | M104: =M_44_P_3 ->  | N104: =M_44_P_4 -> 0 | O104: =M_44_P_5 -> 0 | P104: =M_44_P_6 -> 0 | Q104: =M_44_P_7 -> 0 | R104: =M_44_P_8 -> 0 | S104: =M_44_P_9 -> 0 | U104: =M_44_A_1 -> 0 | V104: =M_44_A_2 -> 0 | W104: =M_44_A_3 -> 0 | X104: =M_44_A_4 -> 0 | Y104: =M_44_A_5 -> 0 | Z104: =M_44_A_6 -> 0 | AA104: =M_44_A_7 -> 0 | AB104: =M_44_A_8 -> 0 | AC104: =M_44_A_9 -> 0 | AD104: =M_44_A_10 -> 0
E105: - | F105: 444 | G105: =M_444*-1 -> 0 | H105: =M_444_2*-1 -> 0 | I105: =M_444_B*-1 -> 0 | J105: =M_444_B_1*-1 -> 0 | K105: =M_444_P_1*-1 ->  | L105: =M_444_P_2*-1 ->  | M105: =M_444_P_3*-1 ->  | N105: =M_444_P_4*-1 -> 0 | O105: =M_444_P_5*-1 -> 0 | P105: =M_444_P_6*-1 -> 0 | Q105: =M_444_P_7*-1 -> 0 | R105: =M_444_P_8*-1 -> 0 | S105: =M_444_P_9*-1 -> 0 | U105: =M_444_A_1*-1 -> 0 | V105: =M_444_A_2*-1 -> 0 | W105: =M_444_A_3*-1 -> 0 | X105: =M_444_A_4*-1 -> 0 | Y105: =M_444_A_5*-1 -> 0 | Z105: =M_444_A_6*-1 -> 0 | AA105: =M_444_A_7*-1 -> 0 | AB105: =M_444_A_8*-1 -> 0 | AC105: =M_444_A_9*-1 -> 0 | AD105: =M_444_A_10*-1 -> 0
E106: - | F106: 4490 | G106: =M_4490*-1 ->  | H106: =M_4490_2*-1 ->  | I106: =M_4490_B*-1 ->  | J106: =M_4490_B_1*-1 ->  | K106: =M_4490_P_1*-1 ->  | L106: =M_4490_P_2*-1 ->  | M106: =M_4490_P_3*-1 ->  | N106: =M_4490_P_4*-1 -> 0 | O106: =M_4490_P_5*-1 -> 0 | P106: =M_4490_P_6*-1 -> 0 | Q106: =M_4490_P_7*-1 -> 0 | R106: =M_4490_P_8*-1 -> 0 | S106: =M_4490_P_9*-1 -> 0 | U106: =M_4490_A_1*-1 -> 0 | V106: =M_4490_A_2*-1 -> 0 | W106: =M_4490_A_3*-1 -> 0 | X106: =M_4490_A_4*-1 -> 0 | Y106: =M_4490_A_5*-1 -> 0 | Z106: =M_4490_A_6*-1 -> 0 | AA106: =M_4490_A_7*-1 -> 0 | AB106: =M_4490_A_8*-1 -> 0 | AC106: =M_4490_A_9*-1 -> 0 | AD106: =M_4490_A_10*-1 -> 0
F107: 46 | G107: =M_46 -> 0 | H107: =M_46_2 -> 0 | I107: =M_46_B -> 0 | J107: =M_46_B_1 -> 0 | K107: =M_46_P_1 -> Remplir | L107: =M_46_P_2 -> Remplir | M107: =M_46_P_3 -> Remplir | N107: =M_46_P_4 -> 0 | O107: =M_46_P_5 -> 0 | P107: =M_46_P_6 -> 0 | Q107: =M_46_P_7 -> 0 | R107: =M_46_P_8 -> 0 | S107: =M_46_P_9 -> 0 | U107: =M_46_A_1 -> 0 | V107: =M_46_A_2 -> 0 | W107: =M_46_A_3 -> 0 | X107: =M_46_A_4 -> 0 | Y107: =M_46_A_5 -> 0 | Z107: =M_46_A_6 -> 0 | AA107: =M_46_A_7 -> 0 | AB107: =M_46_A_8 -> 0 | AC107: =M_46_A_9 -> 0 | AD107: =M_46_A_10 -> 0
E108: - | F108: 466
F109: 481 | G109: =M_481 -> 0 | H109: =M_481_2 -> 0 | I109: =M_481_B -> 0 | J109: =M_481_B_1 -> 0 | K109: =M_481_P_1 -> 0 | L109: =M_481_P_2 -> 0 | M109: =M_481_P_3 -> 0 | N109: =M_481_P_4 -> 0 | O109: =M_481_P_5 -> 0 | P109: =M_481_P_6 -> 0 | Q109: =M_481_P_7 -> 0 | R109: =M_481_P_8 -> 0 | S109: =M_481_P_9 -> 0 | U109: =M_481_A_1 -> 0 | V109: =M_481_A_2 -> 0 | W109: =M_481_A_3 -> 0 | X109: =M_481_A_4 -> 0 | Y109: =M_481_A_5 -> 0 | Z109: =M_481_A_6 -> 0 | AA109: =M_481_A_7 -> 0 | AB109: =M_481_A_8 -> 0 | AC109: =M_481_A_9 -> 0 | AD109: =M_481_A_10 -> 0
F110: 482 | G110: =M_482 -> 0 | H110: =M_482_2 -> 0 | I110: =M_482_B -> 0 | J110: =M_482_B_1 -> 0 | K110: =M_482_P_1 -> 0 | L110: =M_482_P_2 -> 0 | M110: =M_482_P_3 -> 0 | N110: =M_482_P_4 -> 0 | O110: =M_482_P_5 -> 0 | P110: =M_482_P_6 -> 0 | Q110: =M_482_P_7 -> 0 | R110: =M_482_P_8 -> 0 | S110: =M_482_P_9 -> 0 | U110: =M_482_A_1 -> 0 | V110: =M_482_A_2 -> 0 | W110: =M_482_A_3 -> 0 | X110: =M_482_A_4 -> 0 | Y110: =M_482_A_5 -> 0 | Z110: =M_482_A_6 -> 0 | AA110: =M_482_A_7 -> 0 | AB110: =M_482_A_8 -> 0 | AC110: =M_482_A_9 -> 0 | AD110: =M_482_A_10 -> 0
F111: 483 | G111: =M_483 -> 0 | H111: =M_483_2 -> 0 | I111: =M_483_B -> 0 | J111: =M_483_B_1 -> 0 | K111: =M_483_P_1 -> 0 | L111: =M_483_P_2 -> 0 | M111: =M_483_P_3 -> 0 | N111: =M_483_P_4 -> 0 | O111: =M_483_P_5 -> 0 | P111: =M_483_P_6 -> 0 | Q111: =M_483_P_7 -> 0 | R111: =M_483_P_8 -> 0 | S111: =M_483_P_9 -> 0 | U111: =M_483_A_1 -> 0 | V111: =M_483_A_2 -> 0 | W111: =M_483_A_3 -> 0 | X111: =M_483_A_4 -> 0 | Y111: =M_483_A_5 -> 0 | Z111: =M_483_A_6 -> 0 | AA111: =M_483_A_7 -> 0 | AB111: =M_483_A_8 -> 0 | AC111: =M_483_A_9 -> 0 | AD111: =M_483_A_10 -> 0
F112: 484 | G112: =M_484 -> 0 | H112: =M_484_2 -> 0 | I112: =M_484_B -> 0 | J112: =M_484_B_1 -> 0 | K112: =M_484_P_1 -> 0 | L112: =M_484_P_2 -> 0 | M112: =M_484_P_3 -> 0 | N112: =M_484_P_4 -> 0 | O112: =M_484_P_5 -> 0 | P112: =M_484_P_6 -> 0 | Q112: =M_484_P_7 -> 0 | R112: =M_484_P_8 -> 0 | S112: =M_484_P_9 -> 0 | U112: =M_484_A_1 -> 0 | V112: =M_484_A_2 -> 0 | W112: =M_484_A_3 -> 0 | X112: =M_484_A_4 -> 0 | Y112: =M_484_A_5 -> 0 | Z112: =M_484_A_6 -> 0 | AA112: =M_484_A_7 -> 0 | AB112: =M_484_A_8 -> 0 | AC112: =M_484_A_9 -> 0 | AD112: =M_484_A_10 -> 0
F113: 486 | G113: =M_486 -> 0 | H113: =M_486_2 -> 0 | I113: =M_486_B -> 0 | J113: =M_486_B_1 -> 0 | K113: =M_486_P_1 -> 0 | L113: =M_486_P_2 -> 0 | M113: =M_486_P_3 -> 0 | N113: =M_486_P_4 -> 0 | O113: =M_486_P_5 -> 0 | P113: =M_486_P_6 -> 0 | Q113: =M_486_P_7 -> 0 | R113: =M_486_P_8 -> 0 | S113: =M_486_P_9 -> 0 | U113: =M_486_A_1 -> 0 | V113: =M_486_A_2 -> 0 | W113: =M_486_A_3 -> 0 | X113: =M_486_A_4 -> 0 | Y113: =M_486_A_5 -> 0 | Z113: =M_486_A_6 -> 0 | AA113: =M_486_A_7 -> 0 | AB113: =M_486_A_8 -> 0 | AC113: =M_486_A_9 -> 0 | AD113: =M_486_A_10 -> 0
D115: RecCour | G115: =SUM(G99:G113) ->  | N115: 0 | O115: 0 | P115: 0 | Q115: 0 | R115: 0 | S115: 0 | U115: =SUM(U99:U113) -> 0 | V115: 0 | W115: 0 | X115: 0 | Y115: 0 | Z115: 0 | AA115: 0 | AB115: 0 | AC115: 0 | AD115: 0
B118: C18 | C118: Revenus courants
F120: 40 | G120: =M_40 -> 0 | H120: =M_40_2 -> 0 | I120: =M_40_B -> 0 | J120: =M_40_B_1 -> 0 | K120: =M_40_P_1 -> 0 | L120: =M_40_P_2 -> 0 | M120: =M_40_P_3 -> 0 | N120: =M_40_P_4 -> 0 | O120: =M_40_P_5 -> 0 | P120: =M_40_P_6 -> 0 | Q120: =M_40_P_7 -> 0 | R120: =M_40_P_8 -> 0 | S120: =M_40_P_9 -> 0 | U120: =M_40_A_1 -> 0 | V120: =M_40_A_2 -> 0 | W120: =M_40_A_3 -> 0 | X120: =M_40_A_4 -> 0 | Y120: =M_40_A_5 -> 0 | Z120: =M_40_A_6 -> 0 | AA120: =M_40_A_7 -> 0 | AB120: =M_40_A_8 -> 0 | AC120: =M_40_A_9 -> 0 | AD120: =M_40_A_10 -> 0
F121: 41 | G121: =M_41 -> 0 | H121: =M_41_2 -> 0 | I121: =M_41_B -> 0 | J121: =M_41_B_1 -> 0 | K121: =M_41_P_1 -> Remplir | L121: =M_41_P_2 -> Remplir | M121: =M_41_P_3 -> Remplir | N121: =M_41_P_4 -> 0 | O121: =M_41_P_5 -> 0 | P121: =M_41_P_6 -> 0 | Q121: =M_41_P_7 -> 0 | R121: =M_41_P_8 -> 0 | S121: =M_41_P_9 -> 0 | U121: =M_41_A_1 -> 0 | V121: =M_41_A_2 -> 0 | W121: =M_41_A_3 -> 0 | X121: =M_41_A_4 -> 0 | Y121: =M_41_A_5 -> 0 | Z121: =M_41_A_6 -> 0 | AA121: =M_41_A_7 -> 0 | AB121: =M_41_A_8 -> 0 | AC121: =M_41_A_9 -> 0 | AD121: =M_41_A_10 -> 0
F122: 42 | G122: =M_42 -> 0 | H122: =M_42_2 -> 0 | I122: =M_42_B -> 0 | J122: =M_42_B_1 -> 0 | K122: =M_42_P_1 -> Remplir | L122: =M_42_P_2 -> Remplir | M122: =M_42_P_3 -> Remplir | N122: =M_42_P_4 -> 0 | O122: =M_42_P_5 -> 0 | P122: =M_42_P_6 -> 0 | Q122: =M_42_P_7 -> 0 | R122: =M_42_P_8 -> 0 | S122: =M_42_P_9 -> 0 | U122: =M_42_A_1 -> 0 | V122: =M_42_A_2 -> 0 | W122: =M_42_A_3 -> 0 | X122: =M_42_A_4 -> 0 | Y122: =M_42_A_5 -> 0 | Z122: =M_42_A_6 -> 0 | AA122: =M_42_A_7 -> 0 | AB122: =M_42_A_8 -> 0 | AC122: =M_42_A_9 -> 0 | AD122: =M_42_A_10 -> 0
F123: 43 | G123: =M_43 -> 0 | H123: =M_43_2 -> 0 | I123: =M_43_B -> 0 | J123: =M_43_B_1 -> 0 | K123: =M_43_P_1 -> Remplir | L123: =M_43_P_2 -> Remplir | M123: =M_43_P_3 -> Remplir | N123: =M_43_P_4 -> 0 | O123: =M_43_P_5 -> 0 | P123: =M_43_P_6 -> 0 | Q123: =M_43_P_7 -> 0 | R123: =M_43_P_8 -> 0 | S123: =M_43_P_9 -> 0 | U123: =M_43_A_1 -> 0 | V123: =M_43_A_2 -> 0 | W123: =M_43_A_3 -> 0 | X123: =M_43_A_4 -> 0 | Y123: =M_43_A_5 -> 0 | Z123: =M_43_A_6 -> 0 | AA123: =M_43_A_7 -> 0 | AB123: =M_43_A_8 -> 0 | AC123: =M_43_A_9 -> 0 | AD123: =M_43_A_10 -> 0
F124: 44 | G124: =M_44 -> 0 | H124: =M_44_2 -> 0 | I124: =M_44_B -> 0 | J124: =M_44_B_1 -> 0 | K124: =M_44_P_1 ->  | L124: =M_44_P_2 ->  | M124: =M_44_P_3 ->  | N124: =M_44_P_4 -> 0 | O124: =M_44_P_5 -> 0 | P124: =M_44_P_6 -> 0 | Q124: =M_44_P_7 -> 0 | R124: =M_44_P_8 -> 0 | S124: =M_44_P_9 -> 0 | U124: =M_44_A_1 -> 0 | V124: =M_44_A_2 -> 0 | W124: =M_44_A_3 -> 0 | X124: =M_44_A_4 -> 0 | Y124: =M_44_A_5 -> 0 | Z124: =M_44_A_6 -> 0 | AA124: =M_44_A_7 -> 0 | AB124: =M_44_A_8 -> 0 | AC124: =M_44_A_9 -> 0 | AD124: =M_44_A_10 -> 0
F125: 45 | G125: =M_45 -> 0 | H125: =M_45_2 -> 0 | I125: =M_45_B -> 0 | J125: =M_45_B_1 -> 0 | K125: =M_45_P_1 ->  | L125: =M_45_P_2 ->  | M125: =M_45_P_3 ->  | N125: =M_45_P_4 -> 0 | O125: =M_45_P_5 -> 0 | P125: =M_45_P_6 -> 0 | Q125: =M_45_P_7 -> 0 | R125: =M_45_P_8 -> 0 | S125: =M_45_P_9 -> 0 | U125: =M_45_A_1 -> 0 | V125: =M_45_A_2 -> 0 | W125: =M_45_A_3 -> 0 | X125: =M_45_A_4 -> 0 | Y125: =M_45_A_5 -> 0 | Z125: =M_45_A_6 -> 0 | AA125: =M_45_A_7 -> 0 | AB125: =M_45_A_8 -> 0 | AC125: =M_45_A_9 -> 0 | AD125: =M_45_A_10 -> 0
F126: 46 | G126: =M_46 -> 0 | H126: =M_46_2 -> 0 | I126: =M_46_B -> 0 | J126: =M_46_B_1 -> 0 | K126: =M_46_P_1 -> Remplir | L126: =M_46_P_2 -> Remplir | M126: =M_46_P_3 -> Remplir | N126: =M_46_P_4 -> 0 | O126: =M_46_P_5 -> 0 | P126: =M_46_P_6 -> 0 | Q126: =M_46_P_7 -> 0 | R126: =M_46_P_8 -> 0 | S126: =M_46_P_9 -> 0 | U126: =M_46_A_1 -> 0 | V126: =M_46_A_2 -> 0 | W126: =M_46_A_3 -> 0 | X126: =M_46_A_4 -> 0 | Y126: =M_46_A_5 -> 0 | Z126: =M_46_A_6 -> 0 | AA126: =M_46_A_7 -> 0 | AB126: =M_46_A_8 -> 0 | AC126: =M_46_A_9 -> 0 | AD126: =M_46_A_10 -> 0
F127: 48 | G127: =M_48 -> 0 | H127: =M_48_2 -> 0 | I127: =M_48_B -> 0 | J127: =M_48_B_1 -> 0 | K127: =M_48_P_1 -> 0 | L127: =M_48_P_2 -> 0 | M127: =M_48_P_3 -> 0 | N127: =M_48_P_4 -> 0 | O127: =M_48_P_5 -> 0 | P127: =M_48_P_6 -> 0 | Q127: =M_48_P_7 -> 0 | R127: =M_48_P_8 -> 0 | S127: =M_48_P_9 -> 0 | U127: =M_48_A_1 -> 0 | V127: =M_48_A_2 -> 0 | W127: =M_48_A_3 -> 0 | X127: =M_48_A_4 -> 0 | Y127: =M_48_A_5 -> 0 | Z127: =M_48_A_6 -> 0 | AA127: =M_48_A_7 -> 0 | AB127: =M_48_A_8 -> 0 | AC127: =M_48_A_9 -> 0 | AD127: =M_48_A_10 -> 0
E128: - | F128: 487
F129: 4895
D131: RevCour | G131: =SUM(G120:G129) -> 0 | H131: 0 | I131: 0 | J131: 0 | N131: 0 | O131: 0 | P131: 0 | Q131: 0 | R131: 0 | S131: 0 | U131: =SUM(U120:U129) -> 0 | V131: 0 | W131: 0 | X131: 0 | Y131: 0 | Z131: 0 | AA131: 0 | AB131: 0 | AC131: 0 | AD131: 0
B134: C 19 | C134: Investissements nets
F136: InvBrut | G136: =M_InvBrut -> 0 | H136: =M_InvBrut_2 -> 0 | I136: =M_InvBrut_B -> 0 | J136: =M_InvBrut_B_1 -> 0 | K136: =M_InvBrut_P_1 -> 0 | L136: =M_InvBrut_P_2 -> 0 | M136: =M_InvBrut_P_3 -> 0 | N136: =M_InvBrut_P_4 -> 0 | O136: =M_InvBrut_P_5 -> 0 | P136: =M_InvBrut_P_6 -> 0 | Q136: =M_InvBrut_P_7 -> 0 | R136: =M_InvBrut_P_8 -> 0 | S136: =M_InvBrut_P_9 -> 0 | U136: =M_InvBrut_A_1 -> 0 | V136: =M_InvBrut_A_2 -> 0 | W136: =M_InvBrut_A_3 -> 0 | X136: =M_InvBrut_A_4 -> 0 | Y136: =M_InvBrut_A_5 -> 0 | Z136: =M_InvBrut_A_6 -> 0 | AA136: =M_InvBrut_A_7 -> 0 | AB136: =M_InvBrut_A_8 -> 0 | AC136: =M_InvBrut_A_9 -> 0 | AD136: =M_InvBrut_A_10 -> 0
E137: - | F137: RecInv | G137: =M_RecInv*-1 -> 0 | H137: =M_RecInv_2*-1 -> 0 | I137: =M_RecInv_B*-1 -> 0 | J137: =M_RecInv_B_1*-1 -> 0 | K137: =M_RecInv_P_1*-1 -> 0 | L137: =M_RecInv_P_2*-1 -> 0 | M137: =M_RecInv_P_3*-1 -> 0 | N137: =M_RecInv_P_4*-1 -> 0 | O137: =M_RecInv_P_5*-1 -> 0 | P137: =M_RecInv_P_6*-1 -> 0 | Q137: =M_RecInv_P_7*-1 -> 0 | R137: =M_RecInv_P_8*-1 -> 0 | S137: =M_RecInv_P_9*-1 -> 0 | U137: =M_RecInv_A_1*-1 -> 0 | V137: =M_RecInv_A_2*-1 -> 0 | W137: =M_RecInv_A_3*-1 -> 0 | X137: =M_RecInv_A_4*-1 -> 0 | Y137: =M_RecInv_A_5*-1 -> 0 | Z137: =M_RecInv_A_6*-1 -> 0 | AA137: =M_RecInv_A_7*-1 -> 0 | AB137: =M_RecInv_A_8*-1 -> 0 | AC137: =M_RecInv_A_9*-1 -> 0 | AD137: =M_RecInv_A_10*-1 -> 0
D139: InvNet | G139: =SUM(G136:G138) -> 0 | H139: =SUM(H136:H138) -> 0 | I139: =SUM(I136:I138) -> 0 | J139: 0 | K139: =SUM(K136:K138) -> 0 | L139: =SUM(L136:L138) -> 0 | M139: =SUM(M136:M138) -> 0 | N139: 0 | O139: 0 | P139: 0 | Q139: 0 | R139: 0 | S139: 0 | U139: 0 | V139: =SUM(V136:V138) -> 0 | W139: =SUM(W136:W138) -> 0 | X139: =SUM(X136:X138) -> 0 | Y139: =SUM(Y136:Y138) -> 0 | Z139: =SUM(Z136:Z138) -> 0 | AA139: =SUM(AA136:AA138) -> 0 | AB139: =SUM(AB136:AB138) -> 0 | AC139: =SUM(AC136:AC138) -> 0 | AD139: =SUM(AD136:AD138) -> 0
B142: C 20 | C142: Dette nette I
D144: Eng | F144: 20 | G144: =M_Eng -> 0 | H144: =M_Eng_2 -> 0 | I144: =IF(res_Interface =2,M_ENG_B_P,M_ENG_B_P) ->  | J144: =M_ENG_B_1_P ->  | K144: =M_ENG_P_1 ->  | L144: =M_ENG_P_2 ->  | M144: =M_ENG_P_3 ->  | N144: =M_ENG_P_4 -> 0 | O144: =M_ENG_P_5 -> 0 | P144: =M_ENG_P_6 -> 0 | Q144: =M_ENG_P_7 -> 0 | R144: =M_ENG_P_8 -> 0 | S144: =M_ENG_P_9 -> 0 | U144: =M_Captie_A_1 -> 0 | V144: =M_Captie_A_2 -> 0 | W144: =M_Captie_A_3 -> 0 | X144: =M_Captie_A_4 -> 0 | Y144: =M_Captie_A_5 -> 0 | Z144: =M_Captie_A_6 -> 0 | AA144: =M_Captie_A_7 -> 0 | AB144: =M_Captie_A_8 -> 0 | AC144: =M_Captie_A_9 -> 0 | AD144: =M_Captie_A_10 -> 0
E145: - | F145: 2068
D146: PatFin | E146: - | F146: 10 | G146: =M_PatFin*-1 -> 0 | H146: =M_PatFin_2*-1 -> 0 | I146: =M_PatFin*-1 -> 0 | J146: =M_PatFin*-1 -> 0 | K146: =IF(M_ENG_P_1=0,0,M_PatFin*-1) ->  | L146: =IF(M_ENG_P_2=0,0,M_PatFin*-1) ->  | M146: =IF(M_ENG_P_3=0,0,M_PatFin*-1) ->  | N146: =IF(M_ENG_P_4=0,0,M_PatFin*-1) -> 0 | O146: =IF(M_ENG_P_5=0,0,M_PatFin*-1) -> 0 | P146: =IF(M_ENG_P_6=0,0,M_PatFin*-1) -> 0 | Q146: =IF(M_ENG_P_7=0,0,M_PatFin*-1) -> 0 | R146: =IF(M_ENG_P_8=0,0,M_PatFin*-1) -> 0 | S146: =IF(M_ENG_P_9=0,0,M_PatFin*-1) -> 0 | U146: =M_PatFin_A_1*-1 -> 0 | V146: =M_PatFin_A_2*-1 -> 0 | W146: =M_PatFin_A_3*-1 -> 0 | X146: =M_PatFin_A_4*-1 -> 0 | Y146: =M_PatFin_A_5*-1 -> 0 | Z146: =M_PatFin_A_6*-1 -> 0 | AA146: =M_PatFin_A_7*-1 -> 0 | AB146: =M_PatFin_A_8*-1 -> 0 | AC146: =M_PatFin_A_9*-1 -> 0 | AD146: =M_PatFin_A_10*-1 -> 0
D148: DetNet | G148: =SUM(G144:G147) -> 0 | H148: =SUM(H144:H147) -> 0 | I148: =SUM(I144:I147) ->  | K148: =SUM(K144:K147) ->  | L148: =SUM(L144:L147) ->  | M148: =SUM(M144:M147) ->  | N148: 0 | O148: 0 | P148: 0 | Q148: 0 | R148: 0 | S148: 0 | U148: 0 | V148: =SUM(V144:V147) -> 0 | W148: =SUM(W144:W147) -> 0 | X148: =SUM(X144:X147) -> 0 | Y148: =SUM(Y144:Y147) -> 0 | Z148: =SUM(Z144:Z147) -> 0 | AA148: =SUM(AA144:AA147) -> 0 | AB148: =SUM(AB144:AB147) -> 0 | AC148: =SUM(AC144:AC147) -> 0 | AD148: =SUM(AD144:AD147) -> 0
B151: C 22 | C151: Charge d'intérêts nets
F153: 340 | G153: =M_340 -> Remplir | H153: =M_340_2 -> Remplir | I153: =M_340_B -> Remplir | J153: =M_340_B_1 -> Remplir | K153: =M_340_P_1 -> Remplir | L153: =M_340_P_2 -> Remplir | M153: =M_340_P_3 -> Remplir | N153: =M_340_P_4 -> 0 | O153: =M_340_P_5 -> 0 | P153: =M_340_P_6 -> 0 | Q153: =M_340_P_7 -> 0 | R153: =M_340_P_8 -> 0 | S153: =M_340_P_9 -> 0 | U153: =M_340_A_1 -> 0 | V153: =M_340_A_2 -> 0 | W153: =M_340_A_3 -> 0 | X153: =M_340_A_4 -> 0 | Y153: =M_340_A_5 -> 0 | Z153: =M_340_A_6 -> 0 | AA153: =M_340_A_7 -> 0 | AB153: =M_340_A_8 -> 0 | AC153: =M_340_A_9 -> 0 | AD153: =M_340_A_10 -> 0
E154: - | F154: 440 | G154: =M_440*-1 -> 0 | H154: =M_440_2*-1 -> 0 | I154: =M_440_B*-1 -> 0 | J154: =M_440_B_1*-1 -> 0 | K154: =M_440_P_1*-1 ->  | L154: =M_440_P_2*-1 ->  | M154: =M_440_P_3*-1 ->  | N154: =M_440_P_4*-1 -> 0 | O154: =M_440_P_5*-1 -> 0 | P154: =M_440_P_6*-1 -> 0 | Q154: =M_440_P_7*-1 -> 0 | R154: =M_440_P_8*-1 -> 0 | S154: =M_440_P_9*-1 -> 0 | U154: =M_440_A_1*-1 -> 0 | V154: =M_440_A_2*-1 -> 0 | W154: =M_440_A_3*-1 -> 0 | X154: =M_440_A_4*-1 -> 0 | Y154: =M_440_A_5*-1 -> 0 | Z154: =M_440_A_6*-1 -> 0 | AA154: =M_440_A_7*-1 -> 0 | AB154: =M_440_A_8*-1 -> 0 | AC154: =M_440_A_9*-1 -> 0 | AD154: =M_440_A_10*-1 -> 0
D156: CharIntNet | G156: =SUM(G153:G155) -> 0 | H156: =SUM(H153:H155) -> 0 | I156: =SUM(I153:I155) -> 0 | J156: 0 | K156: =SUM(K153:K155) ->  | L156: =SUM(L153:L155) ->  | M156: =SUM(M153:M155) ->  | N156: 0 | O156: 0 | P156: 0 | Q156: 0 | R156: 0 | S156: 0 | U156: 0 | V156: =SUM(V153:V155) -> 0 | W156: =SUM(W153:W155) -> 0 | X156: =SUM(X153:X155) -> 0 | Y156: =SUM(Y153:Y155) -> 0 | Z156: =SUM(Z153:Z155) -> 0 | AA156: =SUM(AA153:AA155) -> 0 | AB156: =SUM(AB153:AB155) -> 0 | AC156: =SUM(AC153:AC155) -> 0 | AD156: =SUM(AD153:AD155) -> 0
B159: C 23 | C159: Autofinancement
C160: Résultat | G160: =M_4-M_3 -> 0 | H160: =M_4_2-M_3_2 -> 0 | I160: =M_4_B-M_3_B -> 0 | J160: =M_4_B_1-M_3_B_1 -> 0 | K160: =M_4_P_1-M_3_P_1 ->  | L160: =M_4_P_2-M_3_P_2 ->  | M160: =M_4_P_3-M_3_P_3 ->  | N160: =M_4_P_4-M_3_P_4 -> 0 | O160: =M_4_P_5-M_3_P_5 -> 0 | P160: =M_4_P_6-M_3_P_6 -> 0 | Q160: =M_4_P_7-M_3_P_7 -> 0 | R160: =M_4_P_8-M_3_P_8 -> 0 | S160: =M_4_P_9-M_3_P_9 -> 0 | U160: =M_4_A_1-M_3_A_1 -> 0 | V160: =M_4_A_2-M_3_A_2 -> 0 | W160: =M_4_A_3-M_3_A_3 -> 0 | X160: =M_4_A_4-M_3_A_4 -> 0 | Y160: =M_4_A_5-M_3_A_5 -> 0 | Z160: =M_4_A_6-M_3_A_6 -> 0 | AA160: =M_4_A_7-M_3_A_7 -> 0 | AB160: =M_4_A_8-M_3_A_8 -> 0 | AC160: =M_4_A_9-M_3_A_9 -> 0 | AD160: =M_4_A_10-M_3_A_10 -> 0
F161: 33 | G161: =M_33 -> 0 | H161: =M_33_2 -> 0 | I161: =M_33_B -> 0 | J161: =M_33_B_1 -> 0 | K161: =M_33_P_1 -> Remplir | L161: =M_33_P_2 -> Remplir | M161: =M_33_P_3 -> Remplir | N161: =M_33_P_4 -> 0 | O161: =M_33_P_5 -> 0 | P161: =M_33_P_6 -> 0 | Q161: =M_33_P_7 -> 0 | R161: =M_33_P_8 -> 0 | S161: =M_33_P_9 -> 0 | U161: =M_33_A_1 -> 0 | V161: =M_33_A_2 -> 0 | W161: =M_33_A_3 -> 0 | X161: =M_33_A_4 -> 0 | Y161: =M_33_A_5 -> 0 | Z161: =M_33_A_6 -> 0 | AA161: =M_33_A_7 -> 0 | AB161: =M_33_A_8 -> 0 | AC161: =M_33_A_9 -> 0 | AD161: =M_33_A_10 -> 0
F162: 35 | G162: =M_35 -> 0 | H162: =M_35_2 -> 0 | I162: =M_35_B -> 0 | J162: =M_35_B_1 -> 0 | K162: =M_35_P_1 ->  | L162: =M_35_P_2 ->  | M162: =M_35_P_3 ->  | N162: =M_35_P_4 -> 0 | O162: =M_35_P_5 -> 0 | P162: =M_35_P_6 -> 0 | Q162: =M_35_P_7 -> 0 | R162: =M_35_P_8 -> 0 | S162: =M_35_P_9 -> 0 | U162: =M_35_A_1 -> 0 | V162: =M_35_A_2 -> 0 | W162: =M_35_A_3 -> 0 | X162: =M_35_A_4 -> 0 | Y162: =M_35_A_5 -> 0 | Z162: =M_35_A_6 -> 0 | AA162: =M_35_A_7 -> 0 | AB162: =M_35_A_8 -> 0 | AC162: =M_35_A_9 -> 0 | AD162: =M_35_A_10 -> 0
E163: - | F163: 45 | G163: =M_45*-1 -> 0 | H163: =M_45_2*-1 -> 0 | I163: =M_45_B*-1 -> 0 | J163: =M_45_B_1*-1 -> 0 | K163: =M_45_P_1*-1 ->  | L163: =M_45_P_2*-1 ->  | M163: =M_45_P_3*-1 ->  | N163: =M_45_P_4*-1 -> 0 | O163: =M_45_P_5*-1 -> 0 | P163: =M_45_P_6*-1 -> 0 | Q163: =M_45_P_7*-1 -> 0 | R163: =M_45_P_8*-1 -> 0 | S163: =M_45_P_9*-1 -> 0 | U163: =M_45_A_1*-1 -> 0 | V163: =M_45_A_2*-1 -> 0 | W163: =M_45_A_3*-1 -> 0 | X163: =M_45_A_4*-1 -> 0 | Y163: =M_45_A_5*-1 -> 0 | Z163: =M_45_A_6*-1 -> 0 | AA163: =M_45_A_7*-1 -> 0 | AB163: =M_45_A_8*-1 -> 0 | AC163: =M_45_A_9*-1 -> 0 | AD163: =M_45_A_10*-1 -> 0
F164: 364 | G164: =M_364 -> 0 | H164: =M_364_2 -> 0 | I164: =M_364_B -> 0 | J164: =M_364_B_1 -> 0 | K164: =M_364_P_1 -> 0 | L164: =M_364_P_2 -> 0 | M164: =M_364_P_3 -> 0 | N164: =M_364_P_4 -> 0 | O164: =M_364_P_5 -> 0 | P164: =M_364_P_6 -> 0 | Q164: =M_364_P_7 -> 0 | R164: =M_364_P_8 -> 0 | S164: =M_364_P_9 -> 0 | U164: =M_364_A_1 -> 0 | V164: =M_364_A_2 -> 0 | W164: =M_364_A_3 -> 0 | X164: =M_364_A_4 -> 0 | Y164: =M_364_A_5 -> 0 | Z164: =M_364_A_6 -> 0 | AA164: =M_364_A_7 -> 0 | AB164: =M_364_A_8 -> 0 | AC164: =M_364_A_9 -> 0 | AD164: =M_364_A_10 -> 0
F165: 365 | G165: =M_365 -> 0 | H165: =M_365_2 -> 0 | I165: =M_365_B -> 0 | J165: =M_365_B_1 -> 0 | K165: =M_365_P_1 -> Remplir | L165: =M_365_P_2 -> Remplir | M165: =M_365_P_3 -> Remplir | N165: =M_365_P_4 -> 0 | O165: =M_365_P_5 -> 0 | P165: =M_365_P_6 -> 0 | Q165: =M_365_P_7 -> 0 | R165: =M_365_P_8 -> 0 | S165: =M_365_P_9 -> 0 | U165: =M_365_A_1 -> 0 | V165: =M_365_A_2 -> 0 | W165: =M_365_A_3 -> 0 | X165: =M_365_A_4 -> 0 | Y165: =M_365_A_5 -> 0 | Z165: =M_365_A_6 -> 0 | AA165: =M_365_A_7 -> 0 | AB165: =M_365_A_8 -> 0 | AC165: =M_365_A_9 -> 0 | AD165: =M_365_A_10 -> 0
F166: 366 | G166: =M_366 -> 0 | H166: =M_366_2 -> 0 | I166: =M_366_B -> 0 | J166: =M_366_B_1 -> 0 | K166: =M_366_P_1 -> Remplir | L166: =M_366_P_2 -> Remplir | M166: =M_366_P_3 -> Remplir | N166: =M_366_P_4 -> 0 | O166: =M_366_P_5 -> 0 | P166: =M_366_P_6 -> 0 | Q166: =M_366_P_7 -> 0 | R166: =M_366_P_8 -> 0 | S166: =M_366_P_9 -> 0 | U166: =M_366_A_1 -> 0 | V166: =M_366_A_2 -> 0 | W166: =M_366_A_3 -> 0 | X166: =M_366_A_4 -> 0 | Y166: =M_366_A_5 -> 0 | Z166: =M_366_A_6 -> 0 | AA166: =M_366_A_7 -> 0 | AB166: =M_366_A_8 -> 0 | AC166: =M_366_A_9 -> 0 | AD166: =M_366_A_10 -> 0
E167: - | F167: 466
F168: 383
F169: 387
E170: - | F170: 487
F171: 389 | G171: =M_389 -> 0 | H171: =M_389_2 -> 0 | I171: =M_389_B -> 0 | J171: =M_389_B_1 -> 0 | K171: =M_389_P_1 -> 0 | L171: =M_389_P_2 -> 0 | M171: =M_389_P_3 -> 0 | N171: =M_389_P_4 -> 0 | O171: =M_389_P_5 -> 0 | P171: =M_389_P_6 -> 0 | Q171: =M_389_P_7 -> 0 | R171: =M_389_P_8 -> 0 | S171: =M_389_P_9 -> 0 | U171: =M_389_A_1 -> 0 | V171: =M_389_A_2 -> 0 | W171: =M_389_A_3 -> 0 | X171: =M_389_A_4 -> 0 | Y171: =M_389_A_5 -> 0 | Z171: =M_389_A_6 -> 0 | AA171: =M_389_A_7 -> 0 | AB171: =M_389_A_8 -> 0 | AC171: =M_389_A_9 -> 0 | AD171: =M_389_A_10 -> 0
E172: - | F172: 4490 | G172: =M_4490*-1 ->  | H172: =M_4490_2*-1 ->  | I172: =M_4490_B*-1 ->  | J172: =M_4490_B_1*-1 ->  | K172: =M_4490_P_1*-1 ->  | L172: =M_4490_P_2*-1 ->  | M172: =M_4490_P_3*-1 ->  | N172: =M_4490_P_4*-1 -> 0 | O172: =M_4490_P_5*-1 -> 0 | P172: =M_4490_P_6*-1 -> 0 | Q172: =M_4490_P_7*-1 -> 0 | R172: =M_4490_P_8*-1 -> 0 | S172: =M_4490_P_9*-1 -> 0 | U172: =M_4490_A_1*-1 -> 0 | V172: =M_4490_A_2*-1 -> 0 | W172: =M_4490_A_3*-1 -> 0 | X172: =M_4490_A_4*-1 -> 0 | Y172: =M_4490_A_5*-1 -> 0 | Z172: =M_4490_A_6*-1 -> 0 | AA172: =M_4490_A_7*-1 -> 0 | AB172: =M_4490_A_8*-1 -> 0 | AC172: =M_4490_A_9*-1 -> 0 | AD172: =M_4490_A_10*-1 -> 0
E173: - | F173: 489 | G173: =M_489*-1 -> 0 | H173: =M_489_2*-1 -> 0 | I173: =M_489_B*-1 -> 0 | J173: =M_489_B_1*-1 -> 0 | K173: =M_489_P_1*-1 -> 0 | L173: =M_489_P_2*-1 -> 0 | M173: =M_489_P_3*-1 -> 0 | N173: =M_489_P_4*-1 -> 0 | O173: =M_489_P_5*-1 -> 0 | P173: =M_489_P_6*-1 -> 0 | Q173: =M_489_P_7*-1 -> 0 | R173: =M_489_P_8*-1 -> 0 | S173: =M_489_P_9*-1 -> 0 | U173: =M_489_A_1*-1 -> 0 | V173: =M_489_A_2*-1 -> 0 | W173: =M_489_A_3*-1 -> 0 | X173: =M_489_A_4*-1 -> 0 | Y173: =M_489_A_5*-1 -> 0 | Z173: =M_489_A_6*-1 -> 0 | AA173: =M_489_A_7*-1 -> 0 | AB173: =M_489_A_8*-1 -> 0 | AC173: =M_489_A_9*-1 -> 0 | AD173: =M_489_A_10*-1 -> 0
D175: AutoFin | G175: =SUM(G160:G173) ->  | H175: =SUM(H160:H173) ->  | N175: 0 | O175: 0 | P175: 0 | Q175: 0 | R175: 0 | S175: 0 | U175: =SUM(U160:U173) -> 0 | V175: =SUM(V160:V173) -> 0 | W175: 0 | X175: 0 | Y175: 0 | Z175: 0 | AA175: 0 | AB175: 0 | AC175: 0 | AD175: 0
